{"text_format":"1","workbook":"xlsx","n_sheets":11,"sheets":["Notice","VoletGeneral","Echeancier","EntCMVide","EntCCVide","Ent1","Parametres","Traduction","MenusDeroulants","Tmp","FichesAnnexes"],"not_rendered":{"charts":3,"images":0,"macros":1,"external_links":0,"defined_names":5,"comments":0,"pivot_tables":0},"unopened":[],"bounds":{"document_bytes":16777216,"sheet_cells":100000,"rows_first":2000,"rows_last":500,"rows_between":2000,"halvings":0,"cell_chars":16384,"cell_head_chars":4096},"cells_cut":0,"cells_raw":0,"read":"whole","date_system":"1900"}

{"sheet":"Notice","index":0,"n_rows":4,"n_cols":1,"rows_kept":4,"cut":false,"hidden":true,"merged":[]}
[]
[]
["Compatibilité de votre version d'Excel"]
["Attention, les macros ne pourront pas s'exécuter !"]

{"sheet":"VoletGeneral","index":1,"n_rows":316,"n_cols":44,"rows_kept":316,"cut":false,"hidden":false,"merged":[[3,10,3,11],[3,1,4,1]]}
[null,null,null,null,null,null,null,null,{"$f":"Traduction!B110","v":"Dernière modification"},null,{"$f":"IF(MAX($O$10:$O$69)<>0,MAX($O$10:$O$69),\"\")","v":"2017-10-10T19:43:37"},null,{"$f":"IF(SUM(N:N)-1<>0,SUM(N:N)-1&\" \"&Traduction!$B$271,\"\")&IF(SUM(N:N)-1>1,\"s\",\"\")","v":"25 erreurs"},null,null,null,null,"Nb lignes",null,"ETP"]
[null,null,{"$f":"Traduction!B228","v":"Document financier"},null,null,null,null,null,{"$f":"Traduction!B111","v":"N° de dossier"},null,{"$f":"\"ANR-\"&Parametres!D2-2000&\"-\"&UPPER(Parametres!D4)&\"-00xx\"","v":"ANR-17-MOPGA-00xx"},null,null,null,"1900-04-20",null,null,"Nb ent",{"$f":"MAX(C65:C69)-1","v":1},"ETP Rech",{"$f":"SUM(AQ65:AQ69)","v":0},"Budget","CC","Aide"]
[null,null,null,null,null,null,null,null,{"$f":"Traduction!B112","v":"Acronyme"},null,{"$f":"IF(F10<>\"\",F10,\"\")","v":""},null,null,{"$f":"IF(M3<>\"\",1,\"\")","v":""},null,null,null,"Nb OR & ES",{"$f":"COUNTIF(P65:P68,2)","v":1},"ETP Tot",{"$f":"SUM(AR65:AR69)","v":0},"Equipement",{"$f":"SUM(Q65:Q69)","v":0},{"$f":"SUM(AD65:AD69)","v":0}]
[null,{"$f":"Traduction!B2","v":"Choisir\nla langue"},{"$f":"Traduction!B229","v":"Investissements d'Avenir - Agence Nationale de la Recherche"},null,null,null,null,null,{"$f":"Traduction!B231","v":"Nombre d'entités"},null,{"$f":"MAX(C65:C69)-1","v":1},null,null,"",null,null,null,"Nb etspart",{"$f":"MAX(C107:C109)","v":1},null,null,"Pers stat",{"$f":"SUM(T65:T69)","v":0},{"$f":"SUM(AE65:AE69)","v":0}]
[null,null,null,{"$f":"test_os()","v":""},null,null,null,null,{"$f":"Traduction!B227","v":"Année de l'appel à projets"},null,{"$f":"Parametres!$D$2","v":2017},null,null,"",null,null,null,null,null,null,null,"CDI",{"$f":"SUM(U65:U69)","v":0},{"$f":"SUM(AF65:AF69)","v":0}]
[null,null,{"$f":"Traduction!B230&\" \"&Traduction!B232&Parametres!$D$3&Traduction!B233","v":"Appel à projets « Make our planet great again »"},null,null,null,null,null,null,null,null,null,null,"",null,null,null,null,null,null,null,"CDD et autres",{"$f":"SUM(V65:V69)","v":0},{"$f":"SUM(AG65:AG69)","v":0}]
[null,null,null,null,null,null,null,null,null,null,null,null,null,"",null,null,null,null,null,null,null,"Primes et HC",{"$f":"SUM(W65:W69)","v":0},{"$f":"SUM(AH65:AH69)","v":0}]
[null,null,{"$f":"Traduction!B234","v":"Identité du projet"},null,null,null,null,null,null,null,null,null,null,"",null,null,null,null,null,null,null,"PSE",{"$f":"SUM(X65:X69)","v":0},{"$f":"SUM(AI65:AI69)","v":0}]
[null,null,null,null,null,null,null,null,null,null,null,null,null,"",null,null,null,null,null,null,null,"Missions",{"$f":"SUM(Y65:Y69)","v":0},{"$f":"SUM(AJ65:AJ69)","v":0}]
[{"$f":"OR(F10&F11&F12&F22&F23&F24&K24&F16&F17&F18&F19&F20&G21&K21&I138&J138&K138&I139&J139&K139&I140&J140&K140<>\"\",A68:A138)","v":false},null,"Part1",null,{"$f":"Traduction!B241&IF(VoletGeneral!$B$6=\"En\",\"\",\" \")&\": \"","v":"Acronyme du projet : "},null,null,null,null,{"$f":"Traduction!B238&IF(VoletGeneral!$B$6=\"En\",\"\",\" \")&\": \"","v":"Durée du projet (en mois) : "},null,{"$f":"IF(Parametres!$D$5=\"Oui\",Parametres!$D$6,VoletGeneral!K$10)","v":0},{"$f":"test_ERREUR(LEN(F10)<2,Traduction!B81,AND(Parametres!$D$5<>\"Oui\",OR(NOT(ISNUMBER(L$10)),L$10<Parametres!$D$6)),Traduction!B83&\" \"&Parametres!$D$6&\" \"&Traduction!B85,AND(Parametres!$D$5<>\"Oui\",L$10>Parametres!$D$7),Traduction!B84&\" \"&Parametres!$D$7&\" \"&Traduction!B85)","v":"L'acronyme doit comporter un minimum de 2 caractères"},1,"Dates modif",null,null,null,null,null,null,"Autres dép. ext.",{"$f":"SUM(Z65:Z69)","v":0},{"$f":"SUM(AK65:AK69)","v":0}]
[null,null,null,null,{"$f":"Traduction!B242&IF(VoletGeneral!$B$6=\"En\",\"\",\" \")&\": \"","v":"Titre du projet en français : "},null,null,null,null,null,null,null,{"$f":"test_ERREUR(LEN(F11)<5,Traduction!$B$82)","v":"Le nom du projet doit comporter un minimum de 5 caractères"},1,"2017-10-10T19:43:37",null,null,null,null,null,null,"Fact. Int.",{"$f":"SUM(AA65:AA69)","v":0},{"$f":"SUM(AL65:AL69)","v":0}]
[null,null,null,null,{"$f":"Traduction!B243&IF(VoletGeneral!$B$6=\"En\",\"\",\" \")&\": \"","v":"Titre du projet en anglais : "},null,null,null,null,null,null,null,{"$f":"test_ERREUR(LEN(F12)<5,Traduction!$B$82)","v":"Le nom du projet doit comporter un minimum de 5 caractères"},1,{"$f":"Echeancier!N1","v":"2017-05-12T11:46:39"},null,null,null,null,null,null,"Frais de gestion et de structure",{"$f":"SUM(AB65:AB69)","v":0},{"$f":"SUM(AM65:AM69)","v":0}]
[null,null,null,null,null,null,null,null,null,null,null,null,null,"",null,null,null,null,null,null,null,"Total",{"$f":"SUM(AC65:AC69)","v":0},{"$f":"SUM(AN65:AN69)","v":0}]
[null,null,{"$f":"Traduction!B235","v":"Porteur de projet (à défaut, responsable du dépôt du projet)"},null,null,null,null,null,null,null,null,null,null,""]
[null,null,null,null,null,null,null,null,null,null,null,null,null,"",null,null,null,null,null,null,null,"Autres soutiens fin.",{"$f":"SUM(AO65:AO69)","v":0},{"$f":"SUM(AP65:AP69)","v":0}]
[null,null,null,null,{"$f":"Traduction!$B$127&IF(VoletGeneral!$B$6=\"En\",\"\",\" \")&\": \"","v":"Genre : "},{"$f":"IF(R16<>\"\",VLOOKUP(R16,MenusDeroulants!$A$282:$B$283,2,FALSE),\"\")","v":""},null,null,null,null,null,null,{"$f":"test_ERREUR(F16=\"\",Traduction!$B$21,AND(R16<>0,R16<>1),Traduction!$B$22)","v":"Veuillez choisir un genre dans le menu déroulant"},1]
[null,null,null,null,{"$f":"Traduction!$B$128&IF(VoletGeneral!$B$6=\"En\",\"\",\" \")&\": \"","v":"Nom : "},null,null,null,null,null,null,null,{"$f":"test_ERREUR(F17=\"\",Traduction!$B$23)","v":"Veuillez saisir un nom"},1]
[null,null,null,null,{"$f":"Traduction!$B$129&IF(VoletGeneral!$B$6=\"En\",\"\",\" \")&\": \"","v":"Prénom : "},null,null,null,null,null,null,null,{"$f":"test_ERREUR(F18=\"\",Traduction!$B$24)","v":"Veuillez saisir un prénom"},1]
[null,null,null,null,{"$f":"Traduction!$B$130&IF(VoletGeneral!$B$6=\"En\",\"\",\" \")&\": \"","v":"Titre / Qualité : "},null,null,null,null,null,null,null,{"$f":"test_ERREUR(F19=\"\",Traduction!$B$25)","v":"Veuillez saisir un titre/qualité"},1]
[null,null,null,null,{"$f":"Traduction!$B$131&IF(VoletGeneral!$B$6=\"En\",\"\",\" \")&\": \"","v":"Courriel : "},null,null,null,null,null,null,null,{"$f":"test_ERREUR(F20=\"\",Traduction!$B$26,NOT(AND(ISNUMBER(SEARCH(\"@\",F20)),ISNUMBER(SEARCH(\".\",F20,2+SEARCH(\"@\",F20))))),Traduction!$B$27)","v":"Veuillez saisir un email"},1]
[null,null,null,null,{"$f":"Traduction!$B$132&IF(VoletGeneral!$B$6=\"En\",\"\",\" \")&\": \"","v":"Téléphone : "},{"$f":"Traduction!$B$135&IF(VoletGeneral!$B$6=\"En\",\"\",\" \")&\": \"","v":"Indicatif : "},{"$f":"IF(R21<>\"\",IF(ISNUMBER(LEN(VLOOKUP(R21,MenusDeroulants!A$29:F$279,6,FALSE))),VLOOKUP(R21,MenusDeroulants!A$29:F$279,6,FALSE),\"Saisie invalide\"),\"\")","v":""},null,null,{"$f":"Traduction!$B$134&IF(VoletGeneral!$B$6=\"En\",\"\",\" \")&\": \"","v":"Numéro : "},null,null,{"$f":"test_ERREUR(G21=\"\",Traduction!$B$19,COUNTIF(MenusDeroulants!$F$29:$F$279,G21)=0,Traduction!$B$20)","v":"Veuillez choisir un pays dans le menu déroulant"},1]
[null,null,null,null,{"$f":"Traduction!$B$119&IF(VoletGeneral!$B$6=\"En\",\"\",\" \")&\": \"","v":"Rue : "},null,null,null,null,null,null,null,{"$f":"test_ERREUR(F22=\"\",Traduction!$B$15)","v":"Veuillez saisir une rue"},1]
[null,null,null,null,{"$f":"Traduction!$B$120&IF(VoletGeneral!$B$6=\"En\",\"\",\" \")&\": \"","v":"Code postal : "},null,null,null,null,null,null,null,{"$f":"test_ERREUR(F23=\"\",Traduction!$B$16,OR(F23<1000,F23>99999),Traduction!$B$17)","v":"Veuillez saisir un code postal"},1]
[null,null,null,null,{"$f":"Traduction!$B$121&IF(VoletGeneral!$B$6=\"En\",\"\",\" \")&\": \"","v":"Ville : "},null,null,null,null,{"$f":"Traduction!$B$125&IF(VoletGeneral!$B$6=\"En\",\"\",\" \")&\": \"","v":"Pays : "},{"$f":"IF(R24<>\"\",VLOOKUP(R24,MenusDeroulants!$A$29:$B$278,2,FALSE),\"\")","v":""},null,{"$f":"test_ERREUR(F24=\"\",Traduction!$B$18,K24=\"\",Traduction!$B$19,K24=\"-\",Traduction!$B$20,COUNTIF(MenusDeroulants!$C$29:$D$278,K24)=0,Traduction!$B$20)","v":"Veuillez saisir une ville"},1]
[null,null,null,null,null,null,null,null,null,null,null,null,null,""]
[null,null,{"$f":"Traduction!$B$291","v":"Etablissement coordinateur"},null,null,null,null,null,null,null,null,null,null,{"$f":"IF(M26<>\"\",1,\"\")","v":""}]
[null,null,null,null,null,null,null,null,null,null,null,null,null,""]
[{"$f":"OR(F28&F29&K29&F30&E40&E41&E42&E31&E32&E33&K100&K102<>\"\",A47:A95)","v":true},null,null,null,{"$f":"Traduction!$B$307&IF(VoletGeneral!$B$6=\"En\",\"\",\" \")&\": \"","v":"Nom complet de l'établissement coordinateur : "},null,null,null,null,null,null,null,{"$f":"test_ERREUR(F28=\"\",Traduction!$B$293)","v":"Veuillez saisir le nom complet de l'établissement coordinateur"},{"$f":"IF(M28<>\"\",1,\"\")","v":1}]
[null,null,null,null,{"$f":"Traduction!$B$308&IF(VoletGeneral!$B$6=\"En\",\"\",\" \")&\": \"","v":"Acronyme ou code de l'établissement coordinateur : "},null,null,null,null,{"$f":"Traduction!$B$116&IF(VoletGeneral!$B$6=\"En\",\"\",\" \")&\": \"","v":"Numéro SIRET : "},null,null,{"$f":"test_ERREUR(F29=\"\",Traduction!$B$294,AND(K29=\"\",S30<>5),Traduction!$B$8,AND(NOT(test_siret(K29)),S30<>5),Traduction!$B$9)","v":"Veuillez saisir l'acronyme de l'établissement coordinateur"},1]
[null,null,null,null,{"$f":"Traduction!$B$309&IF(VoletGeneral!$B$6=\"En\",\"\",\" \")&\": \"","v":"Forme légale de l'établissement coordinateur : "},{"$f":"IF(S30<>\"\",VLOOKUP(S30,MenusDeroulants!$E$335:$F$350,2,FALSE),\"\")","v":""},null,null,null,{"$f":"test_ERREUR(OR(F30=MenusDeroulants!$C$27,F30=MenusDeroulants!$D$27,F30=MenusDeroulants!$C$18,F30=MenusDeroulants!$D$18),Traduction!B145&IF(VoletGeneral!$B$6=\"En\",\"\",\" \")&\": \")","v":"Coût unitaire : "},null,null,{"$f":"test_ERREUR(F30=\"\",Traduction!$B$295,COUNTIF(MenusDeroulants!$C$10:$D$18,F30)=0,Traduction!$B$296,AND(J30<>\"\",K30=\"\"),Traduction!$B$297,AND(J30<>\"\",LEN(K30)<5),Traduction!$B$14)","v":"Veuillez choisir un type d'établissement coordinateur dans le menu déroulant"},1]
[null,null,null,null,{"$f":"Traduction!$B$119&IF(VoletGeneral!$B$6=\"En\",\"\",\" \")&\": \"","v":"Rue : "},null,null,null,null,null,null,null,{"$f":"test_ERREUR(F31=\"\",Traduction!$B$15)","v":"Veuillez saisir une rue"},{"$f":"IF(M31<>\"\",1,\"\")","v":1}]
[null,null,null,null,{"$f":"Traduction!$B$120&IF(VoletGeneral!$B$6=\"En\",\"\",\" \")&\": \"","v":"Code postal : "},null,null,null,null,null,null,null,{"$f":"test_ERREUR(F32=\"\",Traduction!$B$16,OR(F32<1000,F32>99999),Traduction!$B$17)","v":"Veuillez saisir un code postal"},{"$f":"IF(M32<>\"\",1,\"\")","v":1}]
[null,null,null,null,{"$f":"Traduction!$B$121&IF(VoletGeneral!$B$6=\"En\",\"\",\" \")&\": \"","v":"Ville : "},null,null,null,null,{"$f":"Traduction!$B$125&IF(VoletGeneral!$B$6=\"En\",\"\",\" \")&\": \"","v":"Pays : "},{"$f":"IF(S33<>\"\",VLOOKUP(S33,MenusDeroulants!$A$29:$B$278,2,FALSE),\"\")","v":""},null,{"$f":"test_ERREUR(F33=\"\",Traduction!$B$18,K33=\"\",Traduction!$B$19,K33=\"-\",Traduction!$B$20,COUNTIF(MenusDeroulants!$C$29:$D$278,K33)=0,Traduction!$B$20)","v":"Veuillez saisir une ville"},{"$f":"IF(M33<>\"\",1,\"\")","v":1}]
[null,null,null,null,null,null,null,null,null,null,null,null,null,""]
[null,null,{"$f":"Traduction!$B$292","v":"Personne habilitée à engager l'établissement coordinateur"},null,null,null,null,null,null,null,null,null,null,""]
[null,null,null,null,null,null,null,null,null,null,null,null,null,""]
[null,null,null,null,{"$f":"Traduction!$B$127&IF(VoletGeneral!$B$6=\"En\",\"\",\" \")&\": \"","v":"Genre : "},{"$f":"IF(S37<>\"\",VLOOKUP(S37,MenusDeroulants!$A$282:$B$283,2,FALSE),\"\")","v":""},null,null,null,null,null,null,{"$f":"test_ERREUR(F37=\"\",Traduction!$B$21,AND(S37<>0,S37<>1),Traduction!$B$22)","v":"Veuillez choisir un genre dans le menu déroulant"},1]
[null,null,null,null,{"$f":"Traduction!$B$128&IF(VoletGeneral!$B$6=\"En\",\"\",\" \")&\": \"","v":"Nom : "},null,null,null,null,null,null,null,{"$f":"test_ERREUR(F38=\"\",Traduction!$B$23)","v":"Veuillez saisir un nom"},1]
[null,null,null,null,{"$f":"Traduction!$B$129&IF(VoletGeneral!$B$6=\"En\",\"\",\" \")&\": \"","v":"Prénom : "},null,null,null,null,null,null,null,{"$f":"test_ERREUR(F39=\"\",Traduction!$B$24)","v":"Veuillez saisir un prénom"},1]
[null,null,null,null,{"$f":"Traduction!$B$130&IF(VoletGeneral!$B$6=\"En\",\"\",\" \")&\": \"","v":"Titre / Qualité : "},null,null,null,null,null,null,null,{"$f":"test_ERREUR(F40=\"\",Traduction!$B$25)","v":"Veuillez saisir un titre/qualité"},1]
[null,null,null,null,{"$f":"Traduction!$B$131&IF(VoletGeneral!$B$6=\"En\",\"\",\" \")&\": \"","v":"Courriel : "},null,null,null,null,null,null,null,{"$f":"test_ERREUR(F41=\"\",Traduction!$B$26,NOT(AND(ISNUMBER(SEARCH(\"@\",F41)),ISNUMBER(SEARCH(\".\",F41,2+SEARCH(\"@\",F41))))),Traduction!$B$27)","v":"Veuillez saisir un email"},1]
[null,null,null,null,{"$f":"Traduction!$B$132&IF(VoletGeneral!$B$6=\"En\",\"\",\" \")&\": \"","v":"Téléphone : "},{"$f":"Traduction!$B$135&IF(VoletGeneral!$B$6=\"En\",\"\",\" \")&\": \"","v":"Indicatif : "},{"$f":"IF(S42<>\"\",IF(ISNUMBER(LEN(VLOOKUP(S42,MenusDeroulants!A$29:F$279,6,FALSE))),VLOOKUP(S42,MenusDeroulants!A$29:F$279,6,FALSE),\"Saisie invalide\"),\"\")","v":""},null,null,{"$f":"Traduction!$B$134&IF(VoletGeneral!$B$6=\"En\",\"\",\" \")&\": \"","v":"Numéro : "},null,null,{"$f":"test_ERREUR(G42=\"\",Traduction!$B$19,COUNTIF(MenusDeroulants!$F$29:$F$279,G42)=0,Traduction!$B$20)","v":"Veuillez choisir un pays dans le menu déroulant"},1]
[null,null,null,null,null,null,null,null,null,null,null,null,null,""]
[null,null,{"$f":"Traduction!$B$240","v":"Budget détaillé du projet"},null,null,null,null,null,null,null,null,null,{"$f":"IF(AND(Parametres!$G$5=\"Oui\",Echeancier!P1<>\"\"),Echeancier!P1&\" dans l'échéancier\",\"\")","v":""},""]
[null,null,null,null,null,null,null,null,null,null,null,null,null,""]
[null,null,{"$f":"Traduction!$B$142","v":"Description"},null,null,null,null,null,null,{"$f":"Traduction!$B$147","v":"Total"},{"$f":"Traduction!$B$148","v":"Part aidée"},{"$f":"Traduction!$B$149","v":"Apport"},null,""]
[null,null,{"$f":"Traduction!$B$158","v":"Total équipement"},null,null,null,null,null,null,{"$f":"SUM(Q$65:Q$69)","v":0},{"$f":"SUM(AD$65:AD$69)","v":0},{"$f":"IF(J47<>0,(J47-K47)/J47,\"-%\")","v":"-%"},null,""]
[null,null,{"$f":"Traduction!$B$166","v":"Total personnels"},null,null,null,null,null,null,{"$f":"SUM(J$49:J$52)","v":0},{"$f":"SUM(K$49:K$52)","v":0},{"$f":"IF(J48<>0,(J48-K48)/J48,\"-%\")","v":"-%"},null,{"$f":"IF(M48<>\"\",1,\"\")","v":""}]
[null,null,null,{"$f":"Traduction!$B$160","v":"Salaires des personnels statutaires"},null,null,null,null,null,{"$f":"SUM(T$65:T$69)","v":0},{"$f":"SUM(AE$65:AE$69)","v":0},"-%",null,""]
[null,null,null,{"$f":"Traduction!$B$167","v":"Salaires des personnels en CDI"},null,null,null,null,null,{"$f":"SUM(U$65:U$69)","v":0},{"$f":"SUM(AF$65:AF$69)","v":0},"-%",null,""]
[null,null,null,{"$f":"Traduction!$B$169","v":"Salaires des personnels non permanents"},null,null,null,null,null,{"$f":"SUM(V65:V69)","v":0},{"$f":"SUM(AG65:AG69)","v":0},"-%",null,""]
[null,null,null,{"$f":"Traduction!$B$164","v":"Primes et heures complémentaires"},null,null,null,null,null,{"$f":"SUM(W$65:W$69)","v":0},{"$f":"SUM(AH$65:AH$69)","v":0},"-%",null,""]
[null,null,{"$f":"Traduction!$B$178","v":"Total fonctionnement"},null,null,null,null,null,null,{"$f":"SUM(J$54:J$56)","v":0},{"$f":"SUM(K$54:K$56)","v":0},"-%",null,{"$f":"IF(M53<>\"\",1,\"\")","v":""}]
[null,null,null,{"$f":"Traduction!$B$172","v":"Prestations de service externes"},null,null,null,null,null,{"$f":"SUM(X$65:X$69)","v":0},{"$f":"SUM(AI$65:AI$69)","v":0},"-%",null,""]
[null,null,null,{"$f":"Traduction!$B$174","v":"Missions"},null,null,null,null,null,{"$f":"SUM(Y$65:Y$69)","v":0},{"$f":"SUM(AJ$65:AJ$69)","v":0},"-%",null,""]
[null,null,null,{"$f":"Traduction!$B$176","v":"Autres dépenses externes"},null,null,null,null,null,{"$f":"SUM(Z$65:Z$69)","v":0},{"$f":"SUM(AK$65:AK$69)","v":0},"-%",null,""]
[null,null,{"$f":"Traduction!$B$180","v":"Total facturation interne"},null,null,null,null,null,null,{"$f":"SUM(AA$65:AA$69)","v":0},{"$f":"SUM(AL$65:AL$69)","v":0},"-%",null,""]
[null,null,{"$f":"Traduction!B190","v":"Frais de gestion et de structure"},null,null,null,null,null,null,{"$f":"SUM(AB$65:AB$69)","v":0},{"$f":"SUM(AM$65:AM$69)","v":0},"-%",null,""]
[null,null,"Total",null,null,null,null,null,null,{"$f":"SUM(J$47,J$48,J$53,J$58)","v":0},{"$f":"SUM(K$47,K$48,K$53,K$57,K$58)","v":0},"-%",null,""]
[null,null,null,null,null,null,null,null,null,null,null,null,null,""]
[null,null,{"$f":"Traduction!$B$270","v":"Budget par entité"},null,null,null,null,null,null,null,null,null,null,""]
[null,null,null,null,null,null,null,null,null,null,null,null,null,""]
[null,null,null,null,null,null,null,null,null,null,null,null,null,""]
[null,null,null,null,null,null,null,null,null,null,null,null,null,"",null,"Coûts complets",null,null,null,null,null,null,null,null,null,"Part aidée",null,null,null,null,null,null,null,null,null,null,null,null,"Autres soutiens fin.",null,"ETP"]
[null,null,{"$f":"Traduction!$B$115","v":"Acronyme ou code de l'entité"},null,{"$f":"IF(Parametres!D$9<>\"Oui\",\"\",Traduction!$B$117)","v":"Catégorie de l'entité"},{"$f":"Traduction!B279","v":"Part de l'entité dans le budget total"},{"$f":"Traduction!B248","v":"Total coûts complets"},{"$f":"Traduction!B246","v":"Dont, personnels"},{"$f":"Traduction!B249","v":"Aide demandée"},{"$f":"Traduction!B250","v":"Apports"},{"$f":"Traduction!B266","v":"Autres soutiens financiers sollicités"},{"$f":"Traduction!B267","v":"Autres soutiens financiers obtenus"},null,"",null,null,"Equipement",null,null,"Pers stat","CDI","CDD et autres","Primes et HC","PSE","Missions","Autres dép. ext.","Fact. Int.","Frais de gestion et de structure","Total","Equipement","Pers stat","CDI","CDD et autres","Primes et HC","PSE","Missions","Autres dép. ext.","Fact. Int.","Frais de gestion et de structure","Total","Demandé","Obtenu","Recherche","Total"]
[]
[null,null,{"$f":"index_tableau(C$65:C67)-2","v":1},{"$f":"IF('Ent1'!$E$8<>\"\",IF(LEN('Ent1'!$E$8)>28,LEFT('Ent1'!$E$8,25)&\"…\",'Ent1'!$E$8),IF('Ent1'!$E$7<>\"\",IF(LEN('Ent1'!$E$7)>28,LEFT('Ent1'!$E$7,25)&\"…\",'Ent1'!$E$7),\"\"))","v":""},{"$f":"IF(Parametres!D$9<>\"Oui\",\"\",VLOOKUP(P67,Traduction!$A$268:$B$269,2,FALSE))","v":"Public"},{"$f":"IF($W$13<>0,G67/W$13,\"-%\")","v":"-%"},{"$f":"AC67","v":0},{"$f":"SUM(T67:W67)","v":0},{"$f":"AN67","v":0},{"$f":"G67-I67","v":0},{"$f":"AO67","v":0},0,{"$f":"'Ent1'!$L$1","v":"14 erreurs"},{"$f":"IF(M67<>\"\",1,\"\")","v":1},{"$f":"IF('Ent1'!$J$1<>\"\",'Ent1'!$J$1,\"\")","v":"2017-05-11T11:50:49"},{"$f":"'Ent1'!$R$10","v":2},{"$f":"'Ent1'!$X$3","v":0},null,null,{"$f":"'Ent1'!$X$4","v":0},{"$f":"'Ent1'!$X$5","v":0},{"$f":"'Ent1'!$X$6","v":0},{"$f":"'Ent1'!$X$7","v":0},{"$f":"'Ent1'!$X$8","v":0},{"$f":"'Ent1'!$X$9","v":0},{"$f":"'Ent1'!$X$10","v":0},{"$f":"'Ent1'!$X$11","v":0},{"$f":"'Ent1'!$X$13","v":0},{"$f":"'Ent1'!$X$14","v":0},{"$f":"'Ent1'!$Y$3","v":0},{"$f":"'Ent1'!$Y$4","v":0},{"$f":"'Ent1'!$Y$5","v":0},{"$f":"'Ent1'!$Y$6","v":0},{"$f":"'Ent1'!$Y$7","v":0},{"$f":"'Ent1'!$Y$8","v":0},{"$f":"'Ent1'!$Y$9","v":0},{"$f":"'Ent1'!$Y$10","v":0},{"$f":"'Ent1'!$Y$11","v":0},{"$f":"'Ent1'!$Y$13","v":0},{"$f":"'Ent1'!$Y$14","v":0},{"$f":"'Ent1'!$X$16","v":0},{"$f":"'Ent1'!$Y$16","v":0},{"$f":"'Ent1'!$V$2","v":0},{"$f":"'Ent1'!$V$3","v":0}]
[null,null,{"$f":"index_tableau(C$65:C68)-2","v":2},{"$f":"IF(EntCCVide!$E$8<>\"\",IF(LEN(EntCCVide!$E$8)>28,LEFT(EntCCVide!$E$8,25)&\"…\",EntCCVide!$E$8),IF(EntCCVide!$E$7<>\"\",IF(LEN(EntCCVide!$E$7)>28,LEFT(EntCCVide!$E$7,25)&\"…\",EntCCVide!$E$7),\"\"))","v":""},{"$f":"IF(Parametres!D$9<>\"Oui\",\"\",VLOOKUP(P68,Traduction!$A$268:$B$269,2,FALSE))","v":"Entreprise"},{"$f":"IF($W$13<>0,G68/W$13,\"-%\")","v":"-%"},{"$f":"AC68","v":0},{"$f":"SUM(T68:W68)","v":0},{"$f":"AN68","v":0},{"$f":"G68-I68","v":0},0,0,{"$f":"EntCCVide!$L$1","v":"14 erreurs"},1,{"$f":"IF(EntCCVide!$J$1<>\"\",EntCCVide!$J$1,\"\")","v":"2016-03-23T17:03:02"},{"$f":"EntCCVide!$R$10","v":1},{"$f":"EntCCVide!$X$3","v":0},null,null,{"$f":"EntCCVide!$X$4","v":0},{"$f":"EntCCVide!$X$5","v":0},{"$f":"EntCCVide!$X$6","v":0},{"$f":"EntCCVide!$X$7","v":0},{"$f":"EntCCVide!$X$8","v":0},{"$f":"EntCCVide!$X$9","v":0},{"$f":"EntCCVide!$X$10","v":0},{"$f":"EntCCVide!$X$11","v":0},{"$f":"EntCCVide!$X$13","v":0},{"$f":"EntCCVide!$X$14","v":0},{"$f":"EntCCVide!$Y$3","v":0},{"$f":"EntCCVide!$Y$4","v":0},{"$f":"EntCCVide!$Y$5","v":0},{"$f":"EntCCVide!$Y$6","v":0},{"$f":"EntCCVide!$Y$7","v":0},{"$f":"EntCCVide!$Y$8","v":0},{"$f":"EntCCVide!$Y$9","v":0},{"$f":"EntCCVide!$Y$10","v":0},{"$f":"EntCCVide!$Y$11","v":0},{"$f":"EntCCVide!$Y$13","v":0},{"$f":"EntCCVide!$Y$14","v":0},{"$f":"EntCCVide!$X$16","v":0},{"$f":"EntCCVide!$Y$16","v":0},{"$f":"EntCCVide!$V$2","v":0},{"$f":"EntCCVide!$V$3","v":0}]
[null,null,"Total",null,null,null,{"$f":"somme_texte(\"# ### ### ##0 €;- # ### ### ##0 €;- €\",G65:G68)","v":" - €"}," - €"," - €"," - €"," - €"," - €",null,{"$f":"IF(M69<>\"\",1,\"\")","v":""}]
[null,null,null,null,null,null,null,null,null,null,null,null,null,""]
[null,null,{"$f":"Traduction!$B$272","v":"Synthèse"},null,null,null,null,null,null,null,null,null,null,""]
[null,null,null,null,null,null,null,null,null,null,null,null,null,""]
[null,null,{"$f":"Traduction!B273","v":"Personnels (en ETP par an)"},null,{"$f":"Traduction!B274","v":"Recherche"},{"$f":"Traduction!B275","v":"Total"},null,{"$f":"Traduction!B278","v":"Ventilation du budget"},null,{"$f":"Traduction!B248","v":"Total coûts complets"},{"$f":"Traduction!B280","v":"Aide / coûts complets"},{"$f":"Traduction!B281","v":"Aide / coûts complets hors permanents / statutaires et frais"},null,""]
[null,null,{"$f":"VLOOKUP($P$74,Traduction!$A$276:$B$277,2,FALSE)","v":"Public"},null,{"$f":"IF(L$10>0,SUMIF($P$65:$P$69,$P74,$AQ$65:$AQ$69)/$L$10,\"-\")","v":"-"},{"$f":"IF(L$10>0,SUMIF($P$65:$P$69,$P74,$AR$65:$AR$69)/$L$10,\"-\")","v":"-"},null,{"$f":"VLOOKUP($P$74,Traduction!$A$276:$B$277,2,FALSE)","v":"Public"},null,{"$f":"SUMIF($P$65:$P$69,$P74,G$65:G$69)","v":0},{"$f":"IF($J74<>0,SUMIF($P$65:$P$69,$P74,I$65:I$69)/$J74,\"-%\")","v":"-%"},{"$f":"IF($J74<>0,SUMIF($P$65:$P$69,$P74,I$65:I$69)/($J74-SUMIF($P$65:$P$69,$P74,T$65:T$69)-SUMIF($P$65:$P$69,$P74,U$65:U$69)-SUMIF($P$65:$P$69,$P74,AB$65:AB$69)),\"-%\")","v":"-%"},null,"",null,2]
[null,null,{"$f":"VLOOKUP($P$75,Traduction!$A$276:$B$277,2,FALSE)","v":"Entreprise (au sens de l'UE)"},null,{"$f":"IF($L$10>0,SUMIF($P$65:$P$69,$P75,$AQ$65:$AQ$69)/$L$10,\"-\")","v":"-"},{"$f":"IF($L$10>0,SUMIF($P$65:$P$69,$P75,$AR$65:$AR$69)/$L$10,\"-\")","v":"-"},null,{"$f":"VLOOKUP($P$75,Traduction!$A$276:$B$277,2,FALSE)","v":"Entreprise (au sens de l'UE)"},null,{"$f":"SUMIF($P$65:$P$69,$P75,G$65:G$69)","v":0},{"$f":"IF($J75<>0,SUMIF($P$65:$P$69,$P75,I$65:I$69)/$J75,\"-%\")","v":"-%"},{"$f":"IF($J75<>0,SUMIF($P$65:$P$69,$P75,I$65:I$69)/($J75-SUMIF($P$65:$P$69,$P75,T$65:T$69)-SUMIF($P$65:$P$69,$P75,U$65:U$69)-SUMIF($P$65:$P$69,$P75,AB$65:AB$69)),\"-%\")","v":"-%"},null,"",null,1]
[null,null,"Total",null,{"$f":"SUM(E74:E75)","v":0},{"$f":"SUM(F74:F75)","v":0},null,"Total",null,{"$f":"SUM(J74:J75)","v":0},{"$f":"IF($J76<>0,SUM(I65:I69)/$J76,\"-%\")","v":"-%"},{"$f":"IF($J76<>0,SUM(I65:I69)/($J76-SUM(T65:U69)-SUM(AB65:AB69)),\"-%\")","v":"-%"},null,""]
[null,null,null,null,null,null,null,null,null,null,null,null,null,""]
[null,null,null,null,null,null,null,null,null,null,null,null,null,""]
[null,null,null,null,null,null,null,null,null,null,null,null,null,""]
[null,null,null,null,null,null,null,null,null,null,null,null,null,""]
[null,null,null,null,null,null,null,null,null,null,null,null,null,""]
[null,null,null,null,null,null,null,null,null,null,null,null,null,{"$f":"IF(M82<>\"\",1,\"\")","v":""}]
[null,null,null,null,null,null,null,null,null,null,null,null,null,""]
[null,null,null,null,null,null,null,null,null,null,null,null,null,""]
[null,null,null,null,null,null,null,null,null,null,null,null,null,""]
[null,null,null,null,null,null,null,null,null,null,null,null,null,""]
[null,null,null,null,null,null,null,null,null,null,null,null,null,""]
[null,null,null,null,null,null,null,null,null,null,null,null,null,""]
[null,null,null,null,null,null,null,null,null,null,null,null,null,""]
[null,null,null,null,null,null,null,null,null,null,null,null,null,""]
[null,null,null,null,null,null,null,null,null,null,null,null,null,""]
[null,null,null,null,null,null,null,null,null,null,null,null,null,""]
[null,null,null,null,null,null,null,null,null,null,null,null,null,""]
[null,null,null,null,null,null,null,null,null,null,null,null,null,""]
[null,null,null,null,null,null,null,null,null,null,null,null,null,""]
[null,null,null,null,null,null,null,null,null,null,null,null,null,""]
[null,null,null,null,null,null,null,null,null,null,null,null,null,""]
[null,null,null,null,null,null,null,null,null,null,null,null,null,""]
[null,null,null,null,null,null,null,null,null,null,null,null,null,""]
[null,null,null,null,null,null,null,null,null,null,null,null,null,""]
[null,null,null,null,null,null,null,null,null,null,null,null,null,""]
[null,null,null,null,null,null,null,null,null,null,null,null,null,""]
[null,null,null,null,null,null,null,null,null,null,null,null,null,""]
[null,null,null,null,null,null,null,null,null,null,null,null,null,""]
[null,2,{"$f":"Traduction!$B$282","v":"Liste des établissements partenaires (entités ayant la personnalité morale, ou tutelles des entités non dotées de la personnalité morale)."},null,null,null,null,null,null,null,null,null,null,{"$f":"IF(M105<>\"\",1,\"\")","v":""}]
[null,null,null,null,null,null,null,null,null,null,null,null,null,""]
[null,null,"#",{"$f":"Traduction!$B$287","v":"Nom complet de l'institution"},null,{"$f":"Traduction!$B$288","v":"Acronyme"},{"$f":"Traduction!$B$119","v":"Rue"},null,{"$f":"Traduction!$B$120","v":"Code postal"},{"$f":"Traduction!$B$121","v":"Ville"},null,{"$f":"Traduction!$B$125","v":"Pays"},null,""]
[{"$f":"OR(D108&F108&G108&H108<>\"\",IF($K$8,I108<>\"\",FALSE))","v":false},1,{"$f":"index_tableau(C$107:C108)-1","v":1},null,null,null,null,null,null,null,null,null,null,""]
[null,null,null,null,null,null,null,null,null,null,null,null,null,{"$f":"IF(M109<>\"\",1,\"\")","v":""}]
[null,null,{"$f":"Traduction!$B$215","v":"Commentaires (le cas échéant, 27 lignes max)"},null,null,null,null,null,null,null,null,null,null,""]
[null,null,null,null,null,null,null,null,null,null,null,null,null,""]
[null,null,{"$f":"IF($N$2<>\"\",$N$2,\"\")","v":""},null,null,null,null,null,null,null,null,null,null,""]
[null,null,null,null,null,null,null,null,null,null,null,null,null,""]
[null,null,{"$f":"Traduction!$B$216","v":"Les informations personnelles transmises dans ces documents sont obligatoires et seront conservées en fichiers par l'ANR pour assurer la conduite opérationnelle"},null,null,null,null,null,null,null,null,null,null,""]
[null,null,{"$f":"Traduction!$B$217","v":"de l'évaluation et l'administration des dossiers."},null,null,null,null,null,null,null,null,null,null,""]
[null,null,{"$f":"Traduction!$B$218","v":"Conformément à la loi n° 78-17 du 6 janvier 1978 modifiée, relative à l'Informatique, aux Fichiers et aux Libertés, les personnes concernées disposent d'un droit "},null,null,null,null,null,null,null,null,null,null,""]
[null,null,{"$f":"Traduction!$B$219","v":"d'accès et de rectification des données personnelles les concernant. Les personnes concernées peuvent exercer ce droit en s'adressant à l'ANR  (voir coordonnées"},null,null,null,null,null,null,null,null,null,null,""]
[null,null,{"$f":"Traduction!$B$220","v":"dans le texte de l’appel à projets)."},null,null,null,null,null,null,null,null,null,null,""]
[null,null,null,null,null,null,null,null,null,null,null,null,null,""]
[null,null,null,null,null,null,null,null,null,null,null,null,null,""]
[null,null,null,null,null,null,null,null,null,null,null,null,null,""]
[null,null,null,null,null,null,null,null,null,null,null,null,null,""]
[null,null,null,null,null,null,null,null,null,null,null,null,null,""]
[null,null,null,null,null,null,null,null,null,null,null,null,null,""]
[null,null,null,null,null,null,null,null,null,null,null,null,null,""]
[null,null,null,null,null,null,null,null,null,null,null,null,null,""]
[null,null,null,null,null,null,null,null,null,null,null,null,null,""]
[null,null,null,null,null,null,null,null,null,null,null,null,null,""]
[null,null,null,null,null,null,null,null,null,null,null,null,null,""]
[null,null,null,null,null,null,null,null,null,null,null,null,null,""]
[null,null,null,null,null,null,null,null,null,null,null,null,null,""]
[null,null,null,null,null,null,null,null,null,null,null,null,null,""]
[null,null,null,null,null,null,null,null,null,null,null,null,null,""]
[null,null,null,null,null,null,null,null,null,null,null,null,null,""]
[null,null,null,null,null,null,null,null,null,null,null,null,null,""]
[null,null,null,null,null,null,null,null,null,null,null,null,null,""]
[null,null,null,null,null,null,null,null,null,null,null,null,null,""]
[null,null,null,null,null,null,null,null,null,null,null,null,null,""]
[null,null,null,null,null,null,null,null,null,null,null,null,null,""]
[null,null,null,null,null,null,null,null,null,null,null,null,null,""]
[null,null,null,null,null,null,null,null,null,null,null,null,null,""]
[null,null,null,null,null,null,null,null,null,null,null,null,null,""]
[null,null,null,null,null,null,null,null,null,null,null,null,null,""]
[null,null,null,null,null,null,null,null,null,null,null,null,null,""]
[null,null,null,null,null,null,null,null,null,null,null,null,null,{"$f":"IF(M145<>\"\",1,\"\")","v":""}]
[null,null,null,null,null,null,null,null,null,null,null,null,null,""]
[null,null,null,null,null,null,null,null,null,null,null,null,null,""]
[null,null,null,null,null,null,null,null,null,null,null,null,null,""]
[null,null,null,null,null,null,null,null,null,null,null,null,null,""]
[null,null,null,null,null,null,null,null,null,null,null,null,null,""]
[null,null,null,null,null,null,null,null,null,null,null,null,null,""]
[null,null,null,null,null,null,null,null,null,null,null,null,null,""]
[null,null,null,null,null,null,null,null,null,null,null,null,null,""]
[null,null,null,null,null,null,null,null,null,null,null,null,null,""]
[null,null,null,null,null,null,null,null,null,null,null,null,null,""]
[null,null,null,null,null,null,null,null,null,null,null,null,null,""]
[null,null,null,null,null,null,null,null,null,null,null,null,null,""]
[null,null,null,null,null,null,null,null,null,null,null,null,null,""]
[null,null,null,null,null,null,null,null,null,null,null,null,null,""]
[null,null,null,null,null,null,null,null,null,null,null,null,null,""]
[null,null,null,null,null,null,null,null,null,null,null,null,null,""]
[null,null,null,null,null,null,null,null,null,null,null,null,null,""]
[null,null,null,null,null,null,null,null,null,null,null,null,null,""]
[null,null,null,null,null,null,null,null,null,null,null,null,null,""]
[null,null,null,null,null,null,null,null,null,null,null,null,null,""]
[null,null,null,null,null,null,null,null,null,null,null,null,null,""]
[null,null,null,null,null,null,null,null,null,null,null,null,null,""]
[null,null,null,null,null,null,null,null,null,null,null,null,null,""]
[null,null,null,null,null,null,null,null,null,null,null,null,null,""]
[null,null,null,null,null,null,null,null,null,null,null,null,null,""]
[null,null,null,null,null,null,null,null,null,null,null,null,null,""]
[null,null,null,null,null,null,null,null,null,null,null,null,null,""]
[null,null,null,null,null,null,null,null,null,null,null,null,null,""]
[null,null,null,null,null,null,null,null,null,null,null,null,null,""]
[null,null,null,null,null,null,null,null,null,null,null,null,null,""]
[null,null,null,null,null,null,null,null,null,null,null,null,null,""]
[null,null,null,null,null,null,null,null,null,null,null,null,null,""]
[null,null,null,null,null,null,null,null,null,null,null,null,null,""]
[null,null,null,null,null,null,null,null,null,null,null,null,null,""]
[null,null,null,null,null,null,null,null,null,null,null,null,null,""]
[null,null,null,null,null,null,null,null,null,null,null,null,null,""]
[null,null,null,null,null,null,null,null,null,null,null,null,null,""]
[null,null,null,null,null,null,null,null,null,null,null,null,null,""]
[null,null,null,null,null,null,null,null,null,null,null,null,null,""]
[null,null,null,null,null,null,null,null,null,null,null,null,null,""]
[null,null,null,null,null,null,null,null,null,null,null,null,null,""]
[null,null,null,null,null,null,null,null,null,null,null,null,null,""]
[null,null,null,null,null,null,null,null,null,null,null,null,null,""]
[null,null,null,null,null,null,null,null,null,null,null,null,null,""]
[null,null,null,null,null,null,null,null,null,null,null,null,null,""]
[null,null,null,null,null,null,null,null,null,null,null,null,null,""]
[null,null,null,null,null,null,null,null,null,null,null,null,null,""]
[null,null,null,null,null,null,null,null,null,null,null,null,null,""]
[null,null,null,null,null,null,null,null,null,null,null,null,null,""]
[null,null,null,null,null,null,null,null,null,null,null,null,null,""]
[null,null,null,null,null,null,null,null,null,null,null,null,null,""]
[null,null,null,null,null,null,null,null,null,null,null,null,null,""]
[null,null,null,null,null,null,null,null,null,null,null,null,null,""]
[null,null,null,null,null,null,null,null,null,null,null,null,null,""]
[null,null,null,null,null,null,null,null,null,null,null,null,null,""]
[null,null,null,null,null,null,null,null,null,null,null,null,null,""]
[null,null,null,null,null,null,null,null,null,null,null,null,null,""]
[null,null,null,null,null,null,null,null,null,null,null,null,null,""]
[null,null,null,null,null,null,null,null,null,null,null,null,null,""]
[null,null,null,null,null,null,null,null,null,null,null,null,null,""]
[null,null,null,null,null,null,null,null,null,null,null,null,null,""]
[null,null,null,null,null,null,null,null,null,null,null,null,null,""]
[null,null,null,null,null,null,null,null,null,null,null,null,null,""]
[null,null,null,null,null,null,null,null,null,null,null,null,null,{"$f":"IF(M209<>\"\",1,\"\")","v":""}]
[null,null,null,null,null,null,null,null,null,null,null,null,null,""]
[null,null,null,null,null,null,null,null,null,null,null,null,null,""]
[null,null,null,null,null,null,null,null,null,null,null,null,null,""]
[null,null,null,null,null,null,null,null,null,null,null,null,null,""]
[null,null,null,null,null,null,null,null,null,null,null,null,null,""]
[null,null,null,null,null,null,null,null,null,null,null,null,null,""]
[null,null,null,null,null,null,null,null,null,null,null,null,null,""]
[null,null,null,null,null,null,null,null,null,null,null,null,null,""]
[null,null,null,null,null,null,null,null,null,null,null,null,null,""]
[null,null,null,null,null,null,null,null,null,null,null,null,null,""]
[null,null,null,null,null,null,null,null,null,null,null,null,null,""]
[null,null,null,null,null,null,null,null,null,null,null,null,null,""]
[null,null,null,null,null,null,null,null,null,null,null,null,null,""]
[null,null,null,null,null,null,null,null,null,null,null,null,null,""]
[null,null,null,null,null,null,null,null,null,null,null,null,null,""]
[null,null,null,null,null,null,null,null,null,null,null,null,null,""]
[null,null,null,null,null,null,null,null,null,null,null,null,null,""]
[null,null,null,null,null,null,null,null,null,null,null,null,null,""]
[null,null,null,null,null,null,null,null,null,null,null,null,null,""]
[null,null,null,null,null,null,null,null,null,null,null,null,null,""]
[null,null,null,null,null,null,null,null,null,null,null,null,null,""]
[null,null,null,null,null,null,null,null,null,null,null,null,null,""]
[null,null,null,null,null,null,null,null,null,null,null,null,null,""]
[null,null,null,null,null,null,null,null,null,null,null,null,null,""]
[null,null,null,null,null,null,null,null,null,null,null,null,null,""]
[null,null,null,null,null,null,null,null,null,null,null,null,null,""]
[null,null,null,null,null,null,null,null,null,null,null,null,null,""]
[null,null,null,null,null,null,null,null,null,null,null,null,null,""]
[null,null,null,null,null,null,null,null,null,null,null,null,null,""]
[null,null,null,null,null,null,null,null,null,null,null,null,null,""]
[null,null,null,null,null,null,null,null,null,null,null,null,null,""]
[null,null,null,null,null,null,null,null,null,null,null,null,null,""]
[null,null,null,null,null,null,null,null,null,null,null,null,null,""]
[null,null,null,null,null,null,null,null,null,null,null,null,null,""]
[null,null,null,null,null,null,null,null,null,null,null,null,null,""]
[null,null,null,null,null,null,null,null,null,null,null,null,null,""]
[null,null,null,null,null,null,null,null,null,null,null,null,null,""]
[null,null,null,null,null,null,null,null,null,null,null,null,null,""]
[null,null,null,null,null,null,null,null,null,null,null,null,null,""]
[null,null,null,null,null,null,null,null,null,null,null,null,null,""]
[null,null,null,null,null,null,null,null,null,null,null,null,null,""]
[null,null,null,null,null,null,null,null,null,null,null,null,null,""]
[null,null,null,null,null,null,null,null,null,null,null,null,null,""]
[null,null,null,null,null,null,null,null,null,null,null,null,null,""]
[null,null,null,null,null,null,null,null,null,null,null,null,null,""]
[null,null,null,null,null,null,null,null,null,null,null,null,null,""]
[null,null,null,null,null,null,null,null,null,null,null,null,null,""]
[null,null,null,null,null,null,null,null,null,null,null,null,null,""]
[null,null,null,null,null,null,null,null,null,null,null,null,null,""]
[null,null,null,null,null,null,null,null,null,null,null,null,null,""]
[null,null,null,null,null,null,null,null,null,null,null,null,null,""]
[null,null,null,null,null,null,null,null,null,null,null,null,null,""]
[null,null,null,null,null,null,null,null,null,null,null,null,null,""]
[null,null,null,null,null,null,null,null,null,null,null,null,null,""]
[null,null,null,null,null,null,null,null,null,null,null,null,null,""]
[null,null,null,null,null,null,null,null,null,null,null,null,null,""]
[null,null,null,null,null,null,null,null,null,null,null,null,null,""]
[null,null,null,null,null,null,null,null,null,null,null,null,null,""]
[null,null,null,null,null,null,null,null,null,null,null,null,null,""]
[null,null,null,null,null,null,null,null,null,null,null,null,null,""]
[null,null,null,null,null,null,null,null,null,null,null,null,null,""]
[null,null,null,null,null,null,null,null,null,null,null,null,null,""]
[null,null,null,null,null,null,null,null,null,null,null,null,null,""]
[null,null,null,null,null,null,null,null,null,null,null,null,null,{"$f":"IF(M273<>\"\",1,\"\")","v":""}]
[null,null,null,null,null,null,null,null,null,null,null,null,null,""]
[null,null,null,null,null,null,null,null,null,null,null,null,null,""]
[null,null,null,null,null,null,null,null,null,null,null,null,null,""]
[null,null,null,null,null,null,null,null,null,null,null,null,null,""]
[null,null,null,null,null,null,null,null,null,null,null,null,null,""]
[null,null,null,null,null,null,null,null,null,null,null,null,null,""]
[null,null,null,null,null,null,null,null,null,null,null,null,null,""]
[null,null,null,null,null,null,null,null,null,null,null,null,null,""]
[null,null,null,null,null,null,null,null,null,null,null,null,null,""]
[null,null,null,null,null,null,null,null,null,null,null,null,null,""]
[null,null,null,null,null,null,null,null,null,null,null,null,null,""]
[null,null,null,null,null,null,null,null,null,null,null,null,null,""]
[null,null,null,null,null,null,null,null,null,null,null,null,null,""]
[null,null,null,null,null,null,null,null,null,null,null,null,null,""]
[null,null,null,null,null,null,null,null,null,null,null,null,null,""]
[null,null,null,null,null,null,null,null,null,null,null,null,null,""]
[null,null,null,null,null,null,null,null,null,null,null,null,null,""]
[null,null,null,null,null,null,null,null,null,null,null,null,null,""]
[null,null,null,null,null,null,null,null,null,null,null,null,null,""]
[null,null,null,null,null,null,null,null,null,null,null,null,null,""]
[null,null,null,null,null,null,null,null,null,null,null,null,null,""]
[null,null,null,null,null,null,null,null,null,null,null,null,null,""]
[null,null,null,null,null,null,null,null,null,null,null,null,null,""]
[null,null,null,null,null,null,null,null,null,null,null,null,null,""]
[null,null,null,null,null,null,null,null,null,null,null,null,null,""]
[null,null,null,null,null,null,null,null,null,null,null,null,null,""]
[null,null,null,null,null,null,null,null,null,null,null,null,null,""]
[null,null,null,null,null,null,null,null,null,null,null,null,null,""]
[null,null,null,null,null,null,null,null,null,null,null,null,null,""]
[null,null,null,null,null,null,null,null,null,null,null,null,null,""]
[null,null,null,null,null,null,null,null,null,null,null,null,null,""]
[null,null,null,null,null,null,null,null,null,null,null,null,null,""]
[null,null,null,null,null,null,null,null,null,null,null,null,null,""]
[null,null,null,null,null,null,null,null,null,null,null,null,null,""]
[null,null,null,null,null,null,null,null,null,null,null,null,null,""]
[null,null,null,null,null,null,null,null,null,null,null,null,null,""]
[null,null,null,null,null,null,null,null,null,null,null,null,null,""]
[null,null,null,null,null,null,null,null,null,null,null,null,null,""]
[null,null,null,null,null,null,null,null,null,null,null,null,null,""]
[null,null,null,null,null,null,null,null,null,null,null,null,null,""]
[null,null,null,null,null,null,null,null,null,null,null,null,null,""]
[null,null,null,null,null,null,null,null,null,null,null,null,null,""]
[null,null,null,null,null,null,null,null,null,null,null,null,null,""]

{"sheet":"Echeancier","index":2,"n_rows":40,"n_cols":17,"rows_kept":40,"cut":false,"hidden":true,"merged":[]}
["Echeancier",null,null,null,null,null,null,null,null,null,null,{"$f":"Traduction!B110","v":"Dernière modification"},null,"2017-05-12T11:46:39",null,{"$f":"IF(SUM(Q:Q)<>0,SUM(Q:Q)&\" \"&Traduction!$B$271,\"\")&IF(SUM(Q:Q)>1,\"s\",\"\")","v":""}]
[null,null,{"$f":"Traduction!B105","v":"Échéancier des besoins en aide"},null,null,null,null,null,null,null,null,{"$f":"Traduction!B111","v":"N° de dossier"},null,{"$f":"VoletGeneral!K2","v":"ANR-17-MOPGA-00xx"}]
[null,null,null,null,null,null,null,null,null,null,null,{"$f":"Traduction!B112","v":"Acronyme"},null,{"$f":"IF(VoletGeneral!F10<>\"\",VoletGeneral!F10,\"\")","v":""}]
[]
[null,null,{"$f":"Traduction!B106","v":"Échéancier des besoins en aide par entité"}]
[]
[null,null,{"$f":"Traduction!$B$115","v":"Acronyme ou code de l'entité"},null,{"$f":"\" \"&Parametres!$D$2+1&\" \"","v":" 2018 "},{"$f":"\" \"&Parametres!$D$2+2&\" \"","v":" 2019 "},{"$f":"\" \"&Parametres!$D$2+3&\" \"","v":" 2020 "},{"$f":"\" \"&Parametres!$D$2+4&\" \"","v":" 2021 "},{"$f":"\" \"&Parametres!$D$2+5&\" \"","v":" 2022 "},{"$f":"\" \"&Parametres!$D$2+6&\" \"","v":" 2023 "},{"$f":"\" \"&Parametres!$D$2+7&\" \"","v":" 2024 "},{"$f":"\" \"&Parametres!$D$2+8&\" \"","v":" 2025 "},{"$f":"\" \"&Parametres!$D$2+9&\" \"","v":" 2026 "},{"$f":"\" \"&Parametres!$D$2+10&\" \"","v":" 2027 "},{"$f":"Traduction!$B$264","v":"Total aide demandée"}]
[null,null,{"$f":"index_tableau(C$7:C8)-1","v":1},{"$f":"IF(EntCCVide!$E$8<>\"\",EntCCVide!$E$8,\"\")","v":""},null,null,null,null,null,null,null,null,null,null,{"$f":"EntCCVide!$Y$14","v":0},{"$f":"IF(ROUND(SUM(E8:N8),0)<>ROUND(O8,0),Traduction!$B$285&\" \"&ROUND(O8-SUM(E8:N8),0)&\" €)\",\"\")","v":""},{"$f":"IF(P8<>\"\",1,\"\")","v":""}]
[null,null,{"$f":"index_tableau(C$7:C9)-1","v":2},{"$f":"IF(EntCCVide!$E$8<>\"\",EntCCVide!$E$8,\"\")","v":""},null,null,null,null,null,null,null,null,null,null,{"$f":"EntCCVide!$Y$14","v":0},{"$f":"IF(ROUND(SUM(E9:N9),0)<>ROUND(O9,0),Traduction!$B$285&\" \"&ROUND(O9-SUM(E9:N9),0)&\" €)\",\"\")","v":""},""]
[null,null,"Total",null,{"$f":"SUM(E$7:E9)","v":0},{"$f":"SUM(F$7:F9)","v":0},{"$f":"SUM(G$7:G9)","v":0},{"$f":"SUM(H$7:H9)","v":0},{"$f":"SUM(I$7:I9)","v":0},{"$f":"SUM(J$7:J9)","v":0},{"$f":"SUM(K$7:K9)","v":0},{"$f":"SUM(L$7:L9)","v":0},{"$f":"SUM(M$7:M9)","v":0},{"$f":"SUM(N$7:N9)","v":0},{"$f":"SUM(O$7:O9)","v":0}]
[]
[]
[]
[]
[]
[]
[]
[]
[]
[]
[]
[]
[]
[]
[]
[]
[]
[]
[]
[]
[]
[null,null,{"$f":"Traduction!$B$215","v":"Commentaires (le cas échéant, 27 lignes max)"}]
[]
[null,null,{"$f":"IF($Q$2<>\"\",$Q$2,\"\")","v":""}]
[]
[null,null,{"$f":"Traduction!$B$216","v":"Les informations personnelles transmises dans ces documents sont obligatoires et seront conservées en fichiers par l'ANR pour assurer la conduite opérationnelle"}]
[null,null,{"$f":"Traduction!$B$217","v":"de l'évaluation et l'administration des dossiers."}]
[null,null,{"$f":"Traduction!$B$218","v":"Conformément à la loi n° 78-17 du 6 janvier 1978 modifiée, relative à l'Informatique, aux Fichiers et aux Libertés, les personnes concernées disposent d'un droit "}]
[null,null,{"$f":"Traduction!$B$219","v":"d'accès et de rectification des données personnelles les concernant. Les personnes concernées peuvent exercer ce droit en s'adressant à l'ANR  (voir coordonnées"}]
[null,null,{"$f":"Traduction!$B$220","v":"dans le texte de l’appel à projets)."}]

{"sheet":"EntCMVide","index":3,"n_rows":112,"n_cols":25,"rows_kept":112,"cut":false,"hidden":true,"merged":[]}
[{"$f":"NUM_PARTENAIRE(C2)","v":"CMVide"},null,null,null,null,null,null,{"$f":"Traduction!B110","v":"Dernière modification"},null,"2016-09-06T11:23:52",null,{"$f":"IF(SUM(M:M)<>0,SUM(M:M)&\" \"&Traduction!$B$271,\"\")&IF(SUM(M:M)>1,\"s\",\"\")","v":"15 erreurs"},null,"Commentaire",null,"Nb lignes",null,"Taux",null,"Num lignes","ETP"]
[null,null,{"$f":"Traduction!B109&NUM_PARTENAIRE(C2)","v":"Fiche financière de l'entité n°CMVide"},null,null,null,null,{"$f":"Traduction!B111","v":"N° de dossier"},null,{"$f":"VoletGeneral!K2&\"-\"&TEXT(NUM_PARTENAIRE(C2),\"0000\")","v":"ANR-17-MOPGA-00xx-CMVide"},null,null,null,null,104,"Equipement",{"$f":"MAX(C$29:C$31)","v":1},"Gest",null,29,"ETP Rech",{"$f":"SUMIF(S35:S37,0,H35:H37)+SUMIF(S35:S37,1,H35:H37)+SUMIF(S35:S37,2,H35:H37)+SUMIF(S39:S41,0,H39:H41)+SUMIF(S39:S41,1,H39:H41)+SUMIF(S39:S41,2,H39:H41)+SUMIF(S39:S41,3,H39:H41)+SUMIF(S39:S41,4,H39:H41)+SUMIF(S39:S41,5,H39:H41)+SUMIF(S39:S41,6,H39:H41)+SUMIF(S39:S41,7,H39:H41)","v":0},"Budget","CC","Aide"]
[null,null,"fdgsdfgdffsdfsdg",{"$f":"test_os()","v":""},null,null,null,{"$f":"Traduction!B112","v":"Acronyme"},null,{"$f":"IF(VoletGeneral!F10<>\"\",VoletGeneral!F10,\"\")","v":""},null,null,null,null,null,"Pers. Stat.",{"$f":"MAX(C$35:C$37)","v":1},"Env",null,35,"ETP Tot",{"$f":"SUM(H35:H38)+SUM(H39:H42)","v":0},"Equipement",{"$f":"SUM(I29:I31)","v":0},{"$f":"SUM(J29:J31)","v":0}]
[null,null,null,null,null,null,null,null,null,null,null,null,null,null,null,"Pers. Non stat.",{"$f":"MAX(C$39:C$41)","v":1},null,null,39,null,null,"Pers stat",{"$f":"SUM(I35:I37)","v":0}]
[null,null,{"$f":"Traduction!B113","v":"Identification de l'entité"},null,null,null,null,null,null,null,null,null,{"$f":"IF(L5<>\"\",1,\"\")","v":""},null,null,"Primes",{"$f":"MAX(C$43:C$45)","v":1},null,null,43,null,null,"CDI",{"$f":"SUMIF(F39:F41,\"*CDI*\",I39:I41)","v":0},{"$f":"SUMIF(F39:F41,\"*CDI*\",J39:J41)","v":0}]
[null,null,null,null,null,null,null,null,null,null,null,null,{"$f":"IF(L6<>\"\",1,\"\")","v":""},null,null,"Prest. ext.",{"$f":"MAX(C$50:C$52)","v":1},null,null,50,null,null,"CDD et autres",{"$f":"SUM(I39:I41)-X5","v":0},{"$f":"SUM(J39:J41)-Y5","v":0}]
[{"$f":"OR(E7&E8&E9&E11&E13&E14&E15&H15&K9&K10&E19&E20&E21&E22&E23&E24&K81&K83<>\"\",A29:A76)","v":true},null,null,{"$f":"Traduction!$B$114&IF(VoletGeneral!$B$6=\"En\",\"\",\" \")&\": \"","v":"Nom complet de l'entité : "},null,null,null,null,null,null,null,{"$f":"test_ERREUR(E7=\"\",Traduction!$B$4)","v":"Veuillez saisir le nom complet de l'entité"},1,null,null,"Missions",{"$f":"MAX(C$54:C$56)","v":1},null,null,54,null,null,"Primes et HC",{"$f":"SUM(I43:I45)","v":0},{"$f":"SUM(J43:J45)","v":0}]
[null,null,null,{"$f":"Traduction!$B$115&IF(VoletGeneral!$B$6=\"En\",\"\",\" \")&\": \"","v":"Acronyme ou code de l'entité : "},null,null,null,null,"Eligibilité aide :",{"$f":"OR(Parametres!D13=\"Oui\",COUNTIF(MenusDeroulants!C17:D17,E11)=0)","v":true},{"$f":"AND(J8,COUNTIF(MenusDeroulants!C7:D7,K9)>0)","v":true},{"$f":"test_ERREUR(E8=\"\",Traduction!$B$6)","v":"Veuillez saisir l'acronyme de l'entité"},1,null,null,"Autre dep.",{"$f":"MAX(C$58:C$60)","v":1},null,null,58,null,null,"PSE",{"$f":"SUM(I50:I52)","v":0},{"$f":"SUM(J50:J52)","v":0}]
[null,null,null,{"$f":"Traduction!$B$116&IF(VoletGeneral!$B$6=\"En\",\"\",\" \")&\": \"","v":"Numéro SIRET : "},null,null,null,null,null,{"$f":"Traduction!$B$122&IF(VoletGeneral!$B$6=\"En\",\"\",\" \")&\": \"","v":"L'entité est-il éligible à une aide : "},{"$f":"IF(J8,MenusDeroulants!$B$7,MenusDeroulants!$B$8)","v":"Oui"},{"$f":"test_ERREUR(AND(R11<>5,E9=\"\"),Traduction!$B$8,AND(R11<>5,NOT(test_siret(E9))),Traduction!$B$9,AND(COUNTIF(MenusDeroulants!$C$7:$D$8,K9)=0,J8),Traduction!$B$10)","v":"Veuillez saisir le n° SIRET de l'entité"},1,null,null,"Fact. Int.",{"$f":"MAX(C$64:C$66)","v":1},null,null,64,null,null,"Missions",{"$f":"SUM(I54:I56)","v":0},{"$f":"SUM(J54:J56)","v":0}]
[null,null,null,{"$f":"Traduction!$B$117&IF(VoletGeneral!$B$6=\"En\",\"\",\" \")&\": \"","v":"Catégorie de l'entité : "},{"$f":"IF(R10<>\"\",VLOOKUP(R10,Traduction!A107:B108,2,FALSE),\"\")","v":"Public"},null,null,null,null,{"$f":"Traduction!$B$123&IF(VoletGeneral!$B$6=\"En\",\"\",\" \")&\": \"","v":"TVA récupérée : "},{"$f":"IF(S10<>\"\",VLOOKUP(S10,MenusDeroulants!A7:B8,2,FALSE),\"\")","v":""},{"$f":"test_ERREUR(COUNTIF(MenusDeroulants!$C$7:$D$8,K10)=0,Traduction!$B$10)","v":"Veuillez choisir oui ou non"},1,null,null,"Frais de struct",{"$f":"MAX(C$69:C$71)","v":1},2,null,69,null,null,"Autres dép. ext.",{"$f":"SUM(I58:I60)","v":0},{"$f":"SUM(J58:J60)","v":0}]
[null,null,null,{"$f":"Traduction!$B$118&IF(VoletGeneral!$B$6=\"En\",\"\",\" \")&\": \"","v":"Forme légale de l'entité : "},{"$f":"IF(R11<>\"\",VLOOKUP(R11,MenusDeroulants!A10:B18,2,FALSE),\"\")","v":""},null,null,null,{"$f":"test_ERREUR(OR(E11=MenusDeroulants!$C$27,E11=MenusDeroulants!$D$27,E11=MenusDeroulants!$C$18,E11=MenusDeroulants!$D$18),Traduction!B124&IF(VoletGeneral!$B$6=\"En\",\"\",\" \")&\": \")","v":"Si autre : "},null,null,{"$f":"test_ERREUR(E11=\"\",Traduction!$B$11,COUNTIF(MenusDeroulants!$C$10:$D$18,E11)=0,Traduction!$B$12,AND(I11<>\"\",J11=\"\"),Traduction!$B$13,AND(I11<>\"\",LEN(J11)<5),Traduction!$B$14)","v":"Veuillez choisir un type d'entité dans le menu déroulant"},1,null,null,"Autres fin",{"$f":"MAX(C$75:C$77)","v":1},null,null,75,null,null,"Fact. Int.",{"$f":"SUM(I64:I66)","v":0},{"$f":"SUM(J64:J66)","v":0}]
[]
[null,null,null,{"$f":"Traduction!$B$119&IF(VoletGeneral!$B$6=\"En\",\"\",\" \")&\": \"","v":"Rue : "},null,null,null,null,null,null,null,{"$f":"test_ERREUR(E13=\"\",Traduction!$B$15)","v":"Veuillez saisir une rue"},1,null,null,"Tutelles",{"$f":"MAX(C$100:C$102)","v":1},null,null,null,null,null,"Frais de gestion et de structure",{"$f":"K89","v":0},{"$f":"SUM(J69:J71,K90)","v":0}]
[null,null,null,{"$f":"Traduction!$B$120&IF(VoletGeneral!$B$6=\"En\",\"\",\" \")&\": \"","v":"Code postal : "},null,null,null,null,null,null,null,{"$f":"test_ERREUR(E14=\"\",Traduction!$B$16,OR(E14<1000,E14>99999),Traduction!$B$17)","v":"Veuillez saisir un code postal"},1,null,null,null,null,null,null,null,null,null,"Total",{"$f":"SUM(X3:X13)","v":0},{"$f":"SUM(Y3:Y13)","v":0}]
[null,null,null,{"$f":"Traduction!$B$121&IF(VoletGeneral!$B$6=\"En\",\"\",\" \")&\": \"","v":"Ville : "},null,null,null,null,{"$f":"Traduction!$B$125&IF(VoletGeneral!$B$6=\"En\",\"\",\" \")&\": \"","v":"Pays : "},{"$f":"IF(R15<>\"\",IF(COUNTIF(MenusDeroulants!A29:B278,R15)>0,VLOOKUP(R15,MenusDeroulants!A29:B278,2,FALSE),\"\"),\"\")","v":""},null,{"$f":"test_ERREUR(E15=\"\",Traduction!$B$18,J15=\"\",Traduction!$B$19,J15=\"-\",Traduction!$B$20,COUNTIF(MenusDeroulants!$C$29:$D$278,J15)=0,Traduction!$B$20)","v":"Veuillez saisir une ville"},1]
[null,null,null,null,null,null,null,null,null,null,null,null,"",null,null,null,null,null,null,null,null,null,"Autres soutiens fin.",{"$f":"SUM(J75:J77)","v":0},{"$f":"SUM(K75:K77)","v":0}]
[null,null,{"$f":"Traduction!B126","v":"Personne en charge de la direction de l'entité partenaire"},null,null,null,null,null,null,null,null,null,""]
[null,null,null,null,null,null,null,null,null,null,null,null,""]
[null,null,null,{"$f":"Traduction!B127&IF(VoletGeneral!$B$6=\"En\",\"\",\" \")&\": \"","v":"Genre : "},{"$f":"IF(R19<>\"\",VLOOKUP(R19,MenusDeroulants!A282:B283,2,FALSE),\"\")","v":""},null,null,null,null,null,null,{"$f":"test_ERREUR(E19=\"\",Traduction!$B$21,AND(R19<>0,R19<>1),Traduction!$B$22)","v":"Veuillez choisir un genre dans le menu déroulant"},1]
[null,null,null,{"$f":"Traduction!B128&IF(VoletGeneral!$B$6=\"En\",\"\",\" \")&\": \"","v":"Nom : "},null,null,null,null,null,null,null,{"$f":"test_ERREUR(E20=\"\",Traduction!$B$23)","v":"Veuillez saisir un nom"},1]
[null,null,null,{"$f":"Traduction!B129&IF(VoletGeneral!$B$6=\"En\",\"\",\" \")&\": \"","v":"Prénom : "},null,null,null,null,null,null,null,{"$f":"test_ERREUR(E21=\"\",Traduction!$B$24)","v":"Veuillez saisir un prénom"},1]
[null,null,null,{"$f":"Traduction!B130&IF(VoletGeneral!$B$6=\"En\",\"\",\" \")&\": \"","v":"Titre / Qualité : "},null,null,null,null,null,null,null,{"$f":"test_ERREUR(E22=\"\",Traduction!$B$25)","v":"Veuillez saisir un titre/qualité"},1]
[null,null,null,{"$f":"Traduction!B131&IF(VoletGeneral!$B$6=\"En\",\"\",\" \")&\": \"","v":"Courriel : "},null,null,null,null,null,null,null,{"$f":"test_ERREUR(E23=\"\",Traduction!$B$26,NOT(AND(ISNUMBER(SEARCH(\"@\",E23)),ISNUMBER(SEARCH(\".\",E23,2+SEARCH(\"@\",E23))))),Traduction!$B$27)","v":"Veuillez saisir un email"},1,"Lieu"]
[null,null,null,{"$f":"Traduction!B132&IF(VoletGeneral!$B$6=\"En\",\"\",\" \")&\": \"","v":"Téléphone : "},{"$f":"Traduction!B135&IF(VoletGeneral!$B$6=\"En\",\"\",\" \")&\": \"","v":"Indicatif : "},{"$f":"IF(R24<>\"\",IF(ISNUMBER(LEN(VLOOKUP(R24,MenusDeroulants!A$29:F$279,6,FALSE))),VLOOKUP(R24,MenusDeroulants!A$29:F$279,6,FALSE),\"Saisie invalide\"),\"\")","v":""},null,null,{"$f":"Traduction!B134&IF(VoletGeneral!$B$6=\"En\",\"\",\" \")&\": \"","v":"Numéro : "},null,null,{"$f":"test_ERREUR(F24=\"\",Traduction!$B$19,COUNTIF(MenusDeroulants!$F$29:$F$279,F24)=0,Traduction!$B$20)","v":"Veuillez choisir un pays dans le menu déroulant"}]
[null,null,null,null,null,null,null,null,null,null,null,null,""]
[null,null,{"$f":"Traduction!B136","v":"Budget détaillé du projet - Part de l'entité"},null,null,null,null,null,null,null,null,null,""]
[null,null,null,null,null,null,null,null,null,null,null,null,""]
[null,null,{"$f":"Traduction!$B$138&\" - \"&IF(OR($K$10=MenusDeroulants!$C$7,$K$10=MenusDeroulants!$D$7),Traduction!$B$139,IF($K$10=\"\",Traduction!$B$140,Traduction!$B$141))&\")\"","v":"Equipement (coût unitaire > 4000 € - si l'entité récupère la TVA, indiquer le coût hors TVA)"},null,null,null,null,null,null,null,null,null,""]
[null,null,{"$f":"Traduction!$B$142","v":"Description"},null,{"$f":"IF(Parametres!$D$8=\"Oui\",\" \"&Traduction!$B$137,\"\")","v":""},{"$f":"Traduction!$B$145","v":"Coût unitaire"},{"$f":"Traduction!$B$146","v":"Quantité"},{"$f":"Traduction!$B$144","v":"% d'utilisation"},{"$f":"Traduction!$B$147","v":"Total"},{"$f":"Traduction!$B$148","v":"Part aidée"},{"$f":"Traduction!$B$149","v":"Apport"},null,""]
[{"$f":"OR(D30&F30&G30&H30<>\"\",IF(Parametres!$D$8<>\"Non\",X30<>\"\",FALSE),IF($K$8,J30<>\"\",FALSE))","v":false},"CM_Eq",{"$f":"index_tableau(C$29:C30)-1","v":1},null,{"$f":"IF(AND(Parametres!$D$8=\"Oui\",$X30<>\"\"),IF(Parametres!$D$36<>\"Non\",$X30,VLOOKUP($X30,Parametres!$H$39:$J$68,3,FALSE)),\"\")","v":""},null,null,null,{"$f":"multiplication(FALSE,F30:H30)","v":0},null,{"$f":"calcul_apport(I30,J30,$K$8)","v":0},{"$f":"IF(OR(A30,$Q$2>1),test_ERREUR(LEN(D30)<5,Traduction!$B$31,AND(Parametres!$D$8=\"Oui\",E30=\"\"),Traduction!$B$32,OR(NOT(ISNUMBER(F30)),F30<4000),Traduction!$B$39,OR(NOT(ISNUMBER(G30)),G30<=0),Traduction!$B$43,OR(NOT(ISNUMBER(H30)),H30<=0),Traduction!$B$41,H30>1,Traduction!$B$42,AND($K$8,OR(NOT(ISNUMBER(J30)),J30=\"\",J30<0)),Traduction!$B$44,AND($K$8,J30>I30),Traduction!$B$45),\"\")","v":""},""]
[null,null,{"$f":"Traduction!$B$158","v":"Total équipement"},null,null,null,null,null,{"$f":"somme_texte(\"# ### ### ##0 €;- # ### ### ##0 €;- €\",I29:I30)","v":" - €"},{"$f":"IF($K$8,somme_texte(\"# ### ### ##0 €;- # ### ### ##0 €;- €\",J29:J30),0)","v":" - €"},{"$f":"somme_texte(\"# ### ### ##0 €;- # ### ### ##0 €;- €\",K29:K30)","v":" - €"},null,""]
[]
[null,null,{"$f":"Traduction!$B$159","v":"Personnels"},null,null,null,null,null,null,null,null,null,""]
[null,null,{"$f":"Traduction!$B$160","v":"Salaires des personnels statutaires"},null,null,null,null,null,null,null,null,null,""]
[null,null,{"$f":"Traduction!$B$142","v":"Description"},null,{"$f":"IF(Parametres!$D$8=\"Oui\",\" \"&Traduction!$B$137,\"\")","v":""},{"$f":"Traduction!$B$151","v":"Statut"},{"$f":"Traduction!$B$152","v":"Salaire mensuel"},{"$f":"Traduction!$B$153","v":"H.mois"},{"$f":"Traduction!$B$154","v":"Total salaires"},{"$f":"Traduction!$B$148","v":"Part aidée"},{"$f":"Traduction!$B$149","v":"Apport"},null,""]
[{"$f":"OR(D36&F36&G36&H36<>\"\",IF(Parametres!$D$8<>\"Non\",X36<>\"\",FALSE),IF($K$8,J36<>\"\",FALSE))","v":false},"CM_PersStat",{"$f":"index_tableau(C$35:C36)-1","v":1},null,{"$f":"IF(AND(Parametres!$D$8=\"Oui\",$X36<>\"\"),IF(Parametres!$D$36<>\"Non\",$X36,VLOOKUP($X36,Parametres!$H$39:$J$68,3,FALSE)),\"\")","v":""},{"$f":"IF(S36<>\"\",VLOOKUP(S36,MenusDeroulants!$A$286:$B$296,2,FALSE),\"\")","v":""},null,null,{"$f":"multiplication(FALSE,G36:H36)","v":0},null,{"$f":"calcul_apport(I36,J36,AND($K$8,Parametres!$D$14<>\"Oui\"))","v":0},{"$f":"IF(OR(A36,$Q$3>1),test_ERREUR(LEN(D36)<5,Traduction!$B$31,AND(Parametres!$D$8=\"Oui\",E36=\"\"),Traduction!$B$32,COUNTIF(MenusDeroulants!$C$286:$D$296,F36)=0,Traduction!$B$46,OR(NOT(ISNUMBER(G36)),G36<=0),Traduction!$B$50,OR(NOT(ISNUMBER(H36)),H36<=0),Traduction!$B$51,AND($K$8,AND(Parametres!$D$14=\"Oui\",OR(NOT(ISNUMBER(J36)),J36=\"\",J36<0))),Traduction!$B$44,AND($K$8,J36>I36),Traduction!$B$52),\"\")","v":""},""]
[null,null,{"$f":"Traduction!$B$161","v":"Sous-total salaires des personnels statutaires"},null,null,null,null,null,{"$f":"somme_texte(\"# ### ### ##0 €;- # ### ### ##0 €;- €\",I35:I36)","v":" - €"},{"$f":"IF(AND($K$8,Parametres!$D$14<>\"Oui\"),somme_texte(\"# ### ### ##0 €;- # ### ### ##0 €;- €\",J35:J36),0)","v":" - €"},{"$f":"somme_texte(\"# ### ### ##0 €;- # ### ### ##0 €;- €\",K35:K36)","v":" - €"},null,""]
[null,null,{"$f":"Traduction!$B$162","v":"Salaires des personnels non statutaires"},null,null,null,null,null,null,null,null,null,""]
[null,null,{"$f":"Traduction!$B$142","v":"Description"},null,{"$f":"IF(Parametres!$D$8=\"Oui\",\" \"&Traduction!$B$137,\"\")","v":""},{"$f":"Traduction!$B$151","v":"Statut"},{"$f":"Traduction!$B$152","v":"Salaire mensuel"},{"$f":"Traduction!$B$153","v":"H.mois"},{"$f":"Traduction!$B$154","v":"Total salaires"},{"$f":"Traduction!$B$148","v":"Part aidée"},{"$f":"Traduction!$B$149","v":"Apport"},null,""]
[{"$f":"OR(D40&F40&G40&H40<>\"\",IF(Parametres!$D$8<>\"Non\",X40<>\"\",FALSE),IF($K$8,J40<>\"\",FALSE))","v":false},"CM_PersNonStat",{"$f":"index_tableau(C$39:C40)-1","v":1},null,{"$f":"IF(AND(Parametres!$D$8=\"Oui\",$X40<>\"\"),IF(Parametres!$D$36<>\"Non\",$X40,VLOOKUP($X40,Parametres!$H$39:$J$68,3,FALSE)),\"\")","v":""},{"$f":"IF(S40<>\"\",VLOOKUP(S40,MenusDeroulants!$A$298:$B$313,2,FALSE),\"\")","v":""},null,null,{"$f":"multiplication(FALSE,G40:H40)","v":0},null,{"$f":"calcul_apport(I40,J40,$K$8)","v":0},{"$f":"IF(OR(A40,$Q$4>1),test_ERREUR(LEN(D40)<5,Traduction!$B$31,AND(Parametres!$D$8=\"Oui\",E40=\"\"),Traduction!$B$32,COUNTIF(MenusDeroulants!$C$298:$D$313,F40)=0,Traduction!$B$46,OR(NOT(ISNUMBER(G40)),G40<=0),Traduction!$B$50,OR(NOT(ISNUMBER(H40)),H40<=0),Traduction!$B$51,AND($K$8,OR(NOT(ISNUMBER(J40)),J40=\"\",J40<0)),Traduction!$B$44,AND($K$8,J40>I40),Traduction!$B$52),\"\")","v":""},""]
[null,null,{"$f":"Traduction!$B$163","v":"Sous-total salaires des personnels non statutaires"},null,null,null,null,null,{"$f":"somme_texte(\"# ### ### ##0 €;- # ### ### ##0 €;- €\",I39:I40)","v":" - €"},{"$f":"IF($K$8,somme_texte(\"# ### ### ##0 €;- # ### ### ##0 €;- €\",J39:J40),0)","v":" - €"},{"$f":"somme_texte(\"# ### ### ##0 €;- # ### ### ##0 €;- €\",K39:K40)","v":" - €"},null,""]
[null,null,{"$f":"Traduction!$B$164","v":"Primes et heures complémentaires"},null,null,null,null,null,null,null,null,null,""]
[null,null,{"$f":"Traduction!$B$142","v":"Description"},null,null,{"$f":"IF(Parametres!$D$8=\"Oui\",\" \"&Traduction!$B$137,\"\")","v":""},{"$f":"Traduction!$B$157","v":"Coût moyen"},{"$f":"Traduction!$B$146","v":"Quantité"},{"$f":"Traduction!$B$147","v":"Total"},{"$f":"Traduction!$B$148","v":"Part aidée"},{"$f":"Traduction!$B$149","v":"Apport"},null,""]
[{"$f":"OR(D44&G44&H44<>\"\",IF(Parametres!$D$8<>\"Non\",X44<>\"\",FALSE),IF($K$8,J44<>\"\",FALSE))","v":false},"CM_PriHComp",{"$f":"index_tableau(C$43:C44)-1","v":1},null,null,{"$f":"IF(AND(Parametres!$D$8=\"Oui\",$X44<>\"\"),IF(Parametres!$D$36<>\"Non\",$X44,VLOOKUP($X44,Parametres!$H$39:$J$68,3,FALSE)),\"\")","v":""},null,null,{"$f":"multiplication(FALSE,G44:H44)","v":0},null,{"$f":"calcul_apport(I44,J44,$K$8)","v":0},{"$f":"IF(OR(A44,$Q$5>1),test_ERREUR(LEN(D44)<5,Traduction!$B$31,AND(Parametres!$D$8=\"Oui\",F44=\"\"),Traduction!$B$32,OR(NOT(ISNUMBER(G44)),G44<=0),Traduction!$B$54,OR(NOT(ISNUMBER(H44)),H44<=0),Traduction!$B$43,AND($K$8,OR(NOT(ISNUMBER(J44)),J44=\"\",J44<0)),Traduction!$B$44,AND($K$8,J44>I44),Traduction!$B$45),\"\")","v":""},""]
[null,null,{"$f":"Traduction!$B$165","v":"Sous-total primes et heures complémentaires"},null,null,null,null,null,{"$f":"somme_texte(\"# ### ### ##0 €;- # ### ### ##0 €;- €\",I43:I44)","v":" - €"},{"$f":"IF($K$8,somme_texte(\"# ### ### ##0 €;- # ### ### ##0 €;- €\",J43:J44),0)","v":" - €"},{"$f":"somme_texte(\"# ### ### ##0 €;- # ### ### ##0 €;- €\",K43:K44)","v":" - €"},null,""]
[null,null,{"$f":"Traduction!$B$166","v":"Total personnels"},null,null,null,null,null,{"$f":"somme_texte(\"# ### ### ##0 €;- # ### ### ##0 €;- €\",I35:I45)","v":" - €"},{"$f":"IF($K$8,somme_texte(\"# ### ### ##0 €;- # ### ### ##0 €;- €\",J35:J45),0)","v":" - €"},{"$f":"somme_texte(\"# ### ### ##0 €;- # ### ### ##0 €;- €\",K35:K45)","v":" - €"},null,""]
[]
[null,null,{"$f":"Traduction!$B$171&IF(OR($K$10=MenusDeroulants!$C$7,$K$10=MenusDeroulants!$D$7),Traduction!$B$139,IF($K$10=\"\",Traduction!$B$140,Traduction!$B$141))&\")\"","v":"Fonctionnement (si l'entité récupère la TVA, indiquer le coût hors TVA)"},null,null,null,null,null,null,null,null,null,""]
[null,null,{"$f":"Traduction!$B$172","v":"Prestations de service externes"},null,null,null,null,null,null,null,null,null,""]
[null,null,{"$f":"Traduction!$B$142","v":"Description"},null,null,{"$f":"IF(Parametres!$D$8=\"Oui\",\" \"&Traduction!$B$137,\"\")","v":""},{"$f":"Traduction!$B$157","v":"Coût moyen"},{"$f":"Traduction!$B$146","v":"Quantité"},{"$f":"Traduction!$B$147","v":"Total"},{"$f":"Traduction!$B$148","v":"Part aidée"},{"$f":"Traduction!$B$149","v":"Apport"},null,""]
[{"$f":"OR(D51&G51&H51<>\"\",IF(Parametres!$D$8<>\"Non\",X51<>\"\",FALSE),IF($K$8,J51<>\"\",FALSE))","v":false},"CM_PSExt",{"$f":"index_tableau(C$50:C51)-1","v":1},null,null,{"$f":"IF(AND(Parametres!$D$8=\"Oui\",$X51<>\"\"),IF(Parametres!$D$36<>\"Non\",$X51,VLOOKUP($X51,Parametres!$H$39:$J$68,3,FALSE)),\"\")","v":""},null,null,{"$f":"multiplication(FALSE,G51:H51)","v":0},null,{"$f":"calcul_apport(I51,J51,$K$8)","v":0},{"$f":"IF(OR(A51,$Q$6>1),test_ERREUR(LEN(D51)<5,Traduction!$B$31,AND(Parametres!$D$8=\"Oui\",F51=\"\"),Traduction!$B$32,OR(NOT(ISNUMBER(G51)),G51<=0),Traduction!$B$54,OR(NOT(ISNUMBER(H51)),H51<=0),Traduction!$B$43,AND($K$8,OR(NOT(ISNUMBER(J51)),J51=\"\",J51<0)),Traduction!$B$44,AND($K$8,J51>I51),Traduction!$B$45),\"\")","v":""},""]
[null,null,{"$f":"Traduction!$B$173","v":"Sous-total prestations de service externes"},null,null,null,null,null,{"$f":"somme_texte(\"# ### ### ##0 €;- # ### ### ##0 €;- €\",I50:I51)","v":" - €"},{"$f":"IF($K$8,somme_texte(\"# ### ### ##0 €;- # ### ### ##0 €;- €\",J50:J51),0)","v":" - €"},{"$f":"somme_texte(\"# ### ### ##0 €;- # ### ### ##0 €;- €\",K50:K51)","v":" - €"},null,""]
[null,null,{"$f":"Traduction!$B$174","v":"Missions"},null,null,null,null,null,null,null,null,null,""]
[null,null,{"$f":"Traduction!$B$142","v":"Description"},null,null,{"$f":"IF(Parametres!$D$8=\"Oui\",\" \"&Traduction!$B$137,\"\")","v":""},{"$f":"Traduction!$B$157","v":"Coût moyen"},{"$f":"Traduction!$B$146","v":"Quantité"},{"$f":"Traduction!$B$147","v":"Total"},{"$f":"Traduction!$B$148","v":"Part aidée"},{"$f":"Traduction!$B$149","v":"Apport"},null,""]
[{"$f":"OR(D55&G55&H55<>\"\",IF(Parametres!$D$8<>\"Non\",X55<>\"\",FALSE),IF($K$8,J55<>\"\",FALSE))","v":false},"CM_Mis",{"$f":"index_tableau(C$54:C55)-1","v":1},null,null,{"$f":"IF(AND(Parametres!$D$8=\"Oui\",$X55<>\"\"),IF(Parametres!$D$36<>\"Non\",$X55,VLOOKUP($X55,Parametres!$H$39:$J$68,3,FALSE)),\"\")","v":""},null,null,{"$f":"multiplication(FALSE,G55:H55)","v":0},null,{"$f":"calcul_apport(I55,J55,$K$8)","v":0},{"$f":"IF(OR(A55,$Q$7>1),test_ERREUR(LEN(D55)<5,Traduction!$B$31,AND(Parametres!$D$8=\"Oui\",F55=\"\"),Traduction!$B$32,OR(NOT(ISNUMBER(G55)),G55<=0),Traduction!$B$54,OR(NOT(ISNUMBER(H55)),H55<=0),Traduction!$B$43,AND($K$8,OR(NOT(ISNUMBER(J55)),J55=\"\",J55<0)),Traduction!$B$44,AND($K$8,J55>I55),Traduction!$B$45),\"\")","v":""},""]
[null,null,{"$f":"Traduction!$B$175","v":"Sous-total missions"},null,null,null,null,null,{"$f":"somme_texte(\"# ### ### ##0 €;- # ### ### ##0 €;- €\",I54:I55)","v":" - €"},{"$f":"IF($K$8,somme_texte(\"# ### ### ##0 €;- # ### ### ##0 €;- €\",J54:J55),0)","v":" - €"},{"$f":"somme_texte(\"# ### ### ##0 €;- # ### ### ##0 €;- €\",K54:K55)","v":" - €"},null,""]
[null,null,{"$f":"Traduction!$B$176","v":"Autres dépenses externes"},null,null,null,null,null,null,null,null,null,""]
[null,null,{"$f":"Traduction!$B$142","v":"Description"},null,null,{"$f":"IF(Parametres!$D$8=\"Oui\",\" \"&Traduction!$B$137,\"\")","v":""},{"$f":"Traduction!$B$157","v":"Coût moyen"},{"$f":"Traduction!$B$146","v":"Quantité"},{"$f":"Traduction!$B$147","v":"Total"},{"$f":"Traduction!$B$148","v":"Part aidée"},{"$f":"Traduction!$B$149","v":"Apport"},null,""]
[{"$f":"OR(D59&G59&H59<>\"\",IF(Parametres!$D$8<>\"Non\",X59<>\"\",FALSE),IF($K$8,J59<>\"\",FALSE))","v":false},"CM_AutDepExt",{"$f":"index_tableau(C$58:C59)-1","v":1},null,null,{"$f":"IF(AND(Parametres!$D$8=\"Oui\",$X59<>\"\"),IF(Parametres!$D$36<>\"Non\",$X59,VLOOKUP($X59,Parametres!$H$39:$J$68,3,FALSE)),\"\")","v":""},null,null,{"$f":"multiplication(FALSE,G59:H59)","v":0},null,{"$f":"calcul_apport(I59,J59,$K$8)","v":0},{"$f":"IF(OR(A59,$Q$8>1),test_ERREUR(LEN(D59)<5,Traduction!$B$31,AND(Parametres!$D$8=\"Oui\",F59=\"\"),Traduction!$B$32,OR(NOT(ISNUMBER(G59)),G59<=0),Traduction!$B$54,OR(NOT(ISNUMBER(H59)),H59<=0),Traduction!$B$43,AND($K$8,OR(NOT(ISNUMBER(J59)),J59=\"\",J59<0)),Traduction!$B$44,AND($K$8,J59>I59),Traduction!$B$45),\"\")","v":""},""]
[null,null,{"$f":"Traduction!$B$177","v":"Sous-total autres dépenses externes"},null,null,null,null,null,{"$f":"somme_texte(\"# ### ### ##0 €;- # ### ### ##0 €;- €\",I58:I59)","v":" - €"},{"$f":"IF($K$8,somme_texte(\"# ### ### ##0 €;- # ### ### ##0 €;- €\",J58:J59),0)","v":" - €"},{"$f":"somme_texte(\"# ### ### ##0 €;- # ### ### ##0 €;- €\",K58:K59)","v":" - €"},null,""]
[null,null,{"$f":"Traduction!$B$178","v":"Total fonctionnement"},null,null,null,null,null,{"$f":"somme_texte(\"# ### ### ##0 €;- # ### ### ##0 €;- €\",I50:I60)","v":" - €"},{"$f":"IF($K$8,somme_texte(\"# ### ### ##0 €;- # ### ### ##0 €;- €\",J50:J60),0)","v":" - €"},{"$f":"somme_texte(\"# ### ### ##0 €;- # ### ### ##0 €;- €\",K50:K60)","v":" - €"},null,""]
[]
[null,null,{"$f":"Traduction!$B$179","v":"Facturation interne"},null,null,null,null,null,null,null,null,null,""]
[null,null,{"$f":"Traduction!$B$142","v":"Description"},null,null,{"$f":"IF(Parametres!$D$8=\"Oui\",\" \"&Traduction!$B$137,\"\")","v":""},{"$f":"Traduction!$B$157","v":"Coût moyen"},{"$f":"Traduction!$B$146","v":"Quantité"},{"$f":"Traduction!$B$147","v":"Total"},{"$f":"Traduction!$B$148","v":"Part aidée"},{"$f":"Traduction!$B$149","v":"Apport"},null,""]
[{"$f":"OR(D65&G65&H65<>\"\",IF(Parametres!$D$8<>\"Non\",X65<>\"\",FALSE),IF($K$8,J65<>\"\",FALSE))","v":false},"CM_FactInt",{"$f":"index_tableau(C$64:C65)-1","v":1},null,null,{"$f":"IF(AND(Parametres!$D$8=\"Oui\",$X65<>\"\"),IF(Parametres!$D$36<>\"Non\",$X65,VLOOKUP($X65,Parametres!$H$39:$J$68,3,FALSE)),\"\")","v":""},null,null,{"$f":"multiplication(FALSE,G65:H65)","v":0},null,{"$f":"calcul_apport(I65,J65,$K$8)","v":0},{"$f":"IF(OR(A65,$Q$9>1),test_ERREUR(LEN(D65)<5,Traduction!$B$31,AND(Parametres!$D$8=\"Oui\",F65=\"\"),Traduction!$B$32,OR(NOT(ISNUMBER(G65)),G65<=0),Traduction!$B$54,OR(NOT(ISNUMBER(H65)),H65<=0),Traduction!$B$43,AND($K$8,OR(NOT(ISNUMBER(J65)),J65=\"\",J65<0)),Traduction!$B$44,AND($K$8,J65>I65),Traduction!$B$45),\"\")","v":""},{"$f":"IF(L65<>\"\",1,\"\")","v":""}]
[null,null,{"$f":"Traduction!$B$180","v":"Total facturation interne"},null,null,null,null,null,{"$f":"somme_texte(\"# ### ### ##0 €;- # ### ### ##0 €;- €\",I64:I65)","v":" - €"},{"$f":"IF($K$8,somme_texte(\"# ### ### ##0 €;- # ### ### ##0 €;- €\",J64:J65),0)","v":" - €"},{"$f":"somme_texte(\"# ### ### ##0 €;- # ### ### ##0 €;- €\",K64:K65)","v":" - €"},null,""]
[]
[null,null,{"$f":"Traduction!$B$181&IF(AND(Parametres!D11=\"Oui\",Parametres!G11=\"Oui\"),\" (max. \"&Parametres!G12*100&\"%)\",\"\")","v":"Frais de structure"},null,null,null,null,null,null,null,null,null,""]
[null,null,{"$f":"Traduction!$B$142","v":"Description"},null,null,null,null,{"$f":"IF(Parametres!$D$8=\"Oui\",\" \"&Traduction!$B$137,\"\")","v":""},{"$f":"Traduction!$B$147","v":"Total"},{"$f":"Traduction!$B$148","v":"Part aidée"},{"$f":"Traduction!$B$149","v":"Apport"},null,""]
[{"$f":"OR(D70&G70&H70<>\"\",IF(Parametres!$D$8<>\"Non\",X70<>\"\",FALSE),IF($K$8,J70<>\"\",FALSE))","v":false},"CM_FraisStruct",{"$f":"index_tableau(C$69:C70)-1","v":1},null,null,null,null,{"$f":"IF(AND(Parametres!$D$8=\"Oui\",$X70<>\"\"),$X70,\"\")","v":""},null,null,{"$f":"calcul_apport(I70,J70,AND($K$8,Parametres!$D$11=\"Oui\",Parametres!$D$12=\"Oui\"))","v":0},{"$f":"IF(Parametres!$D$11=\"Oui\",IF(OR(A70,$Q$10>1),test_ERREUR(LEN(D70)<5,Traduction!$B$31,AND(Parametres!$D$8=\"Oui\",H70=\"\"),Traduction!$B$32,OR(NOT(ISNUMBER(I70)),I70<=0),Traduction!$B$56,AND($K$8,Parametres!$D$12=\"Oui\",OR(NOT(ISNUMBER(J70)),J70<0)),Traduction!$B$44,AND($K$8,Parametres!$D$12=\"Oui\",J70>I70),Traduction!$B$45),\"\"),\"\")","v":""},""]
[null,null,{"$f":"Traduction!$B$182","v":"Total frais de structure"},null,null,null,null,null,{"$f":"IF(Parametres!$D$11=\"Oui\",somme_texte(\"# ### ### ##0 €;- # ### ### ##0 €;- €\",I69:I70),0)","v":0},{"$f":"IF(Parametres!$D$11=\"Oui\",IF(Parametres!$D$12=\"Oui\",IF($K$8,somme_texte(\"# ### ### ##0 €;- # ### ### ##0 €;- €\",J69:J70),0),0),0)","v":0},{"$f":"IF(Parametres!$D$11=\"Oui\",somme_texte(\"# ### ### ##0 €;- # ### ### ##0 €;- €\",K69:K70),0)","v":0},null,""]
[null,null,null,null,null,null,null,null,null,null,null,null,""]
[null,null,{"$f":"Traduction!$B$210","v":"Autres soutiens financiers sollicités ou obtenus pour le projet"},null,null,null,null,null,null,null,null,null,""]
[]
[null,null,{"$f":"Traduction!$B$211","v":"Noms des financeurs et objet du financement"},null,null,null,null,null,null,{"$f":"Traduction!$B$212","v":"Sollicité"},{"$f":"Traduction!$B$213","v":"Obtenu"},null,{"$f":"IF(L75<>\"\",1,\"\")","v":""}]
[{"$f":"D76&J76&K76<>\"\"","v":false},"AutFin",{"$f":"index_tableau(C$75:C76)-1","v":1},null,null,null,null,null,null,null,null,{"$f":"IF(OR(A76,$Q$11>1),test_ERREUR(LEN(D76)<5,Traduction!$B$58,OR(NOT(ISNUMBER(J76)),J76<0),Traduction!$B$59,OR(NOT(ISNUMBER(K76)),K76<0),Traduction!$B$60),\"\")","v":""},{"$f":"IF(L76<>\"\",1,\"\")","v":""}]
[null,null,{"$f":"Traduction!$B$214","v":"Total autres financements"},null,null,null,null,null,null,{"$f":"somme_texte(\"# ### ### ##0 €;- # ### ### ##0 €;- €\",J75:J76)","v":" - €"},{"$f":"somme_texte(\"# ### ### ##0 €;- # ### ### ##0 €;- €\",K75:K76)","v":" - €"},null,{"$f":"IF(L77<>\"\",1,\"\")","v":""}]
[]
[null,null,{"$f":"Traduction!$B$183","v":"Synthèse de la demande financière"},null,null,null,null,null,null,null,null,null,{"$f":"IF(L79<>\"\",1,\"\")","v":""}]
["Taux max",null,null,null,null,null,null,null,null,null,null,null,""]
[{"$f":"Parametres!$D$15","v":0.08},null,{"$f":"Traduction!B184&\" \"&Parametres!$D$15*100&\"%)\"","v":"Taux des frais de gestion (max 8%)"},null,null,null,null,null,null,null,{"$f":"IF($S$2<>\"\",$S$2/100,\"\")","v":""},{"$f":"test_ERREUR(OR(NOT(ISNUMBER(K81)),K81<0),Traduction!$B$66,K81>Parametres!$D$15,Traduction!$B$67&\" \"&Parametres!$D$15*100&\"%\")","v":"Le taux doit être positif ou nul"},1]
[null,null,{"$f":"Traduction!B185","v":"Taux des frais de structure"},null,null,null,null,null,null,null,{"$f":"IF(Parametres!$D$11=\"Oui\",IF($K$88<>0,$K$91/$K$88,\"-%\"),0)","v":0},null,""]
[{"$f":"IF(AND(Parametres!$G$11=\"Oui\",Parametres!$G$12=\"Oui\"),Parametres!$G$13,\"\")","v":""},null,{"$f":"Traduction!B186&IF(AND(Parametres!$G$11=\"Oui\",Parametres!$G$12=\"Oui\"),\" (max \"&Parametres!$G$13*100&\"%)\",\"\")","v":"Taux d'environnement assis sur les dépenses de personnels"},null,null,null,null,null,null,null,{"$f":"IF(Parametres!$G$11<>\"Oui\",0,IF($S$3<>\"\",$S$3/100,\"\"))","v":""},{"$f":"test_ERREUR(OR(NOT(ISNUMBER(K83)),K83<0),Traduction!$B$66,AND(Parametres!$G$11=\"Oui\",Parametres!$G$12=\"Oui\",K83>Parametres!$G$13),Traduction!$B$67&\" \"&Parametres!$G$13*100&\"%\")","v":"Le taux doit être positif ou nul"},1]
[null,null,null,null,null,null,null,null,null,null,null,{"$f":"IF(K81<>\"\",IF(ISNUMBER(K81),IF(K81<0,\"Le taux doit être positif ou nul.\",IF(K81>8,\"Le taux ne peut être supérieur à 8%.\",\"\")),\"Le taux doit avoir une valeur numérique.\"),\"\")","v":""},""]
[null,null,{"$f":"Traduction!B187","v":"Taux d'aide demandée"},null,null,null,null,null,null,null,{"$f":"IF($K$93<>0,$K$94/$K$93,\"-%\")","v":"-%"},{"$f":"IF(AND(ISNUMBER(K85),K85>100),Traduction!$B$69,\"\")","v":""},""]
[null,null,null,null,null,null,null,null,null,null,null,null,""]
[null,null,{"$f":"Traduction!$B$142","v":"Description"},null,null,null,null,null,null,null,{"$f":"Traduction!$B$147","v":"Total"},null,""]
[null,null,{"$f":"Traduction!B189","v":"Total hors frais de gestion et frais de structure"},null,null,null,null,null,null,null,{"$f":"SUM($I$29:$I$66)","v":0},null,""]
[null,null,{"$f":"Traduction!B190","v":"Frais de gestion et de structure"},null,null,null,null,null,null,null,{"$f":"SUM($K$90:$K$92)","v":0},null,""]
[null,null,{"$f":"Traduction!B191","v":"- dont de gestion"},null,null,null,null,null,null,null,{"$f":"IF($L$81=\"\",SUM($J$29:$J$66)*$K$81,0)","v":0},null,""]
[null,null,{"$f":"Traduction!B192","v":"- dont de structure"},null,null,null,null,null,null,null,{"$f":"IF(Parametres!$G$11<>\"Oui\",0,IF(Parametres!$D$11=\"Oui\",SUM($I$69:$I$71),0))","v":0},null,""]
[null,null,{"$f":"Traduction!B193","v":"- dont d'environnement"},null,null,null,null,null,null,null,{"$f":"IF($L$83=\"\",SUM($I$35:$I$41)*$K$83,0)","v":0},null,""]
[null,null,{"$f":"Traduction!B194","v":"Total coûts complets"},null,null,null,null,null,null,null,{"$f":"SUM($K$88:$K$89)","v":0},null,""]
[null,null,{"$f":"Traduction!B195","v":"- dont aide demandée"},null,null,null,null,null,null,null,{"$f":"IF($K$8,SUM($J$29:$J$66)+K90+IF(AND(Parametres!$D$11=\"Oui\",Parametres!$D$12=\"Oui\"),SUM($J$69:$J$71),0),0)","v":0},null,""]
[null,null,{"$f":"Traduction!B196","v":"- dont apport"},null,null,null,null,null,null,null,{"$f":"$K$93-$K$94","v":0},null,""]
[null,null,null,null,null,null,null,null,null,null,null,null,""]
[null,null,{"$f":"Traduction!$B$289","v":"Le cas échéant, liste des établissements tutelles"},null,null,null,null,null,null,null,null,null,{"$f":"IF(L97<>\"\",1,\"\")","v":""}]
[]
[null,null,{"$f":"Traduction!$B$290","v":"Les informations sur les tutelles sont à remplir dans le volet général (liste des établissements partenaires).  La tutelle principale devra apparaître en n° 1."}]
[null,null,"#",{"$f":"Traduction!$B$287","v":"Nom complet de l'institution"},{"$f":"Traduction!$B$288","v":"Acronyme"},{"$f":"Traduction!$B$119","v":"Rue"},null,null,{"$f":"Traduction!$B$120","v":"Code postal"},{"$f":"Traduction!$B$121","v":"Ville"},null,null,{"$f":"IF(L100<>\"\",1,\"\")","v":""}]
[{"$f":"OR(D101&E101&F101&G101<>\"\",IF($K$8,I101<>\"\",FALSE))","v":false},null,{"$f":"index_tableau(C$100:C101)-1","v":1},{"$f":"IF(ISNUMBER($B101),IF(COUNTIF(VoletGeneral!$B$106:$B$109,$B101)>0,VLOOKUP($B101,VoletGeneral!$B$106:$L$109,3,FALSE),\"\"),\"\")","v":""},{"$f":"IF(ISNUMBER($B101),IF(COUNTIF(VoletGeneral!$B$106:$B$109,$B101)>0,VLOOKUP($B101,VoletGeneral!$B$106:$L$109,5,FALSE),\"\"),\"\")","v":""},{"$f":"IF(ISNUMBER($B101),IF(COUNTIF(VoletGeneral!$B$106:$B$109,$B101)>0,VLOOKUP($B101,VoletGeneral!$B$106:$L$109,6,FALSE),\"\"),\"\")","v":""},null,null,{"$f":"IF(ISNUMBER($B101),IF(COUNTIF(VoletGeneral!$B$106:$B$109,$B101)>0,VLOOKUP($B101,VoletGeneral!$B$106:$L$109,8,FALSE),\"\"),\"\")","v":""},{"$f":"IF(ISNUMBER($B101),IF(COUNTIF(VoletGeneral!$B$106:$B$109,$B101)>0,VLOOKUP($B101,VoletGeneral!$B$106:$L$109,9,FALSE),\"\"),\"\")","v":""},null,null,{"$f":"IF(L101<>\"\",1,\"\")","v":""}]
[]
[null,null,{"$f":"Traduction!$B$215","v":"Commentaires (le cas échéant, 27 lignes max)"},null,null,null,null,null,null,null,null,null,""]
[null,null,null,null,null,null,null,null,null,null,null,null,""]
[null,null,{"$f":"IF($N$2<>\"\",$N$2,\"\")","v":""},null,null,null,null,null,null,null,null,null,""]
[null,null,null,null,null,null,null,null,null,null,null,null,""]
[null,null,{"$f":"Traduction!$B$216","v":"Les informations personnelles transmises dans ces documents sont obligatoires et seront conservées en fichiers par l'ANR pour assurer la conduite opérationnelle"},null,null,null,null,null,null,null,null,null,""]
[null,null,{"$f":"Traduction!$B$217","v":"de l'évaluation et l'administration des dossiers."},null,null,null,null,null,null,null,null,null,""]
[null,null,{"$f":"Traduction!$B$218","v":"Conformément à la loi n° 78-17 du 6 janvier 1978 modifiée, relative à l'Informatique, aux Fichiers et aux Libertés, les personnes concernées disposent d'un droit "},null,null,null,null,null,null,null,null,null,""]
[null,null,{"$f":"Traduction!$B$219","v":"d'accès et de rectification des données personnelles les concernant. Les personnes concernées peuvent exercer ce droit en s'adressant à l'ANR  (voir coordonnées"},null,null,null,null,null,null,null,null,null,""]
[null,null,{"$f":"Traduction!$B$220","v":"dans le texte de l’appel à projets)."},null,null,null,null,null,null,null,null,null,""]
[null,null,null,null,null,null,null,null,null,null,null,null,""]

{"sheet":"EntCCVide","index":4,"n_rows":106,"n_cols":25,"rows_kept":106,"cut":false,"hidden":true,"merged":[]}
[{"$f":"NUM_PARTENAIRE(C2)","v":"CCVide"},null,null,null,null,null,null,{"$f":"Traduction!B110","v":"Dernière modification"},null,"2016-03-23T17:03:02",null,{"$f":"IF(SUM(M:M)<>0,SUM(M:M)&\" \"&Traduction!$B$271,\"\")&IF(SUM(M:M)>1,\"s\",\"\")","v":"14 erreurs"},null,"Commentaire",null,"Nb lignes",null,"Taux",null,"Num lignes","ETP"]
[null,null,{"$f":"Traduction!B109&NUM_PARTENAIRE(C2)","v":"Fiche financière de l'entité n°CCVide"},null,null,null,null,{"$f":"Traduction!B111","v":"N° de dossier"},null,{"$f":"VoletGeneral!K2&\"-\"&TEXT(NUM_PARTENAIRE(C2),\"0000\")","v":"ANR-17-MOPGA-00xx-CCVide"},null,null,null,null,98,"Equipement",{"$f":"MAX(C$29:C$31)","v":1},"Encad",null,29,"ETP Rech",{"$f":"SUMIF(S35:S37,0,J35:J37)+SUMIF(S39:S41,0,J39:J41)","v":0},"Budget","CC","Aide"]
[null,null,"fdgsdfgdffsdfsdg",{"$f":"test_os()","v":""},null,null,null,{"$f":"Traduction!B112","v":"Acronyme"},null,{"$f":"IF(VoletGeneral!F10<>\"\",VoletGeneral!F10,\"\")","v":""},null,null,null,null,null,"Pers. CDI",{"$f":"MAX(C$35:C$37)","v":1},"Pers",null,35,"ETP Tot",{"$f":"SUM(J35:J37)+SUM(J39:J41)","v":0},"Equipement",{"$f":"SUM($K$29:$K$31)","v":0},{"$f":"IF(Parametres!$D$19<2,X3*IF(AND(ISNUMBER($K$79),$L$79=\"\"),$K$79,0),SUMIF(Y$29:Y$31,0,$K$29:$K$31)*IF(AND(ISNUMBER($K$79),$L$79=\"\"),$K$79,0)+SUMIF(Y$29:Y$31,1,$K$29:$K$31)*IF(AND(ISNUMBER($J$79),$L$79=\"\"),$J$79,0)+SUMIF(Y$29:Y$31,2,$K$29:$K$31)*IF(AND(ISNUMBER($I$79),$L$79=\"\"),$I$79,0)+SUMIF(Y$29:Y$31,3,$K$29:$K$31)*IF(AND(ISNUMBER($H$79),$L$79=\"\"),$H$79,0))","v":0}]
[null,null,null,null,null,null,null,null,null,null,null,null,null,null,null,"Pers. non perm.",{"$f":"MAX(C$39:C$41)","v":1},"Autre",null,39,null,null,"Pers stat"]
[null,null,{"$f":"Traduction!B113","v":"Identification de l'entité"},null,null,null,null,null,null,null,null,null,{"$f":"IF(L5<>\"\",1,\"\")","v":""},null,null,"Prest. ext.",{"$f":"MAX(C$46:C$48)","v":1},{"$f":"IF(Parametres!$D$19>1,Parametres!I20,\"Aide\")","v":"Aide"},null,46,null,null,"CDI",{"$f":"SUM($K$35:$K$37)","v":0},{"$f":"IF(Parametres!$D$19<2,X5*IF(AND(ISNUMBER($K$79),$L$79=\"\"),$K$79,0),SUMIF($Y$35:$Y$37,0,$K$35:$K$37)*IF(AND(ISNUMBER($K$79),$L$79=\"\"),$K$79,0)+SUMIF($Y$35:$Y$37,1,$K$35:$K$37)*IF(AND(ISNUMBER($J$79),$L$79=\"\"),$J$79,0)+SUMIF($Y$35:$Y$37,2,$K$35:$K$37)*IF(AND(ISNUMBER($I$79),$L$79=\"\"),$I$79,0)+SUMIF($Y$35:$Y$37,3,$K$35:$K$37)*IF(AND(ISNUMBER($H$79),$L$79=\"\"),$H$79,0))","v":0}]
[null,null,null,null,null,null,null,null,null,null,null,null,{"$f":"IF(L6<>\"\",1,\"\")","v":""},null,null,"Missions",{"$f":"MAX(C$50:C$52)","v":1},{"$f":"IF(Parametres!$D$19>1,Parametres!I21,\"\")","v":""},null,50,null,null,"CDD et autres",{"$f":"SUM($K$39:$K$41)","v":0},{"$f":"IF(Parametres!$D$19<2,X6*IF(AND(ISNUMBER($K$79),$L$79=\"\"),$K$79,0),SUMIF($Y$39:$Y$41,0,$K$39:$K$41)*IF(AND(ISNUMBER($K$79),$L$79=\"\"),$K$79,0)+SUMIF($Y$39:$Y$41,1,$K$39:$K$41)*IF(AND(ISNUMBER($J$79),$L$79=\"\"),$J$79,0)+SUMIF($Y$39:$Y$41,2,$K$39:$K$41)*IF(AND(ISNUMBER($I$79),$L$79=\"\"),$I$79,0)+SUMIF($Y$39:$Y$41,3,$K$39:$K$41)*IF(AND(ISNUMBER($H$79),$L$79=\"\"),$H$79,0))","v":0}]
[{"$f":"OR(E7&E8&E9&E11&E13&E14&E15&K10&I15&E19&E20&E21&E22&E23&E24&I73&J73&K73&I74&J74&K74&I75&J75&K75<>\"\",A29:A66)","v":true},null,null,{"$f":"Traduction!B114&IF(VoletGeneral!$B$6=\"En\",\"\",\" \")&\": \"","v":"Nom complet de l'entité : "},null,null,null,null,null,null,null,{"$f":"test_ERREUR(E7=\"\",Traduction!$B$4)","v":"Veuillez saisir le nom complet de l'entité"},1,null,null,"Autre dep.",{"$f":"MAX(C$54:C$56)","v":1},{"$f":"IF(Parametres!$D$19>1,Parametres!I22,\"\")","v":""},null,54,null,null,"Primes et HC"]
[null,null,null,{"$f":"Traduction!B115&IF(VoletGeneral!$B$6=\"En\",\"\",\" \")&\": \"","v":"Acronyme ou code de l'entité : "},null,null,null,null,"Eligibilité aide :",{"$f":"AND(Parametres!D17=\"Oui\",OR(Parametres!D18=\"Oui\",COUNTIF(MenusDeroulants!C24:D24,E11)=0))","v":false},{"$f":"AND(J8,COUNTIF(MenusDeroulants!C7:D7,K9)>0,COUNTIF(MenusDeroulants!C8:D8,Parametres!D17)<1)","v":false},{"$f":"test_ERREUR(E8=\"\",Traduction!$B$6)","v":"Veuillez saisir l'acronyme de l'entité"},1,null,null,"Fact. Int.",{"$f":"MAX(C$60:C$62)","v":1},{"$f":"IF(Parametres!$D$19>1,Parametres!I23,\"\")","v":""},null,60,null,null,"PSE",{"$f":"SUM($K$46:$K$48)","v":0},{"$f":"IF(Parametres!$D$19<2,X8*IF(AND(ISNUMBER($K$79),$L$79=\"\"),$K$79,0),SUMIF($Y$46:$Y$48,0,$K$39:$K$41)*IF(AND(ISNUMBER($K$79),$L$79=\"\"),$K$79,0)+SUMIF($Y$46:$Y$48,1,$K$39:$K$41)*IF(AND(ISNUMBER($J$79),$L$79=\"\"),$J$79,0)+SUMIF($Y$46:$Y$48,2,$K$39:$K$41)*IF(AND(ISNUMBER($I$79),$L$79=\"\"),$I$79,0)+SUMIF($Y$46:$Y$48,3,$K$39:$K$41)*IF(AND(ISNUMBER($H$79),$L$79=\"\"),$H$79,0))","v":0}]
[null,null,null,{"$f":"Traduction!B116&IF(VoletGeneral!$B$6=\"En\",\"\",\" \")&\": \"","v":"Numéro SIRET : "},null,null,null,null,null,{"$f":"Traduction!B122&IF(VoletGeneral!$B$6=\"En\",\"\",\" \")&\": \"","v":"L'entité est-il éligible à une aide : "},{"$f":"IF(J8,MenusDeroulants!$B$7,MenusDeroulants!$B$8)","v":"Non"},{"$f":"test_ERREUR(AND(R11<>6,E9=\"\"),Traduction!$B$8,AND(R11<>6,NOT(test_siret(E9))),Traduction!$B$9,AND(COUNTIF(MenusDeroulants!$C$7:$D$8,K9)=0,J8),Traduction!$B$10)","v":"Veuillez saisir le n° SIRET de l'entité"},1,null,null,"Autres fin.",{"$f":"MAX(C$66:C$68)","v":1},null,null,66,null,null,"Missions",{"$f":"SUM($K$50:$K$52)","v":0},{"$f":"IF(Parametres!$D$19<2,X9*IF(AND(ISNUMBER($K$79),$L$79=\"\"),$K$79,0),SUMIF($Y$50:$Y$52,0,$K$50:$K$52)*IF(AND(ISNUMBER($K$79),$L$79=\"\"),$K$79,0)+SUMIF($Y$50:$Y$52,1,$K$50:$K$52)*IF(AND(ISNUMBER($J$79),$L$79=\"\"),$J$79,0)+SUMIF($Y$50:$Y$52,2,$K$50:$K$52)*IF(AND(ISNUMBER($I$79),$L$79=\"\"),$I$79,0)+SUMIF($Y$50:$Y$52,3,$K$50:$K$52)*IF(AND(ISNUMBER($H$79),$L$79=\"\"),$H$79,0))","v":0}]
[null,null,null,{"$f":"Traduction!B117&IF(VoletGeneral!$B$6=\"En\",\"\",\" \")&\": \"","v":"Catégorie de l'entité : "},{"$f":"IF(R10<>\"\",VLOOKUP(R10,Traduction!A107:B108,2,FALSE),\"\")","v":"Entreprise (au sens de l'UE)"},null,null,null,null,{"$f":"Traduction!B123&IF(VoletGeneral!$B$6=\"En\",\"\",\" \")&\": \"","v":"TVA récupérée : "},{"$f":"IF(S10<>\"\",VLOOKUP(S10,MenusDeroulants!A7:B8,2,FALSE),\"\")","v":""},{"$f":"test_ERREUR(COUNTIF(MenusDeroulants!$C$7:$D$8,K10)=0,Traduction!$B$10)","v":"Veuillez choisir oui ou non"},1,null,null,null,0,1,null,null,null,null,"Autres dép. ext.",{"$f":"SUM($K$54:$K$56)","v":0},{"$f":"IF(Parametres!$D$19<2,X10*IF(AND(ISNUMBER($K$79),$L$79=\"\"),$K$79,0),SUMIF($Y$54:$Y$56,0,$K$54:$K$56)*IF(AND(ISNUMBER($K$79),$L$79=\"\"),$K$79,0)+SUMIF($Y$54:$Y$56,1,$K$54:$K$56)*IF(AND(ISNUMBER($J$79),$L$79=\"\"),$J$79,0)+SUMIF($Y$54:$Y$56,2,$K$54:$K$56)*IF(AND(ISNUMBER($I$79),$L$79=\"\"),$I$79,0)+SUMIF($Y$54:$Y$56,3,$K$54:$K$56)*IF(AND(ISNUMBER($H$79),$L$79=\"\"),$H$79,0))","v":0}]
[null,null,null,{"$f":"Traduction!B118&IF(VoletGeneral!$B$6=\"En\",\"\",\" \")&\": \"","v":"Forme légale de l'entité : "},{"$f":"IF(R11<>\"\",VLOOKUP(R11,MenusDeroulants!A20:B27,2,FALSE),\"\")","v":""},null,null,null,{"$f":"test_ERREUR(OR(E11=MenusDeroulants!$C$27,E11=MenusDeroulants!$D$27,E11=MenusDeroulants!$C$18,E11=MenusDeroulants!$D$18),Traduction!B124&IF(VoletGeneral!$B$6=\"En\",\"\",\" \")&\": \")","v":"Si autre : "},null,null,{"$f":"test_ERREUR(E11=\"\",Traduction!$B$11,COUNTIF(MenusDeroulants!$C$19:$D$27,E11)=0,Traduction!$B$12,AND(I11<>\"\",J11=\"\"),Traduction!$B$13,AND(I11<>\"\",LEN(J11)<5),Traduction!$B$14)","v":"Veuillez choisir un type d'entité dans le menu déroulant"},1,null,null,null,0,null,null,null,null,null,"Fact. Int.",{"$f":"SUM($K$60:$K$62)","v":0},{"$f":"IF(Parametres!$D$19<2,X11*IF(AND(ISNUMBER($K$79),$L$79=\"\"),$K$79,0),SUMIF($Y$60:$Y$62,0,$K$60:$K$62)*IF(AND(ISNUMBER($K$79),$L$79=\"\"),$K$79,0)+SUMIF($Y$60:$Y$62,1,$K$60:$K$62)*IF(AND(ISNUMBER($J$79),$L$79=\"\"),$J$79,0)+SUMIF($Y$60:$Y$62,2,$K$60:$K$62)*IF(AND(ISNUMBER($I$79),$L$79=\"\"),$I$79,0)+SUMIF($Y$60:$Y$62,3,$K$60:$K$62)*IF(AND(ISNUMBER($H$79),$L$79=\"\"),$H$79,0))","v":0}]
[null,null,null,{"$f":"Traduction!B316&IF(VoletGeneral!$B$6=\"En\",\"\",\" \")&\": \"","v":"Catégorie de l'entité au sens de l'Union Européenne : "},{"$f":"IF(R12<>\"\",IF(ISNUMBER(LEN(VLOOKUP(R12,MenusDeroulants!$A$326:$B$329,2,FALSE))),VLOOKUP(R12,MenusDeroulants!$A$326:$B$329,2,FALSE),\"\"),\"\")","v":""}]
[null,null,null,{"$f":"Traduction!B119&IF(VoletGeneral!$B$6=\"En\",\"\",\" \")&\": \"","v":"Rue : "},null,null,null,null,null,null,null,{"$f":"test_ERREUR(E13=\"\",Traduction!$B$15)","v":"Veuillez saisir une rue"},1,null,null,"Tutelles",{"$f":"MAX(C$94:C$96)","v":1},null,null,null,null,null,"Frais de gestion et de structure",{"$f":"$K$83","v":0},{"$f":"IF(Parametres!$D$19<2,X13*IF(AND(ISNUMBER($K$79),$L$79=\"\"),$K$79,0),J83*IF(AND(ISNUMBER($K$79),$L$79=\"\"),$K$79,0)+I83*IF(AND(ISNUMBER($J$79),$L$79=\"\"),$J$79,0)+H83*IF(AND(ISNUMBER($I$79),$L$79=\"\"),$I$79,0)+G83*IF(AND(ISNUMBER($H$79),$L$79=\"\"),$H$79,0))","v":0}]
[null,null,null,{"$f":"Traduction!B120&IF(VoletGeneral!$B$6=\"En\",\"\",\" \")&\": \"","v":"Code postal : "},null,null,null,null,null,null,null,{"$f":"test_ERREUR(E14=\"\",Traduction!$B$16,OR(E14<1000,E14>99999),Traduction!$B$17)","v":"Veuillez saisir un code postal"},1,null,null,null,null,null,null,null,null,null,"Total",{"$f":"SUM($X$3:$X$13)","v":0},{"$f":"SUM($Y$3:$Y$13)","v":0}]
[null,null,null,{"$f":"Traduction!B121&IF(VoletGeneral!$B$6=\"En\",\"\",\" \")&\": \"","v":"Ville : "},null,null,null,null,{"$f":"Traduction!B125&IF(VoletGeneral!$B$6=\"En\",\"\",\" \")&\": \"","v":"Pays : "},{"$f":"IF(R15<>\"\",IF(COUNTIF(MenusDeroulants!A29:B278,R15)>0,VLOOKUP(R15,MenusDeroulants!A29:B278,2,FALSE),\"\"),\"\")","v":""},null,{"$f":"test_ERREUR(E15=\"\",Traduction!$B$18,J15=\"\",Traduction!$B$19,J15=\"-\",Traduction!$B$20,COUNTIF(MenusDeroulants!$C$29:$D$278,J15)=0,Traduction!$B$20)","v":"Veuillez saisir une ville"},1]
[null,null,null,null,null,null,null,null,null,null,null,null,"",null,null,null,null,null,null,null,null,null,"Autres soutiens fin.",{"$f":"SUM(J66:J68)","v":0},{"$f":"SUM(K66:K68)","v":0}]
[null,null,{"$f":"Traduction!B126","v":"Personne en charge de la direction de l'entité partenaire"},null,null,null,null,null,null,null,null,null,""]
[null,null,null,null,null,null,null,null,null,null,null,null,""]
[null,null,null,{"$f":"Traduction!B127&IF(VoletGeneral!$B$6=\"En\",\"\",\" \")&\": \"","v":"Genre : "},{"$f":"IF(R19<>\"\",VLOOKUP(R19,MenusDeroulants!A282:B283,2,FALSE),\"\")","v":""},null,null,null,null,null,null,{"$f":"test_ERREUR(E19=\"\",Traduction!$B$21,AND(R19<>0,R19<>1),Traduction!$B$22)","v":"Veuillez choisir un genre dans le menu déroulant"},1]
[null,null,null,{"$f":"Traduction!B128&IF(VoletGeneral!$B$6=\"En\",\"\",\" \")&\": \"","v":"Nom : "},null,null,null,null,null,null,null,{"$f":"test_ERREUR(E20=\"\",Traduction!$B$23)","v":"Veuillez saisir un nom"},1]
[null,null,null,{"$f":"Traduction!B129&IF(VoletGeneral!$B$6=\"En\",\"\",\" \")&\": \"","v":"Prénom : "},null,null,null,null,null,null,null,{"$f":"test_ERREUR(E21=\"\",Traduction!$B$24)","v":"Veuillez saisir un prénom"},1]
[null,null,null,{"$f":"Traduction!B130&IF(VoletGeneral!$B$6=\"En\",\"\",\" \")&\": \"","v":"Titre / Qualité : "},null,null,null,null,null,null,null,{"$f":"test_ERREUR(E22=\"\",Traduction!$B$25)","v":"Veuillez saisir un titre/qualité"},1]
[null,null,null,{"$f":"Traduction!B131&IF(VoletGeneral!$B$6=\"En\",\"\",\" \")&\": \"","v":"Courriel : "},null,null,null,null,null,null,null,{"$f":"test_ERREUR(E23=\"\",Traduction!$B$26,NOT(AND(ISNUMBER(SEARCH(\"@\",E23)),ISNUMBER(SEARCH(\".\",E23,2+SEARCH(\"@\",E23))))),Traduction!$B$27)","v":"Veuillez saisir un email"},1,"Lieu"]
[null,null,null,{"$f":"Traduction!B132&IF(VoletGeneral!$B$6=\"En\",\"\",\" \")&\": \"","v":"Téléphone : "},{"$f":"Traduction!B135&IF(VoletGeneral!$B$6=\"En\",\"\",\" \")&\": \"","v":"Indicatif : "},{"$f":"IF(R24<>\"\",IF(ISNUMBER(LEN(VLOOKUP(R24,MenusDeroulants!A$29:F$279,6,FALSE))),VLOOKUP(R24,MenusDeroulants!A$29:F$279,6,FALSE),\"Saisie invalide\"),\"\")","v":""},null,null,{"$f":"Traduction!B134&IF(VoletGeneral!$B$6=\"En\",\"\",\" \")&\": \"","v":"Numéro : "},null,null,{"$f":"test_ERREUR(F24=\"\",Traduction!$B$19,COUNTIF(MenusDeroulants!$F$29:$F$279,F24)=0,Traduction!$B$20)","v":"Veuillez choisir un pays dans le menu déroulant"},1]
[null,null,null,null,null,null,null,null,null,null,null,null,""]
[null,null,{"$f":"Traduction!B136","v":"Budget détaillé du projet - Part de l'entité"},null,null,null,null,null,null,null,null,null,""]
[null,null,null,null,null,null,null,null,null,null,null,null,""]
[null,null,{"$f":"Traduction!$B$138&\" - \"&IF(OR($K$10=MenusDeroulants!$C$7,$K$10=MenusDeroulants!$D$7),Traduction!$B$139,IF($K$10=\"\",Traduction!$B$140,Traduction!$B$141))&\")\"","v":"Equipement (coût unitaire > 4000 € - si l'entité récupère la TVA, indiquer le coût hors TVA)"},null,null,null,null,null,null,null,null,null,""]
[null,null,{"$f":"Traduction!$B$142","v":"Description"},null,null,{"$f":"IF(AND(Parametres!$D$8=\"Oui\",Parametres!$D$19>1),Traduction!$B$137,\"\")","v":""},{"$f":"IF(Parametres!$D$19>1,Traduction!$B$143,IF(Parametres!$D$8=\"Oui\",Traduction!$B$137,\"\"))","v":""},{"$f":"Traduction!$B$145","v":"Coût unitaire"},{"$f":"Traduction!$B$146","v":"Quantité"},{"$f":"Traduction!$B$144","v":"% d'utilisation"},{"$f":"Traduction!$B$147","v":"Total"},null,""]
[{"$f":"OR(D30&H30&I30&J30<>\"\",IF(Parametres!$D$19>1,Y30<>\"\",FALSE),IF(Parametres!$D$8<>\"Non\",X30<>\"\",FALSE))","v":false},"CC_Eq",{"$f":"index_tableau(C$29:C30)-1","v":1},null,null,{"$f":"IF(AND(Parametres!$D$8=\"Oui\",$X30<>\"\"),IF(Parametres!$D$36<>\"Non\",$X30,VLOOKUP($X30,Parametres!$H$39:$J$68,3,FALSE)),\"\")","v":""},{"$f":"IF(Parametres!$D$19>1,IF($Y30<>\"\",VLOOKUP($Y30,Parametres!$H$20:$I$23,2,FALSE),\"\"),IF(AND(Parametres!$D$8=\"Oui\",$X30<>\"\"),IF(Parametres!$D$36<>\"Non\",$X30,VLOOKUP($X30,Parametres!$H$39:$J$68,3,FALSE)),\"\"))","v":""},null,null,null,{"$f":"multiplication(FALSE,H30:J30)","v":0},{"$f":"IF(OR(A30,$Q$2>1),test_ERREUR(LEN(D30)<5,Traduction!$B$31,AND(Parametres!$D$8=\"Oui\",F30=\"\"),Traduction!$B$32,OR(NOT(ISNUMBER(H30)),H30<4000),Traduction!$B$39,OR(NOT(ISNUMBER(I30)),I30<=0),Traduction!$B$43,OR(NOT(ISNUMBER(J30)),J30<=0),Traduction!$B$41,J30>1,Traduction!$B$42),\"\")","v":""},""]
[null,null,{"$f":"Traduction!$B$158","v":"Total équipement"},null,null,null,null,null,null,null,{"$f":"somme_texte(\"# ### ### ##0 €;- # ### ### ##0 €;- €\",K29:K30)","v":" - €"},null,""]
[]
[null,null,{"$f":"Traduction!$B$159","v":"Personnels"},null,null,null,null,null,null,null,null,null,""]
[null,null,{"$f":"Traduction!$B$167","v":"Salaires des personnels en CDI"},null,null,null,null,null,null,null,null,null,""]
[null,null,{"$f":"Traduction!$B$142","v":"Description"},null,null,{"$f":"IF(AND(Parametres!$D$8=\"Oui\",Parametres!$D$19>1),Traduction!$B$137,\"\")","v":""},{"$f":"IF(Parametres!$D$19>1,Traduction!$B$143,IF(Parametres!$D$8=\"Oui\",Traduction!$B$137,\"\"))","v":""},{"$f":"Traduction!$B$150","v":"Fonction"},{"$f":"Traduction!$B$152","v":"Salaire mensuel"},{"$f":"Traduction!$B$153","v":"H.mois"},{"$f":"Traduction!$B$154","v":"Total salaires"},null,""]
[{"$f":"OR(D36&H36&I36&J36<>\"\",IF(Parametres!$D$19>1,Y36<>\"\",FALSE),IF(Parametres!$D$8<>\"Non\",X36<>\"\",FALSE))","v":false},"CC_PersCDI",{"$f":"index_tableau(C$35:C36)-1","v":1},null,null,{"$f":"IF(AND(Parametres!$D$8=\"Oui\",$X36<>\"\"),IF(Parametres!$D$36<>\"Non\",$X36,VLOOKUP($X36,Parametres!$H$39:$J$68,3,FALSE)),\"\")","v":""},{"$f":"IF(Parametres!$D$19>1,IF($Y36<>\"\",VLOOKUP($Y36,Parametres!$H$20:$I$23,2,FALSE),\"\"),IF(AND(Parametres!$D$8=\"Oui\",$X36<>\"\"),IF(Parametres!$D$36<>\"Non\",$X36,VLOOKUP($X36,Parametres!$H$39:$J$68,3,FALSE)),\"\"))","v":""},{"$f":"IF(S36<>\"\",VLOOKUP(S36,MenusDeroulants!$A$315:$B$324,2,FALSE),\"\")","v":""},null,null,{"$f":"multiplication(FALSE,I36:J36)","v":0},{"$f":"IF(OR(A36,$Q$3>1),test_ERREUR(LEN(D36)<5,Traduction!$B$31,AND(Parametres!$D$8=\"Oui\",F36=\"\"),Traduction!$B$32,AND(Parametres!$D$19>1,COUNTIF(Parametres!$D$20:$F$21,G36)=0),Traduction!$B$71,COUNTIF(MenusDeroulants!$C$315:$D$324,H36)=0,Traduction!$B$73,OR(NOT(ISNUMBER(I36)),I36<=0),Traduction!$B$50,OR(NOT(ISNUMBER(J36)),J36<=0),Traduction!$B$51),\"\")","v":""},""]
[null,null,{"$f":"Traduction!$B$168","v":"Sous-total salaires des personnels en CDI"},null,null,null,null,null,null,null,{"$f":"somme_texte(\"# ### ### ##0 €;- # ### ### ##0 €;- €\",K35:K36)","v":" - €"},null,""]
[null,null,{"$f":"Traduction!$B$169","v":"Salaires des personnels non permanents"},null,null,null,null,null,null,null,null,null,""]
[null,null,{"$f":"Traduction!$B$142","v":"Description"},null,null,{"$f":"IF(AND(Parametres!$D$8=\"Oui\",Parametres!$D$19>1),Traduction!$B$137,\"\")","v":""},{"$f":"IF(Parametres!$D$19>1,Traduction!$B$143,IF(Parametres!$D$8=\"Oui\",Traduction!$B$137,\"\"))","v":""},{"$f":"Traduction!$B$150","v":"Fonction"},{"$f":"Traduction!$B$152","v":"Salaire mensuel"},{"$f":"Traduction!$B$153","v":"H.mois"},{"$f":"Traduction!$B$154","v":"Total salaires"},null,""]
[{"$f":"OR(D40&H40&I40&J40<>\"\",IF(Parametres!$D$19>1,Y40<>\"\",FALSE),IF(Parametres!$D$8<>\"Non\",X40<>\"\",FALSE))","v":false},"CC_PersNonPerm",{"$f":"index_tableau(C$39:C40)-1","v":1},null,null,{"$f":"IF(AND(Parametres!$D$8=\"Oui\",$X40<>\"\"),IF(Parametres!$D$36<>\"Non\",$X40,VLOOKUP($X40,Parametres!$H$39:$J$68,3,FALSE)),\"\")","v":""},{"$f":"IF(Parametres!$D$19>1,IF($Y40<>\"\",VLOOKUP($Y40,Parametres!$H$20:$I$23,2,FALSE),\"\"),IF(AND(Parametres!$D$8=\"Oui\",$X40<>\"\"),IF(Parametres!$D$36<>\"Non\",$X40,VLOOKUP($X40,Parametres!$H$39:$J$68,3,FALSE)),\"\"))","v":""},{"$f":"IF(S40<>\"\",VLOOKUP(S40,MenusDeroulants!$A$315:$B$324,2,FALSE),\"\")","v":""},null,null,{"$f":"multiplication(FALSE,I40:J40)","v":0},{"$f":"IF(OR(A40,$Q$4>1),test_ERREUR(LEN(D40)<5,Traduction!$B$31,AND(Parametres!$D$8=\"Oui\",F40=\"\"),Traduction!$B$32,AND(Parametres!$D$19>1,COUNTIF(Parametres!$D$20:$F$21,G40)=0),Traduction!$B$71,COUNTIF(MenusDeroulants!$C$315:$D$324,H40)=0,Traduction!$B$73,OR(NOT(ISNUMBER(I40)),I40<=0),Traduction!$B$50,OR(NOT(ISNUMBER(J40)),J40<=0),Traduction!$B$51),\"\")","v":""},{"$f":"IF(L40<>\"\",1,\"\")","v":""}]
[null,null,{"$f":"Traduction!$B$170","v":"Sous-total salaires des personnels non permanents"},null,null,null,null,null,null,null,{"$f":"somme_texte(\"# ### ### ##0 €;- # ### ### ##0 €;- €\",K39:K40)","v":" - €"},null,""]
[null,null,{"$f":"Traduction!$B$166","v":"Total personnels"},null,null,null,null,null,null,null,{"$f":"somme_texte(\"# ### ### ##0 €;- # ### ### ##0 €;- €\",K35:K41)","v":" - €"},null,""]
[]
[null,null,{"$f":"Traduction!$B$171&IF(OR($K$10=MenusDeroulants!$C$7,$K$10=MenusDeroulants!$D$7),Traduction!$B$139,IF($K$10=\"\",Traduction!$B$140,Traduction!$B$141))&\")\"","v":"Fonctionnement (si l'entité récupère la TVA, indiquer le coût hors TVA)"},null,null,null,null,null,null,null,null,null,""]
[null,null,{"$f":"Traduction!$B$172","v":"Prestations de service externes"},null,null,null,null,null,null,null,null,null,""]
[null,null,{"$f":"Traduction!$B$142","v":"Description"},null,null,null,{"$f":"IF(AND(Parametres!$D$8=\"Oui\",Parametres!$D$19>1),Traduction!$B$137,\"\")","v":""},{"$f":"IF(Parametres!$D$19>1,Traduction!$B$143,IF(Parametres!$D$8=\"Oui\",Traduction!$B$137,\"\"))","v":""},{"$f":"Traduction!$B$157","v":"Coût moyen"},{"$f":"Traduction!$B$146","v":"Quantité"},{"$f":"Traduction!$B$147","v":"Total"},null,""]
[{"$f":"OR(D47&I47&J47<>\"\",IF(Parametres!$D$19>1,Y47<>\"\",FALSE),IF(Parametres!$D$8<>\"Non\",X47<>\"\",FALSE))","v":false},"CC_PSExt",{"$f":"index_tableau(C$46:C47)-1","v":1},null,null,null,{"$f":"IF(AND(Parametres!$D$8=\"Oui\",$X47<>\"\"),IF(Parametres!$D$36<>\"Non\",$X47,VLOOKUP($X47,Parametres!$H$39:$J$68,3,FALSE)),\"\")","v":""},{"$f":"IF(Parametres!$D$19>1,IF($Y47<>\"\",VLOOKUP($Y47,Parametres!$H$20:$I$23,2,FALSE),\"\"),IF(AND(Parametres!$D$8=\"Oui\",$X47<>\"\"),IF(Parametres!$D$36<>\"Non\",$X47,VLOOKUP($X47,Parametres!$H$39:$J$68,3,FALSE)),\"\"))","v":""},null,null,{"$f":"multiplication(FALSE,I47:J47)","v":0},{"$f":"IF(OR(A47,$Q$5>1),test_ERREUR(LEN(D47)<5,Traduction!$B$31,AND(Parametres!$D$8=\"Oui\",G47=\"\"),Traduction!$B$32,AND(Parametres!$D$19>1,COUNTIF(Parametres!$D$20:$F$21,H47)<1),Traduction!$B$71,OR(NOT(ISNUMBER(I47)),I47<=0),Traduction!$B$54,OR(NOT(ISNUMBER(J47)),J47<=0),Traduction!$B$43),\"\")","v":""},""]
[null,null,{"$f":"Traduction!$B$173","v":"Sous-total prestations de service externes"},null,null,null,null,null,null,null,{"$f":"somme_texte(\"# ### ### ##0 €;- # ### ### ##0 €;- €\",K46:K47)","v":" - €"},null,""]
[null,null,{"$f":"Traduction!$B$174","v":"Missions"},null,null,null,null,null,null,null,null,null,""]
[null,null,{"$f":"Traduction!$B$142","v":"Description"},null,null,null,{"$f":"IF(AND(Parametres!$D$8=\"Oui\",Parametres!$D$19>1),Traduction!$B$137,\"\")","v":""},{"$f":"IF(Parametres!$D$19>1,Traduction!$B$143,IF(Parametres!$D$8=\"Oui\",Traduction!$B$137,\"\"))","v":""},{"$f":"Traduction!$B$157","v":"Coût moyen"},{"$f":"Traduction!$B$146","v":"Quantité"},{"$f":"Traduction!$B$147","v":"Total"},null,""]
[{"$f":"OR(D51&I51&J51<>\"\",IF(Parametres!$D$19>1,Y51<>\"\",FALSE),IF(Parametres!$D$8<>\"Non\",X51<>\"\",FALSE))","v":false},"CC_Mis",{"$f":"index_tableau(C$50:C51)-1","v":1},null,null,null,{"$f":"IF(AND(Parametres!$D$8=\"Oui\",$X51<>\"\"),IF(Parametres!$D$36<>\"Non\",$X51,VLOOKUP($X51,Parametres!$H$39:$J$68,3,FALSE)),\"\")","v":""},{"$f":"IF(Parametres!$D$19>1,IF($Y51<>\"\",VLOOKUP($Y51,Parametres!$H$20:$I$23,2,FALSE),\"\"),IF(AND(Parametres!$D$8=\"Oui\",$X51<>\"\"),IF(Parametres!$D$36<>\"Non\",$X51,VLOOKUP($X51,Parametres!$H$39:$J$68,3,FALSE)),\"\"))","v":""},null,null,{"$f":"multiplication(FALSE,I51:J51)","v":0},{"$f":"IF(OR(A51,$Q$6>1),test_ERREUR(LEN(D51)<5,Traduction!$B$31,AND(Parametres!$D$8=\"Oui\",G51=\"\"),Traduction!$B$32,AND(Parametres!$D$19>1,COUNTIF(Parametres!$D$20:$F$21,H51)<1),Traduction!$B$71,OR(NOT(ISNUMBER(I51)),I51<=0),Traduction!$B$54,OR(NOT(ISNUMBER(J51)),J51<=0),Traduction!$B$43),\"\")","v":""},""]
[null,null,{"$f":"Traduction!$B$175","v":"Sous-total missions"},null,null,null,null,null,null,null,{"$f":"somme_texte(\"# ### ### ##0 €;- # ### ### ##0 €;- €\",K50:K51)","v":" - €"},null,""]
[null,null,{"$f":"Traduction!$B$176","v":"Autres dépenses externes"},null,null,null,null,null,null,null,null,null,""]
[null,null,{"$f":"Traduction!$B$142","v":"Description"},null,null,null,{"$f":"IF(AND(Parametres!$D$8=\"Oui\",Parametres!$D$19>1),Traduction!$B$137,\"\")","v":""},{"$f":"IF(Parametres!$D$19>1,Traduction!$B$143,IF(Parametres!$D$8=\"Oui\",Traduction!$B$137,\"\"))","v":""},{"$f":"Traduction!$B$157","v":"Coût moyen"},{"$f":"Traduction!$B$146","v":"Quantité"},{"$f":"Traduction!$B$147","v":"Total"},null,""]
[{"$f":"OR(D55&I55&J55<>\"\",IF(Parametres!$D$19>1,Y55<>\"\",FALSE),IF(Parametres!$D$8<>\"Non\",X55<>\"\",FALSE))","v":false},"CC_AutDepExt",{"$f":"index_tableau(C$54:C55)-1","v":1},null,null,null,{"$f":"IF(AND(Parametres!$D$8=\"Oui\",$X55<>\"\"),IF(Parametres!$D$36<>\"Non\",$X55,VLOOKUP($X55,Parametres!$H$39:$J$68,3,FALSE)),\"\")","v":""},{"$f":"IF(Parametres!$D$19>1,IF($Y55<>\"\",VLOOKUP($Y55,Parametres!$H$20:$I$23,2,FALSE),\"\"),IF(AND(Parametres!$D$8=\"Oui\",$X55<>\"\"),IF(Parametres!$D$36<>\"Non\",$X55,VLOOKUP($X55,Parametres!$H$39:$J$68,3,FALSE)),\"\"))","v":""},null,null,{"$f":"multiplication(FALSE,I55:J55)","v":0},{"$f":"IF(OR(A55,$Q$7>1),test_ERREUR(LEN(D55)<5,Traduction!$B$31,AND(Parametres!$D$8=\"Oui\",G55=\"\"),Traduction!$B$32,AND(Parametres!$D$19>1,COUNTIF(Parametres!$D$20:$F$21,H55)<1),Traduction!$B$71,OR(NOT(ISNUMBER(I55)),I55<=0),Traduction!$B$54,OR(NOT(ISNUMBER(J55)),J55<=0),Traduction!$B$43),\"\")","v":""},""]
[null,null,{"$f":"Traduction!$B$177","v":"Sous-total autres dépenses externes"},null,null,null,null,null,null,null,{"$f":"somme_texte(\"# ### ### ##0 €;- # ### ### ##0 €;- €\",K54:K55)","v":" - €"},null,""]
[null,null,{"$f":"Traduction!$B$178","v":"Total fonctionnement"},null,null,null,null,null,null,null,{"$f":"somme_texte(\"# ### ### ##0 €;- # ### ### ##0 €;- €\",K46:K56)","v":" - €"},null,""]
[]
[null,null,{"$f":"Traduction!$B$179","v":"Facturation interne"},null,null,null,null,null,null,null,null,null,""]
[null,null,{"$f":"Traduction!$B$142","v":"Description"},null,null,null,{"$f":"IF(AND(Parametres!$D$8=\"Oui\",Parametres!$D$19>1),Traduction!$B$137,\"\")","v":""},{"$f":"IF(Parametres!$D$19>1,Traduction!$B$143,IF(Parametres!$D$8=\"Oui\",Traduction!$B$137,\"\"))","v":""},{"$f":"Traduction!$B$157","v":"Coût moyen"},{"$f":"Traduction!$B$146","v":"Quantité"},{"$f":"Traduction!$B$147","v":"Total"},null,""]
[{"$f":"OR(D61&I61&J61<>\"\",IF(Parametres!$D$19>1,Y61<>\"\",FALSE),IF(Parametres!$D$8<>\"Non\",X61<>\"\",FALSE))","v":false},"CC_FactInt",{"$f":"index_tableau(C$60:C61)-1","v":1},null,null,null,{"$f":"IF(AND(Parametres!$D$8=\"Oui\",$X61<>\"\"),IF(Parametres!$D$36<>\"Non\",$X61,VLOOKUP($X61,Parametres!$H$39:$J$68,3,FALSE)),\"\")","v":""},{"$f":"IF(Parametres!$D$19>1,IF($Y61<>\"\",VLOOKUP($Y61,Parametres!$H$20:$I$23,2,FALSE),\"\"),IF(AND(Parametres!$D$8=\"Oui\",$X61<>\"\"),IF(Parametres!$D$36<>\"Non\",$X61,VLOOKUP($X61,Parametres!$H$39:$J$68,3,FALSE)),\"\"))","v":""},null,null,{"$f":"multiplication(FALSE,I61:J61)","v":0},{"$f":"IF(OR(A61,$Q$8>1),test_ERREUR(LEN(D61)<5,Traduction!$B$31,AND(Parametres!$D$8=\"Oui\",G61=\"\"),Traduction!$B$32,AND(Parametres!$D$19>1,COUNTIF(Parametres!$D$20:$F$21,H61)<1),Traduction!$B$71,OR(NOT(ISNUMBER(I61)),I61<=0),Traduction!$B$54,OR(NOT(ISNUMBER(J61)),J61<=0),Traduction!$B$43),\"\")","v":""},""]
[null,null,{"$f":"Traduction!$B$180","v":"Total facturation interne"},null,null,null,null,null,null,null,{"$f":"somme_texte(\"# ### ### ##0 €;- # ### ### ##0 €;- €\",K60:K61)","v":" - €"},null,""]
[null,null,null,null,null,null,null,null,null,null,null,null,""]
[null,null,{"$f":"Traduction!$B$210","v":"Autres soutiens financiers sollicités ou obtenus pour le projet"},null,null,null,null,null,null,null,null,null,""]
[]
[null,null,{"$f":"Traduction!$B$211","v":"Noms des financeurs et objet du financement"},null,null,null,null,null,null,{"$f":"Traduction!$B$212","v":"Sollicité"},{"$f":"Traduction!$B$213","v":"Obtenu"},null,{"$f":"IF(L66<>\"\",1,\"\")","v":""}]
[{"$f":"D67&J67&K67<>\"\"","v":false},"AutFin",{"$f":"index_tableau(C$66:C67)-1","v":1},null,null,null,null,null,null,null,null,{"$f":"IF(OR(A67,$Q$11>1),test_ERREUR(LEN(D67)<5,Traduction!$B$58,OR(NOT(ISNUMBER(J67)),J67<0),Traduction!$B$59,OR(NOT(ISNUMBER(K67)),K67<0),Traduction!$B$60),\"\")","v":""}]
[null,null,{"$f":"Traduction!$B$214","v":"Total autres financements"},null,null,null,null,null,null,{"$f":"somme_texte(\"# ### ### ##0 €;- # ### ### ##0 €;- €\",J66:J67)","v":" - €"},{"$f":"somme_texte(\"# ### ### ##0 €;- # ### ### ##0 €;- €\",K66:K67)","v":" - €"},null,{"$f":"IF(L68<>\"\",1,\"\")","v":""}]
[null,null,null,null,null,null,null,null,null,null,null,null,""]
[null,null,{"$f":"Traduction!$B$183","v":"Synthèse de la demande financière"},null,null,null,null,null,null,null,null,null,""]
[null,null,null,null,null,null,null,null,null,null,null,null,""]
["Taux max",null,null,null,null,null,null,null,null,null,null,null,{"$f":"IF(L72<>\"\",1,\"\")","v":""}]
[{"$f":"IF(ISNUMBER(Parametres!$D$32),Parametres!$D$32,0)","v":0.68},null,{"$f":"Traduction!B198&IF(Parametres!$E$32=\"Oui\",IF(ISNUMBER(Parametres!$D$32),\" (max \"&Parametres!$D$32*100&\"%)\",\"\"),\"\")","v":"Taux des frais de struct. assis sur les dépenses totales de pers."},null,null,null,null,null,{"$f":"K73","v":0},{"$f":"K73","v":0},{"$f":"IF(Parametres!E32<>\"Oui\",0,IF(AND(ISNUMBER($S2),$S2<>\"\"),$S2/100,\"\"))","v":0},{"$f":"test_ERREUR(OR(NOT(ISNUMBER(K73)),K73<0),Traduction!$B$66,OR(NOT(ISNUMBER(K73)),K73>A73),Traduction!$B$67&\" \"&ROUND(A73*100,1)&\" %\")","v":""},""]
[{"$f":"IF(ISNUMBER(Parametres!$D$33),Parametres!$D$33,0)","v":0.2},null,{"$f":"Traduction!B197&IF(Parametres!$E$33=\"Oui\",IF(ISNUMBER(Parametres!$D$33),\" (max \"&Parametres!$D$33*100&\"%)\",\"\"),\"\")","v":"Taux des frais de struct. assis sur les dépenses de pers. au titre de l'encadrement/assistance"},null,null,null,null,null,{"$f":"K74","v":0},{"$f":"K74","v":0},{"$f":"IF(Parametres!E33<>\"Oui\",0,IF(AND(ISNUMBER($S3),$S3<>\"\"),$S3/100,\"\"))","v":0},{"$f":"test_ERREUR(OR(NOT(ISNUMBER(K74)),K74<0),Traduction!$B$66,OR(NOT(ISNUMBER(K74)),K74>A74),Traduction!$B$67&\" \"&ROUND(A74*100,1)&\" %\")","v":""},""]
[{"$f":"IF(ISNUMBER(Parametres!$D$34),Parametres!$D$34,0)","v":7.0000000000000007E-2},null,{"$f":"Traduction!B199&IF(Parametres!$E$34=\"Oui\",IF(ISNUMBER(Parametres!$D$34),\" (max \"&Parametres!$D$34*100&\"%)\",\"\"),\"\")","v":"Taux des frais de struct. assis sur les autres dépenses"},null,null,null,null,null,0,0,{"$f":"IF(Parametres!E34<>\"Oui\",0,IF(AND(ISNUMBER($S4),$S4<>\"\"),$S4/100,\"\"))","v":0},{"$f":"test_ERREUR(OR(NOT(ISNUMBER(K75)),K75<0),Traduction!$B$66,OR(NOT(ISNUMBER(K75)),K75>A75),Traduction!$B$67&\" \"&ROUND(A75*100,1)&\" %\")","v":""},""]
[]
[null,null,null,null,null,null,null,{"$f":"IF(Parametres!$D$19>3,Parametres!$I$23,\"\")","v":""},{"$f":"IF(Parametres!$D$19>2,Parametres!$I$22,\"\")","v":""},{"$f":"IF(Parametres!$D$19>1,Parametres!$I$21,\"\")","v":""},{"$f":"IF(Parametres!$D$19>1,Parametres!$I$20,\"\")","v":""}]
[null,null,{"$f":"Traduction!B200","v":"Taux d'aide maximum"},null,null,null,null,{"$f":"IF(J8,IF(ISNUMBER(VLOOKUP($R$11,Parametres!$A$23:$G$30,7,FALSE)),VLOOKUP($R$11,Parametres!$A$23:$G$30,7,FALSE),\"\"),\"\")","v":""},{"$f":"IF(J8,IF(ISNUMBER(VLOOKUP($R$11,Parametres!$A$23:$G$30,6,FALSE)),VLOOKUP($R$11,Parametres!$A$23:$G$30,6,FALSE),\"\"),\"\")","v":""},{"$f":"IF(J8,IF(ISNUMBER(VLOOKUP($R$11,Parametres!$A$23:$G$30,5,FALSE)),VLOOKUP($R$11,Parametres!$A$23:$G$30,5,FALSE),\"\"),\"\")","v":""},{"$f":"IF(J8,IF(ISNUMBER(VLOOKUP($R$12,Parametres!$A$23:$G$30,4,FALSE)),VLOOKUP($R$12,Parametres!$A$23:$G$30,4,FALSE),\"\"),\"\")","v":""},null,""]
[null,null,{"$f":"Traduction!B201","v":"Taux d'aide demandée"},null,null,null,null,{"$f":"IF(AND(ISNUMBER($S8),$S8<>\"\"),$S8/100,\"\")","v":""},{"$f":"IF(AND(ISNUMBER($S7),$S7<>\"\"),$S7/100,\"\")","v":""},{"$f":"IF(AND(ISNUMBER($S6),$S6<>\"\"),$S6/100,\"\")","v":""},{"$f":"IF(AND(ISNUMBER($S5),$S5<>\"\"),$S5/100,\"\")","v":""},{"$f":"IF($K$8,test_ERREUR(AND(Parametres!$D$19>3,OR(NOT(ISNUMBER(H79)),H79<0)),Traduction!$B$76,AND(Parametres!$D$19>3,OR(NOT(ISNUMBER(H79)),H79>H78)),Traduction!$B$78,AND(Parametres!$D$19>2,OR(NOT(ISNUMBER(I79)),I79<0)),Traduction!$B$76,AND(Parametres!$D$19>2,OR(NOT(ISNUMBER(I79)),I79>I78)),Traduction!$B$78,AND(Parametres!$D$19>1,OR(NOT(ISNUMBER(J79)),J79<0)),Traduction!$B$76,AND(Parametres!$D$19>1,OR(NOT(ISNUMBER(J79)),J79>J78)),Traduction!$B$78,OR(NOT(ISNUMBER(K79)),K79<0),Traduction!$B$76,OR(NOT(ISNUMBER(K79)),K79>K78),Traduction!$B$78),\"\")","v":""},""]
[null,null,null,null,null,null,null,null,null,null,null,null,""]
[null,null,{"$f":"Traduction!$B$142","v":"Description"},null,null,null,{"$f":"Parametres!$I$23","v":"R&D 2"},{"$f":"Parametres!$I$22","v":"R&D"},{"$f":"Parametres!$I$21","v":"Faisabilité"},{"$f":"Parametres!$I$20","v":"Autre"},{"$f":"Traduction!$B$147","v":"Total"},null,""]
[null,null,{"$f":"Traduction!B203","v":"Total hors frais de structure"},null,null,null,{"$f":"IF(Parametres!$D$19>3,SUMIF($Y$29:$Y$62,3,$K$29:$K$62),0)","v":0},{"$f":"IF(Parametres!$D$19>2,SUMIF($Y$29:$Y$62,2,$K$29:$K$62),0)","v":0},{"$f":"IF(Parametres!$D$19>1,SUMIF($Y$29:$Y$62,1,$K$29:$K$62),0)","v":0},{"$f":"IF(Parametres!$D$19>1,SUMIF($Y$29:$Y$62,0,$K$29:$K$62),SUM($K$29:$K$62))","v":0},{"$f":"SUM($G82:$J82)","v":0},null,""]
[null,null,{"$f":"Traduction!B190","v":"Frais de gestion et de structure"},null,null,null,{"$f":"SUM(G84:G86)","v":0},{"$f":"SUM(H84:H86)","v":0},{"$f":"SUM(I84:I86)","v":0},{"$f":"SUM(J84:J86)","v":0},0,null,""]
[null,null,{"$f":"Traduction!B205","v":"- dont assis sur les dépenses totales de personnel"},null,null,null,{"$f":"IF($L$73=\"\",IF($K$73<>\"\",IF(Parametres!$D$19>3,$K$73*SUMIF($Y$34:$Y$42,3,$K$34:$K$42),0),0),0)","v":0},{"$f":"IF($L$73=\"\",IF($K$73<>\"\",IF(Parametres!$D$19>2,$K$73*SUMIF($Y$34:$Y$42,2,$K$34:$K$42),0),0),0)","v":0},{"$f":"IF($L$73=\"\",IF($K$73<>\"\",IF(Parametres!$D$19>1,$K$73*SUMIF($Y$34:$Y$42,1,$K$34:$K$42),0),0),0)","v":0},{"$f":"IF($L$73=\"\",IF($K73<>\"\",IF(Parametres!$D$19>1,$K$73*SUMIF($Y$34:$Y$42,0,$K$34:$K$42),$K$73*SUM($K$34:$K$42)),0),0)","v":0},0,null,""]
[null,null,{"$f":"Traduction!B204","v":"- dont assis sur les dépenses de pers. au titre de l'encadrement/assistance"},null,null,null,{"$f":"IF($L$74=\"\",IF($K$74<>\"\",IF(Parametres!$D$19>2,$K$74*SUMIF($Y$34:$Y$42,2,$K$34:$K$42),0),0),0)","v":0},{"$f":"IF($L$74=\"\",IF($K$74<>\"\",IF(Parametres!$D$19>2,$K$74*SUMIF($Y$34:$Y$42,2,$K$34:$K$42),0),0),0)","v":0},{"$f":"IF($L$74=\"\",IF($K$74<>\"\",IF(Parametres!$D$19>1,$K$74*SUMIF($Y$34:$Y$42,1,$K$34:$K$42),0),0),0)","v":0},{"$f":"IF($L$74=\"\",IF($K$74<>\"\",IF(Parametres!$D$19>1,$K$74*SUMIF($Y$34:$Y$42,0,$K$34:$K$42),$K$74*SUM($K$34:$K$42)),0),0)","v":0},0,null,""]
[null,null,{"$f":"Traduction!B206","v":"- dont assis sur les autres dépenses"},null,null,null,{"$f":"IF($L$75=\"\",IF($K$75<>\"\",IF(Parametres!$D$19>3,$K$75*(SUMIF($Y$29:$Y$31,3,$K$29:$K$31)+SUMIF($Y$46:$Y$57,3,$K$46:$K$57)),0),0),0)","v":0},{"$f":"IF($L$75=\"\",IF($K$75<>\"\",IF(Parametres!$D$19>2,$K$75*(SUMIF($Y$29:$Y$31,2,$K$29:$K$31)+SUMIF($Y$46:$Y$57,2,$K$46:$K$57)),0),0),0)","v":0},{"$f":"IF($L$75=\"\",IF($K$75<>\"\",IF(Parametres!$D$19>1,$K$75*(SUMIF($Y$29:$Y$31,1,$K$29:$K$31)+SUMIF($Y$46:$Y$57,1,$K$46:$K$57)),0),0),0)","v":0},{"$f":"IF($L$75=\"\",IF($K$75<>\"\",IF(Parametres!$D$19>1,$K$75*(SUMIF($Y$29:$Y$31,0,$K$29:$K$31)+SUMIF($Y$46:$Y$57,0,$K$46:$K$57)),$K$75*(SUM($K$29:$K$31)+SUM($K$46:$K$57))),0),0)","v":0},0,null,""]
[null,null,{"$f":"Traduction!B207","v":"Total coûts complets"},null,null,null,{"$f":"SUM($G$82:$G$83)","v":0},{"$f":"SUM($H$82:$H$83)","v":0},{"$f":"SUM(I$82:I$83)","v":0},{"$f":"SUM(J$82:J$83)","v":0},0,null,""]
[null,null,{"$f":"Traduction!B208","v":"- dont aide demandée"},null,null,null,{"$f":"IF(J8,IF($L$79=\"\",IF(Parametres!$D$19>2,$H$79*$G$87,0),0),0)","v":0},{"$f":"IF(J8,IF($L$79=\"\",IF(Parametres!$D$19>2,$I$79*$H$87,0),0),0)","v":0},{"$f":"IF(J8,IF($L$79=\"\",IF(Parametres!$D$19>1,$J$79*$I$87,0),0),0)","v":0},{"$f":"IF(J8,IF($L$79=\"\",$K$79*$J$87,0),0)","v":0},{"$f":"IF(J8,SUM($G88:$J88),0)","v":0},null,""]
[null,null,{"$f":"Traduction!B209","v":"- dont apport"},null,null,null,{"$f":"$H$87-$H$88","v":0},{"$f":"$H$87-$H$88","v":0},{"$f":"$I$87-$I$88","v":0},{"$f":"$J$87-$J$88","v":0},{"$f":"SUM($G89:$J89)","v":0},null,""]
[null,null,null,null,null,null,null,null,null,null,null,null,""]
[null,null,{"$f":"Traduction!$B$289","v":"Le cas échéant, liste des établissements tutelles"},null,null,null,null,null,null,null,null,null,{"$f":"IF(L91<>\"\",1,\"\")","v":""}]
[]
[null,null,{"$f":"Traduction!$B$290","v":"Les informations sur les tutelles sont à remplir dans le volet général (liste des établissements partenaires).  La tutelle principale devra apparaître en n° 1."}]
[null,null,"#",{"$f":"Traduction!$B$287","v":"Nom complet de l'institution"},{"$f":"Traduction!$B$288","v":"Acronyme"},{"$f":"Traduction!$B$119","v":"Rue"},null,null,{"$f":"Traduction!$B$120","v":"Code postal"},{"$f":"Traduction!$B$121","v":"Ville"},null,null,{"$f":"IF(L94<>\"\",1,\"\")","v":""}]
[{"$f":"OR(D95&E95&F95&G95<>\"\",IF($K$8,I95<>\"\",FALSE))","v":false},null,{"$f":"index_tableau(C$94:C95)-1","v":1},{"$f":"IF(ISNUMBER($B95),IF(COUNTIF(VoletGeneral!$B$106:$B$109,$B95)>0,IF(VLOOKUP($B95,VoletGeneral!$B$106:$L$109,3,FALSE)<>\"\",VLOOKUP($B95,VoletGeneral!$B$106:$L$109,3,FALSE),\"\"),\"\"),\"\")","v":""},{"$f":"IF(ISNUMBER($B95),IF(COUNTIF(VoletGeneral!$B$106:$B$109,$B95)>0,IF(VLOOKUP($B95,VoletGeneral!$B$106:$L$109,5,FALSE)<>\"\",VLOOKUP($B95,VoletGeneral!$B$106:$L$109,5,FALSE),\"\"),\"\"),\"\")","v":""},{"$f":"IF(ISNUMBER($B95),IF(COUNTIF(VoletGeneral!$B$106:$B$109,$B95)>0,IF(VLOOKUP($B95,VoletGeneral!$B$106:$L$109,6,FALSE)<>\"\",VLOOKUP($B95,VoletGeneral!$B$106:$L$109,6,FALSE),\"\"),\"\"),\"\")","v":""},null,null,{"$f":"IF(ISNUMBER($B95),IF(COUNTIF(VoletGeneral!$B$106:$B$109,$B95)>0,IF(VLOOKUP($B95,VoletGeneral!$B$106:$L$109,8,FALSE)<>\"\",VLOOKUP($B95,VoletGeneral!$B$106:$L$109,8,FALSE),\"\"),\"\"),\"\")","v":""},{"$f":"IF(ISNUMBER($B95),IF(COUNTIF(VoletGeneral!$B$106:$B$109,$B95)>0,IF(VLOOKUP($B95,VoletGeneral!$B$106:$L$109,9,FALSE)<>\"\",VLOOKUP($B95,VoletGeneral!$B$106:$L$109,9,FALSE),\"\"),\"\"),\"\")","v":""},null,null,{"$f":"IF(L95<>\"\",1,\"\")","v":""}]
[]
[null,null,{"$f":"Traduction!$B$215","v":"Commentaires (le cas échéant, 27 lignes max)"},null,null,null,null,null,null,null,null,null,""]
[null,null,null,null,null,null,null,null,null,null,null,null,""]
[null,null,{"$f":"IF($N$2<>\"\",$N$2,\"\")","v":""},null,null,null,null,null,null,null,null,null,""]
[null,null,null,null,null,null,null,null,null,null,null,null,""]
[null,null,{"$f":"Traduction!$B$216","v":"Les informations personnelles transmises dans ces documents sont obligatoires et seront conservées en fichiers par l'ANR pour assurer la conduite opérationnelle"},null,null,null,null,null,null,null,null,null,""]
[null,null,{"$f":"Traduction!$B$217","v":"de l'évaluation et l'administration des dossiers."},null,null,null,null,null,null,null,null,null,""]
[null,null,{"$f":"Traduction!$B$218","v":"Conformément à la loi n° 78-17 du 6 janvier 1978 modifiée, relative à l'Informatique, aux Fichiers et aux Libertés, les personnes concernées disposent d'un droit "},null,null,null,null,null,null,null,null,null,""]
[null,null,{"$f":"Traduction!$B$219","v":"d'accès et de rectification des données personnelles les concernant. Les personnes concernées peuvent exercer ce droit en s'adressant à l'ANR  (voir coordonnées"},null,null,null,null,null,null,null,null,null,""]
[null,null,{"$f":"Traduction!$B$220","v":"dans le texte de l’appel à projets)."},null,null,null,null,null,null,null,null,null,""]
[null,null,null,null,null,null,null,null,null,null,null,null,""]

{"sheet":"Ent1","index":5,"n_rows":112,"n_cols":25,"rows_kept":112,"cut":false,"hidden":false,"merged":[]}
[{"$f":"NUM_PARTENAIRE(C2)","v":"1"},null,null,null,null,null,null,{"$f":"Traduction!B110","v":"Dernière modification"},null,"2017-05-11T11:50:49",null,{"$f":"IF(SUM(M:M)<>0,SUM(M:M)&\" \"&Traduction!$B$271,\"\")&IF(SUM(M:M)>1,\"s\",\"\")","v":"14 erreurs"},null,"Commentaire",null,"Nb lignes",null,"Taux",null,"Num lignes","ETP"]
[null,null,{"$f":"Traduction!B109&NUM_PARTENAIRE(C2)","v":"Fiche financière de l'entité n°1"},null,null,null,null,{"$f":"Traduction!B111","v":"N° de dossier"},null,{"$f":"VoletGeneral!K2&\"-\"&TEXT(NUM_PARTENAIRE(C2),\"0000\")","v":"ANR-17-MOPGA-00xx-0001"},null,null,null,null,104,"Equipement",{"$f":"MAX(C$29:C$31)","v":1},"Gest",null,29,"ETP Rech",{"$f":"SUMIF(S35:S37,0,H35:H37)+SUMIF(S35:S37,1,H35:H37)+SUMIF(S35:S37,2,H35:H37)+SUMIF(S39:S41,0,H39:H41)+SUMIF(S39:S41,1,H39:H41)+SUMIF(S39:S41,2,H39:H41)+SUMIF(S39:S41,3,H39:H41)+SUMIF(S39:S41,4,H39:H41)+SUMIF(S39:S41,5,H39:H41)+SUMIF(S39:S41,6,H39:H41)+SUMIF(S39:S41,7,H39:H41)","v":0},"Budget","CC","Aide"]
[null,null,"fdgsdfgdffsdfsdg",{"$f":"test_os()","v":""},null,null,null,{"$f":"Traduction!B112","v":"Acronyme"},null,{"$f":"IF(VoletGeneral!F10<>\"\",VoletGeneral!F10,\"\")","v":""},null,null,null,null,null,"Pers. Stat.",{"$f":"MAX(C$35:C$37)","v":1},"Env",null,35,"ETP Tot",{"$f":"SUM(H35:H38)+SUM(H39:H42)","v":0},"Equipement",{"$f":"SUM(I29:I31)","v":0},{"$f":"SUM(J29:J31)","v":0}]
[null,null,null,null,null,null,null,null,null,null,null,null,null,null,null,"Pers. Non stat.",{"$f":"MAX(C$39:C$41)","v":1},null,null,39,null,null,"Pers stat",{"$f":"SUM(I35:I37)","v":0}]
[null,null,{"$f":"Traduction!B113","v":"Identification de l'entité"},null,null,null,null,null,null,null,null,null,{"$f":"IF(L5<>\"\",1,\"\")","v":""},null,null,"Primes",{"$f":"MAX(C$43:C$45)","v":1},null,null,43,null,null,"CDI",{"$f":"SUMIF(F39:F41,\"*CDI*\",I39:I41)","v":0},{"$f":"SUMIF(F39:F41,\"*CDI*\",J39:J41)","v":0}]
[null,null,null,null,null,null,null,null,null,null,null,null,{"$f":"IF(L6<>\"\",1,\"\")","v":""},null,null,"Prest. ext.",{"$f":"MAX(C$50:C$52)","v":1},null,null,50,null,null,"CDD et autres",{"$f":"SUM(I39:I41)-X5","v":0},{"$f":"SUM(J39:J41)-Y5","v":0}]
[{"$f":"OR(E7&E8&E9&E11&E13&E14&E15&H15&K9&K10&E19&E20&E21&E22&E23&E24&K81&K83<>\"\",A29:A76)","v":true},null,null,{"$f":"Traduction!$B$114&IF(VoletGeneral!$B$6=\"En\",\"\",\" \")&\": \"","v":"Nom complet de l'entité : "},null,null,null,null,null,null,null,{"$f":"test_ERREUR(E7=\"\",Traduction!$B$4)","v":"Veuillez saisir le nom complet de l'entité"},1,null,null,"Missions",{"$f":"MAX(C$54:C$56)","v":1},null,null,54,null,null,"Primes et HC",{"$f":"SUM(I43:I45)","v":0},{"$f":"SUM(J43:J45)","v":0}]
[null,null,null,{"$f":"Traduction!$B$115&IF(VoletGeneral!$B$6=\"En\",\"\",\" \")&\": \"","v":"Acronyme ou code de l'entité : "},null,null,null,null,"Eligibilité aide :",{"$f":"OR(Parametres!D13=\"Oui\",COUNTIF(MenusDeroulants!C17:D17,E11)=0)","v":true},{"$f":"AND(J8,COUNTIF(MenusDeroulants!C7:D7,K9)>0)","v":true},{"$f":"test_ERREUR(E8=\"\",Traduction!$B$6)","v":"Veuillez saisir l'acronyme de l'entité"},1,null,null,"Autre dep.",{"$f":"MAX(C$58:C$60)","v":1},null,null,58,null,null,"PSE",{"$f":"SUM(I50:I52)","v":0},{"$f":"SUM(J50:J52)","v":0}]
[null,null,null,{"$f":"Traduction!$B$116&IF(VoletGeneral!$B$6=\"En\",\"\",\" \")&\": \"","v":"Numéro SIRET : "},null,null,null,null,null,{"$f":"Traduction!$B$122&IF(VoletGeneral!$B$6=\"En\",\"\",\" \")&\": \"","v":"L'entité est-il éligible à une aide : "},{"$f":"IF(J8,MenusDeroulants!$B$7,MenusDeroulants!$B$8)","v":"Oui"},{"$f":"test_ERREUR(AND(R11<>5,E9=\"\"),Traduction!$B$8,AND(R11<>5,NOT(test_siret(E9))),Traduction!$B$9,AND(COUNTIF(MenusDeroulants!$C$7:$D$8,K9)=0,J8),Traduction!$B$10)","v":"Veuillez saisir le n° SIRET de l'entité"},1,null,null,"Fact. Int.",{"$f":"MAX(C$64:C$66)","v":1},null,null,64,null,null,"Missions",{"$f":"SUM(I54:I56)","v":0},{"$f":"SUM(J54:J56)","v":0}]
[null,null,null,{"$f":"Traduction!$B$117&IF(VoletGeneral!$B$6=\"En\",\"\",\" \")&\": \"","v":"Catégorie de l'entité : "},{"$f":"IF(R10<>\"\",VLOOKUP(R10,Traduction!A107:B108,2,FALSE),\"\")","v":"Public"},null,null,null,null,{"$f":"Traduction!$B$123&IF(VoletGeneral!$B$6=\"En\",\"\",\" \")&\": \"","v":"TVA récupérée : "},{"$f":"IF(S10<>\"\",VLOOKUP(S10,MenusDeroulants!A7:B8,2,FALSE),\"\")","v":"Non"},{"$f":"test_ERREUR(COUNTIF(MenusDeroulants!$C$7:$D$8,K10)=0,Traduction!$B$10)","v":""},"",null,null,"Frais de struct",{"$f":"MAX(C$69:C$71)","v":1},2,1,69,null,null,"Autres dép. ext.",{"$f":"SUM(I58:I60)","v":0},{"$f":"SUM(J58:J60)","v":0}]
[null,null,null,{"$f":"Traduction!$B$118&IF(VoletGeneral!$B$6=\"En\",\"\",\" \")&\": \"","v":"Forme légale de l'entité : "},{"$f":"IF(R11<>\"\",VLOOKUP(R11,MenusDeroulants!A10:B18,2,FALSE),\"\")","v":""},null,null,null,{"$f":"test_ERREUR(OR(E11=MenusDeroulants!$C$27,E11=MenusDeroulants!$D$27,E11=MenusDeroulants!$C$18,E11=MenusDeroulants!$D$18),Traduction!B124&IF(VoletGeneral!$B$6=\"En\",\"\",\" \")&\": \")","v":"Si autre : "},null,null,{"$f":"test_ERREUR(E11=\"\",Traduction!$B$11,COUNTIF(MenusDeroulants!$C$10:$D$18,E11)=0,Traduction!$B$12,AND(I11<>\"\",J11=\"\"),Traduction!$B$13,AND(I11<>\"\",LEN(J11)<5),Traduction!$B$14)","v":"Veuillez choisir un type d'entité dans le menu déroulant"},1,null,null,"Autres fin",{"$f":"MAX(C$75:C$77)","v":1},null,null,75,null,null,"Fact. Int.",{"$f":"SUM(I64:I66)","v":0},{"$f":"SUM(J64:J66)","v":0}]
[]
[null,null,null,{"$f":"Traduction!$B$119&IF(VoletGeneral!$B$6=\"En\",\"\",\" \")&\": \"","v":"Rue : "},null,null,null,null,null,null,null,{"$f":"test_ERREUR(E13=\"\",Traduction!$B$15)","v":"Veuillez saisir une rue"},1,null,null,"Tutelles",{"$f":"MAX(C$100:C$102)","v":1},null,null,null,null,null,"Frais de gestion et de structure",{"$f":"K89","v":0},{"$f":"SUM(J69:J71,K90)","v":0}]
[null,null,null,{"$f":"Traduction!$B$120&IF(VoletGeneral!$B$6=\"En\",\"\",\" \")&\": \"","v":"Code postal : "},null,null,null,null,null,null,null,{"$f":"test_ERREUR(E14=\"\",Traduction!$B$16,OR(E14<1000,E14>99999),Traduction!$B$17)","v":"Veuillez saisir un code postal"},1,null,null,null,null,null,null,null,null,null,"Total",{"$f":"SUM(X3:X13)","v":0},{"$f":"SUM(Y3:Y13)","v":0}]
[null,null,null,{"$f":"Traduction!$B$121&IF(VoletGeneral!$B$6=\"En\",\"\",\" \")&\": \"","v":"Ville : "},null,null,null,null,{"$f":"Traduction!$B$125&IF(VoletGeneral!$B$6=\"En\",\"\",\" \")&\": \"","v":"Pays : "},{"$f":"IF(R15<>\"\",IF(COUNTIF(MenusDeroulants!A29:B278,R15)>0,VLOOKUP(R15,MenusDeroulants!A29:B278,2,FALSE),\"\"),\"\")","v":""},null,{"$f":"test_ERREUR(E15=\"\",Traduction!$B$18,J15=\"\",Traduction!$B$19,J15=\"-\",Traduction!$B$20,COUNTIF(MenusDeroulants!$C$29:$D$278,J15)=0,Traduction!$B$20)","v":"Veuillez saisir une ville"},1]
[null,null,null,null,null,null,null,null,null,null,null,null,"",null,null,null,null,null,null,null,null,null,"Autres soutiens fin.",{"$f":"SUM(J75:J77)","v":0},{"$f":"SUM(K75:K77)","v":0}]
[null,null,{"$f":"Traduction!B126","v":"Personne en charge de la direction de l'entité partenaire"},null,null,null,null,null,null,null,null,null,""]
[null,null,null,null,null,null,null,null,null,null,null,null,""]
[null,null,null,{"$f":"Traduction!B127&IF(VoletGeneral!$B$6=\"En\",\"\",\" \")&\": \"","v":"Genre : "},{"$f":"IF(R19<>\"\",VLOOKUP(R19,MenusDeroulants!A282:B283,2,FALSE),\"\")","v":""},null,null,null,null,null,null,{"$f":"test_ERREUR(E19=\"\",Traduction!$B$21,AND(R19<>0,R19<>1),Traduction!$B$22)","v":"Veuillez choisir un genre dans le menu déroulant"},1]
[null,null,null,{"$f":"Traduction!B128&IF(VoletGeneral!$B$6=\"En\",\"\",\" \")&\": \"","v":"Nom : "},null,null,null,null,null,null,null,{"$f":"test_ERREUR(E20=\"\",Traduction!$B$23)","v":"Veuillez saisir un nom"},1]
[null,null,null,{"$f":"Traduction!B129&IF(VoletGeneral!$B$6=\"En\",\"\",\" \")&\": \"","v":"Prénom : "},null,null,null,null,null,null,null,{"$f":"test_ERREUR(E21=\"\",Traduction!$B$24)","v":"Veuillez saisir un prénom"},1]
[null,null,null,{"$f":"Traduction!B130&IF(VoletGeneral!$B$6=\"En\",\"\",\" \")&\": \"","v":"Titre / Qualité : "},null,null,null,null,null,null,null,{"$f":"test_ERREUR(E22=\"\",Traduction!$B$25)","v":"Veuillez saisir un titre/qualité"},1]
[null,null,null,{"$f":"Traduction!B131&IF(VoletGeneral!$B$6=\"En\",\"\",\" \")&\": \"","v":"Courriel : "},null,null,null,null,null,null,null,{"$f":"test_ERREUR(E23=\"\",Traduction!$B$26,NOT(AND(ISNUMBER(SEARCH(\"@\",E23)),ISNUMBER(SEARCH(\".\",E23,2+SEARCH(\"@\",E23))))),Traduction!$B$27)","v":"Veuillez saisir un email"},1,"Lieu"]
[null,null,null,{"$f":"Traduction!B132&IF(VoletGeneral!$B$6=\"En\",\"\",\" \")&\": \"","v":"Téléphone : "},{"$f":"Traduction!B135&IF(VoletGeneral!$B$6=\"En\",\"\",\" \")&\": \"","v":"Indicatif : "},{"$f":"IF(R24<>\"\",IF(ISNUMBER(LEN(VLOOKUP(R24,MenusDeroulants!A$29:F$279,6,FALSE))),VLOOKUP(R24,MenusDeroulants!A$29:F$279,6,FALSE),\"Saisie invalide\"),\"\")","v":""},null,null,{"$f":"Traduction!B134&IF(VoletGeneral!$B$6=\"En\",\"\",\" \")&\": \"","v":"Numéro : "},null,null,{"$f":"test_ERREUR(F24=\"\",Traduction!$B$19,COUNTIF(MenusDeroulants!$F$29:$F$279,F24)=0,Traduction!$B$20)","v":"Veuillez choisir un pays dans le menu déroulant"}]
[null,null,null,null,null,null,null,null,null,null,null,null,""]
[null,null,{"$f":"Traduction!B136","v":"Budget détaillé du projet - Part de l'entité"},null,null,null,null,null,null,null,null,null,""]
[null,null,null,null,null,null,null,null,null,null,null,null,""]
[null,null,{"$f":"Traduction!$B$138&\" - \"&IF(OR($K$10=MenusDeroulants!$C$7,$K$10=MenusDeroulants!$D$7),Traduction!$B$139,IF($K$10=\"\",Traduction!$B$140,Traduction!$B$141))&\")\"","v":"Equipement (coût unitaire > 4000 € - indiquer le coût TTC)"},null,null,null,null,null,null,null,null,null,""]
[null,null,{"$f":"Traduction!$B$142","v":"Description"},null,{"$f":"IF(Parametres!$D$8=\"Oui\",\" \"&Traduction!$B$137,\"\")","v":""},{"$f":"Traduction!$B$145","v":"Coût unitaire"},{"$f":"Traduction!$B$146","v":"Quantité"},{"$f":"Traduction!$B$144","v":"% d'utilisation"},{"$f":"Traduction!$B$147","v":"Total"},{"$f":"Traduction!$B$148","v":"Part aidée"},{"$f":"Traduction!$B$149","v":"Apport"},null,""]
[{"$f":"OR(D30&F30&G30&H30<>\"\",IF(Parametres!$D$8<>\"Non\",X30<>\"\",FALSE),IF($K$8,J30<>\"\",FALSE))","v":false},"CM_Eq",{"$f":"index_tableau(C$29:C30)-1","v":1},null,{"$f":"IF(AND(Parametres!$D$8=\"Oui\",$X30<>\"\"),IF(Parametres!$D$36<>\"Non\",$X30,VLOOKUP($X30,Parametres!$H$39:$J$68,3,FALSE)),\"\")","v":""},null,null,null,{"$f":"multiplication(FALSE,F30:H30)","v":0},null,{"$f":"calcul_apport(I30,J30,$K$8)","v":0},{"$f":"IF(OR(A30,$Q$2>1),test_ERREUR(LEN(D30)<5,Traduction!$B$31,AND(Parametres!$D$8=\"Oui\",E30=\"\"),Traduction!$B$32,OR(NOT(ISNUMBER(F30)),F30<4000),Traduction!$B$39,OR(NOT(ISNUMBER(G30)),G30<=0),Traduction!$B$43,OR(NOT(ISNUMBER(H30)),H30<=0),Traduction!$B$41,H30>1,Traduction!$B$42,AND($K$8,OR(NOT(ISNUMBER(J30)),J30=\"\",J30<0)),Traduction!$B$44,AND($K$8,J30>I30),Traduction!$B$45),\"\")","v":""},""]
[null,null,{"$f":"Traduction!$B$158","v":"Total équipement"},null,null,null,null,null,{"$f":"somme_texte(\"# ### ### ##0 €;- # ### ### ##0 €;- €\",I29:I30)","v":" - €"},{"$f":"IF($K$8,somme_texte(\"# ### ### ##0 €;- # ### ### ##0 €;- €\",J29:J30),0)","v":" - €"},{"$f":"somme_texte(\"# ### ### ##0 €;- # ### ### ##0 €;- €\",K29:K30)","v":" - €"},null,""]
[]
[null,null,{"$f":"Traduction!$B$159","v":"Personnels"},null,null,null,null,null,null,null,null,null,""]
[null,null,{"$f":"Traduction!$B$160","v":"Salaires des personnels statutaires"},null,null,null,null,null,null,null,null,null,""]
[null,null,{"$f":"Traduction!$B$142","v":"Description"},null,{"$f":"IF(Parametres!$D$8=\"Oui\",\" \"&Traduction!$B$137,\"\")","v":""},{"$f":"Traduction!$B$151","v":"Statut"},{"$f":"Traduction!$B$152","v":"Salaire mensuel"},{"$f":"Traduction!$B$153","v":"H.mois"},{"$f":"Traduction!$B$154","v":"Total salaires"},{"$f":"Traduction!$B$148","v":"Part aidée"},{"$f":"Traduction!$B$149","v":"Apport"},null,""]
[{"$f":"OR(D36&F36&G36&H36<>\"\",IF(Parametres!$D$8<>\"Non\",X36<>\"\",FALSE),IF($K$8,J36<>\"\",FALSE))","v":false},"CM_PersStat",{"$f":"index_tableau(C$35:C36)-1","v":1},null,{"$f":"IF(AND(Parametres!$D$8=\"Oui\",$X36<>\"\"),IF(Parametres!$D$36<>\"Non\",$X36,VLOOKUP($X36,Parametres!$H$39:$J$68,3,FALSE)),\"\")","v":""},{"$f":"IF(S36<>\"\",VLOOKUP(S36,MenusDeroulants!$A$286:$B$296,2,FALSE),\"\")","v":""},null,null,{"$f":"multiplication(FALSE,G36:H36)","v":0},null,{"$f":"calcul_apport(I36,J36,AND($K$8,Parametres!$D$14<>\"Oui\"))","v":0},{"$f":"IF(OR(A36,$Q$3>1),test_ERREUR(LEN(D36)<5,Traduction!$B$31,AND(Parametres!$D$8=\"Oui\",E36=\"\"),Traduction!$B$32,COUNTIF(MenusDeroulants!$C$286:$D$296,F36)=0,Traduction!$B$46,OR(NOT(ISNUMBER(G36)),G36<=0),Traduction!$B$50,OR(NOT(ISNUMBER(H36)),H36<=0),Traduction!$B$51,AND($K$8,AND(Parametres!$D$14=\"Oui\",OR(NOT(ISNUMBER(J36)),J36=\"\",J36<0))),Traduction!$B$44,AND($K$8,J36>I36),Traduction!$B$52),\"\")","v":""},""]
[null,null,{"$f":"Traduction!$B$161","v":"Sous-total salaires des personnels statutaires"},null,null,null,null,null,{"$f":"somme_texte(\"# ### ### ##0 €;- # ### ### ##0 €;- €\",I35:I36)","v":" - €"},{"$f":"IF(AND($K$8,Parametres!$D$14<>\"Oui\"),somme_texte(\"# ### ### ##0 €;- # ### ### ##0 €;- €\",J35:J36),0)","v":" - €"},{"$f":"somme_texte(\"# ### ### ##0 €;- # ### ### ##0 €;- €\",K35:K36)","v":" - €"},null,""]
[null,null,{"$f":"Traduction!$B$162","v":"Salaires des personnels non statutaires"},null,null,null,null,null,null,null,null,null,""]
[null,null,{"$f":"Traduction!$B$142","v":"Description"},null,{"$f":"IF(Parametres!$D$8=\"Oui\",\" \"&Traduction!$B$137,\"\")","v":""},{"$f":"Traduction!$B$151","v":"Statut"},{"$f":"Traduction!$B$152","v":"Salaire mensuel"},{"$f":"Traduction!$B$153","v":"H.mois"},{"$f":"Traduction!$B$154","v":"Total salaires"},{"$f":"Traduction!$B$148","v":"Part aidée"},{"$f":"Traduction!$B$149","v":"Apport"},null,""]
[{"$f":"OR(D40&F40&G40&H40<>\"\",IF(Parametres!$D$8<>\"Non\",X40<>\"\",FALSE),IF($K$8,J40<>\"\",FALSE))","v":false},"CM_PersNonStat",{"$f":"index_tableau(C$39:C40)-1","v":1},null,{"$f":"IF(AND(Parametres!$D$8=\"Oui\",$X40<>\"\"),IF(Parametres!$D$36<>\"Non\",$X40,VLOOKUP($X40,Parametres!$H$39:$J$68,3,FALSE)),\"\")","v":""},{"$f":"IF(S40<>\"\",VLOOKUP(S40,MenusDeroulants!$A$298:$B$313,2,FALSE),\"\")","v":""},null,null,{"$f":"multiplication(FALSE,G40:H40)","v":0},null,{"$f":"calcul_apport(I40,J40,$K$8)","v":0},{"$f":"IF(OR(A40,$Q$4>1),test_ERREUR(LEN(D40)<5,Traduction!$B$31,AND(Parametres!$D$8=\"Oui\",E40=\"\"),Traduction!$B$32,COUNTIF(MenusDeroulants!$C$298:$D$313,F40)=0,Traduction!$B$46,OR(NOT(ISNUMBER(G40)),G40<=0),Traduction!$B$50,OR(NOT(ISNUMBER(H40)),H40<=0),Traduction!$B$51,AND($K$8,OR(NOT(ISNUMBER(J40)),J40=\"\",J40<0)),Traduction!$B$44,AND($K$8,J40>I40),Traduction!$B$52),\"\")","v":""},""]
[null,null,{"$f":"Traduction!$B$163","v":"Sous-total salaires des personnels non statutaires"},null,null,null,null,null,{"$f":"somme_texte(\"# ### ### ##0 €;- # ### ### ##0 €;- €\",I39:I40)","v":" - €"},{"$f":"IF($K$8,somme_texte(\"# ### ### ##0 €;- # ### ### ##0 €;- €\",J39:J40),0)","v":" - €"},{"$f":"somme_texte(\"# ### ### ##0 €;- # ### ### ##0 €;- €\",K39:K40)","v":" - €"},null,""]
[null,null,{"$f":"Traduction!$B$164","v":"Primes et heures complémentaires"},null,null,null,null,null,null,null,null,null,""]
[null,null,{"$f":"Traduction!$B$142","v":"Description"},null,null,{"$f":"IF(Parametres!$D$8=\"Oui\",\" \"&Traduction!$B$137,\"\")","v":""},{"$f":"Traduction!$B$157","v":"Coût moyen"},{"$f":"Traduction!$B$146","v":"Quantité"},{"$f":"Traduction!$B$147","v":"Total"},{"$f":"Traduction!$B$148","v":"Part aidée"},{"$f":"Traduction!$B$149","v":"Apport"},null,""]
[{"$f":"OR(D44&G44&H44<>\"\",IF(Parametres!$D$8<>\"Non\",X44<>\"\",FALSE),IF($K$8,J44<>\"\",FALSE))","v":false},"CM_PriHComp",{"$f":"index_tableau(C$43:C44)-1","v":1},null,null,{"$f":"IF(AND(Parametres!$D$8=\"Oui\",$X44<>\"\"),IF(Parametres!$D$36<>\"Non\",$X44,VLOOKUP($X44,Parametres!$H$39:$J$68,3,FALSE)),\"\")","v":""},null,null,{"$f":"multiplication(FALSE,G44:H44)","v":0},null,{"$f":"calcul_apport(I44,J44,$K$8)","v":0},{"$f":"IF(OR(A44,$Q$5>1),test_ERREUR(LEN(D44)<5,Traduction!$B$31,AND(Parametres!$D$8=\"Oui\",F44=\"\"),Traduction!$B$32,OR(NOT(ISNUMBER(G44)),G44<=0),Traduction!$B$54,OR(NOT(ISNUMBER(H44)),H44<=0),Traduction!$B$43,AND($K$8,OR(NOT(ISNUMBER(J44)),J44=\"\",J44<0)),Traduction!$B$44,AND($K$8,J44>I44),Traduction!$B$45),\"\")","v":""},""]
[null,null,{"$f":"Traduction!$B$165","v":"Sous-total primes et heures complémentaires"},null,null,null,null,null,{"$f":"somme_texte(\"# ### ### ##0 €;- # ### ### ##0 €;- €\",I43:I44)","v":" - €"},{"$f":"IF($K$8,somme_texte(\"# ### ### ##0 €;- # ### ### ##0 €;- €\",J43:J44),0)","v":" - €"},{"$f":"somme_texte(\"# ### ### ##0 €;- # ### ### ##0 €;- €\",K43:K44)","v":" - €"},null,""]
[null,null,{"$f":"Traduction!$B$166","v":"Total personnels"},null,null,null,null,null,{"$f":"somme_texte(\"# ### ### ##0 €;- # ### ### ##0 €;- €\",I35:I45)","v":" - €"},{"$f":"IF($K$8,somme_texte(\"# ### ### ##0 €;- # ### ### ##0 €;- €\",J35:J45),0)","v":" - €"},{"$f":"somme_texte(\"# ### ### ##0 €;- # ### ### ##0 €;- €\",K35:K45)","v":" - €"},null,""]
[]
[null,null,{"$f":"Traduction!$B$171&IF(OR($K$10=MenusDeroulants!$C$7,$K$10=MenusDeroulants!$D$7),Traduction!$B$139,IF($K$10=\"\",Traduction!$B$140,Traduction!$B$141))&\")\"","v":"Fonctionnement (indiquer le coût TTC)"},null,null,null,null,null,null,null,null,null,""]
[null,null,{"$f":"Traduction!$B$172","v":"Prestations de service externes"},null,null,null,null,null,null,null,null,null,""]
[null,null,{"$f":"Traduction!$B$142","v":"Description"},null,null,{"$f":"IF(Parametres!$D$8=\"Oui\",\" \"&Traduction!$B$137,\"\")","v":""},{"$f":"Traduction!$B$157","v":"Coût moyen"},{"$f":"Traduction!$B$146","v":"Quantité"},{"$f":"Traduction!$B$147","v":"Total"},{"$f":"Traduction!$B$148","v":"Part aidée"},{"$f":"Traduction!$B$149","v":"Apport"},null,""]
[{"$f":"OR(D51&G51&H51<>\"\",IF(Parametres!$D$8<>\"Non\",X51<>\"\",FALSE),IF($K$8,J51<>\"\",FALSE))","v":false},"CM_PSExt",{"$f":"index_tableau(C$50:C51)-1","v":1},null,null,{"$f":"IF(AND(Parametres!$D$8=\"Oui\",$X51<>\"\"),IF(Parametres!$D$36<>\"Non\",$X51,VLOOKUP($X51,Parametres!$H$39:$J$68,3,FALSE)),\"\")","v":""},null,null,{"$f":"multiplication(FALSE,G51:H51)","v":0},null,{"$f":"calcul_apport(I51,J51,$K$8)","v":0},{"$f":"IF(OR(A51,$Q$6>1),test_ERREUR(LEN(D51)<5,Traduction!$B$31,AND(Parametres!$D$8=\"Oui\",F51=\"\"),Traduction!$B$32,OR(NOT(ISNUMBER(G51)),G51<=0),Traduction!$B$54,OR(NOT(ISNUMBER(H51)),H51<=0),Traduction!$B$43,AND($K$8,OR(NOT(ISNUMBER(J51)),J51=\"\",J51<0)),Traduction!$B$44,AND($K$8,J51>I51),Traduction!$B$45),\"\")","v":""},""]
[null,null,{"$f":"Traduction!$B$173","v":"Sous-total prestations de service externes"},null,null,null,null,null,{"$f":"somme_texte(\"# ### ### ##0 €;- # ### ### ##0 €;- €\",I50:I51)","v":" - €"},{"$f":"IF($K$8,somme_texte(\"# ### ### ##0 €;- # ### ### ##0 €;- €\",J50:J51),0)","v":" - €"},{"$f":"somme_texte(\"# ### ### ##0 €;- # ### ### ##0 €;- €\",K50:K51)","v":" - €"},null,""]
[null,null,{"$f":"Traduction!$B$174","v":"Missions"},null,null,null,null,null,null,null,null,null,""]
[null,null,{"$f":"Traduction!$B$142","v":"Description"},null,null,{"$f":"IF(Parametres!$D$8=\"Oui\",\" \"&Traduction!$B$137,\"\")","v":""},{"$f":"Traduction!$B$157","v":"Coût moyen"},{"$f":"Traduction!$B$146","v":"Quantité"},{"$f":"Traduction!$B$147","v":"Total"},{"$f":"Traduction!$B$148","v":"Part aidée"},{"$f":"Traduction!$B$149","v":"Apport"},null,""]
[{"$f":"OR(D55&G55&H55<>\"\",IF(Parametres!$D$8<>\"Non\",X55<>\"\",FALSE),IF($K$8,J55<>\"\",FALSE))","v":false},"CM_Mis",{"$f":"index_tableau(C$54:C55)-1","v":1},null,null,{"$f":"IF(AND(Parametres!$D$8=\"Oui\",$X55<>\"\"),IF(Parametres!$D$36<>\"Non\",$X55,VLOOKUP($X55,Parametres!$H$39:$J$68,3,FALSE)),\"\")","v":""},null,null,{"$f":"multiplication(FALSE,G55:H55)","v":0},null,{"$f":"calcul_apport(I55,J55,$K$8)","v":0},{"$f":"IF(OR(A55,$Q$7>1),test_ERREUR(LEN(D55)<5,Traduction!$B$31,AND(Parametres!$D$8=\"Oui\",F55=\"\"),Traduction!$B$32,OR(NOT(ISNUMBER(G55)),G55<=0),Traduction!$B$54,OR(NOT(ISNUMBER(H55)),H55<=0),Traduction!$B$43,AND($K$8,OR(NOT(ISNUMBER(J55)),J55=\"\",J55<0)),Traduction!$B$44,AND($K$8,J55>I55),Traduction!$B$45),\"\")","v":""},""]
[null,null,{"$f":"Traduction!$B$175","v":"Sous-total missions"},null,null,null,null,null,{"$f":"somme_texte(\"# ### ### ##0 €;- # ### ### ##0 €;- €\",I54:I55)","v":" - €"},{"$f":"IF($K$8,somme_texte(\"# ### ### ##0 €;- # ### ### ##0 €;- €\",J54:J55),0)","v":" - €"},{"$f":"somme_texte(\"# ### ### ##0 €;- # ### ### ##0 €;- €\",K54:K55)","v":" - €"},null,""]
[null,null,{"$f":"Traduction!$B$176","v":"Autres dépenses externes"},null,null,null,null,null,null,null,null,null,""]
[null,null,{"$f":"Traduction!$B$142","v":"Description"},null,null,{"$f":"IF(Parametres!$D$8=\"Oui\",\" \"&Traduction!$B$137,\"\")","v":""},{"$f":"Traduction!$B$157","v":"Coût moyen"},{"$f":"Traduction!$B$146","v":"Quantité"},{"$f":"Traduction!$B$147","v":"Total"},{"$f":"Traduction!$B$148","v":"Part aidée"},{"$f":"Traduction!$B$149","v":"Apport"},null,""]
[{"$f":"OR(D59&G59&H59<>\"\",IF(Parametres!$D$8<>\"Non\",X59<>\"\",FALSE),IF($K$8,J59<>\"\",FALSE))","v":false},"CM_AutDepExt",{"$f":"index_tableau(C$58:C59)-1","v":1},null,null,{"$f":"IF(AND(Parametres!$D$8=\"Oui\",$X59<>\"\"),IF(Parametres!$D$36<>\"Non\",$X59,VLOOKUP($X59,Parametres!$H$39:$J$68,3,FALSE)),\"\")","v":""},null,null,{"$f":"multiplication(FALSE,G59:H59)","v":0},null,{"$f":"calcul_apport(I59,J59,$K$8)","v":0},{"$f":"IF(OR(A59,$Q$8>1),test_ERREUR(LEN(D59)<5,Traduction!$B$31,AND(Parametres!$D$8=\"Oui\",F59=\"\"),Traduction!$B$32,OR(NOT(ISNUMBER(G59)),G59<=0),Traduction!$B$54,OR(NOT(ISNUMBER(H59)),H59<=0),Traduction!$B$43,AND($K$8,OR(NOT(ISNUMBER(J59)),J59=\"\",J59<0)),Traduction!$B$44,AND($K$8,J59>I59),Traduction!$B$45),\"\")","v":""},""]
[null,null,{"$f":"Traduction!$B$177","v":"Sous-total autres dépenses externes"},null,null,null,null,null,{"$f":"somme_texte(\"# ### ### ##0 €;- # ### ### ##0 €;- €\",I58:I59)","v":" - €"},{"$f":"IF($K$8,somme_texte(\"# ### ### ##0 €;- # ### ### ##0 €;- €\",J58:J59),0)","v":" - €"},{"$f":"somme_texte(\"# ### ### ##0 €;- # ### ### ##0 €;- €\",K58:K59)","v":" - €"},null,""]
[null,null,{"$f":"Traduction!$B$178","v":"Total fonctionnement"},null,null,null,null,null,{"$f":"somme_texte(\"# ### ### ##0 €;- # ### ### ##0 €;- €\",I50:I60)","v":" - €"},{"$f":"IF($K$8,somme_texte(\"# ### ### ##0 €;- # ### ### ##0 €;- €\",J50:J60),0)","v":" - €"},{"$f":"somme_texte(\"# ### ### ##0 €;- # ### ### ##0 €;- €\",K50:K60)","v":" - €"},null,""]
[]
[null,null,{"$f":"Traduction!$B$179","v":"Facturation interne"},null,null,null,null,null,null,null,null,null,""]
[null,null,{"$f":"Traduction!$B$142","v":"Description"},null,null,{"$f":"IF(Parametres!$D$8=\"Oui\",\" \"&Traduction!$B$137,\"\")","v":""},{"$f":"Traduction!$B$157","v":"Coût moyen"},{"$f":"Traduction!$B$146","v":"Quantité"},{"$f":"Traduction!$B$147","v":"Total"},{"$f":"Traduction!$B$148","v":"Part aidée"},{"$f":"Traduction!$B$149","v":"Apport"},null,""]
[{"$f":"OR(D65&G65&H65<>\"\",IF(Parametres!$D$8<>\"Non\",X65<>\"\",FALSE),IF($K$8,J65<>\"\",FALSE))","v":false},"CM_FactInt",{"$f":"index_tableau(C$64:C65)-1","v":1},null,null,{"$f":"IF(AND(Parametres!$D$8=\"Oui\",$X65<>\"\"),IF(Parametres!$D$36<>\"Non\",$X65,VLOOKUP($X65,Parametres!$H$39:$J$68,3,FALSE)),\"\")","v":""},null,null,{"$f":"multiplication(FALSE,G65:H65)","v":0},null,{"$f":"calcul_apport(I65,J65,$K$8)","v":0},{"$f":"IF(OR(A65,$Q$9>1),test_ERREUR(LEN(D65)<5,Traduction!$B$31,AND(Parametres!$D$8=\"Oui\",F65=\"\"),Traduction!$B$32,OR(NOT(ISNUMBER(G65)),G65<=0),Traduction!$B$54,OR(NOT(ISNUMBER(H65)),H65<=0),Traduction!$B$43,AND($K$8,OR(NOT(ISNUMBER(J65)),J65=\"\",J65<0)),Traduction!$B$44,AND($K$8,J65>I65),Traduction!$B$45),\"\")","v":""},""]
[null,null,{"$f":"Traduction!$B$180","v":"Total facturation interne"},null,null,null,null,null,{"$f":"somme_texte(\"# ### ### ##0 €;- # ### ### ##0 €;- €\",I64:I65)","v":" - €"},{"$f":"IF($K$8,somme_texte(\"# ### ### ##0 €;- # ### ### ##0 €;- €\",J64:J65),0)","v":" - €"},{"$f":"somme_texte(\"# ### ### ##0 €;- # ### ### ##0 €;- €\",K64:K65)","v":" - €"},null,""]
[]
[null,null,{"$f":"Traduction!$B$181&IF(AND(Parametres!D11=\"Oui\",Parametres!G11=\"Oui\"),\" (max. \"&Parametres!G12*100&\"%)\",\"\")","v":"Frais de structure"},null,null,null,null,null,null,null,null,null,""]
[null,null,{"$f":"Traduction!$B$142","v":"Description"},null,null,null,null,{"$f":"IF(Parametres!$D$8=\"Oui\",\" \"&Traduction!$B$137,\"\")","v":""},{"$f":"Traduction!$B$147","v":"Total"},{"$f":"Traduction!$B$148","v":"Part aidée"},{"$f":"Traduction!$B$149","v":"Apport"},null,""]
[{"$f":"OR(D70&G70&H70<>\"\",IF(Parametres!$D$8<>\"Non\",X70<>\"\",FALSE),IF($K$8,J70<>\"\",FALSE))","v":false},"CM_FraisStruct",{"$f":"index_tableau(C$69:C70)-1","v":1},null,null,null,null,{"$f":"IF(AND(Parametres!$D$8=\"Oui\",$X70<>\"\"),$X70,\"\")","v":""},null,null,{"$f":"calcul_apport(I70,J70,AND($K$8,Parametres!$D$11=\"Oui\",Parametres!$D$12=\"Oui\"))","v":0},{"$f":"IF(Parametres!$D$11=\"Oui\",IF(OR(A70,$Q$10>1),test_ERREUR(LEN(D70)<5,Traduction!$B$31,AND(Parametres!$D$8=\"Oui\",H70=\"\"),Traduction!$B$32,OR(NOT(ISNUMBER(I70)),I70<=0),Traduction!$B$56,AND($K$8,Parametres!$D$12=\"Oui\",OR(NOT(ISNUMBER(J70)),J70<0)),Traduction!$B$44,AND($K$8,Parametres!$D$12=\"Oui\",J70>I70),Traduction!$B$45),\"\"),\"\")","v":""},{"$f":"IF(L70<>\"\",1,\"\")","v":""}]
[null,null,{"$f":"Traduction!$B$182","v":"Total frais de structure"},null,null,null,null,null,{"$f":"IF(Parametres!$D$11=\"Oui\",somme_texte(\"# ### ### ##0 €;- # ### ### ##0 €;- €\",I69:I70),0)","v":0},{"$f":"IF(Parametres!$D$11=\"Oui\",IF(Parametres!$D$12=\"Oui\",IF($K$8,somme_texte(\"# ### ### ##0 €;- # ### ### ##0 €;- €\",J69:J70),0),0),0)","v":0},{"$f":"IF(Parametres!$D$11=\"Oui\",somme_texte(\"# ### ### ##0 €;- # ### ### ##0 €;- €\",K69:K70),0)","v":0},null,""]
[null,null,null,null,null,null,null,null,null,null,null,null,""]
[null,null,{"$f":"Traduction!$B$210","v":"Autres soutiens financiers sollicités ou obtenus pour le projet"},null,null,null,null,null,null,null,null,null,""]
[]
[null,null,{"$f":"Traduction!$B$211","v":"Noms des financeurs et objet du financement"},null,null,null,null,null,null,{"$f":"Traduction!$B$212","v":"Sollicité"},{"$f":"Traduction!$B$213","v":"Obtenu"},null,{"$f":"IF(L75<>\"\",1,\"\")","v":""}]
[{"$f":"D76&J76&K76<>\"\"","v":false},"AutFin",{"$f":"index_tableau(C$75:C76)-1","v":1},null,null,null,null,null,null,null,null,{"$f":"IF(OR(A76,$Q$11>1),test_ERREUR(LEN(D76)<5,Traduction!$B$58,OR(NOT(ISNUMBER(J76)),J76<0),Traduction!$B$59,OR(NOT(ISNUMBER(K76)),K76<0),Traduction!$B$60),\"\")","v":""},{"$f":"IF(L76<>\"\",1,\"\")","v":""}]
[null,null,{"$f":"Traduction!$B$214","v":"Total autres financements"},null,null,null,null,null,null,{"$f":"somme_texte(\"# ### ### ##0 €;- # ### ### ##0 €;- €\",J75:J76)","v":" - €"},{"$f":"somme_texte(\"# ### ### ##0 €;- # ### ### ##0 €;- €\",K75:K76)","v":" - €"},null,{"$f":"IF(L77<>\"\",1,\"\")","v":""}]
[]
[null,null,{"$f":"Traduction!$B$183","v":"Synthèse de la demande financière"},null,null,null,null,null,null,null,null,null,{"$f":"IF(L79<>\"\",1,\"\")","v":""}]
["Taux max",null,null,null,null,null,null,null,null,null,null,null,""]
[{"$f":"Parametres!$D$15","v":0.08},null,{"$f":"Traduction!B184&\" \"&Parametres!$D$15*100&\"%)\"","v":"Taux des frais de gestion (max 8%)"},null,null,null,null,null,null,null,{"$f":"IF($S$2<>\"\",$S$2/100,\"\")","v":""},{"$f":"test_ERREUR(OR(NOT(ISNUMBER(K81)),K81<0),Traduction!$B$66,K81>Parametres!$D$15,Traduction!$B$67&\" \"&Parametres!$D$15*100&\"%\")","v":"Le taux doit être positif ou nul"},1]
[null,null,{"$f":"Traduction!B185","v":"Taux des frais de structure"},null,null,null,null,null,null,null,{"$f":"IF(Parametres!$D$11=\"Oui\",IF($K$88<>0,$K$91/$K$88,\"-%\"),0)","v":0},null,""]
[{"$f":"IF(AND(Parametres!$G$11=\"Oui\",Parametres!$G$12=\"Oui\"),Parametres!$G$13,\"\")","v":""},null,{"$f":"Traduction!B186&IF(AND(Parametres!$G$11=\"Oui\",Parametres!$G$12=\"Oui\"),\" (max \"&Parametres!$G$13*100&\"%)\",\"\")","v":"Taux d'environnement assis sur les dépenses de personnels"},null,null,null,null,null,null,null,{"$f":"IF(Parametres!$G$11<>\"Oui\",0,IF($S$3<>\"\",$S$3/100,\"\"))","v":""},{"$f":"test_ERREUR(OR(NOT(ISNUMBER(K83)),K83<0),Traduction!$B$66,AND(Parametres!$G$11=\"Oui\",Parametres!$G$12=\"Oui\",K83>Parametres!$G$13),Traduction!$B$67&\" \"&Parametres!$G$13*100&\"%\")","v":"Le taux doit être positif ou nul"},1]
[null,null,null,null,null,null,null,null,null,null,null,{"$f":"IF(K81<>\"\",IF(ISNUMBER(K81),IF(K81<0,\"Le taux doit être positif ou nul.\",IF(K81>8,\"Le taux ne peut être supérieur à 8%.\",\"\")),\"Le taux doit avoir une valeur numérique.\"),\"\")","v":""},""]
[null,null,{"$f":"Traduction!B187","v":"Taux d'aide demandée"},null,null,null,null,null,null,null,{"$f":"IF($K$93<>0,$K$94/$K$93,\"-%\")","v":"-%"},{"$f":"IF(AND(ISNUMBER(K85),K85>100),Traduction!$B$69,\"\")","v":""},""]
[null,null,null,null,null,null,null,null,null,null,null,null,""]
[null,null,{"$f":"Traduction!$B$142","v":"Description"},null,null,null,null,null,null,null,{"$f":"Traduction!$B$147","v":"Total"},null,""]
[null,null,{"$f":"Traduction!B189","v":"Total hors frais de gestion et frais de structure"},null,null,null,null,null,null,null,{"$f":"SUM($I$29:$I$66)","v":0},null,""]
[null,null,{"$f":"Traduction!B190","v":"Frais de gestion et de structure"},null,null,null,null,null,null,null,{"$f":"SUM($K$90:$K$92)","v":0},null,""]
[null,null,{"$f":"Traduction!B191","v":"- dont de gestion"},null,null,null,null,null,null,null,{"$f":"IF($L$81=\"\",SUM($J$29:$J$66)*$K$81,0)","v":0},null,""]
[null,null,{"$f":"Traduction!B192","v":"- dont de structure"},null,null,null,null,null,null,null,{"$f":"IF(Parametres!$G$11<>\"Oui\",0,IF(Parametres!$D$11=\"Oui\",SUM($I$69:$I$71),0))","v":0},null,""]
[null,null,{"$f":"Traduction!B193","v":"- dont d'environnement"},null,null,null,null,null,null,null,{"$f":"IF($L$83=\"\",SUM($I$35:$I$41)*$K$83,0)","v":0},null,""]
[null,null,{"$f":"Traduction!B194","v":"Total coûts complets"},null,null,null,null,null,null,null,{"$f":"SUM($K$88:$K$89)","v":0},null,""]
[null,null,{"$f":"Traduction!B195","v":"- dont aide demandée"},null,null,null,null,null,null,null,{"$f":"IF($K$8,SUM($J$29:$J$66)+K90+IF(AND(Parametres!$D$11=\"Oui\",Parametres!$D$12=\"Oui\"),SUM($J$69:$J$71),0),0)","v":0},null,""]
[null,null,{"$f":"Traduction!B196","v":"- dont apport"},null,null,null,null,null,null,null,{"$f":"$K$93-$K$94","v":0},null,""]
[null,null,null,null,null,null,null,null,null,null,null,null,""]
[null,null,{"$f":"Traduction!$B$289","v":"Le cas échéant, liste des établissements tutelles"},null,null,null,null,null,null,null,null,null,{"$f":"IF(L97<>\"\",1,\"\")","v":""}]
[]
[null,null,{"$f":"Traduction!$B$290","v":"Les informations sur les tutelles sont à remplir dans le volet général (liste des établissements partenaires).  La tutelle principale devra apparaître en n° 1."}]
[null,null,"#",{"$f":"Traduction!$B$287","v":"Nom complet de l'institution"},{"$f":"Traduction!$B$288","v":"Acronyme"},{"$f":"Traduction!$B$119","v":"Rue"},null,null,{"$f":"Traduction!$B$120","v":"Code postal"},{"$f":"Traduction!$B$121","v":"Ville"},null,null,{"$f":"IF(L100<>\"\",1,\"\")","v":""}]
[{"$f":"OR(D101&E101&F101&G101<>\"\",IF($K$8,I101<>\"\",FALSE))","v":false},null,{"$f":"index_tableau(C$100:C101)-1","v":1},{"$f":"IF(ISNUMBER($B101),IF(COUNTIF(VoletGeneral!$B$106:$B$109,$B101)>0,VLOOKUP($B101,VoletGeneral!$B$106:$L$109,3,FALSE),\"\"),\"\")","v":""},{"$f":"IF(ISNUMBER($B101),IF(COUNTIF(VoletGeneral!$B$106:$B$109,$B101)>0,VLOOKUP($B101,VoletGeneral!$B$106:$L$109,5,FALSE),\"\"),\"\")","v":""},{"$f":"IF(ISNUMBER($B101),IF(COUNTIF(VoletGeneral!$B$106:$B$109,$B101)>0,VLOOKUP($B101,VoletGeneral!$B$106:$L$109,6,FALSE),\"\"),\"\")","v":""},null,null,{"$f":"IF(ISNUMBER($B101),IF(COUNTIF(VoletGeneral!$B$106:$B$109,$B101)>0,VLOOKUP($B101,VoletGeneral!$B$106:$L$109,8,FALSE),\"\"),\"\")","v":""},{"$f":"IF(ISNUMBER($B101),IF(COUNTIF(VoletGeneral!$B$106:$B$109,$B101)>0,VLOOKUP($B101,VoletGeneral!$B$106:$L$109,9,FALSE),\"\"),\"\")","v":""},null,null,{"$f":"IF(L101<>\"\",1,\"\")","v":""}]
[]
[null,null,{"$f":"Traduction!$B$215","v":"Commentaires (le cas échéant, 27 lignes max)"},null,null,null,null,null,null,null,null,null,""]
[null,null,null,null,null,null,null,null,null,null,null,null,""]
[null,null,{"$f":"IF($N$2<>\"\",$N$2,\"\")","v":""},null,null,null,null,null,null,null,null,null,""]
[null,null,null,null,null,null,null,null,null,null,null,null,""]
[null,null,{"$f":"Traduction!$B$216","v":"Les informations personnelles transmises dans ces documents sont obligatoires et seront conservées en fichiers par l'ANR pour assurer la conduite opérationnelle"},null,null,null,null,null,null,null,null,null,""]
[null,null,{"$f":"Traduction!$B$217","v":"de l'évaluation et l'administration des dossiers."},null,null,null,null,null,null,null,null,null,""]
[null,null,{"$f":"Traduction!$B$218","v":"Conformément à la loi n° 78-17 du 6 janvier 1978 modifiée, relative à l'Informatique, aux Fichiers et aux Libertés, les personnes concernées disposent d'un droit "},null,null,null,null,null,null,null,null,null,""]
[null,null,{"$f":"Traduction!$B$219","v":"d'accès et de rectification des données personnelles les concernant. Les personnes concernées peuvent exercer ce droit en s'adressant à l'ANR  (voir coordonnées"},null,null,null,null,null,null,null,null,null,""]
[null,null,{"$f":"Traduction!$B$220","v":"dans le texte de l’appel à projets)."},null,null,null,null,null,null,null,null,null,""]
[null,null,null,null,null,null,null,null,null,null,null,null,""]

{"sheet":"Parametres","index":6,"n_rows":68,"n_cols":13,"rows_kept":68,"cut":false,"hidden":true,"merged":[[17,4,18,4],[14,4,15,4]]}
["Général"]
[null,"Année de l'appel à projet :",null,2017,"Le type d'établissement coordinateur est-il fixé dans l'AAP ?",null,"Oui"]
[null,"Nom de l'appel à projets :",null,"Make our planet great again","Si vous choisissez oui, veuillez créer l'entité 1 avant de choisir \"Oui\".",null,{"$f":"IF(AND(VoletGeneral!K4=0,G2=\"Oui\"),\"Erreur, veuillez d'abord créer une entité 1\",\"\")","v":""}]
[null,"Code de l'appel à projet :",null,"MOPGA","Si oui, son type actuel est :",null,{"$f":"'Ent1'!E10","v":"Public"},2,{"$f":"G16","v":"Public"}]
[null,"La durée du projet est-elle fixe ?",null,"Non","Un échéancier des besoins en aide est-il à fournir ?",null,"Oui",null,{"$f":"G19","v":"Entreprise"}]
[null,{"$f":"IF(D5=\"Oui\",\"Durée du projet :\",\"Durée du projet minimale :\")","v":"Durée du projet minimale :"},null,36,"Si vous choisissez non, veuillez masquer l'onglet \"Echéancier\" (N.B. ne SOURTOUT PAS le supprimer)."]
[null,{"$f":"IF(D5=\"Oui\",\"\",\"Durèe du projet maximale :\")","v":"Durèe du projet maximale :"},null,60]
[null,"Y a-t-il des workpackages",null,"Non"]
[null,"Les partenaires privés sont-ils autorisés ?",null,"Oui"]
["Partenaires publics"]
[null,"Les partenaires publics peuvent-ils déclarer des frais de structure ?",null,"Non","Les taux d'environnement (assis sur les dépenses de personnels) sont-ils autorisés ?",null,"Oui"]
[null,"Les partenaires publics peuvent-ils recevoir une aide au titre des frais de structure ?",null,"Non","Si oui, y a-t-il un taux maximum ?",null,"Non"]
[null,"Les partenaires publics étrangers sont-ils éligibles à une aide ?",null,"Non","Si oui, veuillez saisir la valeur du taux maximum.",null,7.0000000000000007E-2]
[null,"Les salaires des personnels stratutaires son-ils éligibles à une aide ?",null,"Non",null,"Nom","Acronyme"]
[null,"Taux de frais de gestion maximum",null,0.08,"Partenaire de type public","Public","Public","Anglais",null,"Entities at marginal costs",null,null,"Ent. @ marg. costs"]
["Partenaires privés",null,null,null,null,"Public","Public","Français",null,"Entités aux coûts marginaux",null,null,"Ent. @ coûts marg."]
[null,"Les partenaires privés sont-ils éligibles à une aide ?",null,"Non",null,"Nom","Acronyme"]
[null,"Les partenaires privés étrangers sont-ils éligibles à une aide ?",null,"Non","Partenaire de type privé","Company (EU definition)","Company","Anglais",null,"Entities at total costs",null,null,"Ent. @ tot. costs"]
[null,"Nombre de finalités (max = 3, 1 si pas de finalité) ?",null,1,null,"Entreprise (au sens de l'UE)","Entreprise","Français",null,"Entités aux coûts complets",null,null,"Ent. @ coûts comp."]
[null,"Intitulé des finalités en français",null,"Autre","Faisabilité","R&D","R&D 2",0,{"$f":"IF(VoletGeneral!$B$6=\"en\",D21,D20)","v":"Autre"}]
[null,"Intitulé des finalités en anglais (l'orthographe doit être différente du français)",null,"Other","Feasibility","R & D","R & D",1,{"$f":"IF(VoletGeneral!$B$6=\"en\",E21,E20)","v":"Faisabilité"}]
[null,"Taux d'aide maxumum",null,null,null,null,null,2,{"$f":"IF(VoletGeneral!$B$6=\"en\",F21,F20)","v":"R&D"}]
[0,{"$f":"MenusDeroulants!C326","v":"Micro SME (< 10 employees)"},{"$f":"MenusDeroulants!D326","v":"Micro PME (< 10 salariés)"},0.5,0.7,0.45,0.45,3,{"$f":"IF(VoletGeneral!$B$6=\"en\",G21,G20)","v":"R&D 2"}]
[1,{"$f":"MenusDeroulants!C327","v":"Small SME (10 ≤ employees < 50)"},{"$f":"MenusDeroulants!D327","v":"Petite PME (10 ≤ salariés < 50)"},0.5,0.7,0.45,0.45]
[2,{"$f":"MenusDeroulants!C328","v":"Medium SME (50 ≤ employees < 250)"},{"$f":"MenusDeroulants!D328","v":"Moyenne PME (50 ≤ salariés < 250)"},0.5,0.7,0.45,0.45]
[3,{"$f":"MenusDeroulants!C329","v":"Large company"},{"$f":"MenusDeroulants!D329","v":"Grande entreprise (> 250 salariés)"},0.15,0.7,0.45,0.45]
[4]
[5]
[6]
[7]
[null,"Taux des frais de structure",null,"Taux","Autorisés"]
[null,"Assis sur les dépenses totales de personnels",null,0.68,"Non"]
[null,"Assis sur les dépenses de personnels au titre de l'encadrement/assistance",null,0.2,"Non"]
[null,"Assis sur les autres dépenses",null,7.0000000000000007E-2,"Non"]
["Workpackages"]
[null,"La liste des workpackages est-elle libre ?",null,"Non"]
[null,"Nombre de workpackages :",null,{"$f":"MAX(1,MAX(C39:C68))","v":2}]
[null,"Liste des workpackages :",null,"Nom complet des workpackages ","Version courte (7 caractères max)"]
[null,null,{"$f":"IF(SUBSTITUTE(D39,\" \",\"\")<>\"\",C37+1,C37)","v":0},null,null,null,null,0,{"$f":"IF(COUNTIF(C$39:C$68,H39+1)>0,H39+1&\" - \"&VLOOKUP(H39+1,C$39:D$68,2,FALSE),\"\")","v":"1 - Test 1"},{"$f":"IF(COUNTIF(C$39:C$68,H39+1)>0,IF(LEN(VLOOKUP(H39+1,C$39:E$68,3,FALSE))>7,LEFT(VLOOKUP(H39+1,C$39:E$68,3,FALSE),6)&\".\",VLOOKUP(H39+1,C$39:E$68,3,FALSE)),\"\")","v":"T1"}]
[null,null,{"$f":"IF(SUBSTITUTE(D40,\" \",\"\")<>\"\",C39+1,C39)","v":1},"Test 1","T1",null,null,1,"2 - Test 2",{"$f":"IF(COUNTIF(C$39:C$68,H40+1)>0,IF(LEN(VLOOKUP(H40+1,C$39:E$68,3,FALSE))>7,LEFT(VLOOKUP(H40+1,C$39:E$68,3,FALSE),6)&\".\",VLOOKUP(H40+1,C$39:E$68,3,FALSE)),\"\")","v":"T2"}]
[null,null,2,"Test 2","T2",null,null,2,"",""]
[null,null,2,null,null,null,null,3,"",""]
[null,null,2,null,null,null,null,4,"",""]
[null,null,2,null,null,null,null,5,"",""]
[null,null,2,null,null,null,null,6,"",""]
[null,null,2,null,null,null,null,7,"",""]
[null,null,2,null,null,null,null,8,"",""]
[null,null,2,null,null,null,null,9,"",""]
[null,null,2,null,null,null,null,10,"",""]
[null,null,2,null,null,null,null,11,"",""]
[null,null,2,null,null,null,null,12,"",""]
[null,null,2,null,null,null,null,13,"",""]
[null,null,2,null,null,null,null,14,"",""]
[null,null,2,null,null,null,null,15,"",""]
[null,null,2,null,null,null,null,16,"",""]
[null,null,2,null,null,null,null,17,"",""]
[null,null,2,null,null,null,null,18,"",""]
[null,null,2,null,null,null,null,19,"",""]
[null,null,2,null,null,null,null,20,"",""]
[null,null,2,null,null,null,null,21,"",""]
[null,null,2,null,null,null,null,22,"",""]
[null,null,2,null,null,null,null,23,"",""]
[null,null,2,null,null,null,null,24,"",""]
[null,null,2,null,null,null,null,25,"",""]
[null,null,2,null,null,null,null,26,"",""]
[null,null,2,null,null,null,null,27,"",""]
[null,null,2,null,null,null,null,28,"",""]
[null,null,2,null,null,null,null,29,"",""]

{"sheet":"Traduction","index":7,"n_rows":835,"n_cols":5,"rows_kept":835,"cut":false,"hidden":true,"merged":[]}
[null,"Traduction","Anglais","Français"]
["Erreurs",{"$f":"IF(C2<>\"\",IF(VoletGeneral!$B$6<>\"en\",D2,C2),\"\")","v":"Choisir\nla langue"},"Choose a language",{"$f":"\"Choisir\"&CHAR(10)&\"la langue\"","v":"Choisir\nla langue"}]
["Toutes entités",{"$f":"IF(C3<>\"\",IF(VoletGeneral!$B$6<>\"en\",D3,C3),\"\")","v":""}]
[null,{"$f":"IF(C4<>\"\",IF(VoletGeneral!$B$6<>\"en\",D4,C4),\"\")","v":"Veuillez saisir le nom complet de l'entité"},"Please enter the entity full name","Veuillez saisir le nom complet de l'entité"]
[null,{"$f":"IF(C5<>\"\",IF(VoletGeneral!$B$6<>\"en\",D5,C5),\"\")","v":"Le nom complet doit comporter un minimum de 5 caractères"},"The full name must be composed of a minimum of 5 characters","Le nom complet doit comporter un minimum de 5 caractères"]
[null,{"$f":"IF(C6<>\"\",IF(VoletGeneral!$B$6<>\"en\",D6,C6),\"\")","v":"Veuillez saisir l'acronyme de l'entité"},"Please enter the entity acronym","Veuillez saisir l'acronyme de l'entité"]
[null,{"$f":"IF(C7<>\"\",IF(VoletGeneral!$B$6<>\"en\",D7,C7),\"\")","v":"L'acronyme doit comporter un minimum de 2 caractères"},"The acronym must be composed of a minimum of 2 characters","L'acronyme doit comporter un minimum de 2 caractères"]
[null,{"$f":"IF(C8<>\"\",IF(VoletGeneral!$B$6<>\"en\",D8,C8),\"\")","v":"Veuillez saisir le n° SIRET de l'entité"},"Please enter the entity SIRET number","Veuillez saisir le n° SIRET de l'entité"]
[null,{"$f":"IF(C9<>\"\",IF(VoletGeneral!$B$6<>\"en\",D9,C9),\"\")","v":"Le n° SIRET saisi est non valide"},"The entered SIRET numberis not valid","Le n° SIRET saisi est non valide"]
[null,{"$f":"IF(C10<>\"\",IF(VoletGeneral!$B$6<>\"en\",D10,C10),\"\")","v":"Veuillez choisir oui ou non"},"Please select yes or no","Veuillez choisir oui ou non"]
[null,{"$f":"IF(C11<>\"\",IF(VoletGeneral!$B$6<>\"en\",D11,C11),\"\")","v":"Veuillez choisir un type d'entité dans le menu déroulant"},"Please select an entity type from the drop down menu","Veuillez choisir un type d'entité dans le menu déroulant"]
[null,{"$f":"IF(C12<>\"\",IF(VoletGeneral!$B$6<>\"en\",D12,C12),\"\")","v":"Le type d'entité saisi n'est pas valide"},"The entered entity type is not valid","Le type d'entité saisi n'est pas valide"]
[null,{"$f":"IF(C13<>\"\",IF(VoletGeneral!$B$6<>\"en\",D13,C13),\"\")","v":"Veuillez préciser le type de entité"},"Please specify the type of entity","Veuillez préciser le type de entité"]
[null,{"$f":"IF(C14<>\"\",IF(VoletGeneral!$B$6<>\"en\",D14,C14),\"\")","v":"La précision doit comporter un minimum de 5 caractères"},"The precision must be composed of a minimum of 5 characters","La précision doit comporter un minimum de 5 caractères"]
[null,{"$f":"IF(C15<>\"\",IF(VoletGeneral!$B$6<>\"en\",D15,C15),\"\")","v":"Veuillez saisir une rue"},"Please enter a street","Veuillez saisir une rue"]
[null,{"$f":"IF(C16<>\"\",IF(VoletGeneral!$B$6<>\"en\",D16,C16),\"\")","v":"Veuillez saisir un code postal"},"Please enter a zip code","Veuillez saisir un code postal"]
[null,{"$f":"IF(C17<>\"\",IF(VoletGeneral!$B$6<>\"en\",D17,C17),\"\")","v":"Le code postal saisi est non valide"},"The entered zip code is not valid","Le code postal saisi est non valide"]
[null,{"$f":"IF(C18<>\"\",IF(VoletGeneral!$B$6<>\"en\",D18,C18),\"\")","v":"Veuillez saisir une ville"},"Please enter a city","Veuillez saisir une ville"]
[null,{"$f":"IF(C19<>\"\",IF(VoletGeneral!$B$6<>\"en\",D19,C19),\"\")","v":"Veuillez choisir un pays dans le menu déroulant"},"Please select a country from the dropdown menu","Veuillez choisir un pays dans le menu déroulant"]
[null,{"$f":"IF(C20<>\"\",IF(VoletGeneral!$B$6<>\"en\",D20,C20),\"\")","v":"Le pays saisi n'est pas valide"},"The country entered is not valid","Le pays saisi n'est pas valide"]
[null,{"$f":"IF(C21<>\"\",IF(VoletGeneral!$B$6<>\"en\",D21,C21),\"\")","v":"Veuillez choisir un genre dans le menu déroulant"},"Please choose a gender from the drop down menu","Veuillez choisir un genre dans le menu déroulant"]
[null,{"$f":"IF(C22<>\"\",IF(VoletGeneral!$B$6<>\"en\",D22,C22),\"\")","v":"Le genre saisi est non valide"},"The entered gender is not valid","Le genre saisi est non valide"]
[null,{"$f":"IF(C23<>\"\",IF(VoletGeneral!$B$6<>\"en\",D23,C23),\"\")","v":"Veuillez saisir un nom"},"Please enter a name","Veuillez saisir un nom"]
[null,{"$f":"IF(C24<>\"\",IF(VoletGeneral!$B$6<>\"en\",D24,C24),\"\")","v":"Veuillez saisir un prénom"},"Please enter a first name","Veuillez saisir un prénom"]
[null,{"$f":"IF(C25<>\"\",IF(VoletGeneral!$B$6<>\"en\",D25,C25),\"\")","v":"Veuillez saisir un titre/qualité"},"Please enter a title / quality","Veuillez saisir un titre/qualité"]
[null,{"$f":"IF(C26<>\"\",IF(VoletGeneral!$B$6<>\"en\",D26,C26),\"\")","v":"Veuillez saisir un email"},"Please enter an email","Veuillez saisir un email"]
[null,{"$f":"IF(C27<>\"\",IF(VoletGeneral!$B$6<>\"en\",D27,C27),\"\")","v":"L'adresse email saisie est non valide"},"The entered email address is not valid","L'adresse email saisie est non valide"]
[null,{"$f":"IF(C28<>\"\",IF(VoletGeneral!$B$6<>\"en\",D28,C28),\"\")","v":"Veuillez saisir un numéro de téléphone"},"Please enter a phone number","Veuillez saisir un numéro de téléphone"]
[null,{"$f":"IF(C29<>\"\",IF(VoletGeneral!$B$6<>\"en\",D29,C29),\"\")","v":"Le numéro saisi est invalide"},"The number entered is not valid","Le numéro saisi est invalide"]
[null,{"$f":"IF(C30<>\"\",IF(VoletGeneral!$B$6<>\"en\",D30,C30),\"\")","v":"Veuillez saisir une description"},"Please enter a description","Veuillez saisir une description"]
[null,{"$f":"IF(C31<>\"\",IF(VoletGeneral!$B$6<>\"en\",D31,C31),\"\")","v":"La description doit comporter un minimum de 5 caractères"},"The description must be composed of a minimum of 5 characters","La description doit comporter un minimum de 5 caractères"]
[null,{"$f":"IF(C32<>\"\",IF(VoletGeneral!$B$6<>\"en\",D32,C32),\"\")","v":"Veuillez saisir le n° du workpackage concerné"},"Please enter the # of the workpackage concerned","Veuillez saisir le n° du workpackage concerné"]
[null,{"$f":"IF(C33<>\"\",IF(VoletGeneral!$B$6<>\"en\",D33,C33),\"\")","v":"Le coût unitaire doit être une valeur numérique"},"The cost per unit must be a numeric value","Le coût unitaire doit être une valeur numérique"]
[null,{"$f":"IF(C34<>\"\",IF(VoletGeneral!$B$6<>\"en\",D34,C34),\"\")","v":"Le pourcentage d'utilisation doit être une valeur numérique"},"The poucentage of use must be numeric value","Le pourcentage d'utilisation doit être une valeur numérique"]
[null,{"$f":"IF(C35<>\"\",IF(VoletGeneral!$B$6<>\"en\",D35,C35),\"\")","v":"Veuillez saisir la quantité"},"Please enter the quantity","Veuillez saisir la quantité"]
[null,{"$f":"IF(C36<>\"\",IF(VoletGeneral!$B$6<>\"en\",D36,C36),\"\")","v":"La quantité doit être une valeur numérique"},"The quantity must be numeric value","La quantité doit être une valeur numérique"]
[null,{"$f":"IF(C37<>\"\",IF(VoletGeneral!$B$6<>\"en\",D37,C37),\"\")","v":"Veuillez saisir le montant de la part aidée"},"Please enter the subsized share amount","Veuillez saisir le montant de la part aidée"]
[null,{"$f":"IF(C38<>\"\",IF(VoletGeneral!$B$6<>\"en\",D38,C38),\"\")","v":"Le montant de la part aidée doit être une valeur numérique"},"The amount of the subsized share must be a numeric value","Le montant de la part aidée doit être une valeur numérique"]
[null,{"$f":"IF(C39<>\"\",IF(VoletGeneral!$B$6<>\"en\",D39,C39),\"\")","v":"Le coût unitaire doit être supérieur ou égal à 4000€"},"The cost per unit must be greater than or equal to 4000 €","Le coût unitaire doit être supérieur ou égal à 4000€"]
[null,{"$f":"IF(C40<>\"\",IF(VoletGeneral!$B$6<>\"en\",D40,C40),\"\")","v":"Veuillez saisir un pourcentage d'utilisation"},"Please enter a pourcentage of use","Veuillez saisir un pourcentage d'utilisation"]
[null,{"$f":"IF(C41<>\"\",IF(VoletGeneral!$B$6<>\"en\",D41,C41),\"\")","v":"Le pourcentage d'utilisation doit être strictement positif"},"The poucentage of use must be strictly positive","Le pourcentage d'utilisation doit être strictement positif"]
[null,{"$f":"IF(C42<>\"\",IF(VoletGeneral!$B$6<>\"en\",D42,C42),\"\")","v":"Le pourcentage d'utilisation doit être inférieur ou égal à 100%"},"The poucentage of use must be lower than or equal to 100%","Le pourcentage d'utilisation doit être inférieur ou égal à 100%"]
[null,{"$f":"IF(C43<>\"\",IF(VoletGeneral!$B$6<>\"en\",D43,C43),\"\")","v":"La quantité doit être strictement positive"},"Amount must be strictly positive","La quantité doit être strictement positive"]
[null,{"$f":"IF(C44<>\"\",IF(VoletGeneral!$B$6<>\"en\",D44,C44),\"\")","v":"Le montant de la part aidée doit être positif ou nul"},"The amount of the subsized share must be nonnegative","Le montant de la part aidée doit être positif ou nul"]
[null,{"$f":"IF(C45<>\"\",IF(VoletGeneral!$B$6<>\"en\",D45,C45),\"\")","v":"Le montant de la part aidée doit être inférieur ou égal au coût total"},"The amount of the subsized share must be lower than or equal to the total cost","Le montant de la part aidée doit être inférieur ou égal au coût total"]
[null,{"$f":"IF(C46<>\"\",IF(VoletGeneral!$B$6<>\"en\",D46,C46),\"\")","v":"Veuillez saisir un statut"},"Please enter a status","Veuillez saisir un statut"]
[null,{"$f":"IF(C47<>\"\",IF(VoletGeneral!$B$6<>\"en\",D47,C47),\"\")","v":"Le statut saisi n'est pas valide"},"The status entered is not valid","Le statut saisi n'est pas valide"]
[null,{"$f":"IF(C48<>\"\",IF(VoletGeneral!$B$6<>\"en\",D48,C48),\"\")","v":"Le salaire mensuel doit être une valeur numérique"},"The monthly wage must be a numeric value","Le salaire mensuel doit être une valeur numérique"]
[null,{"$f":"IF(C49<>\"\",IF(VoletGeneral!$B$6<>\"en\",D49,C49),\"\")","v":"Le nombre d'hommes.mois doit être une valeur numérique"},"The number of men.months must be a numeric value","Le nombre d'hommes.mois doit être une valeur numérique"]
[null,{"$f":"IF(C50<>\"\",IF(VoletGeneral!$B$6<>\"en\",D50,C50),\"\")","v":"Le montant du salaire mensuel doit être strictement positif"},"The monthly wage must be strictly positive","Le montant du salaire mensuel doit être strictement positif"]
[null,{"$f":"IF(C51<>\"\",IF(VoletGeneral!$B$6<>\"en\",D51,C51),\"\")","v":"Le nombre d'homme.mois doit être strictement positif"},"The number of men.months must be strictly positive","Le nombre d'homme.mois doit être strictement positif"]
[null,{"$f":"IF(C52<>\"\",IF(VoletGeneral!$B$6<>\"en\",D52,C52),\"\")","v":"Le montant de la part aidée doit être inférieur ou égal au total salaires"},"The amount of the subsized share must be lower than or equal to the total wages","Le montant de la part aidée doit être inférieur ou égal au total salaires"]
[null,{"$f":"IF(C53<>\"\",IF(VoletGeneral!$B$6<>\"en\",D53,C53),\"\")","v":"Le coût moyen doit être une valeur numérique"},"The average cost must be a numeric value","Le coût moyen doit être une valeur numérique"]
[null,{"$f":"IF(C54<>\"\",IF(VoletGeneral!$B$6<>\"en\",D54,C54),\"\")","v":"Le coût moyen doit être strictement positif"},"The average cost must be strictly positive","Le coût moyen doit être strictement positif"]
[null,{"$f":"IF(C55<>\"\",IF(VoletGeneral!$B$6<>\"en\",D55,C55),\"\")","v":"Le coût total doit être une valeur numérique"},"The total cost must be a numeric value","Le coût total doit être une valeur numérique"]
[null,{"$f":"IF(C56<>\"\",IF(VoletGeneral!$B$6<>\"en\",D56,C56),\"\")","v":"Le coût total doit être strictement positif"},"The total cost must be strictly positive","Le coût total doit être strictement positif"]
[null,{"$f":"IF(C57<>\"\",IF(VoletGeneral!$B$6<>\"en\",D57,C57),\"\")","v":"Veuillez saisir le nom du financeur"},"Please enter funder name","Veuillez saisir le nom du financeur"]
[null,{"$f":"IF(C58<>\"\",IF(VoletGeneral!$B$6<>\"en\",D58,C58),\"\")","v":"La description doit comporter un minimum de 5 caractères"},"The description must composed of a minimum of 5 characters","La description doit comporter un minimum de 5 caractères"]
[null,{"$f":"IF(C59<>\"\",IF(VoletGeneral!$B$6<>\"en\",D59,C59),\"\")","v":"Le montant sollicité doit être strictement positif ou nul"},"The amount requested must be non negative","Le montant sollicité doit être strictement positif ou nul"]
[null,{"$f":"IF(C60<>\"\",IF(VoletGeneral!$B$6<>\"en\",D60,C60),\"\")","v":"Le montant obtenu doit être strictement positif ou nul"},"The amount obtained must be non negative","Le montant obtenu doit être strictement positif ou nul"]
[null,{"$f":"IF(C61<>\"\",IF(VoletGeneral!$B$6<>\"en\",D61,C61),\"\")","v":"Le montant obtenu doit être une valeur numérique"},"The amount obtained must be a numeric value","Le montant obtenu doit être une valeur numérique"]
[null,{"$f":"IF(C62<>\"\",IF(VoletGeneral!$B$6<>\"en\",D62,C62),\"\")","v":"Le montant sollicité doit être une valeur numérique"},"The amount requested must be a numeric value","Le montant sollicité doit être une valeur numérique"]
[null,{"$f":"IF(C63<>\"\",IF(VoletGeneral!$B$6<>\"en\",D63,C63),\"\")","v":"Veuillez saisir un montant sollicité"},"Please enter a requested amount","Veuillez saisir un montant sollicité"]
[null,{"$f":"IF(C64<>\"\",IF(VoletGeneral!$B$6<>\"en\",D64,C64),\"\")","v":"Veuillez saisir un montant obtenu"},"Please enter an obtained amount","Veuillez saisir un montant obtenu"]
[null,{"$f":"IF(C65<>\"\",IF(VoletGeneral!$B$6<>\"en\",D65,C65),\"\")","v":"Veuillez saisir un taux"},"Please enter a rate","Veuillez saisir un taux"]
[null,{"$f":"IF(C66<>\"\",IF(VoletGeneral!$B$6<>\"en\",D66,C66),\"\")","v":"Le taux doit être positif ou nul"},"The rate must be nonnegative","Le taux doit être positif ou nul"]
[null,{"$f":"IF(C67<>\"\",IF(VoletGeneral!$B$6<>\"en\",D67,C67),\"\")","v":"Le taux doit être inférieur ou égal à"},"The rate must be lower than or equal to","Le taux doit être inférieur ou égal à"]
[null,{"$f":"IF(C68<>\"\",IF(VoletGeneral!$B$6<>\"en\",D68,C68),\"\")","v":"Le taux doit être une valeur numérique"},"The rate must be a numeric value","Le taux doit être une valeur numérique"]
[null,{"$f":"IF(C69<>\"\",IF(VoletGeneral!$B$6<>\"en\",D69,C69),\"\")","v":"Le taux d'aide doit être inférieur ou égal à 100%"},"The rate of subsidy must be less than or equal to 100%","Le taux d'aide doit être inférieur ou égal à 100%"]
["Entités aux coûts complets",{"$f":"IF(C70<>\"\",IF(VoletGeneral!$B$6<>\"en\",D70,C70),\"\")","v":""}]
[null,{"$f":"IF(C71<>\"\",IF(VoletGeneral!$B$6<>\"en\",D71,C71),\"\")","v":"Veuillez choisir une finalité dans le menu déroulant"},"Please select a purpose from the dropdown menu","Veuillez choisir une finalité dans le menu déroulant"]
[null,{"$f":"IF(C72<>\"\",IF(VoletGeneral!$B$6<>\"en\",D72,C72),\"\")","v":"La finalité saisie n'est pas valide"},"The entered purpose is not valid","La finalité saisie n'est pas valide"]
[null,{"$f":"IF(C73<>\"\",IF(VoletGeneral!$B$6<>\"en\",D73,C73),\"\")","v":"Veuillez saisir une fonction"},"Please enter a function","Veuillez saisir une fonction"]
[null,{"$f":"IF(C74<>\"\",IF(VoletGeneral!$B$6<>\"en\",D74,C74),\"\")","v":"La fonction saisie n'est pas valide"},"The entered function is not valid","La fonction saisie n'est pas valide"]
[null,{"$f":"IF(C75<>\"\",IF(VoletGeneral!$B$6<>\"en\",D75,C75),\"\")","v":"Veuillez saisir les taux"},"Please enter rates","Veuillez saisir les taux"]
[null,{"$f":"IF(C76<>\"\",IF(VoletGeneral!$B$6<>\"en\",D76,C76),\"\")","v":"Les taux doivent être positifs ou nuls"},"The rates must be nonnegative","Les taux doivent être positifs ou nuls"]
[null,{"$f":"IF(C77<>\"\",IF(VoletGeneral!$B$6<>\"en\",D77,C77),\"\")","v":"Les taux doivent être inférieurs ou égaux à"},"The rates must be lower than of equal to","Les taux doivent être inférieurs ou égaux à"]
[null,{"$f":"IF(C78<>\"\",IF(VoletGeneral!$B$6<>\"en\",D78,C78),\"\")","v":"Les taux doivent être inférieurs ou égaux aux taux maximum"},"The rates must be lower than of equal to the maximum rates","Les taux doivent être inférieurs ou égaux aux taux maximum"]
[null,{"$f":"IF(C79<>\"\",IF(VoletGeneral!$B$6<>\"en\",D79,C79),\"\")","v":"Les taux doivent être respectivement inférieurs ou égaux à"},"The rates must be respectively lower than or equal to","Les taux doivent être respectivement inférieurs ou égaux à"]
["Volet général"]
[null,{"$f":"IF(C81<>\"\",IF(VoletGeneral!$B$6<>\"en\",D81,C81),\"\")","v":"L'acronyme doit comporter un minimum de 2 caractères"},"The acronym must be composed of a minimum of 2 characters","L'acronyme doit comporter un minimum de 2 caractères"]
[null,{"$f":"IF(C82<>\"\",IF(VoletGeneral!$B$6<>\"en\",D82,C82),\"\")","v":"Le nom du projet doit comporter un minimum de 5 caractères"},"The project title must be composed of a minimum of 5 characters","Le nom du projet doit comporter un minimum de 5 caractères"]
[null,{"$f":"IF(C83<>\"\",IF(VoletGeneral!$B$6<>\"en\",D83,C83),\"\")","v":"La durée du projet doit être supérieur ou égale à "},"The project duration must be greater than or equal to","La durée du projet doit être supérieur ou égale à "]
[null,{"$f":"IF(C84<>\"\",IF(VoletGeneral!$B$6<>\"en\",D84,C84),\"\")","v":"La durée du projet doit être inférieure ou égale à "},"The project duration must be lower than or equal to","La durée du projet doit être inférieure ou égale à "]
[null,{"$f":"IF(C85<>\"\",IF(VoletGeneral!$B$6<>\"en\",D85,C85),\"\")","v":"mois"},"months","mois"]
["Pop-up",{"$f":"IF(C86<>\"\",IF(VoletGeneral!$B$6<>\"en\",D86,C86),\"\")","v":""}]
[null,{"$f":"IF(C87<>\"\",IF(VoletGeneral!$B$6<>\"en\",D87,C87),\"\")","v":"Veuillez saisir le lieu de signature"},"Please enter the place of signature","Veuillez saisir le lieu de signature"]
[null,{"$f":"IF(C88<>\"\",IF(VoletGeneral!$B$6<>\"en\",D88,C88),\"\")","v":"Taux d'aide demandée pour la finalité"},"Subsidy rate requested for purpose","Taux d'aide demandée pour la finalité"]
[null,{"$f":"IF(C89<>\"\",IF(VoletGeneral!$B$6<>\"en\",D89,C89),\"\")","v":"Taux d'aide demandée"},"Subsidy rate requested","Taux d'aide demandée"]
[null,{"$f":"IF(C90<>\"\",IF(VoletGeneral!$B$6<>\"en\",D90,C90),\"\")","v":"Veuillez entrer le numéro de l'entité à supprimer ?"},"Please enter the number of the entity to be deleted ?","Veuillez entrer le numéro de l'entité à supprimer ?"]
[null,{"$f":"IF(C91<>\"\",IF(VoletGeneral!$B$6<>\"en\",D91,C91),\"\")","v":"Valeur invalide !"},"Invalid value!","Valeur invalide !"]
[null,{"$f":"IF(C92<>\"\",IF(VoletGeneral!$B$6<>\"en\",D92,C92),\"\")","v":"Etes-vous certain de vouloir supprimer l'entité nommée \""},"Are you sure to want to delete entity named \"","Etes-vous certain de vouloir supprimer l'entité nommée \""]
[null,{"$f":"IF(C93<>\"\",IF(VoletGeneral!$B$6<>\"en\",D93,C93),\"\")","v":"Les données seront définitivement effacées !"},"Data will be irredeemably erased !","Les données seront définitivement effacées !"]
[null,{"$f":"IF(C94<>\"\",IF(VoletGeneral!$B$6<>\"en\",D94,C94),\"\")","v":"Demande de confirmation"},"Please confirm","Demande de confirmation"]
[null,{"$f":"IF(C95<>\"\",IF(VoletGeneral!$B$6<>\"en\",D95,C95),\"\")","v":"Privé"},"Private","Privé"]
[null,{"$f":"IF(C96<>\"\",IF(VoletGeneral!$B$6<>\"en\",D96,C96),\"\")","v":"Public"},"Public","Public"]
[null,{"$f":"IF(C97<>\"\",IF(VoletGeneral!$B$6<>\"en\",D97,C97),\"\")","v":"Choisir l'entité à supprimer"},"Choose the entity to be deleted","Choisir l'entité à supprimer"]
[null,{"$f":"IF(C98<>\"\",IF(VoletGeneral!$B$6<>\"en\",D98,C98),\"\")","v":"Choisir où ajouter l'entité"},"Choose where to introduce entity","Choisir où ajouter l'entité"]
[null,{"$f":"IF(C99<>\"\",IF(VoletGeneral!$B$6<>\"en\",D99,C99),\"\")","v":"Après"},"After","Après"]
[null,{"$f":"IF(C100<>\"\",IF(VoletGeneral!$B$6<>\"en\",D100,C100),\"\")","v":"En premier"},"At first place","En premier"]
[null,{"$f":"IF(C101<>\"\",IF(VoletGeneral!$B$6<>\"en\",D101,C101),\"\")","v":"En dernier"},"At last place","En dernier"]
["Verbatim",{"$f":"IF(C102<>\"\",IF(VoletGeneral!$B$6<>\"en\",D102,C102),\"\")","v":""}]
["Toutes entités",{"$f":"IF(C103<>\"\",IF(VoletGeneral!$B$6<>\"en\",D103,C103),\"\")","v":""}]
[null,{"$f":"IF(C104<>\"\",IF(VoletGeneral!$B$6<>\"en\",D104,C104),\"\")","v":"Worpackages"},"Workpackages","Worpackages"]
[null,{"$f":"IF(C105<>\"\",IF(VoletGeneral!$B$6<>\"en\",D105,C105),\"\")","v":"Échéancier des besoins en aide"},"Schedule of subsidy needs","Échéancier des besoins en aide"]
[null,{"$f":"IF(C106<>\"\",IF(VoletGeneral!$B$6<>\"en\",D106,C106),\"\")","v":"Échéancier des besoins en aide par entité"},"Schedule of subsidy needs","Échéancier des besoins en aide par entité"]
[1,{"$f":"IF(C107<>\"\",IF(VoletGeneral!$B$6<>\"en\",D107,C107),\"\")","v":"Entreprise (au sens de l'UE)"},{"$f":"Parametres!$F$18","v":"Company (EU definition)"},{"$f":"Parametres!$F$19","v":"Entreprise (au sens de l'UE)"}]
[2,{"$f":"IF(C108<>\"\",IF(VoletGeneral!$B$6<>\"en\",D108,C108),\"\")","v":"Public"},{"$f":"Parametres!$F$15","v":"Public"},{"$f":"Parametres!$F$16","v":"Public"}]
[null,{"$f":"IF(C109<>\"\",IF(VoletGeneral!$B$6<>\"en\",D109,C109),\"\")","v":"Fiche financière de l'entité n°"},"Financial statement of the entity No.","Fiche financière de l'entité n°"]
[null,{"$f":"IF(C110<>\"\",IF(VoletGeneral!$B$6<>\"en\",D110,C110),\"\")","v":"Dernière modification"},"Last modification","Dernière modification"]
[null,{"$f":"IF(C111<>\"\",IF(VoletGeneral!$B$6<>\"en\",D111,C111),\"\")","v":"N° de dossier"},"File No.","N° de dossier"]
[null,{"$f":"IF(C112<>\"\",IF(VoletGeneral!$B$6<>\"en\",D112,C112),\"\")","v":"Acronyme"},"Acronym","Acronyme"]
[null,{"$f":"IF(C113<>\"\",IF(VoletGeneral!$B$6<>\"en\",D113,C113),\"\")","v":"Identification de l'entité"},"Identification of the entity","Identification de l'entité"]
[null,{"$f":"IF(C114<>\"\",IF(VoletGeneral!$B$6<>\"en\",D114,C114),\"\")","v":"Nom complet de l'entité"},"Full name of the entity","Nom complet de l'entité"]
[null,{"$f":"IF(C115<>\"\",IF(VoletGeneral!$B$6<>\"en\",D115,C115),\"\")","v":"Acronyme ou code de l'entité"},"Entity acronym or code","Acronyme ou code de l'entité"]
[null,{"$f":"IF(C116<>\"\",IF(VoletGeneral!$B$6<>\"en\",D116,C116),\"\")","v":"Numéro SIRET"},"SIRET #","Numéro SIRET"]
[null,{"$f":"IF(C117<>\"\",IF(VoletGeneral!$B$6<>\"en\",D117,C117),\"\")","v":"Catégorie de l'entité"},"Entity method of accountability","Catégorie de l'entité"]
[null,{"$f":"IF(C118<>\"\",IF(VoletGeneral!$B$6<>\"en\",D118,C118),\"\")","v":"Forme légale de l'entité"},"Entity legal form","Forme légale de l'entité"]
[null,{"$f":"IF(C119<>\"\",IF(VoletGeneral!$B$6<>\"en\",D119,C119),\"\")","v":"Rue"},"Street","Rue"]
[null,{"$f":"IF(C120<>\"\",IF(VoletGeneral!$B$6<>\"en\",D120,C120),\"\")","v":"Code postal"},"ZIP code","Code postal"]
[null,{"$f":"IF(C121<>\"\",IF(VoletGeneral!$B$6<>\"en\",D121,C121),\"\")","v":"Ville"},"City","Ville"]
[null,{"$f":"IF(C122<>\"\",IF(VoletGeneral!$B$6<>\"en\",D122,C122),\"\")","v":"L'entité est-il éligible à une aide"},"Is the entity eligible for subsidy","L'entité est-il éligible à une aide"]
[null,{"$f":"IF(C123<>\"\",IF(VoletGeneral!$B$6<>\"en\",D123,C123),\"\")","v":"TVA récupérée"},"Is the VAT reimburse to the entity","TVA récupérée"]
[null,{"$f":"IF(C124<>\"\",IF(VoletGeneral!$B$6<>\"en\",D124,C124),\"\")","v":"Si autre"},"If other","Si autre"]
[null,{"$f":"IF(C125<>\"\",IF(VoletGeneral!$B$6<>\"en\",D125,C125),\"\")","v":"Pays"},"Country","Pays"]
[null,{"$f":"IF(C126<>\"\",IF(VoletGeneral!$B$6<>\"en\",D126,C126),\"\")","v":"Personne en charge de la direction de l'entité partenaire"},"Person leading the partner entity","Personne en charge de la direction de l'entité partenaire"]
[null,{"$f":"IF(C127<>\"\",IF(VoletGeneral!$B$6<>\"en\",D127,C127),\"\")","v":"Genre"},"Gender","Genre"]
[null,{"$f":"IF(C128<>\"\",IF(VoletGeneral!$B$6<>\"en\",D128,C128),\"\")","v":"Nom"},"Last name","Nom"]
[null,{"$f":"IF(C129<>\"\",IF(VoletGeneral!$B$6<>\"en\",D129,C129),\"\")","v":"Prénom"},"First name","Prénom"]
[null,{"$f":"IF(C130<>\"\",IF(VoletGeneral!$B$6<>\"en\",D130,C130),\"\")","v":"Titre / Qualité"},"Title / Quality","Titre / Qualité"]
[null,{"$f":"IF(C131<>\"\",IF(VoletGeneral!$B$6<>\"en\",D131,C131),\"\")","v":"Courriel"},"e-mail","Courriel"]
[null,{"$f":"IF(C132<>\"\",IF(VoletGeneral!$B$6<>\"en\",D132,C132),\"\")","v":"Téléphone"},"Phone","Téléphone"]
[null,{"$f":"IF(C133<>\"\",IF(VoletGeneral!$B$6<>\"en\",D133,C133),\"\")","v":"Pays"},"Country","Pays"]
[null,{"$f":"IF(C134<>\"\",IF(VoletGeneral!$B$6<>\"en\",D134,C134),\"\")","v":"Numéro"},"Phone number","Numéro"]
[null,{"$f":"IF(C135<>\"\",IF(VoletGeneral!$B$6<>\"en\",D135,C135),\"\")","v":"Indicatif"},"Area code","Indicatif"]
[null,{"$f":"IF(C136<>\"\",IF(VoletGeneral!$B$6<>\"en\",D136,C136),\"\")","v":"Budget détaillé du projet - Part de l'entité"},"Detailed project budget - entity share","Budget détaillé du projet - Part de l'entité"]
[null,{"$f":"IF(C137<>\"\",IF(VoletGeneral!$B$6<>\"en\",D137,C137),\"\")","v":"Workpackages"},"Workpackages","Workpackages"]
[null,{"$f":"IF(C138<>\"\",IF(VoletGeneral!$B$6<>\"en\",D138,C138),\"\")","v":"Equipement (coût unitaire > 4000 €"},"Equipment (cost per unit> € 4000","Equipement (coût unitaire > 4000 €"]
[null,{"$f":"IF(C139<>\"\",IF(VoletGeneral!$B$6<>\"en\",D139,C139),\"\")","v":"indiquer le coût hors TVA"},"indicate the cost excluding VAT","indiquer le coût hors TVA"]
[null,{"$f":"IF(C140<>\"\",IF(VoletGeneral!$B$6<>\"en\",D140,C140),\"\")","v":"si l'entité récupère la TVA, indiquer le coût hors TVA"},"if the entity recovers VAT, indicate cost excluding VAT","si l'entité récupère la TVA, indiquer le coût hors TVA"]
[null,{"$f":"IF(C141<>\"\",IF(VoletGeneral!$B$6<>\"en\",D141,C141),\"\")","v":"indiquer le coût TTC"},"indicate the cost all tax included","indiquer le coût TTC"]
[null,{"$f":"IF(C142<>\"\",IF(VoletGeneral!$B$6<>\"en\",D142,C142),\"\")","v":"Description"},"Description","Description"]
[null,{"$f":"IF(C143<>\"\",IF(VoletGeneral!$B$6<>\"en\",D143,C143),\"\")","v":"Finalité"},"Purpose","Finalité"]
[null,{"$f":"IF(C144<>\"\",IF(VoletGeneral!$B$6<>\"en\",D144,C144),\"\")","v":"% d'utilisation"},"% of use","% d'utilisation"]
[null,{"$f":"IF(C145<>\"\",IF(VoletGeneral!$B$6<>\"en\",D145,C145),\"\")","v":"Coût unitaire"},"Cost per unit","Coût unitaire"]
[null,{"$f":"IF(C146<>\"\",IF(VoletGeneral!$B$6<>\"en\",D146,C146),\"\")","v":"Quantité"},"Amount","Quantité"]
[null,{"$f":"IF(C147<>\"\",IF(VoletGeneral!$B$6<>\"en\",D147,C147),\"\")","v":"Total"},"Total","Total"]
[null,{"$f":"IF(C148<>\"\",IF(VoletGeneral!$B$6<>\"en\",D148,C148),\"\")","v":"Part aidée"},"Subsized share","Part aidée"]
[null,{"$f":"IF(C149<>\"\",IF(VoletGeneral!$B$6<>\"en\",D149,C149),\"\")","v":"Apport"},"Contribution","Apport"]
[null,{"$f":"IF(C150<>\"\",IF(VoletGeneral!$B$6<>\"en\",D150,C150),\"\")","v":"Fonction"},"Function","Fonction"]
[null,{"$f":"IF(C151<>\"\",IF(VoletGeneral!$B$6<>\"en\",D151,C151),\"\")","v":"Statut"},"Status","Statut"]
[null,{"$f":"IF(C152<>\"\",IF(VoletGeneral!$B$6<>\"en\",D152,C152),\"\")","v":"Salaire mensuel"},"Monthly wage","Salaire mensuel"]
[null,{"$f":"IF(C153<>\"\",IF(VoletGeneral!$B$6<>\"en\",D153,C153),\"\")","v":"H.mois"},"M.months","H.mois"]
[null,{"$f":"IF(C154<>\"\",IF(VoletGeneral!$B$6<>\"en\",D154,C154),\"\")","v":"Total salaires"},"Total wages","Total salaires"]
[null,{"$f":"IF(C155<>\"\",IF(VoletGeneral!$B$6<>\"en\",D155,C155),\"\")","v":"Part aidée"},"Subsized share","Part aidée"]
[null,{"$f":"IF(C156<>\"\",IF(VoletGeneral!$B$6<>\"en\",D156,C156),\"\")","v":"Apport"},"Contribution","Apport"]
[null,{"$f":"IF(C157<>\"\",IF(VoletGeneral!$B$6<>\"en\",D157,C157),\"\")","v":"Coût moyen"},"Average cost","Coût moyen"]
[null,{"$f":"IF(C158<>\"\",IF(VoletGeneral!$B$6<>\"en\",D158,C158),\"\")","v":"Total équipement"},"Total equipment","Total équipement"]
[null,{"$f":"IF(C159<>\"\",IF(VoletGeneral!$B$6<>\"en\",D159,C159),\"\")","v":"Personnels"},"Staff","Personnels"]
[null,{"$f":"IF(C160<>\"\",IF(VoletGeneral!$B$6<>\"en\",D160,C160),\"\")","v":"Salaires des personnels statutaires"},"Wages of public servants","Salaires des personnels statutaires"]
[null,{"$f":"IF(C161<>\"\",IF(VoletGeneral!$B$6<>\"en\",D161,C161),\"\")","v":"Sous-total salaires des personnels statutaires"},"Subtotal wages of public servants","Sous-total salaires des personnels statutaires"]
[null,{"$f":"IF(C162<>\"\",IF(VoletGeneral!$B$6<>\"en\",D162,C162),\"\")","v":"Salaires des personnels non statutaires"},"Wages of non public servant staff","Salaires des personnels non statutaires"]
[null,{"$f":"IF(C163<>\"\",IF(VoletGeneral!$B$6<>\"en\",D163,C163),\"\")","v":"Sous-total salaires des personnels non statutaires"},"Subtotal wages of non public servant staff","Sous-total salaires des personnels non statutaires"]
[null,{"$f":"IF(C164<>\"\",IF(VoletGeneral!$B$6<>\"en\",D164,C164),\"\")","v":"Primes et heures complémentaires"},"Overtime and bonuses","Primes et heures complémentaires"]
[null,{"$f":"IF(C165<>\"\",IF(VoletGeneral!$B$6<>\"en\",D165,C165),\"\")","v":"Sous-total primes et heures complémentaires"},"Subtotal overtime and bonuses","Sous-total primes et heures complémentaires"]
[null,{"$f":"IF(C166<>\"\",IF(VoletGeneral!$B$6<>\"en\",D166,C166),\"\")","v":"Total personnels"},"Total staff","Total personnels"]
[null,{"$f":"IF(C167<>\"\",IF(VoletGeneral!$B$6<>\"en\",D167,C167),\"\")","v":"Salaires des personnels en CDI"},"Wages of permanent staff","Salaires des personnels en CDI"]
[null,{"$f":"IF(C168<>\"\",IF(VoletGeneral!$B$6<>\"en\",D168,C168),\"\")","v":"Sous-total salaires des personnels en CDI"},"Subtotal wages of permanent staff","Sous-total salaires des personnels en CDI"]
[null,{"$f":"IF(C169<>\"\",IF(VoletGeneral!$B$6<>\"en\",D169,C169),\"\")","v":"Salaires des personnels non permanents"},"Wages of non-permanent staff","Salaires des personnels non permanents"]
[null,{"$f":"IF(C170<>\"\",IF(VoletGeneral!$B$6<>\"en\",D170,C170),\"\")","v":"Sous-total salaires des personnels non permanents"},"Subtotal wages of non-permanent staff","Sous-total salaires des personnels non permanents"]
[null,{"$f":"IF(C171<>\"\",IF(VoletGeneral!$B$6<>\"en\",D171,C171),\"\")","v":"Fonctionnement ("},"Running costs (","Fonctionnement ("]
[null,{"$f":"IF(C172<>\"\",IF(VoletGeneral!$B$6<>\"en\",D172,C172),\"\")","v":"Prestations de service externes"},"External service delivery","Prestations de service externes"]
[null,{"$f":"IF(C173<>\"\",IF(VoletGeneral!$B$6<>\"en\",D173,C173),\"\")","v":"Sous-total prestations de service externes"},"Subtotal external service delivery","Sous-total prestations de service externes"]
[null,{"$f":"IF(C174<>\"\",IF(VoletGeneral!$B$6<>\"en\",D174,C174),\"\")","v":"Missions"},"Business trips","Missions"]
[null,{"$f":"IF(C175<>\"\",IF(VoletGeneral!$B$6<>\"en\",D175,C175),\"\")","v":"Sous-total missions"},"Subtotal business trips","Sous-total missions"]
[null,{"$f":"IF(C176<>\"\",IF(VoletGeneral!$B$6<>\"en\",D176,C176),\"\")","v":"Autres dépenses externes"},"Other external expenses","Autres dépenses externes"]
[null,{"$f":"IF(C177<>\"\",IF(VoletGeneral!$B$6<>\"en\",D177,C177),\"\")","v":"Sous-total autres dépenses externes"},"Subtotal other external expenses","Sous-total autres dépenses externes"]
[null,{"$f":"IF(C178<>\"\",IF(VoletGeneral!$B$6<>\"en\",D178,C178),\"\")","v":"Total fonctionnement"},"Total running costs","Total fonctionnement"]
[null,{"$f":"IF(C179<>\"\",IF(VoletGeneral!$B$6<>\"en\",D179,C179),\"\")","v":"Facturation interne"},"Internal invoicing","Facturation interne"]
[null,{"$f":"IF(C180<>\"\",IF(VoletGeneral!$B$6<>\"en\",D180,C180),\"\")","v":"Total facturation interne"},"Total nternal invoicing","Total facturation interne"]
[null,{"$f":"IF(C181<>\"\",IF(VoletGeneral!$B$6<>\"en\",D181,C181),\"\")","v":"Frais de structure"},"Overhead","Frais de structure"]
[null,{"$f":"IF(C182<>\"\",IF(VoletGeneral!$B$6<>\"en\",D182,C182),\"\")","v":"Total frais de structure"},"Total overhead","Total frais de structure"]
[null,{"$f":"IF(C183<>\"\",IF(VoletGeneral!$B$6<>\"en\",D183,C183),\"\")","v":"Synthèse de la demande financière"},"Summary of the financial request","Synthèse de la demande financière"]
[null,{"$f":"IF(C184<>\"\",IF(VoletGeneral!$B$6<>\"en\",D184,C184),\"\")","v":"Taux des frais de gestion (max"},"Management fee rate (max","Taux des frais de gestion (max"]
[null,{"$f":"IF(C185<>\"\",IF(VoletGeneral!$B$6<>\"en\",D185,C185),\"\")","v":"Taux des frais de structure"},"Overhead rates","Taux des frais de structure"]
[null,{"$f":"IF(C186<>\"\",IF(VoletGeneral!$B$6<>\"en\",D186,C186),\"\")","v":"Taux d'environnement assis sur les dépenses de personnels"},"Environment rate based on wages","Taux d'environnement assis sur les dépenses de personnels"]
[null,{"$f":"IF(C187<>\"\",IF(VoletGeneral!$B$6<>\"en\",D187,C187),\"\")","v":"Taux d'aide demandée"},"Subsidy rate","Taux d'aide demandée"]
[null,{"$f":"IF(C188<>\"\",IF(VoletGeneral!$B$6<>\"en\",D188,C188),\"\")","v":"Description"},"Description","Description"]
[null,{"$f":"IF(C189<>\"\",IF(VoletGeneral!$B$6<>\"en\",D189,C189),\"\")","v":"Total hors frais de gestion et frais de structure"},"Total excluding management charges and overhead","Total hors frais de gestion et frais de structure"]
[null,{"$f":"IF(C190<>\"\",IF(VoletGeneral!$B$6<>\"en\",D190,C190),\"\")","v":"Frais de gestion et de structure"},"Management charges and overhead","Frais de gestion et de structure"]
[null,{"$f":"IF(C191<>\"\",IF(VoletGeneral!$B$6<>\"en\",D191,C191),\"\")","v":"- dont de gestion"},"- of which, management","- dont de gestion"]
[null,{"$f":"IF(C192<>\"\",IF(VoletGeneral!$B$6<>\"en\",D192,C192),\"\")","v":"- dont de structure"},"- of which, overhead","- dont de structure"]
[null,{"$f":"IF(C193<>\"\",IF(VoletGeneral!$B$6<>\"en\",D193,C193),\"\")","v":"- dont d'environnement"},"- of which, environment","- dont d'environnement"]
[null,{"$f":"IF(C194<>\"\",IF(VoletGeneral!$B$6<>\"en\",D194,C194),\"\")","v":"Total coûts complets"},"Total full costs","Total coûts complets"]
[null,{"$f":"IF(C195<>\"\",IF(VoletGeneral!$B$6<>\"en\",D195,C195),\"\")","v":"- dont aide demandée"},"- of which, subsidy","- dont aide demandée"]
[null,{"$f":"IF(C196<>\"\",IF(VoletGeneral!$B$6<>\"en\",D196,C196),\"\")","v":"- dont apport"},"- of which, contribution","- dont apport"]
[null,{"$f":"IF(C197<>\"\",IF(VoletGeneral!$B$6<>\"en\",D197,C197),\"\")","v":"Taux des frais de struct. assis sur les dépenses de pers. au titre de l'encadrement/assistance"},"Overhead rate based on wages for supervision/support","Taux des frais de struct. assis sur les dépenses de pers. au titre de l'encadrement/assistance"]
[null,{"$f":"IF(C198<>\"\",IF(VoletGeneral!$B$6<>\"en\",D198,C198),\"\")","v":"Taux des frais de struct. assis sur les dépenses totales de pers."},"Overhead rate based on total wages","Taux des frais de struct. assis sur les dépenses totales de pers."]
[null,{"$f":"IF(C199<>\"\",IF(VoletGeneral!$B$6<>\"en\",D199,C199),\"\")","v":"Taux des frais de struct. assis sur les autres dépenses"},"Overhead rate based others expenditures","Taux des frais de struct. assis sur les autres dépenses"]
[null,{"$f":"IF(C200<>\"\",IF(VoletGeneral!$B$6<>\"en\",D200,C200),\"\")","v":"Taux d'aide maximum"},"Maximum subsidy rate","Taux d'aide maximum"]
[null,{"$f":"IF(C201<>\"\",IF(VoletGeneral!$B$6<>\"en\",D201,C201),\"\")","v":"Taux d'aide demandée"},"Requested subsidy rate","Taux d'aide demandée"]
[null,{"$f":"IF(C202<>\"\",IF(VoletGeneral!$B$6<>\"en\",D202,C202),\"\")","v":"Description"},"Description","Description"]
[null,{"$f":"IF(C203<>\"\",IF(VoletGeneral!$B$6<>\"en\",D203,C203),\"\")","v":"Total hors frais de structure"},"Total excluding overhead","Total hors frais de structure"]
[null,{"$f":"IF(C204<>\"\",IF(VoletGeneral!$B$6<>\"en\",D204,C204),\"\")","v":"- dont assis sur les dépenses de pers. au titre de l'encadrement/assistance"},"- of which, based on wages for supervision/support","- dont assis sur les dépenses de pers. au titre de l'encadrement/assistance"]
[null,{"$f":"IF(C205<>\"\",IF(VoletGeneral!$B$6<>\"en\",D205,C205),\"\")","v":"- dont assis sur les dépenses totales de personnel"},"- of which, based on total wages","- dont assis sur les dépenses totales de personnel"]
[null,{"$f":"IF(C206<>\"\",IF(VoletGeneral!$B$6<>\"en\",D206,C206),\"\")","v":"- dont assis sur les autres dépenses"},"- of which, based others expenditures","- dont assis sur les autres dépenses"]
[null,{"$f":"IF(C207<>\"\",IF(VoletGeneral!$B$6<>\"en\",D207,C207),\"\")","v":"Total coûts complets"},"Total full costs","Total coûts complets"]
[null,{"$f":"IF(C208<>\"\",IF(VoletGeneral!$B$6<>\"en\",D208,C208),\"\")","v":"- dont aide demandée"},"- of which, subsidy","- dont aide demandée"]
[null,{"$f":"IF(C209<>\"\",IF(VoletGeneral!$B$6<>\"en\",D209,C209),\"\")","v":"- dont apport"},"- of which, contribution","- dont apport"]
[null,{"$f":"IF(C210<>\"\",IF(VoletGeneral!$B$6<>\"en\",D210,C210),\"\")","v":"Autres soutiens financiers sollicités ou obtenus pour le projet"},"Other funding requested or obtained for the project","Autres soutiens financiers sollicités ou obtenus pour le projet"]
[null,{"$f":"IF(C211<>\"\",IF(VoletGeneral!$B$6<>\"en\",D211,C211),\"\")","v":"Noms des financeurs et objet du financement"},"Funders' names and funding purpose","Noms des financeurs et objet du financement"]
[null,{"$f":"IF(C212<>\"\",IF(VoletGeneral!$B$6<>\"en\",D212,C212),\"\")","v":"Sollicité"},"Requested","Sollicité"]
[null,{"$f":"IF(C213<>\"\",IF(VoletGeneral!$B$6<>\"en\",D213,C213),\"\")","v":"Obtenu"},"Obtained","Obtenu"]
[null,{"$f":"IF(C214<>\"\",IF(VoletGeneral!$B$6<>\"en\",D214,C214),\"\")","v":"Total autres financements"},"Total other funding","Total autres financements"]
[null,{"$f":"IF(C215<>\"\",IF(VoletGeneral!$B$6<>\"en\",D215,C215),\"\")","v":"Commentaires (le cas échéant, 27 lignes max)"},"Comments (if applicable, 27 lines max)","Commentaires (le cas échéant, 27 lignes max)"]
[null,{"$f":"IF(C216<>\"\",IF(VoletGeneral!$B$6<>\"en\",D216,C216),\"\")","v":"Les informations personnelles transmises dans ces documents sont obligatoires et seront conservées en fichiers par l'ANR pour assurer la conduite opérationnelle"},"Personal information transmitted in these documents are mandatory and will be kept in files by the ANR in order to ensure the operational management","Les informations personnelles transmises dans ces documents sont obligatoires et seront conservées en fichiers par l'ANR pour assurer la conduite opérationnelle"]
[null,{"$f":"IF(C217<>\"\",IF(VoletGeneral!$B$6<>\"en\",D217,C217),\"\")","v":"de l'évaluation et l'administration des dossiers."},"of the evaluation and the management of projects.","de l'évaluation et l'administration des dossiers."]
[null,{"$f":"IF(C218<>\"\",IF(VoletGeneral!$B$6<>\"en\",D218,C218),\"\")","v":"Conformément à la loi n° 78-17 du 6 janvier 1978 modifiée, relative à l'Informatique, aux Fichiers et aux Libertés, les personnes concernées disposent d'un droit "},"In accordance with Law No. 78-17 of 6 January 1978 relating to Computing, Files and Freedom, individuals have a right","Conformément à la loi n° 78-17 du 6 janvier 1978 modifiée, relative à l'Informatique, aux Fichiers et aux Libertés, les personnes concernées disposent d'un droit "]
[null,{"$f":"IF(C219<>\"\",IF(VoletGeneral!$B$6<>\"en\",D219,C219),\"\")","v":"d'accès et de rectification des données personnelles les concernant. Les personnes concernées peuvent exercer ce droit en s'adressant à l'ANR  (voir coordonnées"},"to access and correct their personal data. The individuals can exercise their right by contacting the ANR (see contact","d'accès et de rectification des données personnelles les concernant. Les personnes concernées peuvent exercer ce droit en s'adressant à l'ANR  (voir coordonnées"]
[null,{"$f":"IF(C220<>\"\",IF(VoletGeneral!$B$6<>\"en\",D220,C220),\"\")","v":"dans le texte de l’appel à projets)."},"in the call for projects text).","dans le texte de l’appel à projets)."]
[null,{"$f":"IF(C221<>\"\",IF(VoletGeneral!$B$6<>\"en\",D221,C221),\"\")","v":"Engagement de l'entité (les signatures sont à apposer obligatoirement sur le document papier)"},"Commitment of the entity (signatures must be written on a paper version)","Engagement de l'entité (les signatures sont à apposer obligatoirement sur le document papier)"]
[null,{"$f":"IF(C222<>\"\",IF(VoletGeneral!$B$6<>\"en\",D222,C222),\"\")","v":"Nom"},"Last name","Nom"]
[null,{"$f":"IF(C223<>\"\",IF(VoletGeneral!$B$6<>\"en\",D223,C223),\"\")","v":"Prénom"},"First name","Prénom"]
[null,{"$f":"IF(C224<>\"\",IF(VoletGeneral!$B$6<>\"en\",D224,C224),\"\")","v":"Titre / Qualité"},"Title / Quality","Titre / Qualité"]
[null,{"$f":"IF(C225<>\"\",IF(VoletGeneral!$B$6<>\"en\",D225,C225),\"\")","v":"Signature"},"Signature","Signature"]
["Volet général",{"$f":"IF(C226<>\"\",IF(VoletGeneral!$B$6<>\"en\",D226,C226),\"\")","v":""}]
[null,{"$f":"IF(C227<>\"\",IF(VoletGeneral!$B$6<>\"en\",D227,C227),\"\")","v":"Année de l'appel à projets"},"Call for proposals year","Année de l'appel à projets"]
[null,{"$f":"IF(C228<>\"\",IF(VoletGeneral!$B$6<>\"en\",D228,C228),\"\")","v":"Document financier"},"Financial form","Document financier"]
[null,{"$f":"IF(C229<>\"\",IF(VoletGeneral!$B$6<>\"en\",D229,C229),\"\")","v":"Investissements d'Avenir - Agence Nationale de la Recherche"},"Investissements d'Avenir - Agence Nationale de la Recherche","Investissements d'Avenir - Agence Nationale de la Recherche"]
[null,{"$f":"IF(C230<>\"\",IF(VoletGeneral!$B$6<>\"en\",D230,C230),\"\")","v":"Appel à projets"},"Call for proposals","Appel à projets"]
[null,{"$f":"IF(C231<>\"\",IF(VoletGeneral!$B$6<>\"en\",D231,C231),\"\")","v":"Nombre d'entités"},"Entities number","Nombre d'entités"]
[null,{"$f":"IF(C232<>\"\",IF(VoletGeneral!$B$6<>\"en\",D232,C232),\"\")","v":"« "},"\"","« "]
[null,{"$f":"IF(C233<>\"\",IF(VoletGeneral!$B$6<>\"en\",D233,C233),\"\")","v":" »"},"\""," »"]
[null,{"$f":"IF(C234<>\"\",IF(VoletGeneral!$B$6<>\"en\",D234,C234),\"\")","v":"Identité du projet"},"Project identity","Identité du projet"]
[null,{"$f":"IF(C235<>\"\",IF(VoletGeneral!$B$6<>\"en\",D235,C235),\"\")","v":"Porteur de projet (à défaut, responsable du dépôt du projet)"},"Project manager (if none, person in charge of the project submission)","Porteur de projet (à défaut, responsable du dépôt du projet)"]
[null,{"$f":"IF(C236<>\"\",IF(VoletGeneral!$B$6<>\"en\",D236,C236),\"\")","v":"L'acronyme du projet doit comporter un minimum de 2 caractères"},"The acronym of the project must be composed of a minimum of 2 characters","L'acronyme du projet doit comporter un minimum de 2 caractères"]
[null,{"$f":"IF(C237<>\"\",IF(VoletGeneral!$B$6<>\"en\",D237,C237),\"\")","v":"Le titre du projet doit comporter un minimum de 5 caractères"},"The title of the project must be composed of a minimum of 5 characters","Le titre du projet doit comporter un minimum de 5 caractères"]
[null,{"$f":"IF(C238<>\"\",IF(VoletGeneral!$B$6<>\"en\",D238,C238),\"\")","v":"Durée du projet (en mois)"},"Project duration (in months)","Durée du projet (en mois)"]
[null,{"$f":"IF(C239<>\"\",IF(VoletGeneral!$B$6<>\"en\",D239,C239),\"\")","v":"La durée du projet doit être une valeur numérique"},"The project duration must be a numeric value","La durée du projet doit être une valeur numérique"]
[null,{"$f":"IF(C240<>\"\",IF(VoletGeneral!$B$6<>\"en\",D240,C240),\"\")","v":"Budget détaillé du projet"},"Detailed project budget","Budget détaillé du projet"]
[null,{"$f":"IF(C241<>\"\",IF(VoletGeneral!$B$6<>\"en\",D241,C241),\"\")","v":"Acronyme du projet"},"Project acronym","Acronyme du projet"]
[null,{"$f":"IF(C242<>\"\",IF(VoletGeneral!$B$6<>\"en\",D242,C242),\"\")","v":"Titre du projet en français"},"Project full title in French","Titre du projet en français"]
[null,{"$f":"IF(C243<>\"\",IF(VoletGeneral!$B$6<>\"en\",D243,C243),\"\")","v":"Titre du projet en anglais"},"Project full title in English","Titre du projet en anglais"]
[null,{"$f":"IF(C244<>\"\",IF(VoletGeneral!$B$6<>\"en\",D244,C244),\"\")","v":"Total hors frais de gestion et frais de structure"},"Total excluding charges and overhead","Total hors frais de gestion et frais de structure"]
[null,{"$f":"IF(C245<>\"\",IF(VoletGeneral!$B$6<>\"en\",D245,C245),\"\")","v":"Dont, équipement"},"Of which, equipment","Dont, équipement"]
[null,{"$f":"IF(C246<>\"\",IF(VoletGeneral!$B$6<>\"en\",D246,C246),\"\")","v":"Dont, personnels"},"Of which, staff","Dont, personnels"]
[null,{"$f":"IF(C247<>\"\",IF(VoletGeneral!$B$6<>\"en\",D247,C247),\"\")","v":"Frais de gestion et de structure"},"Management charges and overhead","Frais de gestion et de structure"]
[null,{"$f":"IF(C248<>\"\",IF(VoletGeneral!$B$6<>\"en\",D248,C248),\"\")","v":"Total coûts complets"},"Total full costs","Total coûts complets"]
[null,{"$f":"IF(C249<>\"\",IF(VoletGeneral!$B$6<>\"en\",D249,C249),\"\")","v":"Aide demandée"},"Subsidy requested","Aide demandée"]
[null,{"$f":"IF(C250<>\"\",IF(VoletGeneral!$B$6<>\"en\",D250,C250),\"\")","v":"Apports"},"Contribution","Apports"]
[null,{"$f":"IF(C251<>\"\",IF(VoletGeneral!$B$6<>\"en\",D251,C251),\"\")","v":"Engagement du porteur de projet ou, à défaut, du responsable du dépôt du projet (les signatures sont à apposer sur le document papier)"},"Commitment of the project manager or, if none, the person in charge of the project submission (signatures must be written on a paper version)","Engagement du porteur de projet ou, à défaut, du responsable du dépôt du projet (les signatures sont à apposer sur le document papier)"]
[null,{"$f":"IF(C252<>\"\",IF(VoletGeneral!$B$6<>\"en\",D252,C252),\"\")","v":"Equipement"},"Equipment","Equipement"]
[null,{"$f":"IF(C253<>\"\",IF(VoletGeneral!$B$6<>\"en\",D253,C253),\"\")","v":"Personnels"},"Staff","Personnels"]
[null,{"$f":"IF(C254<>\"\",IF(VoletGeneral!$B$6<>\"en\",D254,C254),\"\")","v":"Frais de gestion et de structure"},"Management charges and overhead","Frais de gestion et de structure"]
[null,{"$f":"IF(C255<>\"\",IF(VoletGeneral!$B$6<>\"en\",D255,C255),\"\")","v":"Autres coûts"},"Other costs","Autres coûts"]
[null,{"$f":"IF(C256<>\"\",IF(VoletGeneral!$B$6<>\"en\",D256,C256),\"\")","v":"Budget total"},"Total budget","Budget total"]
[null,{"$f":"IF(C257<>\"\",IF(VoletGeneral!$B$6<>\"en\",D257,C257),\"\")","v":"Aide"},"Subsidy","Aide"]
[null,{"$f":"IF(C258<>\"\",IF(VoletGeneral!$B$6<>\"en\",D258,C258),\"\")","v":"Apport"},"Contribution","Apport"]
[null,{"$f":"IF(C259<>\"\",IF(VoletGeneral!$B$6<>\"en\",D259,C259),\"\")","v":"Entreprise"},{"$f":"Parametres!$G$18","v":"Company"},{"$f":"Parametres!$G$19","v":"Entreprise"}]
[null,{"$f":"IF(C260<>\"\",IF(VoletGeneral!$B$6<>\"en\",D260,C260),\"\")","v":"Public"},{"$f":"Parametres!$G$15","v":"Public"},{"$f":"Parametres!$G$16","v":"Public"}]
[null,{"$f":"IF(C261<>\"\",IF(VoletGeneral!$B$6<>\"en\",D261,C261),\"\")","v":"Entreprise"},{"$f":"Parametres!$G$18","v":"Company"},{"$f":"Parametres!$G$19","v":"Entreprise"}]
[null,{"$f":"IF(C262<>\"\",IF(VoletGeneral!$B$6<>\"en\",D262,C262),\"\")","v":"Public"},{"$f":"Parametres!$G$15","v":"Public"},{"$f":"Parametres!$G$16","v":"Public"}]
[null,{"$f":"IF(C263<>\"\",IF(VoletGeneral!$B$6<>\"en\",D263,C263),\"\")","v":"Taux d'aide"},"Subsidy rate","Taux d'aide"]
[null,{"$f":"IF(C264<>\"\",IF(VoletGeneral!$B$6<>\"en\",D264,C264),\"\")","v":"Total aide demandée"},"Total subsidy requested","Total aide demandée"]
[null,{"$f":"IF(C265<>\"\",IF(VoletGeneral!$B$6<>\"en\",D265,C265),\"\")","v":"Lieu"},"Place","Lieu"]
[null,{"$f":"IF(C266<>\"\",IF(VoletGeneral!$B$6<>\"en\",D266,C266),\"\")","v":"Autres soutiens financiers sollicités"},"Other funding requested","Autres soutiens financiers sollicités"]
[null,{"$f":"IF(C267<>\"\",IF(VoletGeneral!$B$6<>\"en\",D267,C267),\"\")","v":"Autres soutiens financiers obtenus"},"Other funding obtained","Autres soutiens financiers obtenus"]
[1,{"$f":"IF(C268<>\"\",IF(VoletGeneral!$B$6<>\"en\",D268,C268),\"\")","v":"Entreprise"},{"$f":"Parametres!$G$18","v":"Company"},{"$f":"Parametres!$G$19","v":"Entreprise"},"Attention, en paramètres"]
[2,{"$f":"IF(C269<>\"\",IF(VoletGeneral!$B$6<>\"en\",D269,C269),\"\")","v":"Public"},{"$f":"Parametres!$G$15","v":"Public"},{"$f":"Parametres!$G$16","v":"Public"}]
[null,{"$f":"IF(C270<>\"\",IF(VoletGeneral!$B$6<>\"en\",D270,C270),\"\")","v":"Budget par entité"},"Budget by entity","Budget par entité"]
[null,{"$f":"IF(C271<>\"\",IF(VoletGeneral!$B$6<>\"en\",D271,C271),\"\")","v":"erreur"},"error","erreur"]
[null,{"$f":"IF(C272<>\"\",IF(VoletGeneral!$B$6<>\"en\",D272,C272),\"\")","v":"Synthèse"},"Synthesis","Synthèse"]
[null,{"$f":"IF(C273<>\"\",IF(VoletGeneral!$B$6<>\"en\",D273,C273),\"\")","v":"Personnels (en ETP par an)"},"Staff (in FTE per year)","Personnels (en ETP par an)"]
[null,{"$f":"IF(C274<>\"\",IF(VoletGeneral!$B$6<>\"en\",D274,C274),\"\")","v":"Recherche"},"Research","Recherche"]
[null,{"$f":"IF(C275<>\"\",IF(VoletGeneral!$B$6<>\"en\",D275,C275),\"\")","v":"Total"},"Total","Total"]
[1,{"$f":"IF(C276<>\"\",IF(VoletGeneral!$B$6<>\"en\",D276,C276),\"\")","v":"Entreprise (au sens de l'UE)"},{"$f":"Parametres!$F$18","v":"Company (EU definition)"},{"$f":"Parametres!$F$19","v":"Entreprise (au sens de l'UE)"},"Attention, en paramètres"]
[2,{"$f":"IF(C277<>\"\",IF(VoletGeneral!$B$6<>\"en\",D277,C277),\"\")","v":"Public"},{"$f":"Parametres!$F$15","v":"Public"},{"$f":"Parametres!$F$16","v":"Public"}]
[null,{"$f":"IF(C278<>\"\",IF(VoletGeneral!$B$6<>\"en\",D278,C278),\"\")","v":"Ventilation du budget"},"Budget breakdown ","Ventilation du budget"]
[null,{"$f":"IF(C279<>\"\",IF(VoletGeneral!$B$6<>\"en\",D279,C279),\"\")","v":"Part de l'entité dans le budget total"},"Entity share in the total budget","Part de l'entité dans le budget total"]
[null,{"$f":"IF(D280<>\"\",IF(VoletGeneral!$B$6<>\"en\",D280,C280),\"\")","v":"Aide / coûts complets"},"Subsidy / total costs","Aide / coûts complets"]
[null,{"$f":"IF(D281<>\"\",IF(VoletGeneral!$B$6<>\"en\",D281,C281),\"\")","v":"Aide / coûts complets hors permanents / statutaires et frais"},"Subsidy / total costs exc. perm. & fees","Aide / coûts complets hors permanents / statutaires et frais"]
[null,{"$f":"IF(D282<>\"\",IF(VoletGeneral!$B$6<>\"en\",D282,C282),\"\")","v":"Liste des établissements partenaires (entités ayant la personnalité morale, ou tutelles des entités non dotées de la personnalité morale)."},"List of patner institutions","Liste des établissements partenaires (entités ayant la personnalité morale, ou tutelles des entités non dotées de la personnalité morale)."]
[null,{"$f":"IF(D283<>\"\",IF(VoletGeneral!$B$6<>\"en\",D283,C283),\"\")","v":""}]
[null,{"$f":"IF(D284<>\"\",IF(VoletGeneral!$B$6<>\"en\",D284,C284),\"\")","v":""}]
["Echeancier",{"$f":"IF(C285<>\"\",IF(VoletGeneral!$B$6<>\"en\",D285,C285),\"\")","v":"La somme des demandes annuelles doit être égale à l'aide totale demandée (différence de"},"The annual requests sum must be equal to the total requested subsidy (difference de","La somme des demandes annuelles doit être égale à l'aide totale demandée (différence de"]
[null,{"$f":"IF(D286<>\"\",IF(VoletGeneral!$B$6<>\"en\",D286,C286),\"\")","v":""}]
[null,{"$f":"IF(D287<>\"\",IF(VoletGeneral!$B$6<>\"en\",D287,C287),\"\")","v":"Nom complet de l'institution"},"Full name of the institution","Nom complet de l'institution"]
[null,{"$f":"IF(D288<>\"\",IF(VoletGeneral!$B$6<>\"en\",D288,C288),\"\")","v":"Acronyme"},"Acronym","Acronyme"]
[null,{"$f":"IF(D289<>\"\",IF(VoletGeneral!$B$6<>\"en\",D289,C289),\"\")","v":"Le cas échéant, liste des établissements tutelles"},"If applicable, list of supervisory bodies","Le cas échéant, liste des établissements tutelles"]
[null,{"$f":"IF(D290<>\"\",IF(VoletGeneral!$B$6<>\"en\",D290,C290),\"\")","v":"Les informations sur les tutelles sont à remplir dans le volet général (liste des établissements partenaires).  La tutelle principale devra apparaître en n° 1."},null,"Les informations sur les tutelles sont à remplir dans le volet général (liste des établissements partenaires).  La tutelle principale devra apparaître en n° 1."]
[null,{"$f":"IF(D291<>\"\",IF(VoletGeneral!$B$6<>\"en\",D291,C291),\"\")","v":"Etablissement coordinateur"},"Leader institution","Etablissement coordinateur"]
[null,{"$f":"IF(D292<>\"\",IF(VoletGeneral!$B$6<>\"en\",D292,C292),\"\")","v":"Personne habilitée à engager l'établissement coordinateur"},"Person authorized to commit the leader institution","Personne habilitée à engager l'établissement coordinateur"]
[null,{"$f":"IF(D293<>\"\",IF(VoletGeneral!$B$6<>\"en\",D293,C293),\"\")","v":"Veuillez saisir le nom complet de l'établissement coordinateur"},"Please enter the leader institution full name","Veuillez saisir le nom complet de l'établissement coordinateur"]
[null,{"$f":"IF(D294<>\"\",IF(VoletGeneral!$B$6<>\"en\",D294,C294),\"\")","v":"Veuillez saisir l'acronyme de l'établissement coordinateur"},"Please enter the leader institution acronym","Veuillez saisir l'acronyme de l'établissement coordinateur"]
[null,{"$f":"IF(D295<>\"\",IF(VoletGeneral!$B$6<>\"en\",D295,C295),\"\")","v":"Veuillez choisir un type d'établissement coordinateur dans le menu déroulant"},"Please select a legal form from the drop-down menu for the leader institution ","Veuillez choisir un type d'établissement coordinateur dans le menu déroulant"]
[null,{"$f":"IF(C296<>\"\",IF(VoletGeneral!$B$6<>\"en\",D296,C296),\"\")","v":"Le type d'établissement coordinateur saisi n'est pas valide"},"The entered entity type is not valid","Le type d'établissement coordinateur saisi n'est pas valide"]
[null,{"$f":"IF(C297<>\"\",IF(VoletGeneral!$B$6<>\"en\",D297,C297),\"\")","v":"Veuillez préciser le type de établissement coordinateur"},"Please specify the type of entity","Veuillez préciser le type de établissement coordinateur"]
[null,{"$f":"IF(D298<>\"\",IF(VoletGeneral!$B$6<>\"en\",D298,C298),\"\")","v":"Veuillez choisir un genre dans le menu déroulant"},"Please select a gender from the drop-down menu","Veuillez choisir un genre dans le menu déroulant"]
[null,{"$f":"IF(D299<>\"\",IF(VoletGeneral!$B$6<>\"en\",D299,C299),\"\")","v":"Veuillez saisir un nom"},"Please enter a name","Veuillez saisir un nom"]
[null,{"$f":"IF(D300<>\"\",IF(VoletGeneral!$B$6<>\"en\",D300,C300),\"\")","v":"Veuillez saisir un prénom"},"Please enter a first name","Veuillez saisir un prénom"]
[null,{"$f":"IF(D301<>\"\",IF(VoletGeneral!$B$6<>\"en\",D301,C301),\"\")","v":"Veuillez saisir un titre/qualité"},"Please enter a title / quality","Veuillez saisir un titre/qualité"]
[null,{"$f":"IF(D302<>\"\",IF(VoletGeneral!$B$6<>\"en\",D302,C302),\"\")","v":"Veuillez saisir un email"},"Please enter an email","Veuillez saisir un email"]
[null,{"$f":"IF(D303<>\"\",IF(VoletGeneral!$B$6<>\"en\",D303,C303),\"\")","v":"Veuillez choisir un pays dans le menu déroulant"},"Please choose a country from the drop-down menu","Veuillez choisir un pays dans le menu déroulant"]
[null,{"$f":"IF(D304<>\"\",IF(VoletGeneral!$B$6<>\"en\",D304,C304),\"\")","v":"Veuillez saisir une rue"},"Please enter a street","Veuillez saisir une rue"]
[null,{"$f":"IF(D305<>\"\",IF(VoletGeneral!$B$6<>\"en\",D305,C305),\"\")","v":"Veuillez saisir un code postal"},"Please enter a ZIP code","Veuillez saisir un code postal"]
[null,{"$f":"IF(D306<>\"\",IF(VoletGeneral!$B$6<>\"en\",D306,C306),\"\")","v":"Veuillez saisir une ville"},"Please enter a city","Veuillez saisir une ville"]
[null,{"$f":"IF(D307<>\"\",IF(VoletGeneral!$B$6<>\"en\",D307,C307),\"\")","v":"Nom complet de l'établissement coordinateur"},"Full name of the leader institution","Nom complet de l'établissement coordinateur"]
[null,{"$f":"IF(D308<>\"\",IF(VoletGeneral!$B$6<>\"en\",D308,C308),\"\")","v":"Acronyme ou code de l'établissement coordinateur"},"Acronym or code of the leader institution","Acronyme ou code de l'établissement coordinateur"]
[null,{"$f":"IF(D309<>\"\",IF(VoletGeneral!$B$6<>\"en\",D309,C309),\"\")","v":"Forme légale de l'établissement coordinateur"},"Leader institution legal form","Forme légale de l'établissement coordinateur"]
[null,{"$f":"IF(D310<>\"\",IF(VoletGeneral!$B$6<>\"en\",D310,C310),\"\")","v":""}]
[null,{"$f":"IF(D311<>\"\",IF(VoletGeneral!$B$6<>\"en\",D311,C311),\"\")","v":""}]
[null,{"$f":"IF(D312<>\"\",IF(VoletGeneral!$B$6<>\"en\",D312,C312),\"\")","v":""}]
[null,{"$f":"IF(D313<>\"\",IF(VoletGeneral!$B$6<>\"en\",D313,C313),\"\")","v":""}]
[null,{"$f":"IF(D314<>\"\",IF(VoletGeneral!$B$6<>\"en\",D314,C314),\"\")","v":""}]
[null,{"$f":"IF(D315<>\"\",IF(VoletGeneral!$B$6<>\"en\",D315,C315),\"\")","v":""}]
["Entité aux coûts complets",{"$f":"IF(D316<>\"\",IF(VoletGeneral!$B$6<>\"en\",D316,C316),\"\")","v":"Catégorie de l'entité au sens de l'Union Européenne"},"Category of the entity in the European Union sense","Catégorie de l'entité au sens de l'Union Européenne"]
[null,{"$f":"IF(D317<>\"\",IF(VoletGeneral!$B$6<>\"en\",D317,C317),\"\")","v":"Cat. au sens de l'UE"},"Cat. at EU sense","Cat. au sens de l'UE"]
[null,{"$f":"IF(D318<>\"\",IF(VoletGeneral!$B$6<>\"en\",D318,C318),\"\")","v":""}]
[null,{"$f":"IF(D319<>\"\",IF(VoletGeneral!$B$6<>\"en\",D319,C319),\"\")","v":""}]
[null,{"$f":"IF(D320<>\"\",IF(VoletGeneral!$B$6<>\"en\",D320,C320),\"\")","v":""}]
[null,{"$f":"IF(D321<>\"\",IF(VoletGeneral!$B$6<>\"en\",D321,C321),\"\")","v":""}]
[null,{"$f":"IF(D322<>\"\",IF(VoletGeneral!$B$6<>\"en\",D322,C322),\"\")","v":""}]
[null,{"$f":"IF(D323<>\"\",IF(VoletGeneral!$B$6<>\"en\",D323,C323),\"\")","v":""}]
[null,{"$f":"IF(D324<>\"\",IF(VoletGeneral!$B$6<>\"en\",D324,C324),\"\")","v":""}]
[null,{"$f":"IF(D325<>\"\",IF(VoletGeneral!$B$6<>\"en\",D325,C325),\"\")","v":""}]
[null,{"$f":"IF(D326<>\"\",IF(VoletGeneral!$B$6<>\"en\",D326,C326),\"\")","v":""}]
[null,{"$f":"IF(D327<>\"\",IF(VoletGeneral!$B$6<>\"en\",D327,C327),\"\")","v":""}]
[null,{"$f":"IF(D328<>\"\",IF(VoletGeneral!$B$6<>\"en\",D328,C328),\"\")","v":""}]
[null,{"$f":"IF(D329<>\"\",IF(VoletGeneral!$B$6<>\"en\",D329,C329),\"\")","v":""}]
[null,{"$f":"IF(D330<>\"\",IF(VoletGeneral!$B$6<>\"en\",D330,C330),\"\")","v":""}]
[null,{"$f":"IF(D331<>\"\",IF(VoletGeneral!$B$6<>\"en\",D331,C331),\"\")","v":""}]
[null,{"$f":"IF(D332<>\"\",IF(VoletGeneral!$B$6<>\"en\",D332,C332),\"\")","v":""}]
[null,{"$f":"IF(D333<>\"\",IF(VoletGeneral!$B$6<>\"en\",D333,C333),\"\")","v":""}]
[null,{"$f":"IF(D334<>\"\",IF(VoletGeneral!$B$6<>\"en\",D334,C334),\"\")","v":""}]
[null,{"$f":"IF(D335<>\"\",IF(VoletGeneral!$B$6<>\"en\",D335,C335),\"\")","v":""}]
[null,{"$f":"IF(D336<>\"\",IF(VoletGeneral!$B$6<>\"en\",D336,C336),\"\")","v":""}]
[null,{"$f":"IF(D337<>\"\",IF(VoletGeneral!$B$6<>\"en\",D337,C337),\"\")","v":""}]
[null,{"$f":"IF(D338<>\"\",IF(VoletGeneral!$B$6<>\"en\",D338,C338),\"\")","v":""}]
[null,{"$f":"IF(D339<>\"\",IF(VoletGeneral!$B$6<>\"en\",D339,C339),\"\")","v":""}]
[null,{"$f":"IF(D340<>\"\",IF(VoletGeneral!$B$6<>\"en\",D340,C340),\"\")","v":""}]
[null,{"$f":"IF(D341<>\"\",IF(VoletGeneral!$B$6<>\"en\",D341,C341),\"\")","v":""}]
[null,{"$f":"IF(D342<>\"\",IF(VoletGeneral!$B$6<>\"en\",D342,C342),\"\")","v":""}]
[null,{"$f":"IF(D343<>\"\",IF(VoletGeneral!$B$6<>\"en\",D343,C343),\"\")","v":""}]
[null,{"$f":"IF(D344<>\"\",IF(VoletGeneral!$B$6<>\"en\",D344,C344),\"\")","v":""}]
[null,{"$f":"IF(D345<>\"\",IF(VoletGeneral!$B$6<>\"en\",D345,C345),\"\")","v":""}]
[null,{"$f":"IF(D346<>\"\",IF(VoletGeneral!$B$6<>\"en\",D346,C346),\"\")","v":""}]
[null,{"$f":"IF(D347<>\"\",IF(VoletGeneral!$B$6<>\"en\",D347,C347),\"\")","v":""}]
[null,{"$f":"IF(D348<>\"\",IF(VoletGeneral!$B$6<>\"en\",D348,C348),\"\")","v":""}]
[null,{"$f":"IF(D349<>\"\",IF(VoletGeneral!$B$6<>\"en\",D349,C349),\"\")","v":""}]
[null,{"$f":"IF(D350<>\"\",IF(VoletGeneral!$B$6<>\"en\",D350,C350),\"\")","v":""}]
[null,{"$f":"IF(D351<>\"\",IF(VoletGeneral!$B$6<>\"en\",D351,C351),\"\")","v":""}]
[null,{"$f":"IF(D352<>\"\",IF(VoletGeneral!$B$6<>\"en\",D352,C352),\"\")","v":""}]
[null,{"$f":"IF(D353<>\"\",IF(VoletGeneral!$B$6<>\"en\",D353,C353),\"\")","v":""}]
[null,{"$f":"IF(D354<>\"\",IF(VoletGeneral!$B$6<>\"en\",D354,C354),\"\")","v":""}]
[null,{"$f":"IF(D355<>\"\",IF(VoletGeneral!$B$6<>\"en\",D355,C355),\"\")","v":""}]
[null,{"$f":"IF(D356<>\"\",IF(VoletGeneral!$B$6<>\"en\",D356,C356),\"\")","v":""}]
[null,{"$f":"IF(D357<>\"\",IF(VoletGeneral!$B$6<>\"en\",D357,C357),\"\")","v":""}]
[null,{"$f":"IF(D358<>\"\",IF(VoletGeneral!$B$6<>\"en\",D358,C358),\"\")","v":""}]
[null,{"$f":"IF(D359<>\"\",IF(VoletGeneral!$B$6<>\"en\",D359,C359),\"\")","v":""}]
[null,{"$f":"IF(D360<>\"\",IF(VoletGeneral!$B$6<>\"en\",D360,C360),\"\")","v":""}]
[null,{"$f":"IF(D361<>\"\",IF(VoletGeneral!$B$6<>\"en\",D361,C361),\"\")","v":""}]
[null,{"$f":"IF(D362<>\"\",IF(VoletGeneral!$B$6<>\"en\",D362,C362),\"\")","v":""}]
[null,{"$f":"IF(C363<>\"\",IF(VoletGeneral!$B$6<>\"en\",D363,C363),\"\")","v":""}]
[null,{"$f":"IF(C364<>\"\",IF(VoletGeneral!$B$6<>\"en\",D364,C364),\"\")","v":""}]
[null,{"$f":"IF(C365<>\"\",IF(VoletGeneral!$B$6<>\"en\",D365,C365),\"\")","v":""}]
[null,{"$f":"IF(C366<>\"\",IF(VoletGeneral!$B$6<>\"en\",D366,C366),\"\")","v":""}]
[null,{"$f":"IF(C367<>\"\",IF(VoletGeneral!$B$6<>\"en\",D367,C367),\"\")","v":""}]
[null,{"$f":"IF(C368<>\"\",IF(VoletGeneral!$B$6<>\"en\",D368,C368),\"\")","v":""}]
[null,{"$f":"IF(C369<>\"\",IF(VoletGeneral!$B$6<>\"en\",D369,C369),\"\")","v":""}]
[null,{"$f":"IF(C370<>\"\",IF(VoletGeneral!$B$6<>\"en\",D370,C370),\"\")","v":""}]
[null,{"$f":"IF(C371<>\"\",IF(VoletGeneral!$B$6<>\"en\",D371,C371),\"\")","v":""}]
[null,{"$f":"IF(C372<>\"\",IF(VoletGeneral!$B$6<>\"en\",D372,C372),\"\")","v":""}]
[null,{"$f":"IF(C373<>\"\",IF(VoletGeneral!$B$6<>\"en\",D373,C373),\"\")","v":""}]
[null,{"$f":"IF(C374<>\"\",IF(VoletGeneral!$B$6<>\"en\",D374,C374),\"\")","v":""}]
[null,{"$f":"IF(C375<>\"\",IF(VoletGeneral!$B$6<>\"en\",D375,C375),\"\")","v":""}]
[null,{"$f":"IF(C376<>\"\",IF(VoletGeneral!$B$6<>\"en\",D376,C376),\"\")","v":""}]
[null,{"$f":"IF(C377<>\"\",IF(VoletGeneral!$B$6<>\"en\",D377,C377),\"\")","v":""}]
[null,{"$f":"IF(C378<>\"\",IF(VoletGeneral!$B$6<>\"en\",D378,C378),\"\")","v":""}]
[null,{"$f":"IF(C379<>\"\",IF(VoletGeneral!$B$6<>\"en\",D379,C379),\"\")","v":""}]
[null,{"$f":"IF(C380<>\"\",IF(VoletGeneral!$B$6<>\"en\",D380,C380),\"\")","v":""}]
[null,{"$f":"IF(C381<>\"\",IF(VoletGeneral!$B$6<>\"en\",D381,C381),\"\")","v":""}]
[null,{"$f":"IF(C382<>\"\",IF(VoletGeneral!$B$6<>\"en\",D382,C382),\"\")","v":""}]
[null,{"$f":"IF(C383<>\"\",IF(VoletGeneral!$B$6<>\"en\",D383,C383),\"\")","v":""}]
[null,{"$f":"IF(C384<>\"\",IF(VoletGeneral!$B$6<>\"en\",D384,C384),\"\")","v":""}]
[null,{"$f":"IF(C385<>\"\",IF(VoletGeneral!$B$6<>\"en\",D385,C385),\"\")","v":""}]
[null,{"$f":"IF(C386<>\"\",IF(VoletGeneral!$B$6<>\"en\",D386,C386),\"\")","v":""}]
[null,{"$f":"IF(C387<>\"\",IF(VoletGeneral!$B$6<>\"en\",D387,C387),\"\")","v":""}]
[null,{"$f":"IF(C388<>\"\",IF(VoletGeneral!$B$6<>\"en\",D388,C388),\"\")","v":""}]
[null,{"$f":"IF(C389<>\"\",IF(VoletGeneral!$B$6<>\"en\",D389,C389),\"\")","v":""}]
[null,{"$f":"IF(C390<>\"\",IF(VoletGeneral!$B$6<>\"en\",D390,C390),\"\")","v":""}]
[null,{"$f":"IF(C391<>\"\",IF(VoletGeneral!$B$6<>\"en\",D391,C391),\"\")","v":""}]
[null,{"$f":"IF(C392<>\"\",IF(VoletGeneral!$B$6<>\"en\",D392,C392),\"\")","v":""}]
[null,{"$f":"IF(C393<>\"\",IF(VoletGeneral!$B$6<>\"en\",D393,C393),\"\")","v":""}]
[null,{"$f":"IF(C394<>\"\",IF(VoletGeneral!$B$6<>\"en\",D394,C394),\"\")","v":""}]
[null,{"$f":"IF(C395<>\"\",IF(VoletGeneral!$B$6<>\"en\",D395,C395),\"\")","v":""}]
[null,{"$f":"IF(C396<>\"\",IF(VoletGeneral!$B$6<>\"en\",D396,C396),\"\")","v":""}]
[null,{"$f":"IF(C397<>\"\",IF(VoletGeneral!$B$6<>\"en\",D397,C397),\"\")","v":""}]
[null,{"$f":"IF(C398<>\"\",IF(VoletGeneral!$B$6<>\"en\",D398,C398),\"\")","v":""}]
[null,{"$f":"IF(C399<>\"\",IF(VoletGeneral!$B$6<>\"en\",D399,C399),\"\")","v":""}]
[null,{"$f":"IF(C400<>\"\",IF(VoletGeneral!$B$6<>\"en\",D400,C400),\"\")","v":""}]
[null,{"$f":"IF(C401<>\"\",IF(VoletGeneral!$B$6<>\"en\",D401,C401),\"\")","v":""}]
[null,{"$f":"IF(C402<>\"\",IF(VoletGeneral!$B$6<>\"en\",D402,C402),\"\")","v":""}]
[null,{"$f":"IF(C403<>\"\",IF(VoletGeneral!$B$6<>\"en\",D403,C403),\"\")","v":""}]
[null,{"$f":"IF(C404<>\"\",IF(VoletGeneral!$B$6<>\"en\",D404,C404),\"\")","v":""}]
[null,{"$f":"IF(C405<>\"\",IF(VoletGeneral!$B$6<>\"en\",D405,C405),\"\")","v":""}]
[null,{"$f":"IF(C406<>\"\",IF(VoletGeneral!$B$6<>\"en\",D406,C406),\"\")","v":""}]
[null,{"$f":"IF(C407<>\"\",IF(VoletGeneral!$B$6<>\"en\",D407,C407),\"\")","v":""}]
[null,{"$f":"IF(C408<>\"\",IF(VoletGeneral!$B$6<>\"en\",D408,C408),\"\")","v":""}]
[null,{"$f":"IF(C409<>\"\",IF(VoletGeneral!$B$6<>\"en\",D409,C409),\"\")","v":""}]
[null,{"$f":"IF(C410<>\"\",IF(VoletGeneral!$B$6<>\"en\",D410,C410),\"\")","v":""}]
[null,{"$f":"IF(C411<>\"\",IF(VoletGeneral!$B$6<>\"en\",D411,C411),\"\")","v":""}]
[null,{"$f":"IF(C412<>\"\",IF(VoletGeneral!$B$6<>\"en\",D412,C412),\"\")","v":""}]
[null,{"$f":"IF(C413<>\"\",IF(VoletGeneral!$B$6<>\"en\",D413,C413),\"\")","v":""}]
[null,{"$f":"IF(C414<>\"\",IF(VoletGeneral!$B$6<>\"en\",D414,C414),\"\")","v":""}]
[null,{"$f":"IF(C415<>\"\",IF(VoletGeneral!$B$6<>\"en\",D415,C415),\"\")","v":""}]
[null,{"$f":"IF(C416<>\"\",IF(VoletGeneral!$B$6<>\"en\",D416,C416),\"\")","v":""}]
[null,{"$f":"IF(C417<>\"\",IF(VoletGeneral!$B$6<>\"en\",D417,C417),\"\")","v":""}]
[null,{"$f":"IF(C418<>\"\",IF(VoletGeneral!$B$6<>\"en\",D418,C418),\"\")","v":""}]
[null,{"$f":"IF(C419<>\"\",IF(VoletGeneral!$B$6<>\"en\",D419,C419),\"\")","v":""}]
[null,{"$f":"IF(C420<>\"\",IF(VoletGeneral!$B$6<>\"en\",D420,C420),\"\")","v":""}]
[null,{"$f":"IF(C421<>\"\",IF(VoletGeneral!$B$6<>\"en\",D421,C421),\"\")","v":""}]
[null,{"$f":"IF(C422<>\"\",IF(VoletGeneral!$B$6<>\"en\",D422,C422),\"\")","v":""}]
[null,{"$f":"IF(C423<>\"\",IF(VoletGeneral!$B$6<>\"en\",D423,C423),\"\")","v":""}]
[null,{"$f":"IF(C424<>\"\",IF(VoletGeneral!$B$6<>\"en\",D424,C424),\"\")","v":""}]
[null,{"$f":"IF(C425<>\"\",IF(VoletGeneral!$B$6<>\"en\",D425,C425),\"\")","v":""}]
[null,{"$f":"IF(C426<>\"\",IF(VoletGeneral!$B$6<>\"en\",D426,C426),\"\")","v":""}]
[null,{"$f":"IF(C427<>\"\",IF(VoletGeneral!$B$6<>\"en\",D427,C427),\"\")","v":""}]
[null,{"$f":"IF(C428<>\"\",IF(VoletGeneral!$B$6<>\"en\",D428,C428),\"\")","v":""}]
[null,{"$f":"IF(C429<>\"\",IF(VoletGeneral!$B$6<>\"en\",D429,C429),\"\")","v":""}]
[null,{"$f":"IF(C430<>\"\",IF(VoletGeneral!$B$6<>\"en\",D430,C430),\"\")","v":""}]
[null,{"$f":"IF(C431<>\"\",IF(VoletGeneral!$B$6<>\"en\",D431,C431),\"\")","v":""}]
[null,{"$f":"IF(C432<>\"\",IF(VoletGeneral!$B$6<>\"en\",D432,C432),\"\")","v":""}]
[null,{"$f":"IF(C433<>\"\",IF(VoletGeneral!$B$6<>\"en\",D433,C433),\"\")","v":""}]
[null,{"$f":"IF(C434<>\"\",IF(VoletGeneral!$B$6<>\"en\",D434,C434),\"\")","v":""}]
[null,{"$f":"IF(C435<>\"\",IF(VoletGeneral!$B$6<>\"en\",D435,C435),\"\")","v":""}]
[null,{"$f":"IF(C436<>\"\",IF(VoletGeneral!$B$6<>\"en\",D436,C436),\"\")","v":""}]
[null,{"$f":"IF(C437<>\"\",IF(VoletGeneral!$B$6<>\"en\",D437,C437),\"\")","v":""}]
[null,{"$f":"IF(C438<>\"\",IF(VoletGeneral!$B$6<>\"en\",D438,C438),\"\")","v":""}]
[null,{"$f":"IF(C439<>\"\",IF(VoletGeneral!$B$6<>\"en\",D439,C439),\"\")","v":""}]
[null,{"$f":"IF(C440<>\"\",IF(VoletGeneral!$B$6<>\"en\",D440,C440),\"\")","v":""}]
[null,{"$f":"IF(C441<>\"\",IF(VoletGeneral!$B$6<>\"en\",D441,C441),\"\")","v":""}]
[null,{"$f":"IF(C442<>\"\",IF(VoletGeneral!$B$6<>\"en\",D442,C442),\"\")","v":""}]
[null,{"$f":"IF(C443<>\"\",IF(VoletGeneral!$B$6<>\"en\",D443,C443),\"\")","v":""}]
[null,{"$f":"IF(C444<>\"\",IF(VoletGeneral!$B$6<>\"en\",D444,C444),\"\")","v":""}]
[null,{"$f":"IF(C445<>\"\",IF(VoletGeneral!$B$6<>\"en\",D445,C445),\"\")","v":""}]
[null,{"$f":"IF(C446<>\"\",IF(VoletGeneral!$B$6<>\"en\",D446,C446),\"\")","v":""}]
[null,{"$f":"IF(C447<>\"\",IF(VoletGeneral!$B$6<>\"en\",D447,C447),\"\")","v":""}]
[null,{"$f":"IF(C448<>\"\",IF(VoletGeneral!$B$6<>\"en\",D448,C448),\"\")","v":""}]
[null,{"$f":"IF(C449<>\"\",IF(VoletGeneral!$B$6<>\"en\",D449,C449),\"\")","v":""}]
[null,{"$f":"IF(C450<>\"\",IF(VoletGeneral!$B$6<>\"en\",D450,C450),\"\")","v":""}]
[null,{"$f":"IF(C451<>\"\",IF(VoletGeneral!$B$6<>\"en\",D451,C451),\"\")","v":""}]
[null,{"$f":"IF(C452<>\"\",IF(VoletGeneral!$B$6<>\"en\",D452,C452),\"\")","v":""}]
[null,{"$f":"IF(C453<>\"\",IF(VoletGeneral!$B$6<>\"en\",D453,C453),\"\")","v":""}]
[null,{"$f":"IF(C454<>\"\",IF(VoletGeneral!$B$6<>\"en\",D454,C454),\"\")","v":""}]
[null,{"$f":"IF(C455<>\"\",IF(VoletGeneral!$B$6<>\"en\",D455,C455),\"\")","v":""}]
[null,{"$f":"IF(C456<>\"\",IF(VoletGeneral!$B$6<>\"en\",D456,C456),\"\")","v":""}]
[null,{"$f":"IF(C457<>\"\",IF(VoletGeneral!$B$6<>\"en\",D457,C457),\"\")","v":""}]
[null,{"$f":"IF(C458<>\"\",IF(VoletGeneral!$B$6<>\"en\",D458,C458),\"\")","v":""}]
[null,{"$f":"IF(C459<>\"\",IF(VoletGeneral!$B$6<>\"en\",D459,C459),\"\")","v":""}]
[null,{"$f":"IF(C460<>\"\",IF(VoletGeneral!$B$6<>\"en\",D460,C460),\"\")","v":""}]
[null,{"$f":"IF(C461<>\"\",IF(VoletGeneral!$B$6<>\"en\",D461,C461),\"\")","v":""}]
[null,{"$f":"IF(C462<>\"\",IF(VoletGeneral!$B$6<>\"en\",D462,C462),\"\")","v":""}]
[null,{"$f":"IF(C463<>\"\",IF(VoletGeneral!$B$6<>\"en\",D463,C463),\"\")","v":""}]
[null,{"$f":"IF(C464<>\"\",IF(VoletGeneral!$B$6<>\"en\",D464,C464),\"\")","v":""}]
[null,{"$f":"IF(C465<>\"\",IF(VoletGeneral!$B$6<>\"en\",D465,C465),\"\")","v":""}]
[null,{"$f":"IF(C466<>\"\",IF(VoletGeneral!$B$6<>\"en\",D466,C466),\"\")","v":""}]
[null,{"$f":"IF(C467<>\"\",IF(VoletGeneral!$B$6<>\"en\",D467,C467),\"\")","v":""}]
[null,{"$f":"IF(C468<>\"\",IF(VoletGeneral!$B$6<>\"en\",D468,C468),\"\")","v":""}]
[null,{"$f":"IF(C469<>\"\",IF(VoletGeneral!$B$6<>\"en\",D469,C469),\"\")","v":""}]
[null,{"$f":"IF(C470<>\"\",IF(VoletGeneral!$B$6<>\"en\",D470,C470),\"\")","v":""}]
[null,{"$f":"IF(C471<>\"\",IF(VoletGeneral!$B$6<>\"en\",D471,C471),\"\")","v":""}]
[null,{"$f":"IF(C472<>\"\",IF(VoletGeneral!$B$6<>\"en\",D472,C472),\"\")","v":""}]
[null,{"$f":"IF(C473<>\"\",IF(VoletGeneral!$B$6<>\"en\",D473,C473),\"\")","v":""}]
[null,{"$f":"IF(C474<>\"\",IF(VoletGeneral!$B$6<>\"en\",D474,C474),\"\")","v":""}]
[null,{"$f":"IF(C475<>\"\",IF(VoletGeneral!$B$6<>\"en\",D475,C475),\"\")","v":""}]
[null,{"$f":"IF(C476<>\"\",IF(VoletGeneral!$B$6<>\"en\",D476,C476),\"\")","v":""}]
[null,{"$f":"IF(C477<>\"\",IF(VoletGeneral!$B$6<>\"en\",D477,C477),\"\")","v":""}]
[null,{"$f":"IF(C478<>\"\",IF(VoletGeneral!$B$6<>\"en\",D478,C478),\"\")","v":""}]
[null,{"$f":"IF(C479<>\"\",IF(VoletGeneral!$B$6<>\"en\",D479,C479),\"\")","v":""}]
[null,{"$f":"IF(C480<>\"\",IF(VoletGeneral!$B$6<>\"en\",D480,C480),\"\")","v":""}]
[null,{"$f":"IF(C481<>\"\",IF(VoletGeneral!$B$6<>\"en\",D481,C481),\"\")","v":""}]
[null,{"$f":"IF(C482<>\"\",IF(VoletGeneral!$B$6<>\"en\",D482,C482),\"\")","v":""}]
[null,{"$f":"IF(C483<>\"\",IF(VoletGeneral!$B$6<>\"en\",D483,C483),\"\")","v":""}]
[null,{"$f":"IF(C484<>\"\",IF(VoletGeneral!$B$6<>\"en\",D484,C484),\"\")","v":""}]
[null,{"$f":"IF(C485<>\"\",IF(VoletGeneral!$B$6<>\"en\",D485,C485),\"\")","v":""}]
[null,{"$f":"IF(C486<>\"\",IF(VoletGeneral!$B$6<>\"en\",D486,C486),\"\")","v":""}]
[null,{"$f":"IF(C487<>\"\",IF(VoletGeneral!$B$6<>\"en\",D487,C487),\"\")","v":""}]
[null,{"$f":"IF(C488<>\"\",IF(VoletGeneral!$B$6<>\"en\",D488,C488),\"\")","v":""}]
[null,{"$f":"IF(C489<>\"\",IF(VoletGeneral!$B$6<>\"en\",D489,C489),\"\")","v":""}]
[null,{"$f":"IF(C490<>\"\",IF(VoletGeneral!$B$6<>\"en\",D490,C490),\"\")","v":""}]
[null,{"$f":"IF(C491<>\"\",IF(VoletGeneral!$B$6<>\"en\",D491,C491),\"\")","v":""}]
[null,{"$f":"IF(C492<>\"\",IF(VoletGeneral!$B$6<>\"en\",D492,C492),\"\")","v":""}]
[null,{"$f":"IF(C493<>\"\",IF(VoletGeneral!$B$6<>\"en\",D493,C493),\"\")","v":""}]
[null,{"$f":"IF(C494<>\"\",IF(VoletGeneral!$B$6<>\"en\",D494,C494),\"\")","v":""}]
[null,{"$f":"IF(C495<>\"\",IF(VoletGeneral!$B$6<>\"en\",D495,C495),\"\")","v":""}]
[null,{"$f":"IF(C496<>\"\",IF(VoletGeneral!$B$6<>\"en\",D496,C496),\"\")","v":""}]
[null,{"$f":"IF(C497<>\"\",IF(VoletGeneral!$B$6<>\"en\",D497,C497),\"\")","v":""}]
[null,{"$f":"IF(C498<>\"\",IF(VoletGeneral!$B$6<>\"en\",D498,C498),\"\")","v":""}]
[null,{"$f":"IF(C499<>\"\",IF(VoletGeneral!$B$6<>\"en\",D499,C499),\"\")","v":""}]
[null,{"$f":"IF(C500<>\"\",IF(VoletGeneral!$B$6<>\"en\",D500,C500),\"\")","v":""}]
[null,{"$f":"IF(C501<>\"\",IF(VoletGeneral!$B$6<>\"en\",D501,C501),\"\")","v":""}]
[null,{"$f":"IF(C502<>\"\",IF(VoletGeneral!$B$6<>\"en\",D502,C502),\"\")","v":""}]
[null,{"$f":"IF(C503<>\"\",IF(VoletGeneral!$B$6<>\"en\",D503,C503),\"\")","v":""}]
[null,{"$f":"IF(C504<>\"\",IF(VoletGeneral!$B$6<>\"en\",D504,C504),\"\")","v":""}]
[null,{"$f":"IF(C505<>\"\",IF(VoletGeneral!$B$6<>\"en\",D505,C505),\"\")","v":""}]
[null,{"$f":"IF(C506<>\"\",IF(VoletGeneral!$B$6<>\"en\",D506,C506),\"\")","v":""}]
[null,{"$f":"IF(C507<>\"\",IF(VoletGeneral!$B$6<>\"en\",D507,C507),\"\")","v":""}]
[null,{"$f":"IF(C508<>\"\",IF(VoletGeneral!$B$6<>\"en\",D508,C508),\"\")","v":""}]
[null,{"$f":"IF(C509<>\"\",IF(VoletGeneral!$B$6<>\"en\",D509,C509),\"\")","v":""}]
[null,{"$f":"IF(C510<>\"\",IF(VoletGeneral!$B$6<>\"en\",D510,C510),\"\")","v":""}]
[null,{"$f":"IF(C511<>\"\",IF(VoletGeneral!$B$6<>\"en\",D511,C511),\"\")","v":""}]
[null,{"$f":"IF(C512<>\"\",IF(VoletGeneral!$B$6<>\"en\",D512,C512),\"\")","v":""}]
[null,{"$f":"IF(C513<>\"\",IF(VoletGeneral!$B$6<>\"en\",D513,C513),\"\")","v":""}]
[null,{"$f":"IF(C514<>\"\",IF(VoletGeneral!$B$6<>\"en\",D514,C514),\"\")","v":""}]
[null,{"$f":"IF(C515<>\"\",IF(VoletGeneral!$B$6<>\"en\",D515,C515),\"\")","v":""}]
[null,{"$f":"IF(C516<>\"\",IF(VoletGeneral!$B$6<>\"en\",D516,C516),\"\")","v":""}]
[null,{"$f":"IF(C517<>\"\",IF(VoletGeneral!$B$6<>\"en\",D517,C517),\"\")","v":""}]
[null,{"$f":"IF(C518<>\"\",IF(VoletGeneral!$B$6<>\"en\",D518,C518),\"\")","v":""}]
[null,{"$f":"IF(C519<>\"\",IF(VoletGeneral!$B$6<>\"en\",D519,C519),\"\")","v":""}]
[null,{"$f":"IF(C520<>\"\",IF(VoletGeneral!$B$6<>\"en\",D520,C520),\"\")","v":""}]
[null,{"$f":"IF(C521<>\"\",IF(VoletGeneral!$B$6<>\"en\",D521,C521),\"\")","v":""}]
[null,{"$f":"IF(C522<>\"\",IF(VoletGeneral!$B$6<>\"en\",D522,C522),\"\")","v":""}]
[null,{"$f":"IF(C523<>\"\",IF(VoletGeneral!$B$6<>\"en\",D523,C523),\"\")","v":""}]
[null,{"$f":"IF(C524<>\"\",IF(VoletGeneral!$B$6<>\"en\",D524,C524),\"\")","v":""}]
[null,{"$f":"IF(C525<>\"\",IF(VoletGeneral!$B$6<>\"en\",D525,C525),\"\")","v":""}]
[null,{"$f":"IF(C526<>\"\",IF(VoletGeneral!$B$6<>\"en\",D526,C526),\"\")","v":""}]
[null,{"$f":"IF(C527<>\"\",IF(VoletGeneral!$B$6<>\"en\",D527,C527),\"\")","v":""}]
[null,{"$f":"IF(C528<>\"\",IF(VoletGeneral!$B$6<>\"en\",D528,C528),\"\")","v":""}]
[null,{"$f":"IF(C529<>\"\",IF(VoletGeneral!$B$6<>\"en\",D529,C529),\"\")","v":""}]
[null,{"$f":"IF(C530<>\"\",IF(VoletGeneral!$B$6<>\"en\",D530,C530),\"\")","v":""}]
[null,{"$f":"IF(C531<>\"\",IF(VoletGeneral!$B$6<>\"en\",D531,C531),\"\")","v":""}]
[null,{"$f":"IF(C532<>\"\",IF(VoletGeneral!$B$6<>\"en\",D532,C532),\"\")","v":""}]
[null,{"$f":"IF(C533<>\"\",IF(VoletGeneral!$B$6<>\"en\",D533,C533),\"\")","v":""}]
[null,{"$f":"IF(C534<>\"\",IF(VoletGeneral!$B$6<>\"en\",D534,C534),\"\")","v":""}]
[null,{"$f":"IF(C535<>\"\",IF(VoletGeneral!$B$6<>\"en\",D535,C535),\"\")","v":""}]
[null,{"$f":"IF(C536<>\"\",IF(VoletGeneral!$B$6<>\"en\",D536,C536),\"\")","v":""}]
[null,{"$f":"IF(C537<>\"\",IF(VoletGeneral!$B$6<>\"en\",D537,C537),\"\")","v":""}]
[null,{"$f":"IF(C538<>\"\",IF(VoletGeneral!$B$6<>\"en\",D538,C538),\"\")","v":""}]
[null,{"$f":"IF(C539<>\"\",IF(VoletGeneral!$B$6<>\"en\",D539,C539),\"\")","v":""}]
[null,{"$f":"IF(C540<>\"\",IF(VoletGeneral!$B$6<>\"en\",D540,C540),\"\")","v":""}]
[null,{"$f":"IF(C541<>\"\",IF(VoletGeneral!$B$6<>\"en\",D541,C541),\"\")","v":""}]
[null,{"$f":"IF(C542<>\"\",IF(VoletGeneral!$B$6<>\"en\",D542,C542),\"\")","v":""}]
[null,{"$f":"IF(C543<>\"\",IF(VoletGeneral!$B$6<>\"en\",D543,C543),\"\")","v":""}]
[null,{"$f":"IF(C544<>\"\",IF(VoletGeneral!$B$6<>\"en\",D544,C544),\"\")","v":""}]
[null,{"$f":"IF(C545<>\"\",IF(VoletGeneral!$B$6<>\"en\",D545,C545),\"\")","v":""}]
[null,{"$f":"IF(C546<>\"\",IF(VoletGeneral!$B$6<>\"en\",D546,C546),\"\")","v":""}]
[null,{"$f":"IF(C547<>\"\",IF(VoletGeneral!$B$6<>\"en\",D547,C547),\"\")","v":""}]
[null,{"$f":"IF(C548<>\"\",IF(VoletGeneral!$B$6<>\"en\",D548,C548),\"\")","v":""}]
[null,{"$f":"IF(C549<>\"\",IF(VoletGeneral!$B$6<>\"en\",D549,C549),\"\")","v":""}]
[null,{"$f":"IF(C550<>\"\",IF(VoletGeneral!$B$6<>\"en\",D550,C550),\"\")","v":""}]
[null,{"$f":"IF(C551<>\"\",IF(VoletGeneral!$B$6<>\"en\",D551,C551),\"\")","v":""}]
[null,{"$f":"IF(C552<>\"\",IF(VoletGeneral!$B$6<>\"en\",D552,C552),\"\")","v":""}]
[null,{"$f":"IF(C553<>\"\",IF(VoletGeneral!$B$6<>\"en\",D553,C553),\"\")","v":""}]
[null,{"$f":"IF(C554<>\"\",IF(VoletGeneral!$B$6<>\"en\",D554,C554),\"\")","v":""}]
[null,{"$f":"IF(C555<>\"\",IF(VoletGeneral!$B$6<>\"en\",D555,C555),\"\")","v":""}]
[null,{"$f":"IF(C556<>\"\",IF(VoletGeneral!$B$6<>\"en\",D556,C556),\"\")","v":""}]
[null,{"$f":"IF(C557<>\"\",IF(VoletGeneral!$B$6<>\"en\",D557,C557),\"\")","v":""}]
[null,{"$f":"IF(C558<>\"\",IF(VoletGeneral!$B$6<>\"en\",D558,C558),\"\")","v":""}]
[null,{"$f":"IF(C559<>\"\",IF(VoletGeneral!$B$6<>\"en\",D559,C559),\"\")","v":""}]
[null,{"$f":"IF(C560<>\"\",IF(VoletGeneral!$B$6<>\"en\",D560,C560),\"\")","v":""}]
[null,{"$f":"IF(C561<>\"\",IF(VoletGeneral!$B$6<>\"en\",D561,C561),\"\")","v":""}]
[null,{"$f":"IF(C562<>\"\",IF(VoletGeneral!$B$6<>\"en\",D562,C562),\"\")","v":""}]
[null,{"$f":"IF(C563<>\"\",IF(VoletGeneral!$B$6<>\"en\",D563,C563),\"\")","v":""}]
[null,{"$f":"IF(C564<>\"\",IF(VoletGeneral!$B$6<>\"en\",D564,C564),\"\")","v":""}]
[null,{"$f":"IF(C565<>\"\",IF(VoletGeneral!$B$6<>\"en\",D565,C565),\"\")","v":""}]
[null,{"$f":"IF(C566<>\"\",IF(VoletGeneral!$B$6<>\"en\",D566,C566),\"\")","v":""}]
[null,{"$f":"IF(C567<>\"\",IF(VoletGeneral!$B$6<>\"en\",D567,C567),\"\")","v":""}]
[null,{"$f":"IF(C568<>\"\",IF(VoletGeneral!$B$6<>\"en\",D568,C568),\"\")","v":""}]
[null,{"$f":"IF(C569<>\"\",IF(VoletGeneral!$B$6<>\"en\",D569,C569),\"\")","v":""}]
[null,{"$f":"IF(C570<>\"\",IF(VoletGeneral!$B$6<>\"en\",D570,C570),\"\")","v":""}]
[null,{"$f":"IF(C571<>\"\",IF(VoletGeneral!$B$6<>\"en\",D571,C571),\"\")","v":""}]
[null,{"$f":"IF(C572<>\"\",IF(VoletGeneral!$B$6<>\"en\",D572,C572),\"\")","v":""}]
[null,{"$f":"IF(C573<>\"\",IF(VoletGeneral!$B$6<>\"en\",D573,C573),\"\")","v":""}]
[null,{"$f":"IF(C574<>\"\",IF(VoletGeneral!$B$6<>\"en\",D574,C574),\"\")","v":""}]
[null,{"$f":"IF(C575<>\"\",IF(VoletGeneral!$B$6<>\"en\",D575,C575),\"\")","v":""}]
[null,{"$f":"IF(C576<>\"\",IF(VoletGeneral!$B$6<>\"en\",D576,C576),\"\")","v":""}]
[null,{"$f":"IF(C577<>\"\",IF(VoletGeneral!$B$6<>\"en\",D577,C577),\"\")","v":""}]
[null,{"$f":"IF(C578<>\"\",IF(VoletGeneral!$B$6<>\"en\",D578,C578),\"\")","v":""}]
[null,{"$f":"IF(C579<>\"\",IF(VoletGeneral!$B$6<>\"en\",D579,C579),\"\")","v":""}]
[null,{"$f":"IF(C580<>\"\",IF(VoletGeneral!$B$6<>\"en\",D580,C580),\"\")","v":""}]
[null,{"$f":"IF(C581<>\"\",IF(VoletGeneral!$B$6<>\"en\",D581,C581),\"\")","v":""}]
[null,{"$f":"IF(C582<>\"\",IF(VoletGeneral!$B$6<>\"en\",D582,C582),\"\")","v":""}]
[null,{"$f":"IF(C583<>\"\",IF(VoletGeneral!$B$6<>\"en\",D583,C583),\"\")","v":""}]
[null,{"$f":"IF(C584<>\"\",IF(VoletGeneral!$B$6<>\"en\",D584,C584),\"\")","v":""}]
[null,{"$f":"IF(C585<>\"\",IF(VoletGeneral!$B$6<>\"en\",D585,C585),\"\")","v":""}]
[null,{"$f":"IF(C586<>\"\",IF(VoletGeneral!$B$6<>\"en\",D586,C586),\"\")","v":""}]
[null,{"$f":"IF(C587<>\"\",IF(VoletGeneral!$B$6<>\"en\",D587,C587),\"\")","v":""}]
[null,{"$f":"IF(C588<>\"\",IF(VoletGeneral!$B$6<>\"en\",D588,C588),\"\")","v":""}]
[null,{"$f":"IF(C589<>\"\",IF(VoletGeneral!$B$6<>\"en\",D589,C589),\"\")","v":""}]
[null,{"$f":"IF(C590<>\"\",IF(VoletGeneral!$B$6<>\"en\",D590,C590),\"\")","v":""}]
[null,{"$f":"IF(C591<>\"\",IF(VoletGeneral!$B$6<>\"en\",D591,C591),\"\")","v":""}]
[null,{"$f":"IF(C592<>\"\",IF(VoletGeneral!$B$6<>\"en\",D592,C592),\"\")","v":""}]
[null,{"$f":"IF(C593<>\"\",IF(VoletGeneral!$B$6<>\"en\",D593,C593),\"\")","v":""}]
[null,{"$f":"IF(C594<>\"\",IF(VoletGeneral!$B$6<>\"en\",D594,C594),\"\")","v":""}]
[null,{"$f":"IF(C595<>\"\",IF(VoletGeneral!$B$6<>\"en\",D595,C595),\"\")","v":""}]
[null,{"$f":"IF(C596<>\"\",IF(VoletGeneral!$B$6<>\"en\",D596,C596),\"\")","v":""}]
[null,{"$f":"IF(C597<>\"\",IF(VoletGeneral!$B$6<>\"en\",D597,C597),\"\")","v":""}]
[null,{"$f":"IF(C598<>\"\",IF(VoletGeneral!$B$6<>\"en\",D598,C598),\"\")","v":""}]
[null,{"$f":"IF(C599<>\"\",IF(VoletGeneral!$B$6<>\"en\",D599,C599),\"\")","v":""}]
[null,{"$f":"IF(C600<>\"\",IF(VoletGeneral!$B$6<>\"en\",D600,C600),\"\")","v":""}]
[null,{"$f":"IF(C601<>\"\",IF(VoletGeneral!$B$6<>\"en\",D601,C601),\"\")","v":""}]
[null,{"$f":"IF(C602<>\"\",IF(VoletGeneral!$B$6<>\"en\",D602,C602),\"\")","v":""}]
[null,{"$f":"IF(C603<>\"\",IF(VoletGeneral!$B$6<>\"en\",D603,C603),\"\")","v":""}]
[null,{"$f":"IF(C604<>\"\",IF(VoletGeneral!$B$6<>\"en\",D604,C604),\"\")","v":""}]
[null,{"$f":"IF(C605<>\"\",IF(VoletGeneral!$B$6<>\"en\",D605,C605),\"\")","v":""}]
[null,{"$f":"IF(C606<>\"\",IF(VoletGeneral!$B$6<>\"en\",D606,C606),\"\")","v":""}]
[null,{"$f":"IF(C607<>\"\",IF(VoletGeneral!$B$6<>\"en\",D607,C607),\"\")","v":""}]
[null,{"$f":"IF(C608<>\"\",IF(VoletGeneral!$B$6<>\"en\",D608,C608),\"\")","v":""}]
[null,{"$f":"IF(C609<>\"\",IF(VoletGeneral!$B$6<>\"en\",D609,C609),\"\")","v":""}]
[null,{"$f":"IF(C610<>\"\",IF(VoletGeneral!$B$6<>\"en\",D610,C610),\"\")","v":""}]
[null,{"$f":"IF(C611<>\"\",IF(VoletGeneral!$B$6<>\"en\",D611,C611),\"\")","v":""}]
[null,{"$f":"IF(C612<>\"\",IF(VoletGeneral!$B$6<>\"en\",D612,C612),\"\")","v":""}]
[null,{"$f":"IF(C613<>\"\",IF(VoletGeneral!$B$6<>\"en\",D613,C613),\"\")","v":""}]
[null,{"$f":"IF(C614<>\"\",IF(VoletGeneral!$B$6<>\"en\",D614,C614),\"\")","v":""}]
[null,{"$f":"IF(C615<>\"\",IF(VoletGeneral!$B$6<>\"en\",D615,C615),\"\")","v":""}]
[null,{"$f":"IF(C616<>\"\",IF(VoletGeneral!$B$6<>\"en\",D616,C616),\"\")","v":""}]
[null,{"$f":"IF(C617<>\"\",IF(VoletGeneral!$B$6<>\"en\",D617,C617),\"\")","v":""}]
[null,{"$f":"IF(C618<>\"\",IF(VoletGeneral!$B$6<>\"en\",D618,C618),\"\")","v":""}]
[null,{"$f":"IF(C619<>\"\",IF(VoletGeneral!$B$6<>\"en\",D619,C619),\"\")","v":""}]
[null,{"$f":"IF(C620<>\"\",IF(VoletGeneral!$B$6<>\"en\",D620,C620),\"\")","v":""}]
[null,{"$f":"IF(C621<>\"\",IF(VoletGeneral!$B$6<>\"en\",D621,C621),\"\")","v":""}]
[null,{"$f":"IF(C622<>\"\",IF(VoletGeneral!$B$6<>\"en\",D622,C622),\"\")","v":""}]
[null,{"$f":"IF(C623<>\"\",IF(VoletGeneral!$B$6<>\"en\",D623,C623),\"\")","v":""}]
[null,{"$f":"IF(C624<>\"\",IF(VoletGeneral!$B$6<>\"en\",D624,C624),\"\")","v":""}]
[null,{"$f":"IF(C625<>\"\",IF(VoletGeneral!$B$6<>\"en\",D625,C625),\"\")","v":""}]
[null,{"$f":"IF(C626<>\"\",IF(VoletGeneral!$B$6<>\"en\",D626,C626),\"\")","v":""}]
[null,{"$f":"IF(C627<>\"\",IF(VoletGeneral!$B$6<>\"en\",D627,C627),\"\")","v":""}]
[null,{"$f":"IF(C628<>\"\",IF(VoletGeneral!$B$6<>\"en\",D628,C628),\"\")","v":""}]
[null,{"$f":"IF(C629<>\"\",IF(VoletGeneral!$B$6<>\"en\",D629,C629),\"\")","v":""}]
[null,{"$f":"IF(C630<>\"\",IF(VoletGeneral!$B$6<>\"en\",D630,C630),\"\")","v":""}]
[null,{"$f":"IF(C631<>\"\",IF(VoletGeneral!$B$6<>\"en\",D631,C631),\"\")","v":""}]
[null,{"$f":"IF(C632<>\"\",IF(VoletGeneral!$B$6<>\"en\",D632,C632),\"\")","v":""}]
[null,{"$f":"IF(C633<>\"\",IF(VoletGeneral!$B$6<>\"en\",D633,C633),\"\")","v":""}]
[null,{"$f":"IF(C634<>\"\",IF(VoletGeneral!$B$6<>\"en\",D634,C634),\"\")","v":""}]
[null,{"$f":"IF(C635<>\"\",IF(VoletGeneral!$B$6<>\"en\",D635,C635),\"\")","v":""}]
[null,{"$f":"IF(C636<>\"\",IF(VoletGeneral!$B$6<>\"en\",D636,C636),\"\")","v":""}]
[null,{"$f":"IF(C637<>\"\",IF(VoletGeneral!$B$6<>\"en\",D637,C637),\"\")","v":""}]
[null,{"$f":"IF(C638<>\"\",IF(VoletGeneral!$B$6<>\"en\",D638,C638),\"\")","v":""}]
[null,{"$f":"IF(C639<>\"\",IF(VoletGeneral!$B$6<>\"en\",D639,C639),\"\")","v":""}]
[null,{"$f":"IF(C640<>\"\",IF(VoletGeneral!$B$6<>\"en\",D640,C640),\"\")","v":""}]
[null,{"$f":"IF(C641<>\"\",IF(VoletGeneral!$B$6<>\"en\",D641,C641),\"\")","v":""}]
[null,{"$f":"IF(C642<>\"\",IF(VoletGeneral!$B$6<>\"en\",D642,C642),\"\")","v":""}]
[null,{"$f":"IF(C643<>\"\",IF(VoletGeneral!$B$6<>\"en\",D643,C643),\"\")","v":""}]
[null,{"$f":"IF(C644<>\"\",IF(VoletGeneral!$B$6<>\"en\",D644,C644),\"\")","v":""}]
[null,{"$f":"IF(C645<>\"\",IF(VoletGeneral!$B$6<>\"en\",D645,C645),\"\")","v":""}]
[null,{"$f":"IF(C646<>\"\",IF(VoletGeneral!$B$6<>\"en\",D646,C646),\"\")","v":""}]
[null,{"$f":"IF(C647<>\"\",IF(VoletGeneral!$B$6<>\"en\",D647,C647),\"\")","v":""}]
[null,{"$f":"IF(C648<>\"\",IF(VoletGeneral!$B$6<>\"en\",D648,C648),\"\")","v":""}]
[null,{"$f":"IF(C649<>\"\",IF(VoletGeneral!$B$6<>\"en\",D649,C649),\"\")","v":""}]
[null,{"$f":"IF(C650<>\"\",IF(VoletGeneral!$B$6<>\"en\",D650,C650),\"\")","v":""}]
[null,{"$f":"IF(C651<>\"\",IF(VoletGeneral!$B$6<>\"en\",D651,C651),\"\")","v":""}]
[null,{"$f":"IF(C652<>\"\",IF(VoletGeneral!$B$6<>\"en\",D652,C652),\"\")","v":""}]
[null,{"$f":"IF(C653<>\"\",IF(VoletGeneral!$B$6<>\"en\",D653,C653),\"\")","v":""}]
[null,{"$f":"IF(C654<>\"\",IF(VoletGeneral!$B$6<>\"en\",D654,C654),\"\")","v":""}]
[null,{"$f":"IF(C655<>\"\",IF(VoletGeneral!$B$6<>\"en\",D655,C655),\"\")","v":""}]
[null,{"$f":"IF(C656<>\"\",IF(VoletGeneral!$B$6<>\"en\",D656,C656),\"\")","v":""}]
[null,{"$f":"IF(C657<>\"\",IF(VoletGeneral!$B$6<>\"en\",D657,C657),\"\")","v":""}]
[null,{"$f":"IF(C658<>\"\",IF(VoletGeneral!$B$6<>\"en\",D658,C658),\"\")","v":""}]
[null,{"$f":"IF(C659<>\"\",IF(VoletGeneral!$B$6<>\"en\",D659,C659),\"\")","v":""}]
[null,{"$f":"IF(C660<>\"\",IF(VoletGeneral!$B$6<>\"en\",D660,C660),\"\")","v":""}]
[null,{"$f":"IF(C661<>\"\",IF(VoletGeneral!$B$6<>\"en\",D661,C661),\"\")","v":""}]
[null,{"$f":"IF(C662<>\"\",IF(VoletGeneral!$B$6<>\"en\",D662,C662),\"\")","v":""}]
[null,{"$f":"IF(C663<>\"\",IF(VoletGeneral!$B$6<>\"en\",D663,C663),\"\")","v":""}]
[null,{"$f":"IF(C664<>\"\",IF(VoletGeneral!$B$6<>\"en\",D664,C664),\"\")","v":""}]
[null,{"$f":"IF(C665<>\"\",IF(VoletGeneral!$B$6<>\"en\",D665,C665),\"\")","v":""}]
[null,{"$f":"IF(C666<>\"\",IF(VoletGeneral!$B$6<>\"en\",D666,C666),\"\")","v":""}]
[null,{"$f":"IF(C667<>\"\",IF(VoletGeneral!$B$6<>\"en\",D667,C667),\"\")","v":""}]
[null,{"$f":"IF(C668<>\"\",IF(VoletGeneral!$B$6<>\"en\",D668,C668),\"\")","v":""}]
[null,{"$f":"IF(C669<>\"\",IF(VoletGeneral!$B$6<>\"en\",D669,C669),\"\")","v":""}]
[null,{"$f":"IF(C670<>\"\",IF(VoletGeneral!$B$6<>\"en\",D670,C670),\"\")","v":""}]
[null,{"$f":"IF(C671<>\"\",IF(VoletGeneral!$B$6<>\"en\",D671,C671),\"\")","v":""}]
[null,{"$f":"IF(C672<>\"\",IF(VoletGeneral!$B$6<>\"en\",D672,C672),\"\")","v":""}]
[null,{"$f":"IF(C673<>\"\",IF(VoletGeneral!$B$6<>\"en\",D673,C673),\"\")","v":""}]
[null,{"$f":"IF(C674<>\"\",IF(VoletGeneral!$B$6<>\"en\",D674,C674),\"\")","v":""}]
[null,{"$f":"IF(C675<>\"\",IF(VoletGeneral!$B$6<>\"en\",D675,C675),\"\")","v":""}]
[null,{"$f":"IF(C676<>\"\",IF(VoletGeneral!$B$6<>\"en\",D676,C676),\"\")","v":""}]
[null,{"$f":"IF(C677<>\"\",IF(VoletGeneral!$B$6<>\"en\",D677,C677),\"\")","v":""}]
[null,{"$f":"IF(C678<>\"\",IF(VoletGeneral!$B$6<>\"en\",D678,C678),\"\")","v":""}]
[null,{"$f":"IF(C679<>\"\",IF(VoletGeneral!$B$6<>\"en\",D679,C679),\"\")","v":""}]
[null,{"$f":"IF(C680<>\"\",IF(VoletGeneral!$B$6<>\"en\",D680,C680),\"\")","v":""}]
[null,{"$f":"IF(C681<>\"\",IF(VoletGeneral!$B$6<>\"en\",D681,C681),\"\")","v":""}]
[null,{"$f":"IF(C682<>\"\",IF(VoletGeneral!$B$6<>\"en\",D682,C682),\"\")","v":""}]
[null,{"$f":"IF(C683<>\"\",IF(VoletGeneral!$B$6<>\"en\",D683,C683),\"\")","v":""}]
[null,{"$f":"IF(C684<>\"\",IF(VoletGeneral!$B$6<>\"en\",D684,C684),\"\")","v":""}]
[null,{"$f":"IF(C685<>\"\",IF(VoletGeneral!$B$6<>\"en\",D685,C685),\"\")","v":""}]
[null,{"$f":"IF(C686<>\"\",IF(VoletGeneral!$B$6<>\"en\",D686,C686),\"\")","v":""}]
[null,{"$f":"IF(C687<>\"\",IF(VoletGeneral!$B$6<>\"en\",D687,C687),\"\")","v":""}]
[null,{"$f":"IF(C688<>\"\",IF(VoletGeneral!$B$6<>\"en\",D688,C688),\"\")","v":""}]
[null,{"$f":"IF(C689<>\"\",IF(VoletGeneral!$B$6<>\"en\",D689,C689),\"\")","v":""}]
[null,{"$f":"IF(C690<>\"\",IF(VoletGeneral!$B$6<>\"en\",D690,C690),\"\")","v":""}]
[null,{"$f":"IF(C691<>\"\",IF(VoletGeneral!$B$6<>\"en\",D691,C691),\"\")","v":""}]
[null,{"$f":"IF(C692<>\"\",IF(VoletGeneral!$B$6<>\"en\",D692,C692),\"\")","v":""}]
[null,{"$f":"IF(C693<>\"\",IF(VoletGeneral!$B$6<>\"en\",D693,C693),\"\")","v":""}]
[null,{"$f":"IF(C694<>\"\",IF(VoletGeneral!$B$6<>\"en\",D694,C694),\"\")","v":""}]
[null,{"$f":"IF(C695<>\"\",IF(VoletGeneral!$B$6<>\"en\",D695,C695),\"\")","v":""}]
[null,{"$f":"IF(C696<>\"\",IF(VoletGeneral!$B$6<>\"en\",D696,C696),\"\")","v":""}]
[null,{"$f":"IF(C697<>\"\",IF(VoletGeneral!$B$6<>\"en\",D697,C697),\"\")","v":""}]
[null,{"$f":"IF(C698<>\"\",IF(VoletGeneral!$B$6<>\"en\",D698,C698),\"\")","v":""}]
[null,{"$f":"IF(C699<>\"\",IF(VoletGeneral!$B$6<>\"en\",D699,C699),\"\")","v":""}]
[null,{"$f":"IF(C700<>\"\",IF(VoletGeneral!$B$6<>\"en\",D700,C700),\"\")","v":""}]
[null,{"$f":"IF(C701<>\"\",IF(VoletGeneral!$B$6<>\"en\",D701,C701),\"\")","v":""}]
[null,{"$f":"IF(C702<>\"\",IF(VoletGeneral!$B$6<>\"en\",D702,C702),\"\")","v":""}]
[null,{"$f":"IF(C703<>\"\",IF(VoletGeneral!$B$6<>\"en\",D703,C703),\"\")","v":""}]
[null,{"$f":"IF(C704<>\"\",IF(VoletGeneral!$B$6<>\"en\",D704,C704),\"\")","v":""}]
[null,{"$f":"IF(C705<>\"\",IF(VoletGeneral!$B$6<>\"en\",D705,C705),\"\")","v":""}]
[null,{"$f":"IF(C706<>\"\",IF(VoletGeneral!$B$6<>\"en\",D706,C706),\"\")","v":""}]
[null,{"$f":"IF(C707<>\"\",IF(VoletGeneral!$B$6<>\"en\",D707,C707),\"\")","v":""}]
[null,{"$f":"IF(C708<>\"\",IF(VoletGeneral!$B$6<>\"en\",D708,C708),\"\")","v":""}]
[null,{"$f":"IF(C709<>\"\",IF(VoletGeneral!$B$6<>\"en\",D709,C709),\"\")","v":""}]
[null,{"$f":"IF(C710<>\"\",IF(VoletGeneral!$B$6<>\"en\",D710,C710),\"\")","v":""}]
[null,{"$f":"IF(C711<>\"\",IF(VoletGeneral!$B$6<>\"en\",D711,C711),\"\")","v":""}]
[null,{"$f":"IF(C712<>\"\",IF(VoletGeneral!$B$6<>\"en\",D712,C712),\"\")","v":""}]
[null,{"$f":"IF(C713<>\"\",IF(VoletGeneral!$B$6<>\"en\",D713,C713),\"\")","v":""}]
[null,{"$f":"IF(C714<>\"\",IF(VoletGeneral!$B$6<>\"en\",D714,C714),\"\")","v":""}]
[null,{"$f":"IF(C715<>\"\",IF(VoletGeneral!$B$6<>\"en\",D715,C715),\"\")","v":""}]
[null,{"$f":"IF(C716<>\"\",IF(VoletGeneral!$B$6<>\"en\",D716,C716),\"\")","v":""}]
[null,{"$f":"IF(C717<>\"\",IF(VoletGeneral!$B$6<>\"en\",D717,C717),\"\")","v":""}]
[null,{"$f":"IF(C718<>\"\",IF(VoletGeneral!$B$6<>\"en\",D718,C718),\"\")","v":""}]
[null,{"$f":"IF(C719<>\"\",IF(VoletGeneral!$B$6<>\"en\",D719,C719),\"\")","v":""}]
[null,{"$f":"IF(C720<>\"\",IF(VoletGeneral!$B$6<>\"en\",D720,C720),\"\")","v":""}]
[null,{"$f":"IF(C721<>\"\",IF(VoletGeneral!$B$6<>\"en\",D721,C721),\"\")","v":""}]
[null,{"$f":"IF(C722<>\"\",IF(VoletGeneral!$B$6<>\"en\",D722,C722),\"\")","v":""}]
[null,{"$f":"IF(C723<>\"\",IF(VoletGeneral!$B$6<>\"en\",D723,C723),\"\")","v":""}]
[null,{"$f":"IF(C724<>\"\",IF(VoletGeneral!$B$6<>\"en\",D724,C724),\"\")","v":""}]
[null,{"$f":"IF(C725<>\"\",IF(VoletGeneral!$B$6<>\"en\",D725,C725),\"\")","v":""}]
[null,{"$f":"IF(C726<>\"\",IF(VoletGeneral!$B$6<>\"en\",D726,C726),\"\")","v":""}]
[null,{"$f":"IF(C727<>\"\",IF(VoletGeneral!$B$6<>\"en\",D727,C727),\"\")","v":""}]
[null,{"$f":"IF(C728<>\"\",IF(VoletGeneral!$B$6<>\"en\",D728,C728),\"\")","v":""}]
[null,{"$f":"IF(C729<>\"\",IF(VoletGeneral!$B$6<>\"en\",D729,C729),\"\")","v":""}]
[null,{"$f":"IF(C730<>\"\",IF(VoletGeneral!$B$6<>\"en\",D730,C730),\"\")","v":""}]
[null,{"$f":"IF(C731<>\"\",IF(VoletGeneral!$B$6<>\"en\",D731,C731),\"\")","v":""}]
[null,{"$f":"IF(C732<>\"\",IF(VoletGeneral!$B$6<>\"en\",D732,C732),\"\")","v":""}]
[null,{"$f":"IF(C733<>\"\",IF(VoletGeneral!$B$6<>\"en\",D733,C733),\"\")","v":""}]
[null,{"$f":"IF(C734<>\"\",IF(VoletGeneral!$B$6<>\"en\",D734,C734),\"\")","v":""}]
[null,{"$f":"IF(C735<>\"\",IF(VoletGeneral!$B$6<>\"en\",D735,C735),\"\")","v":""}]
[null,{"$f":"IF(C736<>\"\",IF(VoletGeneral!$B$6<>\"en\",D736,C736),\"\")","v":""}]
[null,{"$f":"IF(C737<>\"\",IF(VoletGeneral!$B$6<>\"en\",D737,C737),\"\")","v":""}]
[null,{"$f":"IF(C738<>\"\",IF(VoletGeneral!$B$6<>\"en\",D738,C738),\"\")","v":""}]
[null,{"$f":"IF(C739<>\"\",IF(VoletGeneral!$B$6<>\"en\",D739,C739),\"\")","v":""}]
[null,{"$f":"IF(C740<>\"\",IF(VoletGeneral!$B$6<>\"en\",D740,C740),\"\")","v":""}]
[null,{"$f":"IF(C741<>\"\",IF(VoletGeneral!$B$6<>\"en\",D741,C741),\"\")","v":""}]
[null,{"$f":"IF(C742<>\"\",IF(VoletGeneral!$B$6<>\"en\",D742,C742),\"\")","v":""}]
[null,{"$f":"IF(C743<>\"\",IF(VoletGeneral!$B$6<>\"en\",D743,C743),\"\")","v":""}]
[null,{"$f":"IF(C744<>\"\",IF(VoletGeneral!$B$6<>\"en\",D744,C744),\"\")","v":""}]
[null,{"$f":"IF(C745<>\"\",IF(VoletGeneral!$B$6<>\"en\",D745,C745),\"\")","v":""}]
[null,{"$f":"IF(C746<>\"\",IF(VoletGeneral!$B$6<>\"en\",D746,C746),\"\")","v":""}]
[null,{"$f":"IF(C747<>\"\",IF(VoletGeneral!$B$6<>\"en\",D747,C747),\"\")","v":""}]
[null,{"$f":"IF(C748<>\"\",IF(VoletGeneral!$B$6<>\"en\",D748,C748),\"\")","v":""}]
[null,{"$f":"IF(C749<>\"\",IF(VoletGeneral!$B$6<>\"en\",D749,C749),\"\")","v":""}]
[null,{"$f":"IF(C750<>\"\",IF(VoletGeneral!$B$6<>\"en\",D750,C750),\"\")","v":""}]
[null,{"$f":"IF(C751<>\"\",IF(VoletGeneral!$B$6<>\"en\",D751,C751),\"\")","v":""}]
[null,{"$f":"IF(C752<>\"\",IF(VoletGeneral!$B$6<>\"en\",D752,C752),\"\")","v":""}]
[null,{"$f":"IF(C753<>\"\",IF(VoletGeneral!$B$6<>\"en\",D753,C753),\"\")","v":""}]
[null,{"$f":"IF(C754<>\"\",IF(VoletGeneral!$B$6<>\"en\",D754,C754),\"\")","v":""}]
[null,{"$f":"IF(C755<>\"\",IF(VoletGeneral!$B$6<>\"en\",D755,C755),\"\")","v":""}]
[null,{"$f":"IF(C756<>\"\",IF(VoletGeneral!$B$6<>\"en\",D756,C756),\"\")","v":""}]
[null,{"$f":"IF(C757<>\"\",IF(VoletGeneral!$B$6<>\"en\",D757,C757),\"\")","v":""}]
[null,{"$f":"IF(C758<>\"\",IF(VoletGeneral!$B$6<>\"en\",D758,C758),\"\")","v":""}]
[null,{"$f":"IF(C759<>\"\",IF(VoletGeneral!$B$6<>\"en\",D759,C759),\"\")","v":""}]
[null,{"$f":"IF(C760<>\"\",IF(VoletGeneral!$B$6<>\"en\",D760,C760),\"\")","v":""}]
[null,{"$f":"IF(C761<>\"\",IF(VoletGeneral!$B$6<>\"en\",D761,C761),\"\")","v":""}]
[null,{"$f":"IF(C762<>\"\",IF(VoletGeneral!$B$6<>\"en\",D762,C762),\"\")","v":""}]
[null,{"$f":"IF(C763<>\"\",IF(VoletGeneral!$B$6<>\"en\",D763,C763),\"\")","v":""}]
[null,{"$f":"IF(C764<>\"\",IF(VoletGeneral!$B$6<>\"en\",D764,C764),\"\")","v":""}]
[null,{"$f":"IF(C765<>\"\",IF(VoletGeneral!$B$6<>\"en\",D765,C765),\"\")","v":""}]
[null,{"$f":"IF(C766<>\"\",IF(VoletGeneral!$B$6<>\"en\",D766,C766),\"\")","v":""}]
[null,{"$f":"IF(C767<>\"\",IF(VoletGeneral!$B$6<>\"en\",D767,C767),\"\")","v":""}]
[null,{"$f":"IF(C768<>\"\",IF(VoletGeneral!$B$6<>\"en\",D768,C768),\"\")","v":""}]
[null,{"$f":"IF(C769<>\"\",IF(VoletGeneral!$B$6<>\"en\",D769,C769),\"\")","v":""}]
[null,{"$f":"IF(C770<>\"\",IF(VoletGeneral!$B$6<>\"en\",D770,C770),\"\")","v":""}]
[null,{"$f":"IF(C771<>\"\",IF(VoletGeneral!$B$6<>\"en\",D771,C771),\"\")","v":""}]
[null,{"$f":"IF(C772<>\"\",IF(VoletGeneral!$B$6<>\"en\",D772,C772),\"\")","v":""}]
[null,{"$f":"IF(C773<>\"\",IF(VoletGeneral!$B$6<>\"en\",D773,C773),\"\")","v":""}]
[null,{"$f":"IF(C774<>\"\",IF(VoletGeneral!$B$6<>\"en\",D774,C774),\"\")","v":""}]
[null,{"$f":"IF(C775<>\"\",IF(VoletGeneral!$B$6<>\"en\",D775,C775),\"\")","v":""}]
[null,{"$f":"IF(C776<>\"\",IF(VoletGeneral!$B$6<>\"en\",D776,C776),\"\")","v":""}]
[null,{"$f":"IF(C777<>\"\",IF(VoletGeneral!$B$6<>\"en\",D777,C777),\"\")","v":""}]
[null,{"$f":"IF(C778<>\"\",IF(VoletGeneral!$B$6<>\"en\",D778,C778),\"\")","v":""}]
[null,{"$f":"IF(C779<>\"\",IF(VoletGeneral!$B$6<>\"en\",D779,C779),\"\")","v":""}]
[null,{"$f":"IF(C780<>\"\",IF(VoletGeneral!$B$6<>\"en\",D780,C780),\"\")","v":""}]
[null,{"$f":"IF(C781<>\"\",IF(VoletGeneral!$B$6<>\"en\",D781,C781),\"\")","v":""}]
[null,{"$f":"IF(C782<>\"\",IF(VoletGeneral!$B$6<>\"en\",D782,C782),\"\")","v":""}]
[null,{"$f":"IF(C783<>\"\",IF(VoletGeneral!$B$6<>\"en\",D783,C783),\"\")","v":""}]
[null,{"$f":"IF(C784<>\"\",IF(VoletGeneral!$B$6<>\"en\",D784,C784),\"\")","v":""}]
[null,{"$f":"IF(C785<>\"\",IF(VoletGeneral!$B$6<>\"en\",D785,C785),\"\")","v":""}]
[null,{"$f":"IF(C786<>\"\",IF(VoletGeneral!$B$6<>\"en\",D786,C786),\"\")","v":""}]
[null,{"$f":"IF(C787<>\"\",IF(VoletGeneral!$B$6<>\"en\",D787,C787),\"\")","v":""}]
[null,{"$f":"IF(C788<>\"\",IF(VoletGeneral!$B$6<>\"en\",D788,C788),\"\")","v":""}]
[null,{"$f":"IF(C789<>\"\",IF(VoletGeneral!$B$6<>\"en\",D789,C789),\"\")","v":""}]
[null,{"$f":"IF(C790<>\"\",IF(VoletGeneral!$B$6<>\"en\",D790,C790),\"\")","v":""}]
[null,{"$f":"IF(C791<>\"\",IF(VoletGeneral!$B$6<>\"en\",D791,C791),\"\")","v":""}]
[null,{"$f":"IF(C792<>\"\",IF(VoletGeneral!$B$6<>\"en\",D792,C792),\"\")","v":""}]
[null,{"$f":"IF(C793<>\"\",IF(VoletGeneral!$B$6<>\"en\",D793,C793),\"\")","v":""}]
[null,{"$f":"IF(C794<>\"\",IF(VoletGeneral!$B$6<>\"en\",D794,C794),\"\")","v":""}]
[null,{"$f":"IF(C795<>\"\",IF(VoletGeneral!$B$6<>\"en\",D795,C795),\"\")","v":""}]
[null,{"$f":"IF(C796<>\"\",IF(VoletGeneral!$B$6<>\"en\",D796,C796),\"\")","v":""}]
[null,{"$f":"IF(C797<>\"\",IF(VoletGeneral!$B$6<>\"en\",D797,C797),\"\")","v":""}]
[null,{"$f":"IF(C798<>\"\",IF(VoletGeneral!$B$6<>\"en\",D798,C798),\"\")","v":""}]
[null,{"$f":"IF(C799<>\"\",IF(VoletGeneral!$B$6<>\"en\",D799,C799),\"\")","v":""}]
[null,{"$f":"IF(C800<>\"\",IF(VoletGeneral!$B$6<>\"en\",D800,C800),\"\")","v":""}]
[null,{"$f":"IF(C801<>\"\",IF(VoletGeneral!$B$6<>\"en\",D801,C801),\"\")","v":""}]
[null,{"$f":"IF(C802<>\"\",IF(VoletGeneral!$B$6<>\"en\",D802,C802),\"\")","v":""}]
[null,{"$f":"IF(C803<>\"\",IF(VoletGeneral!$B$6<>\"en\",D803,C803),\"\")","v":""}]
[null,{"$f":"IF(C804<>\"\",IF(VoletGeneral!$B$6<>\"en\",D804,C804),\"\")","v":""}]
[null,{"$f":"IF(C805<>\"\",IF(VoletGeneral!$B$6<>\"en\",D805,C805),\"\")","v":""}]
[null,{"$f":"IF(C806<>\"\",IF(VoletGeneral!$B$6<>\"en\",D806,C806),\"\")","v":""}]
[null,{"$f":"IF(C807<>\"\",IF(VoletGeneral!$B$6<>\"en\",D807,C807),\"\")","v":""}]
[null,{"$f":"IF(C808<>\"\",IF(VoletGeneral!$B$6<>\"en\",D808,C808),\"\")","v":""}]
[null,{"$f":"IF(C809<>\"\",IF(VoletGeneral!$B$6<>\"en\",D809,C809),\"\")","v":""}]
[null,{"$f":"IF(C810<>\"\",IF(VoletGeneral!$B$6<>\"en\",D810,C810),\"\")","v":""}]
[null,{"$f":"IF(C811<>\"\",IF(VoletGeneral!$B$6<>\"en\",D811,C811),\"\")","v":""}]
[null,{"$f":"IF(C812<>\"\",IF(VoletGeneral!$B$6<>\"en\",D812,C812),\"\")","v":""}]
[null,{"$f":"IF(C813<>\"\",IF(VoletGeneral!$B$6<>\"en\",D813,C813),\"\")","v":""}]
[null,{"$f":"IF(C814<>\"\",IF(VoletGeneral!$B$6<>\"en\",D814,C814),\"\")","v":""}]
[null,{"$f":"IF(C815<>\"\",IF(VoletGeneral!$B$6<>\"en\",D815,C815),\"\")","v":""}]
[null,{"$f":"IF(C816<>\"\",IF(VoletGeneral!$B$6<>\"en\",D816,C816),\"\")","v":""}]
[null,{"$f":"IF(C817<>\"\",IF(VoletGeneral!$B$6<>\"en\",D817,C817),\"\")","v":""}]
[null,{"$f":"IF(C818<>\"\",IF(VoletGeneral!$B$6<>\"en\",D818,C818),\"\")","v":""}]
[null,{"$f":"IF(C819<>\"\",IF(VoletGeneral!$B$6<>\"en\",D819,C819),\"\")","v":""}]
[null,{"$f":"IF(C820<>\"\",IF(VoletGeneral!$B$6<>\"en\",D820,C820),\"\")","v":""}]
[null,{"$f":"IF(C821<>\"\",IF(VoletGeneral!$B$6<>\"en\",D821,C821),\"\")","v":""}]
[null,{"$f":"IF(C822<>\"\",IF(VoletGeneral!$B$6<>\"en\",D822,C822),\"\")","v":""}]
[null,{"$f":"IF(C823<>\"\",IF(VoletGeneral!$B$6<>\"en\",D823,C823),\"\")","v":""}]
[null,{"$f":"IF(C824<>\"\",IF(VoletGeneral!$B$6<>\"en\",D824,C824),\"\")","v":""}]
[null,{"$f":"IF(C825<>\"\",IF(VoletGeneral!$B$6<>\"en\",D825,C825),\"\")","v":""}]
[null,{"$f":"IF(C826<>\"\",IF(VoletGeneral!$B$6<>\"en\",D826,C826),\"\")","v":""}]
[null,{"$f":"IF(C827<>\"\",IF(VoletGeneral!$B$6<>\"en\",D827,C827),\"\")","v":""}]
[null,{"$f":"IF(C828<>\"\",IF(VoletGeneral!$B$6<>\"en\",D828,C828),\"\")","v":""}]
[null,{"$f":"IF(C829<>\"\",IF(VoletGeneral!$B$6<>\"en\",D829,C829),\"\")","v":""}]
[null,{"$f":"IF(C830<>\"\",IF(VoletGeneral!$B$6<>\"en\",D830,C830),\"\")","v":""}]
[null,{"$f":"IF(C831<>\"\",IF(VoletGeneral!$B$6<>\"en\",D831,C831),\"\")","v":""}]
[null,{"$f":"IF(C832<>\"\",IF(VoletGeneral!$B$6<>\"en\",D832,C832),\"\")","v":""}]
[null,{"$f":"IF(C833<>\"\",IF(VoletGeneral!$B$6<>\"en\",D833,C833),\"\")","v":""}]
[null,{"$f":"IF(C834<>\"\",IF(VoletGeneral!$B$6<>\"en\",D834,C834),\"\")","v":""}]
[null,{"$f":"IF(C835<>\"\",IF(VoletGeneral!$B$6<>\"en\",D835,C835),\"\")","v":""}]

{"sheet":"MenusDeroulants","index":8,"n_rows":364,"n_cols":6,"rows_kept":364,"cut":false,"hidden":true,"merged":[]}
[null,"Traduction","Anglais","Français","Données additionelles"]
["Nom de l'établissement",{"$f":"IF(C2<>\"\",IF(VoletGeneral!$B$6=\"En\",C2,D2),\"\")","v":""}]
["Secteur d'activité du partenaire",{"$f":"IF(C3<>\"\",IF(VoletGeneral!$B$6=\"En\",C3,D3),\"\")","v":""}]
[null,{"$f":"IF(C4<>\"\",IF(VoletGeneral!$B$6=\"En\",C4,D4),\"\")","v":"Entité aux coûts complets"},"Entity at total costs","Entité aux coûts complets"]
[null,{"$f":"IF(C5<>\"\",IF(VoletGeneral!$B$6=\"En\",C5,D5),\"\")","v":"Entité aux coûts marginaux"},"Entity at marginal costs","Entité aux coûts marginaux"]
["Choix",{"$f":"IF(C6<>\"\",IF(VoletGeneral!$B$6=\"En\",C6,D6),\"\")","v":""}]
[0,{"$f":"IF(C7<>\"\",IF(VoletGeneral!$B$6=\"En\",C7,D7),\"\")","v":"Oui"},"Yes","Oui"]
[1,{"$f":"IF(C8<>\"\",IF(VoletGeneral!$B$6=\"En\",C8,D8),\"\")","v":"Non"},"No","Non"]
["Type de partenaire aux coûts marginaux",{"$f":"IF(C9<>\"\",IF(VoletGeneral!$B$6=\"En\",C9,D9),\"\")","v":""}]
[0,{"$f":"IF(C10<>\"\",IF(VoletGeneral!$B$6=\"En\",C10,D10),\"\")","v":"Éts. public à caractère scientifique, culturel et professionnel"},"Public scientific, cultural and professional inst.","Éts. public à caractère scientifique, culturel et professionnel"]
[1,{"$f":"IF(C11<>\"\",IF(VoletGeneral!$B$6=\"En\",C11,D11),\"\")","v":"Éts. public à caractère scientifique et technologique"},"Public scientific and technological inst.","Éts. public à caractère scientifique et technologique"]
[2,{"$f":"IF(C12<>\"\",IF(VoletGeneral!$B$6=\"En\",C12,D12),\"\")","v":"Éts. public à caractère industriel et commercial"},"Public industrial and commercial inst.","Éts. public à caractère industriel et commercial"]
[3,{"$f":"IF(C13<>\"\",IF(VoletGeneral!$B$6=\"En\",C13,D13),\"\")","v":"Établissement public administratif"},"Public administrative institution","Établissement public administratif"]
[4,{"$f":"IF(C14<>\"\",IF(VoletGeneral!$B$6=\"En\",C14,D14),\"\")","v":"Établissement public de santé"},"Public health institution","Établissement public de santé"]
[5,{"$f":"IF(C15<>\"\",IF(VoletGeneral!$B$6=\"En\",C15,D15),\"\")","v":"Fondation de coopération scientifique"},"Scientific coopération foundation","Fondation de coopération scientifique"]
[6,{"$f":"IF(C16<>\"\",IF(VoletGeneral!$B$6=\"En\",C16,D16),\"\")","v":"Association ou fondation publique"},"Public association or fundation","Association ou fondation publique"]
[7,{"$f":"IF(C17<>\"\",IF(VoletGeneral!$B$6=\"En\",C17,D17),\"\")","v":"Établissement étranger"},"Foreign public institution","Établissement étranger"]
[8,{"$f":"IF(C18<>\"\",IF(VoletGeneral!$B$6=\"En\",C18,D18),\"\")","v":"Autre Public"},"Other public","Autre Public"]
["Type de partenaire aux coûts complets",{"$f":"IF(C19<>\"\",IF(VoletGeneral!$B$6=\"En\",C19,D19),\"\")","v":""}]
[0,{"$f":"IF(C20<>\"\",IF(VoletGeneral!$B$6=\"En\",C20,D20),\"\")","v":"Association"},"Association","Association"]
[1,{"$f":"IF(C21<>\"\",IF(VoletGeneral!$B$6=\"En\",C21,D21),\"\")","v":"Fondation"},"Fundation","Fondation"]
[2,{"$f":"IF(C22<>\"\",IF(VoletGeneral!$B$6=\"En\",C22,D22),\"\")","v":"Éts. public à caractère industriel et commercial"},"Public industrial and commercial inst.","Éts. public à caractère industriel et commercial"]
[3,{"$f":"IF(C23<>\"\",IF(VoletGeneral!$B$6=\"En\",C23,D23),\"\")","v":"Entreprise"},"Company","Entreprise"]
[4,{"$f":"IF(C24<>\"\",IF(VoletGeneral!$B$6=\"En\",C24,D24),\"\")","v":"Privé étranger"},"Foreign private","Privé étranger"]
[5,{"$f":"IF(C25<>\"\",IF(VoletGeneral!$B$6=\"En\",C25,D25),\"\")","v":"Autre privé"},"Other private","Autre privé"]
[null,{"$f":"IF(C26<>\"\",IF(VoletGeneral!$B$6=\"En\",C26,D26),\"\")","v":""}]
[null,{"$f":"IF(C27<>\"\",IF(VoletGeneral!$B$6=\"En\",C27,D27),\"\")","v":""}]
["Pays",{"$f":"IF(C28<>\"\",IF(VoletGeneral!$B$6=\"En\",C28,D28),\"\")","v":""}]
["FR",{"$f":"IF(C29<>\"\",IF(VoletGeneral!$B$6=\"En\",C29,D29),\"\")","v":"France"},"France","France","+33",{"$f":"B29&IF(VoletGeneral!$B$6=\"en\",\"\",\" \")&\": \"&E29","v":"France : +33"}]
["-",{"$f":"IF(C30<>\"\",IF(VoletGeneral!$B$6=\"En\",C30,D30),\"\")","v":""},null,null,null,{"$f":"B30&IF(VoletGeneral!$B$6=\"en\",\"\",\" \")&\": \"&E30","v":" : "}]
["AD",{"$f":"IF(C31<>\"\",IF(VoletGeneral!$B$6=\"En\",C31,D31),\"\")","v":"Andorre"},"Andorra","Andorre","+376",{"$f":"B31&IF(VoletGeneral!$B$6=\"en\",\"\",\" \")&\": \"&E31","v":"Andorre : +376"}]
["AE",{"$f":"IF(C32<>\"\",IF(VoletGeneral!$B$6=\"En\",C32,D32),\"\")","v":"Emirats Arabes Unis"},"United Arab Emirates","Emirats Arabes Unis","+971",{"$f":"B32&IF(VoletGeneral!$B$6=\"en\",\"\",\" \")&\": \"&E32","v":"Emirats Arabes Unis : +971"}]
["AF",{"$f":"IF(C33<>\"\",IF(VoletGeneral!$B$6=\"En\",C33,D33),\"\")","v":"Afghanistan"},"Afghanistan","Afghanistan","+93",{"$f":"B33&IF(VoletGeneral!$B$6=\"en\",\"\",\" \")&\": \"&E33","v":"Afghanistan : +93"}]
["AG",{"$f":"IF(C34<>\"\",IF(VoletGeneral!$B$6=\"En\",C34,D34),\"\")","v":"Antigua-et-Barbuda"},"Antigua and Barbuda","Antigua-et-Barbuda","+1268",{"$f":"B34&IF(VoletGeneral!$B$6=\"en\",\"\",\" \")&\": \"&E34","v":"Antigua-et-Barbuda : +1268"}]
["AI",{"$f":"IF(C35<>\"\",IF(VoletGeneral!$B$6=\"En\",C35,D35),\"\")","v":"Anguilla"},"Anguilla","Anguilla","+1264",{"$f":"B35&IF(VoletGeneral!$B$6=\"en\",\"\",\" \")&\": \"&E35","v":"Anguilla : +1264"}]
["AL",{"$f":"IF(C36<>\"\",IF(VoletGeneral!$B$6=\"En\",C36,D36),\"\")","v":"Albanie"},"Albania","Albanie","+355",{"$f":"B36&IF(VoletGeneral!$B$6=\"en\",\"\",\" \")&\": \"&E36","v":"Albanie : +355"}]
["AM",{"$f":"IF(C37<>\"\",IF(VoletGeneral!$B$6=\"En\",C37,D37),\"\")","v":"Arménie"},"Armenia","Arménie","+374",{"$f":"B37&IF(VoletGeneral!$B$6=\"en\",\"\",\" \")&\": \"&E37","v":"Arménie : +374"}]
["AO",{"$f":"IF(C38<>\"\",IF(VoletGeneral!$B$6=\"En\",C38,D38),\"\")","v":"Angola"},"Angola","Angola","+244",{"$f":"B38&IF(VoletGeneral!$B$6=\"en\",\"\",\" \")&\": \"&E38","v":"Angola : +244"}]
["AQ",{"$f":"IF(C39<>\"\",IF(VoletGeneral!$B$6=\"En\",C39,D39),\"\")","v":"Antarctique"},"Antarctica","Antarctique","+672",{"$f":"B39&IF(VoletGeneral!$B$6=\"en\",\"\",\" \")&\": \"&E39","v":"Antarctique : +672"}]
["AR",{"$f":"IF(C40<>\"\",IF(VoletGeneral!$B$6=\"En\",C40,D40),\"\")","v":"Argentine"},"Argentina","Argentine","+54",{"$f":"B40&IF(VoletGeneral!$B$6=\"en\",\"\",\" \")&\": \"&E40","v":"Argentine : +54"}]
["AS",{"$f":"IF(C41<>\"\",IF(VoletGeneral!$B$6=\"En\",C41,D41),\"\")","v":"Samoa Américaines"},"American Samoa","Samoa Américaines","+1684",{"$f":"B41&IF(VoletGeneral!$B$6=\"en\",\"\",\" \")&\": \"&E41","v":"Samoa Américaines : +1684"}]
["AT",{"$f":"IF(C42<>\"\",IF(VoletGeneral!$B$6=\"En\",C42,D42),\"\")","v":"Autriche"},"Austria","Autriche","+43",{"$f":"B42&IF(VoletGeneral!$B$6=\"en\",\"\",\" \")&\": \"&E42","v":"Autriche : +43"}]
["AU",{"$f":"IF(C43<>\"\",IF(VoletGeneral!$B$6=\"En\",C43,D43),\"\")","v":"Australie"},"Australia","Australie","+61",{"$f":"B43&IF(VoletGeneral!$B$6=\"en\",\"\",\" \")&\": \"&E43","v":"Australie : +61"}]
["AW",{"$f":"IF(C44<>\"\",IF(VoletGeneral!$B$6=\"En\",C44,D44),\"\")","v":"Aruba"},"Aruba","Aruba","+297",{"$f":"B44&IF(VoletGeneral!$B$6=\"en\",\"\",\" \")&\": \"&E44","v":"Aruba : +297"}]
["AX",{"$f":"IF(C45<>\"\",IF(VoletGeneral!$B$6=\"En\",C45,D45),\"\")","v":"Iles Aland"},"Åland Islands","Iles Aland","+358",{"$f":"B45&IF(VoletGeneral!$B$6=\"en\",\"\",\" \")&\": \"&E45","v":"Iles Aland : +358"}]
["AZ",{"$f":"IF(C46<>\"\",IF(VoletGeneral!$B$6=\"En\",C46,D46),\"\")","v":"Azerbaïdjan"},"Azerbaijan","Azerbaïdjan","+994",{"$f":"B46&IF(VoletGeneral!$B$6=\"en\",\"\",\" \")&\": \"&E46","v":"Azerbaïdjan : +994"}]
["BA",{"$f":"IF(C47<>\"\",IF(VoletGeneral!$B$6=\"En\",C47,D47),\"\")","v":"Bosnie Herzégovine"},"Bosnia and Herzegovina","Bosnie Herzégovine","+387",{"$f":"B47&IF(VoletGeneral!$B$6=\"en\",\"\",\" \")&\": \"&E47","v":"Bosnie Herzégovine : +387"}]
["BB",{"$f":"IF(C48<>\"\",IF(VoletGeneral!$B$6=\"En\",C48,D48),\"\")","v":"Barbade"},"Barbados","Barbade","+1246",{"$f":"B48&IF(VoletGeneral!$B$6=\"en\",\"\",\" \")&\": \"&E48","v":"Barbade : +1246"}]
["BD",{"$f":"IF(C49<>\"\",IF(VoletGeneral!$B$6=\"En\",C49,D49),\"\")","v":"Bangladesh"},"Bangladesh","Bangladesh","+880",{"$f":"B49&IF(VoletGeneral!$B$6=\"en\",\"\",\" \")&\": \"&E49","v":"Bangladesh : +880"}]
["BE",{"$f":"IF(C50<>\"\",IF(VoletGeneral!$B$6=\"En\",C50,D50),\"\")","v":"Belgique"},"Belgium","Belgique","+32",{"$f":"B50&IF(VoletGeneral!$B$6=\"en\",\"\",\" \")&\": \"&E50","v":"Belgique : +32"}]
["BF",{"$f":"IF(C51<>\"\",IF(VoletGeneral!$B$6=\"En\",C51,D51),\"\")","v":"Burkina Faso"},"Burkina Faso","Burkina Faso","+226",{"$f":"B51&IF(VoletGeneral!$B$6=\"en\",\"\",\" \")&\": \"&E51","v":"Burkina Faso : +226"}]
["BG",{"$f":"IF(C52<>\"\",IF(VoletGeneral!$B$6=\"En\",C52,D52),\"\")","v":"Bulgarie"},"Bulgaria","Bulgarie","+359",{"$f":"B52&IF(VoletGeneral!$B$6=\"en\",\"\",\" \")&\": \"&E52","v":"Bulgarie : +359"}]
["BH",{"$f":"IF(C53<>\"\",IF(VoletGeneral!$B$6=\"En\",C53,D53),\"\")","v":"Bahreïn"},"Bahrain","Bahreïn","+973",{"$f":"B53&IF(VoletGeneral!$B$6=\"en\",\"\",\" \")&\": \"&E53","v":"Bahreïn : +973"}]
["BI",{"$f":"IF(C54<>\"\",IF(VoletGeneral!$B$6=\"En\",C54,D54),\"\")","v":"Burundi"},"Burundi","Burundi","+257",{"$f":"B54&IF(VoletGeneral!$B$6=\"en\",\"\",\" \")&\": \"&E54","v":"Burundi : +257"}]
["BJ",{"$f":"IF(C55<>\"\",IF(VoletGeneral!$B$6=\"En\",C55,D55),\"\")","v":"Bénin"},"Benin","Bénin","+229",{"$f":"B55&IF(VoletGeneral!$B$6=\"en\",\"\",\" \")&\": \"&E55","v":"Bénin : +229"}]
["BL",{"$f":"IF(C56<>\"\",IF(VoletGeneral!$B$6=\"En\",C56,D56),\"\")","v":"Saint Barthélemy"},"Saint Barthélemy","Saint Barthélemy","+590",{"$f":"B56&IF(VoletGeneral!$B$6=\"en\",\"\",\" \")&\": \"&E56","v":"Saint Barthélemy : +590"}]
["BM",{"$f":"IF(C57<>\"\",IF(VoletGeneral!$B$6=\"En\",C57,D57),\"\")","v":"Bermuda"},"Bermuda","Bermuda","+1441",{"$f":"B57&IF(VoletGeneral!$B$6=\"en\",\"\",\" \")&\": \"&E57","v":"Bermuda : +1441"}]
["BN",{"$f":"IF(C58<>\"\",IF(VoletGeneral!$B$6=\"En\",C58,D58),\"\")","v":"Brunei Darussalam"},"Brunei Darussalam","Brunei Darussalam","+673",{"$f":"B58&IF(VoletGeneral!$B$6=\"en\",\"\",\" \")&\": \"&E58","v":"Brunei Darussalam : +673"}]
["BO",{"$f":"IF(C59<>\"\",IF(VoletGeneral!$B$6=\"En\",C59,D59),\"\")","v":"Bolivie"},"Bolivia","Bolivie","+591",{"$f":"B59&IF(VoletGeneral!$B$6=\"en\",\"\",\" \")&\": \"&E59","v":"Bolivie : +591"}]
["BQ",{"$f":"IF(C60<>\"\",IF(VoletGeneral!$B$6=\"En\",C60,D60),\"\")","v":"Bonaire, Saint-Eustache et Saba"},"Bonaire, Sint Eustatius and Saba","Bonaire, Saint-Eustache et Saba","+599",{"$f":"B60&IF(VoletGeneral!$B$6=\"en\",\"\",\" \")&\": \"&E60","v":"Bonaire, Saint-Eustache et Saba : +599"}]
["BR",{"$f":"IF(C61<>\"\",IF(VoletGeneral!$B$6=\"En\",C61,D61),\"\")","v":"Brésil"},"Brazil","Brésil","+55",{"$f":"B61&IF(VoletGeneral!$B$6=\"en\",\"\",\" \")&\": \"&E61","v":"Brésil : +55"}]
["BS",{"$f":"IF(C62<>\"\",IF(VoletGeneral!$B$6=\"En\",C62,D62),\"\")","v":"Bahamas"},"Bahamas","Bahamas","+1242",{"$f":"B62&IF(VoletGeneral!$B$6=\"en\",\"\",\" \")&\": \"&E62","v":"Bahamas : +1242"}]
["BT",{"$f":"IF(C63<>\"\",IF(VoletGeneral!$B$6=\"En\",C63,D63),\"\")","v":"Bhoutan"},"Bhutan","Bhoutan","+975",{"$f":"B63&IF(VoletGeneral!$B$6=\"en\",\"\",\" \")&\": \"&E63","v":"Bhoutan : +975"}]
["BV",{"$f":"IF(C64<>\"\",IF(VoletGeneral!$B$6=\"En\",C64,D64),\"\")","v":"Île Bouvet"},"Bouvet Island","Île Bouvet","+47",{"$f":"B64&IF(VoletGeneral!$B$6=\"en\",\"\",\" \")&\": \"&E64","v":"Île Bouvet : +47"}]
["BW",{"$f":"IF(C65<>\"\",IF(VoletGeneral!$B$6=\"En\",C65,D65),\"\")","v":"Botswana"},"Botswana","Botswana","+267",{"$f":"B65&IF(VoletGeneral!$B$6=\"en\",\"\",\" \")&\": \"&E65","v":"Botswana : +267"}]
["BY",{"$f":"IF(C66<>\"\",IF(VoletGeneral!$B$6=\"En\",C66,D66),\"\")","v":"Belarus"},"Belarus","Belarus","+375",{"$f":"B66&IF(VoletGeneral!$B$6=\"en\",\"\",\" \")&\": \"&E66","v":"Belarus : +375"}]
["BZ",{"$f":"IF(C67<>\"\",IF(VoletGeneral!$B$6=\"En\",C67,D67),\"\")","v":"Belize"},"Belize","Belize","+501",{"$f":"B67&IF(VoletGeneral!$B$6=\"en\",\"\",\" \")&\": \"&E67","v":"Belize : +501"}]
["CA",{"$f":"IF(C68<>\"\",IF(VoletGeneral!$B$6=\"En\",C68,D68),\"\")","v":"Canada"},"Canada","Canada","+1",{"$f":"B68&IF(VoletGeneral!$B$6=\"en\",\"\",\" \")&\": \"&E68","v":"Canada : +1"}]
["CC",{"$f":"IF(C69<>\"\",IF(VoletGeneral!$B$6=\"En\",C69,D69),\"\")","v":"Îles Cocos"},"Cocos (Keeling) Islands","Îles Cocos","+61",{"$f":"B69&IF(VoletGeneral!$B$6=\"en\",\"\",\" \")&\": \"&E69","v":"Îles Cocos : +61"}]
["CD",{"$f":"IF(C70<>\"\",IF(VoletGeneral!$B$6=\"En\",C70,D70),\"\")","v":"Congo"},"Congo","Congo","+243",{"$f":"B70&IF(VoletGeneral!$B$6=\"en\",\"\",\" \")&\": \"&E70","v":"Congo : +243"}]
["CF",{"$f":"IF(C71<>\"\",IF(VoletGeneral!$B$6=\"En\",C71,D71),\"\")","v":"République centrafricaine"},"Central African Republic","République centrafricaine","+236",{"$f":"B71&IF(VoletGeneral!$B$6=\"en\",\"\",\" \")&\": \"&E71","v":"République centrafricaine : +236"}]
["CG",{"$f":"IF(C72<>\"\",IF(VoletGeneral!$B$6=\"En\",C72,D72),\"\")","v":"Congo"},"Congo","Congo","+242",{"$f":"B72&IF(VoletGeneral!$B$6=\"en\",\"\",\" \")&\": \"&E72","v":"Congo : +242"}]
["CH",{"$f":"IF(C73<>\"\",IF(VoletGeneral!$B$6=\"En\",C73,D73),\"\")","v":"Suisse"},"Switzerland","Suisse","+41",{"$f":"B73&IF(VoletGeneral!$B$6=\"en\",\"\",\" \")&\": \"&E73","v":"Suisse : +41"}]
["CI",{"$f":"IF(C74<>\"\",IF(VoletGeneral!$B$6=\"En\",C74,D74),\"\")","v":"Côte d'Ivoire"},"Côte d'Ivoire","Côte d'Ivoire","+225",{"$f":"B74&IF(VoletGeneral!$B$6=\"en\",\"\",\" \")&\": \"&E74","v":"Côte d'Ivoire : +225"}]
["CK",{"$f":"IF(C75<>\"\",IF(VoletGeneral!$B$6=\"En\",C75,D75),\"\")","v":"Îles Cook"},"Cook Islands","Îles Cook","+682",{"$f":"B75&IF(VoletGeneral!$B$6=\"en\",\"\",\" \")&\": \"&E75","v":"Îles Cook : +682"}]
["CL",{"$f":"IF(C76<>\"\",IF(VoletGeneral!$B$6=\"En\",C76,D76),\"\")","v":"Chili"},"Chile","Chili","+56",{"$f":"B76&IF(VoletGeneral!$B$6=\"en\",\"\",\" \")&\": \"&E76","v":"Chili : +56"}]
["CM",{"$f":"IF(C77<>\"\",IF(VoletGeneral!$B$6=\"En\",C77,D77),\"\")","v":"Cameroun"},"Cameroon","Cameroun","+237",{"$f":"B77&IF(VoletGeneral!$B$6=\"en\",\"\",\" \")&\": \"&E77","v":"Cameroun : +237"}]
["CN",{"$f":"IF(C78<>\"\",IF(VoletGeneral!$B$6=\"En\",C78,D78),\"\")","v":"Chine"},"China","Chine","+86",{"$f":"B78&IF(VoletGeneral!$B$6=\"en\",\"\",\" \")&\": \"&E78","v":"Chine : +86"}]
["CO",{"$f":"IF(C79<>\"\",IF(VoletGeneral!$B$6=\"En\",C79,D79),\"\")","v":"Colombie"},"Colombia","Colombie","+57",{"$f":"B79&IF(VoletGeneral!$B$6=\"en\",\"\",\" \")&\": \"&E79","v":"Colombie : +57"}]
["CR",{"$f":"IF(C80<>\"\",IF(VoletGeneral!$B$6=\"En\",C80,D80),\"\")","v":"Costa Rica"},"Costa Rica","Costa Rica","+506",{"$f":"B80&IF(VoletGeneral!$B$6=\"en\",\"\",\" \")&\": \"&E80","v":"Costa Rica : +506"}]
["CU",{"$f":"IF(C81<>\"\",IF(VoletGeneral!$B$6=\"En\",C81,D81),\"\")","v":"Cuba"},"Cuba","Cuba","+53",{"$f":"B81&IF(VoletGeneral!$B$6=\"en\",\"\",\" \")&\": \"&E81","v":"Cuba : +53"}]
["CV",{"$f":"IF(C82<>\"\",IF(VoletGeneral!$B$6=\"En\",C82,D82),\"\")","v":"Cabo Verde"},"Cabo Verde","Cabo Verde","+238",{"$f":"B82&IF(VoletGeneral!$B$6=\"en\",\"\",\" \")&\": \"&E82","v":"Cabo Verde : +238"}]
["CW",{"$f":"IF(C83<>\"\",IF(VoletGeneral!$B$6=\"En\",C83,D83),\"\")","v":"Curaçao"},"Curaçao","Curaçao","+599",{"$f":"B83&IF(VoletGeneral!$B$6=\"en\",\"\",\" \")&\": \"&E83","v":"Curaçao : +599"}]
["CX",{"$f":"IF(C84<>\"\",IF(VoletGeneral!$B$6=\"En\",C84,D84),\"\")","v":"L'île de noël"},"Christmas Island","L'île de noël","+61",{"$f":"B84&IF(VoletGeneral!$B$6=\"en\",\"\",\" \")&\": \"&E84","v":"L'île de noël : +61"}]
["CY",{"$f":"IF(C85<>\"\",IF(VoletGeneral!$B$6=\"En\",C85,D85),\"\")","v":"Chypre"},"Cyprus","Chypre","+357",{"$f":"B85&IF(VoletGeneral!$B$6=\"en\",\"\",\" \")&\": \"&E85","v":"Chypre : +357"}]
["CZ",{"$f":"IF(C86<>\"\",IF(VoletGeneral!$B$6=\"En\",C86,D86),\"\")","v":"République Tchèque"},"Czech Republic","République Tchèque","+420",{"$f":"B86&IF(VoletGeneral!$B$6=\"en\",\"\",\" \")&\": \"&E86","v":"République Tchèque : +420"}]
["DE",{"$f":"IF(C87<>\"\",IF(VoletGeneral!$B$6=\"En\",C87,D87),\"\")","v":"Allemagne"},"Germany","Allemagne","+49",{"$f":"B87&IF(VoletGeneral!$B$6=\"en\",\"\",\" \")&\": \"&E87","v":"Allemagne : +49"}]
["DJ",{"$f":"IF(C88<>\"\",IF(VoletGeneral!$B$6=\"En\",C88,D88),\"\")","v":"Djibouti"},"Djibouti","Djibouti","+253",{"$f":"B88&IF(VoletGeneral!$B$6=\"en\",\"\",\" \")&\": \"&E88","v":"Djibouti : +253"}]
["DK",{"$f":"IF(C89<>\"\",IF(VoletGeneral!$B$6=\"En\",C89,D89),\"\")","v":"Danemark"},"Denmark","Danemark","+45",{"$f":"B89&IF(VoletGeneral!$B$6=\"en\",\"\",\" \")&\": \"&E89","v":"Danemark : +45"}]
["DM",{"$f":"IF(C90<>\"\",IF(VoletGeneral!$B$6=\"En\",C90,D90),\"\")","v":"Dominique"},"Dominica","Dominique","+1767",{"$f":"B90&IF(VoletGeneral!$B$6=\"en\",\"\",\" \")&\": \"&E90","v":"Dominique : +1767"}]
["DO",{"$f":"IF(C91<>\"\",IF(VoletGeneral!$B$6=\"En\",C91,D91),\"\")","v":"République Dominicaine"},"Dominican Republic","République Dominicaine","+1809",{"$f":"B91&IF(VoletGeneral!$B$6=\"en\",\"\",\" \")&\": \"&E91","v":"République Dominicaine : +1809"}]
["DZ",{"$f":"IF(C92<>\"\",IF(VoletGeneral!$B$6=\"En\",C92,D92),\"\")","v":"Algérie"},"Algeria","Algérie","+213",{"$f":"B92&IF(VoletGeneral!$B$6=\"en\",\"\",\" \")&\": \"&E92","v":"Algérie : +213"}]
["EC",{"$f":"IF(C93<>\"\",IF(VoletGeneral!$B$6=\"En\",C93,D93),\"\")","v":"Equateur"},"Ecuador","Equateur","+593",{"$f":"B93&IF(VoletGeneral!$B$6=\"en\",\"\",\" \")&\": \"&E93","v":"Equateur : +593"}]
["EE",{"$f":"IF(C94<>\"\",IF(VoletGeneral!$B$6=\"En\",C94,D94),\"\")","v":"Estonie"},"Estonia","Estonie","+372",{"$f":"B94&IF(VoletGeneral!$B$6=\"en\",\"\",\" \")&\": \"&E94","v":"Estonie : +372"}]
["EG",{"$f":"IF(C95<>\"\",IF(VoletGeneral!$B$6=\"En\",C95,D95),\"\")","v":"Egypte"},"Egypt","Egypte","+20",{"$f":"B95&IF(VoletGeneral!$B$6=\"en\",\"\",\" \")&\": \"&E95","v":"Egypte : +20"}]
["EH",{"$f":"IF(C96<>\"\",IF(VoletGeneral!$B$6=\"En\",C96,D96),\"\")","v":"Sahara occidental"},"Western Sahara","Sahara occidental","+212",{"$f":"B96&IF(VoletGeneral!$B$6=\"en\",\"\",\" \")&\": \"&E96","v":"Sahara occidental : +212"}]
["ER",{"$f":"IF(C97<>\"\",IF(VoletGeneral!$B$6=\"En\",C97,D97),\"\")","v":"Érythrée"},"Eritrea","Érythrée","+291",{"$f":"B97&IF(VoletGeneral!$B$6=\"en\",\"\",\" \")&\": \"&E97","v":"Érythrée : +291"}]
["ES",{"$f":"IF(C98<>\"\",IF(VoletGeneral!$B$6=\"En\",C98,D98),\"\")","v":"Espagne"},"Spain","Espagne","+34",{"$f":"B98&IF(VoletGeneral!$B$6=\"en\",\"\",\" \")&\": \"&E98","v":"Espagne : +34"}]
["ET",{"$f":"IF(C99<>\"\",IF(VoletGeneral!$B$6=\"En\",C99,D99),\"\")","v":"Ethiopie"},"Ethiopia","Ethiopie","+251",{"$f":"B99&IF(VoletGeneral!$B$6=\"en\",\"\",\" \")&\": \"&E99","v":"Ethiopie : +251"}]
["FI",{"$f":"IF(C100<>\"\",IF(VoletGeneral!$B$6=\"En\",C100,D100),\"\")","v":"Finlande"},"Finland","Finlande","+358",{"$f":"B100&IF(VoletGeneral!$B$6=\"en\",\"\",\" \")&\": \"&E100","v":"Finlande : +358"}]
["FJ",{"$f":"IF(C101<>\"\",IF(VoletGeneral!$B$6=\"En\",C101,D101),\"\")","v":"Fidji"},"Fiji","Fidji","+679",{"$f":"B101&IF(VoletGeneral!$B$6=\"en\",\"\",\" \")&\": \"&E101","v":"Fidji : +679"}]
["FK",{"$f":"IF(C102<>\"\",IF(VoletGeneral!$B$6=\"En\",C102,D102),\"\")","v":"Îles Malouines (Falkland)"},"Falkland Islands (Malvinas)","Îles Malouines (Falkland)","+500",{"$f":"B102&IF(VoletGeneral!$B$6=\"en\",\"\",\" \")&\": \"&E102","v":"Îles Malouines (Falkland) : +500"}]
["FM",{"$f":"IF(C103<>\"\",IF(VoletGeneral!$B$6=\"En\",C103,D103),\"\")","v":"Micronésie"},"Micronesia","Micronésie","+691",{"$f":"B103&IF(VoletGeneral!$B$6=\"en\",\"\",\" \")&\": \"&E103","v":"Micronésie : +691"}]
["FO",{"$f":"IF(C104<>\"\",IF(VoletGeneral!$B$6=\"En\",C104,D104),\"\")","v":"Îles Féroé"},"Faroe Islands","Îles Féroé","+298",{"$f":"B104&IF(VoletGeneral!$B$6=\"en\",\"\",\" \")&\": \"&E104","v":"Îles Féroé : +298"}]
["FR",{"$f":"IF(C105<>\"\",IF(VoletGeneral!$B$6=\"En\",C105,D105),\"\")","v":"France"},"France","France","+33",{"$f":"B105&IF(VoletGeneral!$B$6=\"en\",\"\",\" \")&\": \"&E105","v":"France : +33"}]
["GA",{"$f":"IF(C106<>\"\",IF(VoletGeneral!$B$6=\"En\",C106,D106),\"\")","v":"Gabon"},"Gabon","Gabon","+241",{"$f":"B106&IF(VoletGeneral!$B$6=\"en\",\"\",\" \")&\": \"&E106","v":"Gabon : +241"}]
["GB",{"$f":"IF(C107<>\"\",IF(VoletGeneral!$B$6=\"En\",C107,D107),\"\")","v":"Royaume-Uni de Grande Bretagne et d'Irlande"},"United Kingdom of Great Britain and Ireland","Royaume-Uni de Grande Bretagne et d'Irlande","+44",{"$f":"B107&IF(VoletGeneral!$B$6=\"en\",\"\",\" \")&\": \"&E107","v":"Royaume-Uni de Grande Bretagne et d'Irlande : +44"}]
["GD",{"$f":"IF(C108<>\"\",IF(VoletGeneral!$B$6=\"En\",C108,D108),\"\")","v":"Grenade"},"Grenada","Grenade","+1473",{"$f":"B108&IF(VoletGeneral!$B$6=\"en\",\"\",\" \")&\": \"&E108","v":"Grenade : +1473"}]
["GE",{"$f":"IF(C109<>\"\",IF(VoletGeneral!$B$6=\"En\",C109,D109),\"\")","v":"Géorgie"},"Georgia","Géorgie","+995",{"$f":"B109&IF(VoletGeneral!$B$6=\"en\",\"\",\" \")&\": \"&E109","v":"Géorgie : +995"}]
["GF",{"$f":"IF(C110<>\"\",IF(VoletGeneral!$B$6=\"En\",C110,D110),\"\")","v":"Guinée Française"},"French Guiana","Guinée Française","+594",{"$f":"B110&IF(VoletGeneral!$B$6=\"en\",\"\",\" \")&\": \"&E110","v":"Guinée Française : +594"}]
["GG",{"$f":"IF(C111<>\"\",IF(VoletGeneral!$B$6=\"En\",C111,D111),\"\")","v":"Guernsey"},"Guernsey","Guernsey","+44",{"$f":"B111&IF(VoletGeneral!$B$6=\"en\",\"\",\" \")&\": \"&E111","v":"Guernsey : +44"}]
["GH",{"$f":"IF(C112<>\"\",IF(VoletGeneral!$B$6=\"En\",C112,D112),\"\")","v":"Ghana"},"Ghana","Ghana","+233",{"$f":"B112&IF(VoletGeneral!$B$6=\"en\",\"\",\" \")&\": \"&E112","v":"Ghana : +233"}]
["GI",{"$f":"IF(C113<>\"\",IF(VoletGeneral!$B$6=\"En\",C113,D113),\"\")","v":"Gibraltar"},"Gibraltar","Gibraltar","+350",{"$f":"B113&IF(VoletGeneral!$B$6=\"en\",\"\",\" \")&\": \"&E113","v":"Gibraltar : +350"}]
["GL",{"$f":"IF(C114<>\"\",IF(VoletGeneral!$B$6=\"En\",C114,D114),\"\")","v":"Groenland"},"Greenland","Groenland","+299",{"$f":"B114&IF(VoletGeneral!$B$6=\"en\",\"\",\" \")&\": \"&E114","v":"Groenland : +299"}]
["GM",{"$f":"IF(C115<>\"\",IF(VoletGeneral!$B$6=\"En\",C115,D115),\"\")","v":"Gambie"},"Gambia","Gambie","+220",{"$f":"B115&IF(VoletGeneral!$B$6=\"en\",\"\",\" \")&\": \"&E115","v":"Gambie : +220"}]
["GN",{"$f":"IF(C116<>\"\",IF(VoletGeneral!$B$6=\"En\",C116,D116),\"\")","v":"Guinée"},"Guinea","Guinée","+224",{"$f":"B116&IF(VoletGeneral!$B$6=\"en\",\"\",\" \")&\": \"&E116","v":"Guinée : +224"}]
["GP",{"$f":"IF(C117<>\"\",IF(VoletGeneral!$B$6=\"En\",C117,D117),\"\")","v":"Guadeloupe"},"Guadeloupe","Guadeloupe","+590",{"$f":"B117&IF(VoletGeneral!$B$6=\"en\",\"\",\" \")&\": \"&E117","v":"Guadeloupe : +590"}]
["GQ",{"$f":"IF(C118<>\"\",IF(VoletGeneral!$B$6=\"En\",C118,D118),\"\")","v":"Guinée Équatoriale"},"Equatorial Guinea","Guinée Équatoriale","+240",{"$f":"B118&IF(VoletGeneral!$B$6=\"en\",\"\",\" \")&\": \"&E118","v":"Guinée Équatoriale : +240"}]
["GR",{"$f":"IF(C119<>\"\",IF(VoletGeneral!$B$6=\"En\",C119,D119),\"\")","v":"Grèce"},"Greece","Grèce","+30",{"$f":"B119&IF(VoletGeneral!$B$6=\"en\",\"\",\" \")&\": \"&E119","v":"Grèce : +30"}]
["GS",{"$f":"IF(C120<>\"\",IF(VoletGeneral!$B$6=\"En\",C120,D120),\"\")","v":"Géorgie du Sud et les îles Sandwich du Sud"},"South Georgia and the South Sandwich Islands","Géorgie du Sud et les îles Sandwich du Sud","+500",{"$f":"B120&IF(VoletGeneral!$B$6=\"en\",\"\",\" \")&\": \"&E120","v":"Géorgie du Sud et les îles Sandwich du Sud : +500"}]
["GT",{"$f":"IF(C121<>\"\",IF(VoletGeneral!$B$6=\"En\",C121,D121),\"\")","v":"Guatemala"},"Guatemala","Guatemala","+502",{"$f":"B121&IF(VoletGeneral!$B$6=\"en\",\"\",\" \")&\": \"&E121","v":"Guatemala : +502"}]
["GU",{"$f":"IF(C122<>\"\",IF(VoletGeneral!$B$6=\"En\",C122,D122),\"\")","v":"Guam"},"Guam","Guam","+1671",{"$f":"B122&IF(VoletGeneral!$B$6=\"en\",\"\",\" \")&\": \"&E122","v":"Guam : +1671"}]
["GW",{"$f":"IF(C123<>\"\",IF(VoletGeneral!$B$6=\"En\",C123,D123),\"\")","v":"Guinée-Bissau"},"Guinea-Bissau","Guinée-Bissau","+245",{"$f":"B123&IF(VoletGeneral!$B$6=\"en\",\"\",\" \")&\": \"&E123","v":"Guinée-Bissau : +245"}]
["GY",{"$f":"IF(C124<>\"\",IF(VoletGeneral!$B$6=\"En\",C124,D124),\"\")","v":"Guyane"},"Guyana","Guyane","+592",{"$f":"B124&IF(VoletGeneral!$B$6=\"en\",\"\",\" \")&\": \"&E124","v":"Guyane : +592"}]
["HK",{"$f":"IF(C125<>\"\",IF(VoletGeneral!$B$6=\"En\",C125,D125),\"\")","v":"Hong Kong"},"Hong Kong","Hong Kong","+852",{"$f":"B125&IF(VoletGeneral!$B$6=\"en\",\"\",\" \")&\": \"&E125","v":"Hong Kong : +852"}]
["HM",{"$f":"IF(C126<>\"\",IF(VoletGeneral!$B$6=\"En\",C126,D126),\"\")","v":"Îles Heard et McDonald"},"Heard Island and McDonald Islands","Îles Heard et McDonald","+61",{"$f":"B126&IF(VoletGeneral!$B$6=\"en\",\"\",\" \")&\": \"&E126","v":"Îles Heard et McDonald : +61"}]
["HN",{"$f":"IF(C127<>\"\",IF(VoletGeneral!$B$6=\"En\",C127,D127),\"\")","v":"Honduras"},"Honduras","Honduras","+504",{"$f":"B127&IF(VoletGeneral!$B$6=\"en\",\"\",\" \")&\": \"&E127","v":"Honduras : +504"}]
["HR",{"$f":"IF(C128<>\"\",IF(VoletGeneral!$B$6=\"En\",C128,D128),\"\")","v":"Croatie"},"Croatia","Croatie","+385",{"$f":"B128&IF(VoletGeneral!$B$6=\"en\",\"\",\" \")&\": \"&E128","v":"Croatie : +385"}]
["HT",{"$f":"IF(C129<>\"\",IF(VoletGeneral!$B$6=\"En\",C129,D129),\"\")","v":"Haïti"},"Haiti","Haïti","+509",{"$f":"B129&IF(VoletGeneral!$B$6=\"en\",\"\",\" \")&\": \"&E129","v":"Haïti : +509"}]
["HU",{"$f":"IF(C130<>\"\",IF(VoletGeneral!$B$6=\"En\",C130,D130),\"\")","v":"Hongrie"},"Hungary","Hongrie","+36",{"$f":"B130&IF(VoletGeneral!$B$6=\"en\",\"\",\" \")&\": \"&E130","v":"Hongrie : +36"}]
["ID",{"$f":"IF(C131<>\"\",IF(VoletGeneral!$B$6=\"En\",C131,D131),\"\")","v":"Indonésie"},"Indonesia","Indonésie","+62",{"$f":"B131&IF(VoletGeneral!$B$6=\"en\",\"\",\" \")&\": \"&E131","v":"Indonésie : +62"}]
["IE",{"$f":"IF(C132<>\"\",IF(VoletGeneral!$B$6=\"En\",C132,D132),\"\")","v":"Irlande"},"Ireland","Irlande","+353",{"$f":"B132&IF(VoletGeneral!$B$6=\"en\",\"\",\" \")&\": \"&E132","v":"Irlande : +353"}]
["IL",{"$f":"IF(C133<>\"\",IF(VoletGeneral!$B$6=\"En\",C133,D133),\"\")","v":"Israël"},"Israel","Israël","+972",{"$f":"B133&IF(VoletGeneral!$B$6=\"en\",\"\",\" \")&\": \"&E133","v":"Israël : +972"}]
["IM",{"$f":"IF(C134<>\"\",IF(VoletGeneral!$B$6=\"En\",C134,D134),\"\")","v":"Isle of Man"},"Isle of Man","Isle of Man","+44",{"$f":"B134&IF(VoletGeneral!$B$6=\"en\",\"\",\" \")&\": \"&E134","v":"Isle of Man : +44"}]
["IN",{"$f":"IF(C135<>\"\",IF(VoletGeneral!$B$6=\"En\",C135,D135),\"\")","v":"Inde"},"India","Inde","+91",{"$f":"B135&IF(VoletGeneral!$B$6=\"en\",\"\",\" \")&\": \"&E135","v":"Inde : +91"}]
["IO",{"$f":"IF(C136<>\"\",IF(VoletGeneral!$B$6=\"En\",C136,D136),\"\")","v":"Territoire britannique de l'océan Indien"},"British Indian Ocean Territory","Territoire britannique de l'océan Indien","+246",{"$f":"B136&IF(VoletGeneral!$B$6=\"en\",\"\",\" \")&\": \"&E136","v":"Territoire britannique de l'océan Indien : +246"}]
["IQ",{"$f":"IF(C137<>\"\",IF(VoletGeneral!$B$6=\"En\",C137,D137),\"\")","v":"Irak"},"Iraq","Irak","+964",{"$f":"B137&IF(VoletGeneral!$B$6=\"en\",\"\",\" \")&\": \"&E137","v":"Irak : +964"}]
["IR",{"$f":"IF(C138<>\"\",IF(VoletGeneral!$B$6=\"En\",C138,D138),\"\")","v":"Iran"},"Iran","Iran","+98",{"$f":"B138&IF(VoletGeneral!$B$6=\"en\",\"\",\" \")&\": \"&E138","v":"Iran : +98"}]
["IS",{"$f":"IF(C139<>\"\",IF(VoletGeneral!$B$6=\"En\",C139,D139),\"\")","v":"Islande"},"Iceland","Islande","+354",{"$f":"B139&IF(VoletGeneral!$B$6=\"en\",\"\",\" \")&\": \"&E139","v":"Islande : +354"}]
["IT",{"$f":"IF(C140<>\"\",IF(VoletGeneral!$B$6=\"En\",C140,D140),\"\")","v":"Italie"},"Italy","Italie","+39",{"$f":"B140&IF(VoletGeneral!$B$6=\"en\",\"\",\" \")&\": \"&E140","v":"Italie : +39"}]
["JE",{"$f":"IF(C141<>\"\",IF(VoletGeneral!$B$6=\"En\",C141,D141),\"\")","v":"Jersey"},"Jersey","Jersey","+44",{"$f":"B141&IF(VoletGeneral!$B$6=\"en\",\"\",\" \")&\": \"&E141","v":"Jersey : +44"}]
["JM",{"$f":"IF(C142<>\"\",IF(VoletGeneral!$B$6=\"En\",C142,D142),\"\")","v":"Jamaïque"},"Jamaica","Jamaïque","+1876",{"$f":"B142&IF(VoletGeneral!$B$6=\"en\",\"\",\" \")&\": \"&E142","v":"Jamaïque : +1876"}]
["JO",{"$f":"IF(C143<>\"\",IF(VoletGeneral!$B$6=\"En\",C143,D143),\"\")","v":"Jordanie"},"Jordan","Jordanie","+962",{"$f":"B143&IF(VoletGeneral!$B$6=\"en\",\"\",\" \")&\": \"&E143","v":"Jordanie : +962"}]
["JP",{"$f":"IF(C144<>\"\",IF(VoletGeneral!$B$6=\"En\",C144,D144),\"\")","v":"Japon"},"Japan","Japon","+81",{"$f":"B144&IF(VoletGeneral!$B$6=\"en\",\"\",\" \")&\": \"&E144","v":"Japon : +81"}]
["KE",{"$f":"IF(C145<>\"\",IF(VoletGeneral!$B$6=\"En\",C145,D145),\"\")","v":"Kenya"},"Kenya","Kenya","+254",{"$f":"B145&IF(VoletGeneral!$B$6=\"en\",\"\",\" \")&\": \"&E145","v":"Kenya : +254"}]
["KG",{"$f":"IF(C146<>\"\",IF(VoletGeneral!$B$6=\"En\",C146,D146),\"\")","v":"Kirghizistan"},"Kyrgyzstan","Kirghizistan","+996",{"$f":"B146&IF(VoletGeneral!$B$6=\"en\",\"\",\" \")&\": \"&E146","v":"Kirghizistan : +996"}]
["KH",{"$f":"IF(C147<>\"\",IF(VoletGeneral!$B$6=\"En\",C147,D147),\"\")","v":"Cambodge"},"Cambodia","Cambodge","+855",{"$f":"B147&IF(VoletGeneral!$B$6=\"en\",\"\",\" \")&\": \"&E147","v":"Cambodge : +855"}]
["KI",{"$f":"IF(C148<>\"\",IF(VoletGeneral!$B$6=\"En\",C148,D148),\"\")","v":"Kiribati"},"Kiribati","Kiribati","+686",{"$f":"B148&IF(VoletGeneral!$B$6=\"en\",\"\",\" \")&\": \"&E148","v":"Kiribati : +686"}]
["KM",{"$f":"IF(C149<>\"\",IF(VoletGeneral!$B$6=\"En\",C149,D149),\"\")","v":"Comores"},"Comoros","Comores","+269",{"$f":"B149&IF(VoletGeneral!$B$6=\"en\",\"\",\" \")&\": \"&E149","v":"Comores : +269"}]
["KN",{"$f":"IF(C150<>\"\",IF(VoletGeneral!$B$6=\"En\",C150,D150),\"\")","v":"Saint-Christophe-et-Niévès"},"Saint Kitts and Nevis","Saint-Christophe-et-Niévès","+1869",{"$f":"B150&IF(VoletGeneral!$B$6=\"en\",\"\",\" \")&\": \"&E150","v":"Saint-Christophe-et-Niévès : +1869"}]
["KP",{"$f":"IF(C151<>\"\",IF(VoletGeneral!$B$6=\"En\",C151,D151),\"\")","v":"Corée (République populaire démocratique de)"},"Korea (Democratic People's Republic of)","Corée (République populaire démocratique de)","+850",{"$f":"B151&IF(VoletGeneral!$B$6=\"en\",\"\",\" \")&\": \"&E151","v":"Corée (République populaire démocratique de) : +850"}]
["KR",{"$f":"IF(C152<>\"\",IF(VoletGeneral!$B$6=\"En\",C152,D152),\"\")","v":"Corée (République de)"},"Korea (Republic of)","Corée (République de)","+82",{"$f":"B152&IF(VoletGeneral!$B$6=\"en\",\"\",\" \")&\": \"&E152","v":"Corée (République de) : +82"}]
["KW",{"$f":"IF(C153<>\"\",IF(VoletGeneral!$B$6=\"En\",C153,D153),\"\")","v":"Koweit"},"Kuwait","Koweit","+965",{"$f":"B153&IF(VoletGeneral!$B$6=\"en\",\"\",\" \")&\": \"&E153","v":"Koweit : +965"}]
["KY",{"$f":"IF(C154<>\"\",IF(VoletGeneral!$B$6=\"En\",C154,D154),\"\")","v":"Îles Caïmans"},"Cayman Islands","Îles Caïmans","+1345",{"$f":"B154&IF(VoletGeneral!$B$6=\"en\",\"\",\" \")&\": \"&E154","v":"Îles Caïmans : +1345"}]
["KZ",{"$f":"IF(C155<>\"\",IF(VoletGeneral!$B$6=\"En\",C155,D155),\"\")","v":"Kazakhstan"},"Kazakhstan","Kazakhstan","+7",{"$f":"B155&IF(VoletGeneral!$B$6=\"en\",\"\",\" \")&\": \"&E155","v":"Kazakhstan : +7"}]
["LA",{"$f":"IF(C156<>\"\",IF(VoletGeneral!$B$6=\"En\",C156,D156),\"\")","v":"Laos"},"Lao","Laos","+856",{"$f":"B156&IF(VoletGeneral!$B$6=\"en\",\"\",\" \")&\": \"&E156","v":"Laos : +856"}]
["LB",{"$f":"IF(C157<>\"\",IF(VoletGeneral!$B$6=\"En\",C157,D157),\"\")","v":"Liban"},"Lebanon","Liban","+961",{"$f":"B157&IF(VoletGeneral!$B$6=\"en\",\"\",\" \")&\": \"&E157","v":"Liban : +961"}]
["LC",{"$f":"IF(C158<>\"\",IF(VoletGeneral!$B$6=\"En\",C158,D158),\"\")","v":"Sainte-Lucie"},"Saint Lucia","Sainte-Lucie","+1758",{"$f":"B158&IF(VoletGeneral!$B$6=\"en\",\"\",\" \")&\": \"&E158","v":"Sainte-Lucie : +1758"}]
["LI",{"$f":"IF(C159<>\"\",IF(VoletGeneral!$B$6=\"En\",C159,D159),\"\")","v":"Liechtenstein"},"Liechtenstein","Liechtenstein","+423",{"$f":"B159&IF(VoletGeneral!$B$6=\"en\",\"\",\" \")&\": \"&E159","v":"Liechtenstein : +423"}]
["LK",{"$f":"IF(C160<>\"\",IF(VoletGeneral!$B$6=\"En\",C160,D160),\"\")","v":"Sri Lanka"},"Sri Lanka","Sri Lanka","+94",{"$f":"B160&IF(VoletGeneral!$B$6=\"en\",\"\",\" \")&\": \"&E160","v":"Sri Lanka : +94"}]
["LR",{"$f":"IF(C161<>\"\",IF(VoletGeneral!$B$6=\"En\",C161,D161),\"\")","v":"Libéria"},"Liberia","Libéria","+231",{"$f":"B161&IF(VoletGeneral!$B$6=\"en\",\"\",\" \")&\": \"&E161","v":"Libéria : +231"}]
["LS",{"$f":"IF(C162<>\"\",IF(VoletGeneral!$B$6=\"En\",C162,D162),\"\")","v":"Lesotho"},"Lesotho","Lesotho","+266",{"$f":"B162&IF(VoletGeneral!$B$6=\"en\",\"\",\" \")&\": \"&E162","v":"Lesotho : +266"}]
["LT",{"$f":"IF(C163<>\"\",IF(VoletGeneral!$B$6=\"En\",C163,D163),\"\")","v":"Lituanie"},"Lithuania","Lituanie","+370",{"$f":"B163&IF(VoletGeneral!$B$6=\"en\",\"\",\" \")&\": \"&E163","v":"Lituanie : +370"}]
["LU",{"$f":"IF(C164<>\"\",IF(VoletGeneral!$B$6=\"En\",C164,D164),\"\")","v":"Luxembourg"},"Luxembourg","Luxembourg","+352",{"$f":"B164&IF(VoletGeneral!$B$6=\"en\",\"\",\" \")&\": \"&E164","v":"Luxembourg : +352"}]
["LV",{"$f":"IF(C165<>\"\",IF(VoletGeneral!$B$6=\"En\",C165,D165),\"\")","v":"Lettonie"},"Latvia","Lettonie","+371",{"$f":"B165&IF(VoletGeneral!$B$6=\"en\",\"\",\" \")&\": \"&E165","v":"Lettonie : +371"}]
["LY",{"$f":"IF(C166<>\"\",IF(VoletGeneral!$B$6=\"En\",C166,D166),\"\")","v":"Libye"},"Libya","Libye","+218",{"$f":"B166&IF(VoletGeneral!$B$6=\"en\",\"\",\" \")&\": \"&E166","v":"Libye : +218"}]
["MA",{"$f":"IF(C167<>\"\",IF(VoletGeneral!$B$6=\"En\",C167,D167),\"\")","v":"Maroc"},"Morocco","Maroc","+212",{"$f":"B167&IF(VoletGeneral!$B$6=\"en\",\"\",\" \")&\": \"&E167","v":"Maroc : +212"}]
["MC",{"$f":"IF(C168<>\"\",IF(VoletGeneral!$B$6=\"En\",C168,D168),\"\")","v":"Monaco"},"Monaco","Monaco","+377",{"$f":"B168&IF(VoletGeneral!$B$6=\"en\",\"\",\" \")&\": \"&E168","v":"Monaco : +377"}]
["MD",{"$f":"IF(C169<>\"\",IF(VoletGeneral!$B$6=\"En\",C169,D169),\"\")","v":"Moldovie"},"Moldova","Moldovie","+373",{"$f":"B169&IF(VoletGeneral!$B$6=\"en\",\"\",\" \")&\": \"&E169","v":"Moldovie : +373"}]
["ME",{"$f":"IF(C170<>\"\",IF(VoletGeneral!$B$6=\"En\",C170,D170),\"\")","v":"Monténégro"},"Montenegro","Monténégro","+382",{"$f":"B170&IF(VoletGeneral!$B$6=\"en\",\"\",\" \")&\": \"&E170","v":"Monténégro : +382"}]
["MF",{"$f":"IF(C171<>\"\",IF(VoletGeneral!$B$6=\"En\",C171,D171),\"\")","v":"Saint Martin (partie française)"},"Saint Martin (French part)","Saint Martin (partie française)","+590",{"$f":"B171&IF(VoletGeneral!$B$6=\"en\",\"\",\" \")&\": \"&E171","v":"Saint Martin (partie française) : +590"}]
["MG",{"$f":"IF(C172<>\"\",IF(VoletGeneral!$B$6=\"En\",C172,D172),\"\")","v":"Madagascar"},"Madagascar","Madagascar","+261",{"$f":"B172&IF(VoletGeneral!$B$6=\"en\",\"\",\" \")&\": \"&E172","v":"Madagascar : +261"}]
["MH",{"$f":"IF(C173<>\"\",IF(VoletGeneral!$B$6=\"En\",C173,D173),\"\")","v":"Iles Marshall"},"Marshall Islands","Iles Marshall","+692",{"$f":"B173&IF(VoletGeneral!$B$6=\"en\",\"\",\" \")&\": \"&E173","v":"Iles Marshall : +692"}]
["MK",{"$f":"IF(C174<>\"\",IF(VoletGeneral!$B$6=\"En\",C174,D174),\"\")","v":"Macédoine (ex-République yougoslave de)"},"Macedonia (the former Yugoslav Republic of)","Macédoine (ex-République yougoslave de)","+389",{"$f":"B174&IF(VoletGeneral!$B$6=\"en\",\"\",\" \")&\": \"&E174","v":"Macédoine (ex-République yougoslave de) : +389"}]
["ML",{"$f":"IF(C175<>\"\",IF(VoletGeneral!$B$6=\"En\",C175,D175),\"\")","v":"Mali"},"Mali","Mali","+223",{"$f":"B175&IF(VoletGeneral!$B$6=\"en\",\"\",\" \")&\": \"&E175","v":"Mali : +223"}]
["MM",{"$f":"IF(C176<>\"\",IF(VoletGeneral!$B$6=\"En\",C176,D176),\"\")","v":"Myanmar"},"Myanmar","Myanmar","+95",{"$f":"B176&IF(VoletGeneral!$B$6=\"en\",\"\",\" \")&\": \"&E176","v":"Myanmar : +95"}]
["MN",{"$f":"IF(C177<>\"\",IF(VoletGeneral!$B$6=\"En\",C177,D177),\"\")","v":"Mongolie"},"Mongolia","Mongolie","+976",{"$f":"B177&IF(VoletGeneral!$B$6=\"en\",\"\",\" \")&\": \"&E177","v":"Mongolie : +976"}]
["MO",{"$f":"IF(C178<>\"\",IF(VoletGeneral!$B$6=\"En\",C178,D178),\"\")","v":"Macao"},"Macao","Macao","+853",{"$f":"B178&IF(VoletGeneral!$B$6=\"en\",\"\",\" \")&\": \"&E178","v":"Macao : +853"}]
["MP",{"$f":"IF(C179<>\"\",IF(VoletGeneral!$B$6=\"En\",C179,D179),\"\")","v":"Îles Mariannes du Nord"},"Northern Mariana Islands","Îles Mariannes du Nord","+1670",{"$f":"B179&IF(VoletGeneral!$B$6=\"en\",\"\",\" \")&\": \"&E179","v":"Îles Mariannes du Nord : +1670"}]
["MQ",{"$f":"IF(C180<>\"\",IF(VoletGeneral!$B$6=\"En\",C180,D180),\"\")","v":"Martinique"},"Martinique","Martinique","+596",{"$f":"B180&IF(VoletGeneral!$B$6=\"en\",\"\",\" \")&\": \"&E180","v":"Martinique : +596"}]
["MR",{"$f":"IF(C181<>\"\",IF(VoletGeneral!$B$6=\"En\",C181,D181),\"\")","v":"Mauritanie"},"Mauritania","Mauritanie","+222",{"$f":"B181&IF(VoletGeneral!$B$6=\"en\",\"\",\" \")&\": \"&E181","v":"Mauritanie : +222"}]
["MS",{"$f":"IF(C182<>\"\",IF(VoletGeneral!$B$6=\"En\",C182,D182),\"\")","v":"Montserrat"},"Montserrat","Montserrat","+1664",{"$f":"B182&IF(VoletGeneral!$B$6=\"en\",\"\",\" \")&\": \"&E182","v":"Montserrat : +1664"}]
["MT",{"$f":"IF(C183<>\"\",IF(VoletGeneral!$B$6=\"En\",C183,D183),\"\")","v":"Malte"},"Malta","Malte","+356",{"$f":"B183&IF(VoletGeneral!$B$6=\"en\",\"\",\" \")&\": \"&E183","v":"Malte : +356"}]
["MU",{"$f":"IF(C184<>\"\",IF(VoletGeneral!$B$6=\"En\",C184,D184),\"\")","v":"Ile Maurice"},"Mauritius","Ile Maurice","+230",{"$f":"B184&IF(VoletGeneral!$B$6=\"en\",\"\",\" \")&\": \"&E184","v":"Ile Maurice : +230"}]
["MV",{"$f":"IF(C185<>\"\",IF(VoletGeneral!$B$6=\"En\",C185,D185),\"\")","v":"Maldives"},"Maldives","Maldives","+960",{"$f":"B185&IF(VoletGeneral!$B$6=\"en\",\"\",\" \")&\": \"&E185","v":"Maldives : +960"}]
["MW",{"$f":"IF(C186<>\"\",IF(VoletGeneral!$B$6=\"En\",C186,D186),\"\")","v":"Malawi"},"Malawi","Malawi","+265",{"$f":"B186&IF(VoletGeneral!$B$6=\"en\",\"\",\" \")&\": \"&E186","v":"Malawi : +265"}]
["MX",{"$f":"IF(C187<>\"\",IF(VoletGeneral!$B$6=\"En\",C187,D187),\"\")","v":"Mexique"},"Mexico","Mexique","+52",{"$f":"B187&IF(VoletGeneral!$B$6=\"en\",\"\",\" \")&\": \"&E187","v":"Mexique : +52"}]
["MY",{"$f":"IF(C188<>\"\",IF(VoletGeneral!$B$6=\"En\",C188,D188),\"\")","v":"Malaisie"},"Malaysia","Malaisie","+60",{"$f":"B188&IF(VoletGeneral!$B$6=\"en\",\"\",\" \")&\": \"&E188","v":"Malaisie : +60"}]
["MZ",{"$f":"IF(C189<>\"\",IF(VoletGeneral!$B$6=\"En\",C189,D189),\"\")","v":"Mozambique"},"Mozambique","Mozambique","+258",{"$f":"B189&IF(VoletGeneral!$B$6=\"en\",\"\",\" \")&\": \"&E189","v":"Mozambique : +258"}]
["NA",{"$f":"IF(C190<>\"\",IF(VoletGeneral!$B$6=\"En\",C190,D190),\"\")","v":"Namibie"},"Namibia","Namibie","+264",{"$f":"B190&IF(VoletGeneral!$B$6=\"en\",\"\",\" \")&\": \"&E190","v":"Namibie : +264"}]
["NC",{"$f":"IF(C191<>\"\",IF(VoletGeneral!$B$6=\"En\",C191,D191),\"\")","v":"Nouvelle Calédonie"},"New Caledonia","Nouvelle Calédonie","+687",{"$f":"B191&IF(VoletGeneral!$B$6=\"en\",\"\",\" \")&\": \"&E191","v":"Nouvelle Calédonie : +687"}]
["NE",{"$f":"IF(C192<>\"\",IF(VoletGeneral!$B$6=\"En\",C192,D192),\"\")","v":"Niger"},"Niger","Niger","+227",{"$f":"B192&IF(VoletGeneral!$B$6=\"en\",\"\",\" \")&\": \"&E192","v":"Niger : +227"}]
["NF",{"$f":"IF(C193<>\"\",IF(VoletGeneral!$B$6=\"En\",C193,D193),\"\")","v":"Île Norfolk"},"Norfolk Island","Île Norfolk","+672",{"$f":"B193&IF(VoletGeneral!$B$6=\"en\",\"\",\" \")&\": \"&E193","v":"Île Norfolk : +672"}]
["NG",{"$f":"IF(C194<>\"\",IF(VoletGeneral!$B$6=\"En\",C194,D194),\"\")","v":"Nigeria"},"Nigeria","Nigeria","+234",{"$f":"B194&IF(VoletGeneral!$B$6=\"en\",\"\",\" \")&\": \"&E194","v":"Nigeria : +234"}]
["NI",{"$f":"IF(C195<>\"\",IF(VoletGeneral!$B$6=\"En\",C195,D195),\"\")","v":"Nicaragua"},"Nicaragua","Nicaragua","+505",{"$f":"B195&IF(VoletGeneral!$B$6=\"en\",\"\",\" \")&\": \"&E195","v":"Nicaragua : +505"}]
["NL",{"$f":"IF(C196<>\"\",IF(VoletGeneral!$B$6=\"En\",C196,D196),\"\")","v":"Pays-Bas"},"Netherlands","Pays-Bas","+31",{"$f":"B196&IF(VoletGeneral!$B$6=\"en\",\"\",\" \")&\": \"&E196","v":"Pays-Bas : +31"}]
["NO",{"$f":"IF(C197<>\"\",IF(VoletGeneral!$B$6=\"En\",C197,D197),\"\")","v":"Norvège"},"Norway","Norvège","+47",{"$f":"B197&IF(VoletGeneral!$B$6=\"en\",\"\",\" \")&\": \"&E197","v":"Norvège : +47"}]
["NP",{"$f":"IF(C198<>\"\",IF(VoletGeneral!$B$6=\"En\",C198,D198),\"\")","v":"Népal"},"Nepal","Népal","+977",{"$f":"B198&IF(VoletGeneral!$B$6=\"en\",\"\",\" \")&\": \"&E198","v":"Népal : +977"}]
["NR",{"$f":"IF(C199<>\"\",IF(VoletGeneral!$B$6=\"En\",C199,D199),\"\")","v":"Nauru"},"Nauru","Nauru","+674",{"$f":"B199&IF(VoletGeneral!$B$6=\"en\",\"\",\" \")&\": \"&E199","v":"Nauru : +674"}]
["NU",{"$f":"IF(C200<>\"\",IF(VoletGeneral!$B$6=\"En\",C200,D200),\"\")","v":"Niue"},"Niue","Niue","+683",{"$f":"B200&IF(VoletGeneral!$B$6=\"en\",\"\",\" \")&\": \"&E200","v":"Niue : +683"}]
["NZ",{"$f":"IF(C201<>\"\",IF(VoletGeneral!$B$6=\"En\",C201,D201),\"\")","v":"Nouvelle-Zélande"},"New Zealand","Nouvelle-Zélande","+64",{"$f":"B201&IF(VoletGeneral!$B$6=\"en\",\"\",\" \")&\": \"&E201","v":"Nouvelle-Zélande : +64"}]
["OM",{"$f":"IF(C202<>\"\",IF(VoletGeneral!$B$6=\"En\",C202,D202),\"\")","v":"Oman"},"Oman","Oman","+968",{"$f":"B202&IF(VoletGeneral!$B$6=\"en\",\"\",\" \")&\": \"&E202","v":"Oman : +968"}]
["PA",{"$f":"IF(C203<>\"\",IF(VoletGeneral!$B$6=\"En\",C203,D203),\"\")","v":"Panama"},"Panama","Panama","+507",{"$f":"B203&IF(VoletGeneral!$B$6=\"en\",\"\",\" \")&\": \"&E203","v":"Panama : +507"}]
["PE",{"$f":"IF(C204<>\"\",IF(VoletGeneral!$B$6=\"En\",C204,D204),\"\")","v":"Pérou"},"Peru","Pérou","+51",{"$f":"B204&IF(VoletGeneral!$B$6=\"en\",\"\",\" \")&\": \"&E204","v":"Pérou : +51"}]
["PF",{"$f":"IF(C205<>\"\",IF(VoletGeneral!$B$6=\"En\",C205,D205),\"\")","v":"Polynésie française"},"French Polynesia","Polynésie française","+689",{"$f":"B205&IF(VoletGeneral!$B$6=\"en\",\"\",\" \")&\": \"&E205","v":"Polynésie française : +689"}]
["PG",{"$f":"IF(C206<>\"\",IF(VoletGeneral!$B$6=\"En\",C206,D206),\"\")","v":"Papouasie Nouvelle Guinée"},"Papua New Guinea","Papouasie Nouvelle Guinée","+675",{"$f":"B206&IF(VoletGeneral!$B$6=\"en\",\"\",\" \")&\": \"&E206","v":"Papouasie Nouvelle Guinée : +675"}]
["PH",{"$f":"IF(C207<>\"\",IF(VoletGeneral!$B$6=\"En\",C207,D207),\"\")","v":"Philippines"},"Philippines","Philippines","+63",{"$f":"B207&IF(VoletGeneral!$B$6=\"en\",\"\",\" \")&\": \"&E207","v":"Philippines : +63"}]
["PK",{"$f":"IF(C208<>\"\",IF(VoletGeneral!$B$6=\"En\",C208,D208),\"\")","v":"Pakistan"},"Pakistan","Pakistan","+92",{"$f":"B208&IF(VoletGeneral!$B$6=\"en\",\"\",\" \")&\": \"&E208","v":"Pakistan : +92"}]
["PL",{"$f":"IF(C209<>\"\",IF(VoletGeneral!$B$6=\"En\",C209,D209),\"\")","v":"Pologne"},"Poland","Pologne","+48",{"$f":"B209&IF(VoletGeneral!$B$6=\"en\",\"\",\" \")&\": \"&E209","v":"Pologne : +48"}]
["PM",{"$f":"IF(C210<>\"\",IF(VoletGeneral!$B$6=\"En\",C210,D210),\"\")","v":"Saint-Pierre-et-Miquelon"},"Saint Pierre and Miquelon","Saint-Pierre-et-Miquelon","+508",{"$f":"B210&IF(VoletGeneral!$B$6=\"en\",\"\",\" \")&\": \"&E210","v":"Saint-Pierre-et-Miquelon : +508"}]
["PN",{"$f":"IF(C211<>\"\",IF(VoletGeneral!$B$6=\"En\",C211,D211),\"\")","v":"Pitcairn"},"Pitcairn","Pitcairn","+64",{"$f":"B211&IF(VoletGeneral!$B$6=\"en\",\"\",\" \")&\": \"&E211","v":"Pitcairn : +64"}]
["PR",{"$f":"IF(C212<>\"\",IF(VoletGeneral!$B$6=\"En\",C212,D212),\"\")","v":"Porto Rico"},"Puerto Rico","Porto Rico","+1787",{"$f":"B212&IF(VoletGeneral!$B$6=\"en\",\"\",\" \")&\": \"&E212","v":"Porto Rico : +1787"}]
["PS",{"$f":"IF(C213<>\"\",IF(VoletGeneral!$B$6=\"En\",C213,D213),\"\")","v":"Palestine"},"Palestine","Palestine","+970",{"$f":"B213&IF(VoletGeneral!$B$6=\"en\",\"\",\" \")&\": \"&E213","v":"Palestine : +970"}]
["PT",{"$f":"IF(C214<>\"\",IF(VoletGeneral!$B$6=\"En\",C214,D214),\"\")","v":"Portugal"},"Portugal","Portugal","+351",{"$f":"B214&IF(VoletGeneral!$B$6=\"en\",\"\",\" \")&\": \"&E214","v":"Portugal : +351"}]
["PW",{"$f":"IF(C215<>\"\",IF(VoletGeneral!$B$6=\"En\",C215,D215),\"\")","v":"Palau"},"Palau","Palau","+680",{"$f":"B215&IF(VoletGeneral!$B$6=\"en\",\"\",\" \")&\": \"&E215","v":"Palau : +680"}]
["PY",{"$f":"IF(C216<>\"\",IF(VoletGeneral!$B$6=\"En\",C216,D216),\"\")","v":"Paraguay"},"Paraguay","Paraguay","+595",{"$f":"B216&IF(VoletGeneral!$B$6=\"en\",\"\",\" \")&\": \"&E216","v":"Paraguay : +595"}]
["QA",{"$f":"IF(C217<>\"\",IF(VoletGeneral!$B$6=\"En\",C217,D217),\"\")","v":"Qatar"},"Qatar","Qatar","+974",{"$f":"B217&IF(VoletGeneral!$B$6=\"en\",\"\",\" \")&\": \"&E217","v":"Qatar : +974"}]
["RE",{"$f":"IF(C218<>\"\",IF(VoletGeneral!$B$6=\"En\",C218,D218),\"\")","v":"Réunion"},"Réunion","Réunion","+262",{"$f":"B218&IF(VoletGeneral!$B$6=\"en\",\"\",\" \")&\": \"&E218","v":"Réunion : +262"}]
["RO",{"$f":"IF(C219<>\"\",IF(VoletGeneral!$B$6=\"En\",C219,D219),\"\")","v":"Roumanie"},"Romania","Roumanie","+40",{"$f":"B219&IF(VoletGeneral!$B$6=\"en\",\"\",\" \")&\": \"&E219","v":"Roumanie : +40"}]
["RS",{"$f":"IF(C220<>\"\",IF(VoletGeneral!$B$6=\"En\",C220,D220),\"\")","v":"Serbie"},"Serbia","Serbie","+381",{"$f":"B220&IF(VoletGeneral!$B$6=\"en\",\"\",\" \")&\": \"&E220","v":"Serbie : +381"}]
["RU",{"$f":"IF(C221<>\"\",IF(VoletGeneral!$B$6=\"En\",C221,D221),\"\")","v":"Fédération Russe"},"Russian Federation","Fédération Russe","+7",{"$f":"B221&IF(VoletGeneral!$B$6=\"en\",\"\",\" \")&\": \"&E221","v":"Fédération Russe : +7"}]
["RW",{"$f":"IF(C222<>\"\",IF(VoletGeneral!$B$6=\"En\",C222,D222),\"\")","v":"Rwanda"},"Rwanda","Rwanda","+250",{"$f":"B222&IF(VoletGeneral!$B$6=\"en\",\"\",\" \")&\": \"&E222","v":"Rwanda : +250"}]
["SA",{"$f":"IF(C223<>\"\",IF(VoletGeneral!$B$6=\"En\",C223,D223),\"\")","v":"Arabie Saoudite"},"Saudi Arabia","Arabie Saoudite","+966",{"$f":"B223&IF(VoletGeneral!$B$6=\"en\",\"\",\" \")&\": \"&E223","v":"Arabie Saoudite : +966"}]
["SB",{"$f":"IF(C224<>\"\",IF(VoletGeneral!$B$6=\"En\",C224,D224),\"\")","v":"Les îles Salomon"},"Solomon Islands","Les îles Salomon","+677",{"$f":"B224&IF(VoletGeneral!$B$6=\"en\",\"\",\" \")&\": \"&E224","v":"Les îles Salomon : +677"}]
["SC",{"$f":"IF(C225<>\"\",IF(VoletGeneral!$B$6=\"En\",C225,D225),\"\")","v":"les Seychelles"},"Seychelles","les Seychelles","+248",{"$f":"B225&IF(VoletGeneral!$B$6=\"en\",\"\",\" \")&\": \"&E225","v":"les Seychelles : +248"}]
["SD",{"$f":"IF(C226<>\"\",IF(VoletGeneral!$B$6=\"En\",C226,D226),\"\")","v":"Soudan"},"Sudan","Soudan","+249",{"$f":"B226&IF(VoletGeneral!$B$6=\"en\",\"\",\" \")&\": \"&E226","v":"Soudan : +249"}]
["SE",{"$f":"IF(C227<>\"\",IF(VoletGeneral!$B$6=\"En\",C227,D227),\"\")","v":"Suède"},"Sweden","Suède","+46",{"$f":"B227&IF(VoletGeneral!$B$6=\"en\",\"\",\" \")&\": \"&E227","v":"Suède : +46"}]
["SG",{"$f":"IF(C228<>\"\",IF(VoletGeneral!$B$6=\"En\",C228,D228),\"\")","v":"Singapour"},"Singapore","Singapour","+65",{"$f":"B228&IF(VoletGeneral!$B$6=\"en\",\"\",\" \")&\": \"&E228","v":"Singapour : +65"}]
["SH",{"$f":"IF(C229<>\"\",IF(VoletGeneral!$B$6=\"En\",C229,D229),\"\")","v":"Sainte-Hélène, Ascension et Tristan da Cunha"},"Saint Helena, Ascension and Tristan da Cunha","Sainte-Hélène, Ascension et Tristan da Cunha","+290",{"$f":"B229&IF(VoletGeneral!$B$6=\"en\",\"\",\" \")&\": \"&E229","v":"Sainte-Hélène, Ascension et Tristan da Cunha : +290"}]
["SI",{"$f":"IF(C230<>\"\",IF(VoletGeneral!$B$6=\"En\",C230,D230),\"\")","v":"Slovénie"},"Slovenia","Slovénie","+386",{"$f":"B230&IF(VoletGeneral!$B$6=\"en\",\"\",\" \")&\": \"&E230","v":"Slovénie : +386"}]
["SJ",{"$f":"IF(C231<>\"\",IF(VoletGeneral!$B$6=\"En\",C231,D231),\"\")","v":"Svalbard et Jan Mayen"},"Svalbard and Jan Mayen","Svalbard et Jan Mayen","+47",{"$f":"B231&IF(VoletGeneral!$B$6=\"en\",\"\",\" \")&\": \"&E231","v":"Svalbard et Jan Mayen : +47"}]
["SK",{"$f":"IF(C232<>\"\",IF(VoletGeneral!$B$6=\"En\",C232,D232),\"\")","v":"Slovaquie"},"Slovakia","Slovaquie","+421",{"$f":"B232&IF(VoletGeneral!$B$6=\"en\",\"\",\" \")&\": \"&E232","v":"Slovaquie : +421"}]
["SL",{"$f":"IF(C233<>\"\",IF(VoletGeneral!$B$6=\"En\",C233,D233),\"\")","v":"Sierra Leone"},"Sierra Leone","Sierra Leone","+232",{"$f":"B233&IF(VoletGeneral!$B$6=\"en\",\"\",\" \")&\": \"&E233","v":"Sierra Leone : +232"}]
["SM",{"$f":"IF(C234<>\"\",IF(VoletGeneral!$B$6=\"En\",C234,D234),\"\")","v":"Saint Marin"},"San Marino","Saint Marin","+378",{"$f":"B234&IF(VoletGeneral!$B$6=\"en\",\"\",\" \")&\": \"&E234","v":"Saint Marin : +378"}]
["SN",{"$f":"IF(C235<>\"\",IF(VoletGeneral!$B$6=\"En\",C235,D235),\"\")","v":"Sénégal"},"Senegal","Sénégal","+221",{"$f":"B235&IF(VoletGeneral!$B$6=\"en\",\"\",\" \")&\": \"&E235","v":"Sénégal : +221"}]
["SO",{"$f":"IF(C236<>\"\",IF(VoletGeneral!$B$6=\"En\",C236,D236),\"\")","v":"Somalie"},"Somalia","Somalie","+252",{"$f":"B236&IF(VoletGeneral!$B$6=\"en\",\"\",\" \")&\": \"&E236","v":"Somalie : +252"}]
["SR",{"$f":"IF(C237<>\"\",IF(VoletGeneral!$B$6=\"En\",C237,D237),\"\")","v":"Suriname"},"Suriname","Suriname","+597",{"$f":"B237&IF(VoletGeneral!$B$6=\"en\",\"\",\" \")&\": \"&E237","v":"Suriname : +597"}]
["SS",{"$f":"IF(C238<>\"\",IF(VoletGeneral!$B$6=\"En\",C238,D238),\"\")","v":"Soudan du sud"},"South Sudan","Soudan du sud","+211",{"$f":"B238&IF(VoletGeneral!$B$6=\"en\",\"\",\" \")&\": \"&E238","v":"Soudan du sud : +211"}]
["ST",{"$f":"IF(C239<>\"\",IF(VoletGeneral!$B$6=\"En\",C239,D239),\"\")","v":"Sao Tomé-et-Principe"},"Sao Tome and Principe","Sao Tomé-et-Principe","+239",{"$f":"B239&IF(VoletGeneral!$B$6=\"en\",\"\",\" \")&\": \"&E239","v":"Sao Tomé-et-Principe : +239"}]
["SV",{"$f":"IF(C240<>\"\",IF(VoletGeneral!$B$6=\"En\",C240,D240),\"\")","v":"Le Salvador"},"El Salvador","Le Salvador","+503",{"$f":"B240&IF(VoletGeneral!$B$6=\"en\",\"\",\" \")&\": \"&E240","v":"Le Salvador : +503"}]
["SX",{"$f":"IF(C241<>\"\",IF(VoletGeneral!$B$6=\"En\",C241,D241),\"\")","v":"Saint Martin (partie néerlandaise)"},"Sint Maarten (Dutch part)","Saint Martin (partie néerlandaise)","+1721",{"$f":"B241&IF(VoletGeneral!$B$6=\"en\",\"\",\" \")&\": \"&E241","v":"Saint Martin (partie néerlandaise) : +1721"}]
["SY",{"$f":"IF(C242<>\"\",IF(VoletGeneral!$B$6=\"En\",C242,D242),\"\")","v":"Syrie"},"Syria","Syrie","+963",{"$f":"B242&IF(VoletGeneral!$B$6=\"en\",\"\",\" \")&\": \"&E242","v":"Syrie : +963"}]
["SZ",{"$f":"IF(C243<>\"\",IF(VoletGeneral!$B$6=\"En\",C243,D243),\"\")","v":"Swaziland"},"Swaziland","Swaziland","+268",{"$f":"B243&IF(VoletGeneral!$B$6=\"en\",\"\",\" \")&\": \"&E243","v":"Swaziland : +268"}]
["TC",{"$f":"IF(C244<>\"\",IF(VoletGeneral!$B$6=\"En\",C244,D244),\"\")","v":"îles Turques-et-Caïques"},"Turks and Caicos Islands","îles Turques-et-Caïques","+1649",{"$f":"B244&IF(VoletGeneral!$B$6=\"en\",\"\",\" \")&\": \"&E244","v":"îles Turques-et-Caïques : +1649"}]
["TD",{"$f":"IF(C245<>\"\",IF(VoletGeneral!$B$6=\"En\",C245,D245),\"\")","v":"Tchad"},"Chad","Tchad","+235",{"$f":"B245&IF(VoletGeneral!$B$6=\"en\",\"\",\" \")&\": \"&E245","v":"Tchad : +235"}]
["TF",{"$f":"IF(C246<>\"\",IF(VoletGeneral!$B$6=\"En\",C246,D246),\"\")","v":"Terres australes françaises"},"French Southern Territories","Terres australes françaises","+262",{"$f":"B246&IF(VoletGeneral!$B$6=\"en\",\"\",\" \")&\": \"&E246","v":"Terres australes françaises : +262"}]
["TG",{"$f":"IF(C247<>\"\",IF(VoletGeneral!$B$6=\"En\",C247,D247),\"\")","v":"Aller"},"Togo","Aller","+228",{"$f":"B247&IF(VoletGeneral!$B$6=\"en\",\"\",\" \")&\": \"&E247","v":"Aller : +228"}]
["TH",{"$f":"IF(C248<>\"\",IF(VoletGeneral!$B$6=\"En\",C248,D248),\"\")","v":"Thaïlande"},"Thailand","Thaïlande","+66",{"$f":"B248&IF(VoletGeneral!$B$6=\"en\",\"\",\" \")&\": \"&E248","v":"Thaïlande : +66"}]
["TJ",{"$f":"IF(C249<>\"\",IF(VoletGeneral!$B$6=\"En\",C249,D249),\"\")","v":"Tadjikistan"},"Tajikistan","Tadjikistan","+992",{"$f":"B249&IF(VoletGeneral!$B$6=\"en\",\"\",\" \")&\": \"&E249","v":"Tadjikistan : +992"}]
["TK",{"$f":"IF(C250<>\"\",IF(VoletGeneral!$B$6=\"En\",C250,D250),\"\")","v":"Tokelau"},"Tokelau","Tokelau","+690",{"$f":"B250&IF(VoletGeneral!$B$6=\"en\",\"\",\" \")&\": \"&E250","v":"Tokelau : +690"}]
["TL",{"$f":"IF(C251<>\"\",IF(VoletGeneral!$B$6=\"En\",C251,D251),\"\")","v":"Timor-Leste"},"Timor-Leste","Timor-Leste","+670",{"$f":"B251&IF(VoletGeneral!$B$6=\"en\",\"\",\" \")&\": \"&E251","v":"Timor-Leste : +670"}]
["TM",{"$f":"IF(C252<>\"\",IF(VoletGeneral!$B$6=\"En\",C252,D252),\"\")","v":"Turkménistan"},"Turkmenistan","Turkménistan","+993",{"$f":"B252&IF(VoletGeneral!$B$6=\"en\",\"\",\" \")&\": \"&E252","v":"Turkménistan : +993"}]
["TN",{"$f":"IF(C253<>\"\",IF(VoletGeneral!$B$6=\"En\",C253,D253),\"\")","v":"Tunisie"},"Tunisia","Tunisie","+216",{"$f":"B253&IF(VoletGeneral!$B$6=\"en\",\"\",\" \")&\": \"&E253","v":"Tunisie : +216"}]
["TO",{"$f":"IF(C254<>\"\",IF(VoletGeneral!$B$6=\"En\",C254,D254),\"\")","v":"Tonga"},"Tonga","Tonga","+676",{"$f":"B254&IF(VoletGeneral!$B$6=\"en\",\"\",\" \")&\": \"&E254","v":"Tonga : +676"}]
["TR",{"$f":"IF(C255<>\"\",IF(VoletGeneral!$B$6=\"En\",C255,D255),\"\")","v":"Dinde"},"Turkey","Dinde","+90",{"$f":"B255&IF(VoletGeneral!$B$6=\"en\",\"\",\" \")&\": \"&E255","v":"Dinde : +90"}]
["TT",{"$f":"IF(C256<>\"\",IF(VoletGeneral!$B$6=\"En\",C256,D256),\"\")","v":"Trinité-et-Tobago"},"Trinidad and Tobago","Trinité-et-Tobago","+1868",{"$f":"B256&IF(VoletGeneral!$B$6=\"en\",\"\",\" \")&\": \"&E256","v":"Trinité-et-Tobago : +1868"}]
["TV",{"$f":"IF(C257<>\"\",IF(VoletGeneral!$B$6=\"En\",C257,D257),\"\")","v":"Tuvalu"},"Tuvalu","Tuvalu","+688",{"$f":"B257&IF(VoletGeneral!$B$6=\"en\",\"\",\" \")&\": \"&E257","v":"Tuvalu : +688"}]
["TW",{"$f":"IF(C258<>\"\",IF(VoletGeneral!$B$6=\"En\",C258,D258),\"\")","v":"Taiwan"},"Taiwan","Taiwan","+886",{"$f":"B258&IF(VoletGeneral!$B$6=\"en\",\"\",\" \")&\": \"&E258","v":"Taiwan : +886"}]
["TZ",{"$f":"IF(C259<>\"\",IF(VoletGeneral!$B$6=\"En\",C259,D259),\"\")","v":"Tanzanie"},"Tanzania","Tanzanie","+255",{"$f":"B259&IF(VoletGeneral!$B$6=\"en\",\"\",\" \")&\": \"&E259","v":"Tanzanie : +255"}]
["UA",{"$f":"IF(C260<>\"\",IF(VoletGeneral!$B$6=\"En\",C260,D260),\"\")","v":"Ukraine"},"Ukraine","Ukraine","+380",{"$f":"B260&IF(VoletGeneral!$B$6=\"en\",\"\",\" \")&\": \"&E260","v":"Ukraine : +380"}]
["UG",{"$f":"IF(C261<>\"\",IF(VoletGeneral!$B$6=\"En\",C261,D261),\"\")","v":"Ouganda"},"Uganda","Ouganda","+256",{"$f":"B261&IF(VoletGeneral!$B$6=\"en\",\"\",\" \")&\": \"&E261","v":"Ouganda : +256"}]
["UM",{"$f":"IF(C262<>\"\",IF(VoletGeneral!$B$6=\"En\",C262,D262),\"\")","v":"Îles mineures éloignées des États-Unis"},"United States Minor Outlying Islands","Îles mineures éloignées des États-Unis","+1808",{"$f":"B262&IF(VoletGeneral!$B$6=\"en\",\"\",\" \")&\": \"&E262","v":"Îles mineures éloignées des États-Unis : +1808"}]
["US",{"$f":"IF(C263<>\"\",IF(VoletGeneral!$B$6=\"En\",C263,D263),\"\")","v":"Etats-Unis d'Amerique"},"United States of America","Etats-Unis d'Amerique","+1",{"$f":"B263&IF(VoletGeneral!$B$6=\"en\",\"\",\" \")&\": \"&E263","v":"Etats-Unis d'Amerique : +1"}]
["UY",{"$f":"IF(C264<>\"\",IF(VoletGeneral!$B$6=\"En\",C264,D264),\"\")","v":"Uruguay"},"Uruguay","Uruguay","+598",{"$f":"B264&IF(VoletGeneral!$B$6=\"en\",\"\",\" \")&\": \"&E264","v":"Uruguay : +598"}]
["UZ",{"$f":"IF(C265<>\"\",IF(VoletGeneral!$B$6=\"En\",C265,D265),\"\")","v":"Ouzbékistan"},"Uzbekistan","Ouzbékistan","+998",{"$f":"B265&IF(VoletGeneral!$B$6=\"en\",\"\",\" \")&\": \"&E265","v":"Ouzbékistan : +998"}]
["VA",{"$f":"IF(C266<>\"\",IF(VoletGeneral!$B$6=\"En\",C266,D266),\"\")","v":"Vatican"},"Vatican","Vatican","+379",{"$f":"B266&IF(VoletGeneral!$B$6=\"en\",\"\",\" \")&\": \"&E266","v":"Vatican : +379"}]
["VC",{"$f":"IF(C267<>\"\",IF(VoletGeneral!$B$6=\"En\",C267,D267),\"\")","v":"Saint-Vincent-et-les-Grenadines"},"Saint Vincent and the Grenadines","Saint-Vincent-et-les-Grenadines","+1784",{"$f":"B267&IF(VoletGeneral!$B$6=\"en\",\"\",\" \")&\": \"&E267","v":"Saint-Vincent-et-les-Grenadines : +1784"}]
["VE",{"$f":"IF(C268<>\"\",IF(VoletGeneral!$B$6=\"En\",C268,D268),\"\")","v":"Venezuela"},"Venezuela","Venezuela","+58",{"$f":"B268&IF(VoletGeneral!$B$6=\"en\",\"\",\" \")&\": \"&E268","v":"Venezuela : +58"}]
["VG",{"$f":"IF(C269<>\"\",IF(VoletGeneral!$B$6=\"En\",C269,D269),\"\")","v":"Îles Vierges (Britanniques)"},"Virgin Islands (British)","Îles Vierges (Britanniques)","+1284",{"$f":"B269&IF(VoletGeneral!$B$6=\"en\",\"\",\" \")&\": \"&E269","v":"Îles Vierges (Britanniques) : +1284"}]
["VI",{"$f":"IF(C270<>\"\",IF(VoletGeneral!$B$6=\"En\",C270,D270),\"\")","v":"Îles Vierges (États-Unis)"},"Virgin Islands (U.S.)","Îles Vierges (États-Unis)","+1340",{"$f":"B270&IF(VoletGeneral!$B$6=\"en\",\"\",\" \")&\": \"&E270","v":"Îles Vierges (États-Unis) : +1340"}]
["VN",{"$f":"IF(C271<>\"\",IF(VoletGeneral!$B$6=\"En\",C271,D271),\"\")","v":"Viet Nam"},"Viet Nam","Viet Nam","+84",{"$f":"B271&IF(VoletGeneral!$B$6=\"en\",\"\",\" \")&\": \"&E271","v":"Viet Nam : +84"}]
["VU",{"$f":"IF(C272<>\"\",IF(VoletGeneral!$B$6=\"En\",C272,D272),\"\")","v":"Vanuatu"},"Vanuatu","Vanuatu","+678",{"$f":"B272&IF(VoletGeneral!$B$6=\"en\",\"\",\" \")&\": \"&E272","v":"Vanuatu : +678"}]
["WF",{"$f":"IF(C273<>\"\",IF(VoletGeneral!$B$6=\"En\",C273,D273),\"\")","v":"Wallis et Futuna"},"Wallis and Futuna","Wallis et Futuna","+681",{"$f":"B273&IF(VoletGeneral!$B$6=\"en\",\"\",\" \")&\": \"&E273","v":"Wallis et Futuna : +681"}]
["WS",{"$f":"IF(C274<>\"\",IF(VoletGeneral!$B$6=\"En\",C274,D274),\"\")","v":"Samoa"},"Samoa","Samoa","+685",{"$f":"B274&IF(VoletGeneral!$B$6=\"en\",\"\",\" \")&\": \"&E274","v":"Samoa : +685"}]
["YE",{"$f":"IF(C275<>\"\",IF(VoletGeneral!$B$6=\"En\",C275,D275),\"\")","v":"Yémen"},"Yemen","Yémen","+967",{"$f":"B275&IF(VoletGeneral!$B$6=\"en\",\"\",\" \")&\": \"&E275","v":"Yémen : +967"}]
["YT",{"$f":"IF(C276<>\"\",IF(VoletGeneral!$B$6=\"En\",C276,D276),\"\")","v":"Mayotte"},"Mayotte","Mayotte","+262",{"$f":"B276&IF(VoletGeneral!$B$6=\"en\",\"\",\" \")&\": \"&E276","v":"Mayotte : +262"}]
["ZA",{"$f":"IF(C277<>\"\",IF(VoletGeneral!$B$6=\"En\",C277,D277),\"\")","v":"Afrique du Sud"},"South Africa","Afrique du Sud","+27",{"$f":"B277&IF(VoletGeneral!$B$6=\"en\",\"\",\" \")&\": \"&E277","v":"Afrique du Sud : +27"}]
["ZM",{"$f":"IF(C278<>\"\",IF(VoletGeneral!$B$6=\"En\",C278,D278),\"\")","v":"Zambie"},"Zambia","Zambie","+260",{"$f":"B278&IF(VoletGeneral!$B$6=\"en\",\"\",\" \")&\": \"&E278","v":"Zambie : +260"}]
["ZW",{"$f":"IF(C279<>\"\",IF(VoletGeneral!$B$6=\"En\",C279,D279),\"\")","v":"Zimbabwe"},"Zimbabwe","Zimbabwe","+263",{"$f":"B279&IF(VoletGeneral!$B$6=\"en\",\"\",\" \")&\": \"&E279","v":"Zimbabwe : +263"}]
["Personne habilitée à engager juridiquement l'établissement partenaire",{"$f":"IF(C280<>\"\",IF(VoletGeneral!$B$6=\"En\",C280,D280),\"\")","v":""}]
["Genre",{"$f":"IF(C281<>\"\",IF(VoletGeneral!$B$6=\"En\",C281,D281),\"\")","v":""}]
[0,{"$f":"IF(C282<>\"\",IF(VoletGeneral!$B$6=\"En\",C282,D282),\"\")","v":"Madame"},"Mrs.","Madame"]
[1,{"$f":"IF(C283<>\"\",IF(VoletGeneral!$B$6=\"En\",C283,D283),\"\")","v":"Monsieur"},"Mr.","Monsieur"]
["Budget détaillé du projet - Part du partenaire",{"$f":"IF(C284<>\"\",IF(VoletGeneral!$B$6=\"En\",C284,D284),\"\")","v":""}]
["Personnels publics statutaires",{"$f":"IF(C285<>\"\",IF(VoletGeneral!$B$6=\"En\",C285,D285),\"\")","v":""}]
[0,{"$f":"IF(C286<>\"\",IF(VoletGeneral!$B$6=\"En\",C286,D286),\"\")","v":"Ens.-Cherch."},"Academic","Ens.-Cherch."]
[1,{"$f":"IF(C287<>\"\",IF(VoletGeneral!$B$6=\"En\",C287,D287),\"\")","v":"Chercheur"},"Researcher","Chercheur"]
[2,{"$f":"IF(C288<>\"\",IF(VoletGeneral!$B$6=\"En\",C288,D288),\"\")","v":"Ing. de rech."},"Research Eng.","Ing. de rech."]
[3,{"$f":"IF(C289<>\"\",IF(VoletGeneral!$B$6=\"En\",C289,D289),\"\")","v":"Ing. et tech."},"Eng. & Tech.","Ing. et tech."]
[4,{"$f":"IF(C290<>\"\",IF(VoletGeneral!$B$6=\"En\",C290,D290),\"\")","v":"PRAG"},"Full teacher","PRAG"]
[5,{"$f":"IF(C291<>\"\",IF(VoletGeneral!$B$6=\"En\",C291,D291),\"\")","v":"Admin."},"Admin.","Admin."]
[6,{"$f":"IF(C292<>\"\",IF(VoletGeneral!$B$6=\"En\",C292,D292),\"\")","v":"Autre"},"Other","Autre"]
[]
[]
[]
[]
["Personnels publics non statutaires",{"$f":"IF(C297<>\"\",IF(VoletGeneral!$B$6=\"En\",C297,D297),\"\")","v":""}]
[0,{"$f":"IF(C298<>\"\",IF(VoletGeneral!$B$6=\"En\",C298,D298),\"\")","v":"Doctorant"},"PhD student","Doctorant"]
[1,{"$f":"IF(C299<>\"\",IF(VoletGeneral!$B$6=\"En\",C299,D299),\"\")","v":"Post-doc"},"Post-doc","Post-doc"]
[2,{"$f":"IF(C300<>\"\",IF(VoletGeneral!$B$6=\"En\",C300,D300),\"\")","v":"Ens.-cherch. (CDD)"},"Academic (Perm.)","Ens.-cherch. (CDD)"]
[3,{"$f":"IF(C301<>\"\",IF(VoletGeneral!$B$6=\"En\",C301,D301),\"\")","v":"Ens.-cherch. (CDI)"},"Academic (Temp.)","Ens.-cherch. (CDI)"]
[4,{"$f":"IF(C302<>\"\",IF(VoletGeneral!$B$6=\"En\",C302,D302),\"\")","v":"Cherch. (CDD)"},"Research. (Perm.)","Cherch. (CDD)"]
[5,{"$f":"IF(C303<>\"\",IF(VoletGeneral!$B$6=\"En\",C303,D303),\"\")","v":"Cherch. (CDI)"},"Research. (Temp.)","Cherch. (CDI)"]
[6,{"$f":"IF(C304<>\"\",IF(VoletGeneral!$B$6=\"En\",C304,D304),\"\")","v":"Ing. de rech. (CDD)"},"Research Eng. (Perm.)","Ing. de rech. (CDD)"]
[7,{"$f":"IF(C305<>\"\",IF(VoletGeneral!$B$6=\"En\",C305,D305),\"\")","v":"Ing. de rech. (CDI)"},"Research Eng. (Temp.)","Ing. de rech. (CDI)"]
[8,{"$f":"IF(C306<>\"\",IF(VoletGeneral!$B$6=\"En\",C306,D306),\"\")","v":"Ing. et tech. (CDD)"},"Eng. & Tech. (Perm.)","Ing. et tech. (CDD)"]
[9,{"$f":"IF(C307<>\"\",IF(VoletGeneral!$B$6=\"En\",C307,D307),\"\")","v":"Ing. et tech. (CDI)"},"Eng. & Tech. (Temp.)","Ing. et tech. (CDI)"]
[10,{"$f":"IF(C308<>\"\",IF(VoletGeneral!$B$6=\"En\",C308,D308),\"\")","v":"Admin. (CDD)"},"Admin. (Perm.)","Admin. (CDD)"]
[11,{"$f":"IF(C309<>\"\",IF(VoletGeneral!$B$6=\"En\",C309,D309),\"\")","v":"Admin. (CDI)"},"Admin. (Temp.)","Admin. (CDI)"]
[12,{"$f":"IF(C310<>\"\",IF(VoletGeneral!$B$6=\"En\",C310,D310),\"\")","v":"Associé"},"Associated","Associé"]
[13,{"$f":"IF(C311<>\"\",IF(VoletGeneral!$B$6=\"En\",C311,D311),\"\")","v":"Vacataire"},"Short term","Vacataire"]
[14,{"$f":"IF(C312<>\"\",IF(VoletGeneral!$B$6=\"En\",C312,D312),\"\")","v":"Autre"},"Other","Autre"]
[]
["Personnels privés",{"$f":"IF(C314<>\"\",IF(VoletGeneral!$B$6=\"En\",C314,D314),\"\")","v":""}]
[0,{"$f":"IF(C315<>\"\",IF(VoletGeneral!$B$6=\"En\",C315,D315),\"\")","v":"Recherche"},"Research","Recherche"]
[1,{"$f":"IF(C316<>\"\",IF(VoletGeneral!$B$6=\"En\",C316,D316),\"\")","v":"Développement"},"Development","Développement"]
[2,{"$f":"IF(C317<>\"\",IF(VoletGeneral!$B$6=\"En\",C317,D317),\"\")","v":"Ingéniérie"},"Engineering","Ingéniérie"]
[3,{"$f":"IF(C318<>\"\",IF(VoletGeneral!$B$6=\"En\",C318,D318),\"\")","v":"Support tech."},"Tech. support","Support tech."]
[4,{"$f":"IF(C319<>\"\",IF(VoletGeneral!$B$6=\"En\",C319,D319),\"\")","v":"Administration"},"Administration","Administration"]
[5,{"$f":"IF(C320<>\"\",IF(VoletGeneral!$B$6=\"En\",C320,D320),\"\")","v":"Direction"},"Direction","Direction"]
[6,{"$f":"IF(C321<>\"\",IF(VoletGeneral!$B$6=\"En\",C321,D321),\"\")","v":"Autre"},"Other","Autre"]
[]
[]
[]
["Catégorie de l'entité au sens de l'Union Européenne"]
[0,{"$f":"IF(C326<>\"\",IF(VoletGeneral!$B$6=\"En\",C326,D326),\"\")","v":"Micro PME (< 10 salariés)"},"Micro SME (< 10 employees)","Micro PME (< 10 salariés)"]
[1,{"$f":"IF(C327<>\"\",IF(VoletGeneral!$B$6=\"En\",C327,D327),\"\")","v":"Petite PME (10 ≤ salariés < 50)"},"Small SME (10 ≤ employees < 50)","Petite PME (10 ≤ salariés < 50)"]
[2,{"$f":"IF(C328<>\"\",IF(VoletGeneral!$B$6=\"En\",C328,D328),\"\")","v":"Moyenne PME (50 ≤ salariés < 250)"},"Medium SME (50 ≤ employees < 250)","Moyenne PME (50 ≤ salariés < 250)"]
[3,{"$f":"IF(C329<>\"\",IF(VoletGeneral!$B$6=\"En\",C329,D329),\"\")","v":"Grande entreprise (> 250 salariés)"},"Large company","Grande entreprise (> 250 salariés)"]
[]
[]
[]
[]
["Type de coordinateur",null,null,null,{"$f":"MAX(E335:E350)","v":8}]
[0,{"$f":"IF(C335<>\"\",IF(VoletGeneral!$B$6=\"En\",C335,D335),\"\")","v":"Éts. public à caractère scientifique, culturel et professionnel"},"Public scientific, cultural and professional inst.","Éts. public à caractère scientifique, culturel et professionnel",0,{"$f":"IF(Parametres!$G$2=\"Oui\",IF(Parametres!$G$4=Parametres!$I$4,MenusDeroulants!B335,MenusDeroulants!B344),MenusDeroulants!B335)","v":"Éts. public à caractère scientifique, culturel et professionnel"}]
[1,{"$f":"IF(C336<>\"\",IF(VoletGeneral!$B$6=\"En\",C336,D336),\"\")","v":"Éts. public à caractère scientifique et technologique"},"Public scientific and technological inst.","Éts. public à caractère scientifique et technologique",{"$f":"IF(F336<>\"\",MAX(E$335:E335)+1,\"\")","v":1},{"$f":"IF(Parametres!$G$2=\"Oui\",IF(Parametres!$G$4=Parametres!$I$4,MenusDeroulants!B336,MenusDeroulants!B345),MenusDeroulants!B336)","v":"Éts. public à caractère scientifique et technologique"}]
[2,{"$f":"IF(C337<>\"\",IF(VoletGeneral!$B$6=\"En\",C337,D337),\"\")","v":"Éts. public à caractère industriel et commercial"},"Public industrial and commercial inst.","Éts. public à caractère industriel et commercial",{"$f":"IF(F337<>\"\",MAX(E$335:E336)+1,\"\")","v":2},{"$f":"IF(Parametres!$G$2=\"Oui\",IF(Parametres!$G$4=Parametres!$I$4,MenusDeroulants!B337,MenusDeroulants!B346),MenusDeroulants!B337)","v":"Éts. public à caractère industriel et commercial"}]
[3,{"$f":"IF(C338<>\"\",IF(VoletGeneral!$B$6=\"En\",C338,D338),\"\")","v":"Établissement public administratif"},"Public administrative institution","Établissement public administratif",{"$f":"IF(F338<>\"\",MAX(E$335:E337)+1,\"\")","v":3},{"$f":"IF(Parametres!$G$2=\"Oui\",IF(Parametres!$G$4=Parametres!$I$4,MenusDeroulants!B338,MenusDeroulants!B347),MenusDeroulants!B338)","v":"Établissement public administratif"}]
[4,{"$f":"IF(C339<>\"\",IF(VoletGeneral!$B$6=\"En\",C339,D339),\"\")","v":"Établissement public de santé"},"Public health institution","Établissement public de santé",{"$f":"IF(F339<>\"\",MAX(E$335:E338)+1,\"\")","v":4},{"$f":"IF(Parametres!$G$2=\"Oui\",IF(Parametres!$G$4=Parametres!$I$4,MenusDeroulants!B339,MenusDeroulants!B348),MenusDeroulants!B339)","v":"Établissement public de santé"}]
[5,{"$f":"IF(C340<>\"\",IF(VoletGeneral!$B$6=\"En\",C340,D340),\"\")","v":"Fondation de coopération scientifique"},"Scientific coopération foundation","Fondation de coopération scientifique",{"$f":"IF(F340<>\"\",MAX(E$335:E339)+1,\"\")","v":5},{"$f":"IF(Parametres!$G$2=\"Oui\",IF(Parametres!$G$4=Parametres!$I$4,MenusDeroulants!B340,MenusDeroulants!B349),MenusDeroulants!B340)","v":"Fondation de coopération scientifique"}]
[6,{"$f":"IF(C341<>\"\",IF(VoletGeneral!$B$6=\"En\",C341,D341),\"\")","v":"Association ou fondation publique"},"Public association or fundation","Association ou fondation publique",{"$f":"IF(F341<>\"\",MAX(E$335:E340)+1,\"\")","v":6},{"$f":"IF(Parametres!$G$2=\"Oui\",IF(Parametres!$G$4=Parametres!$I$4,MenusDeroulants!B341,MenusDeroulants!B350),MenusDeroulants!B341)","v":"Association ou fondation publique"}]
[7,{"$f":"IF(C342<>\"\",IF(VoletGeneral!$B$6=\"En\",C342,D342),\"\")","v":"Établissement public étranger"},"Foreign public institution","Établissement public étranger",{"$f":"IF(F342<>\"\",MAX(E$335:E341)+1,\"\")","v":7},{"$f":"IF(Parametres!$G$2=\"Oui\",IF(Parametres!$G$4=Parametres!$I$4,MenusDeroulants!B342,\"\"),MenusDeroulants!B342)","v":"Établissement public étranger"}]
[8,{"$f":"IF(C343<>\"\",IF(VoletGeneral!$B$6=\"En\",C343,D343),\"\")","v":"Autre Public"},"Other public","Autre Public",{"$f":"IF(F343<>\"\",MAX(E$335:E342)+1,\"\")","v":8},{"$f":"IF(Parametres!$G$2=\"Oui\",IF(Parametres!$G$4=Parametres!$I$4,MenusDeroulants!B343,\"\"),MenusDeroulants!B343)","v":"Autre Public"}]
[9,{"$f":"IF(C344<>\"\",IF(VoletGeneral!$B$6=\"En\",C344,D344),\"\")","v":"Association ou fondation privée"},"Private association or fundation","Association ou fondation privée",{"$f":"IF(F344<>\"\",MAX(E$335:E343)+1,\"\")","v":""},{"$f":"IF(Parametres!$G$2=\"Oui\",\"\",MenusDeroulants!B344)","v":""}]
[10,{"$f":"IF(C345<>\"\",IF(VoletGeneral!$B$6=\"En\",C345,D345),\"\")","v":"Micro PME (< 10 salariés)"},"Micro SME (< 10 employees)","Micro PME (< 10 salariés)",{"$f":"IF(F345<>\"\",MAX(E$335:E344)+1,\"\")","v":""},{"$f":"IF(Parametres!$G$2=\"Oui\",\"\",MenusDeroulants!B345)","v":""}]
[11,{"$f":"IF(C346<>\"\",IF(VoletGeneral!$B$6=\"En\",C346,D346),\"\")","v":"Petite PME (10 ≤ salariés < 50)"},"Small SME (10 ≤ employees < 50)","Petite PME (10 ≤ salariés < 50)",{"$f":"IF(F346<>\"\",MAX(E$335:E345)+1,\"\")","v":""},{"$f":"IF(Parametres!$G$2=\"Oui\",\"\",MenusDeroulants!B346)","v":""}]
[12,{"$f":"IF(C347<>\"\",IF(VoletGeneral!$B$6=\"En\",C347,D347),\"\")","v":"Moyenne PME (50 ≤ salariés < 250)"},"Medium SME (50 ≤ employees < 250)","Moyenne PME (50 ≤ salariés < 250)",{"$f":"IF(F347<>\"\",MAX(E$335:E346)+1,\"\")","v":""},{"$f":"IF(Parametres!$G$2=\"Oui\",\"\",MenusDeroulants!B347)","v":""}]
[13,{"$f":"IF(C348<>\"\",IF(VoletGeneral!$B$6=\"En\",C348,D348),\"\")","v":"Grande entreprise (> 250 salariés)"},"Large company","Grande entreprise (> 250 salariés)",{"$f":"IF(F348<>\"\",MAX(E$335:E347)+1,\"\")","v":""},{"$f":"IF(Parametres!$G$2=\"Oui\",\"\",MenusDeroulants!B348)","v":""}]
[14,{"$f":"IF(C349<>\"\",IF(VoletGeneral!$B$6=\"En\",C349,D349),\"\")","v":"Privé étranger"},"Foreign private","Privé étranger",{"$f":"IF(F349<>\"\",MAX(E$335:E348)+1,\"\")","v":""},{"$f":"IF(Parametres!$G$2=\"Oui\",\"\",MenusDeroulants!B349)","v":""}]
[15,{"$f":"IF(C350<>\"\",IF(VoletGeneral!$B$6=\"En\",C350,D350),\"\")","v":"Autre privé"},"Other private","Autre privé",{"$f":"IF(F350<>\"\",MAX(E$335:E349)+1,\"\")","v":""},{"$f":"IF(Parametres!$G$2=\"Oui\",\"\",MenusDeroulants!B350)","v":""}]
[]
[]
[]
[]
[]
[]
[]
[]
[]
[]
[]
[null,{"$f":"\"\"","v":""}]
[null,{"$f":"\"\"","v":""}]
[null,{"$f":"\"\"","v":""}]

{"sheet":"Tmp","index":9,"n_rows":0,"n_cols":0,"rows_kept":0,"cut":false,"hidden":true,"merged":[]}

{"sheet":"FichesAnnexes","index":10,"n_rows":1,"n_cols":3,"rows_kept":1,"cut":false,"hidden":true,"merged":[]}
["Créées",null,"Importées"]